Workbook

Sheet Kuntakortti
A1: Valtiovarainministeriö/Kunta- ja aluehallinto-osasto,14.12.2016
A2: KUNTIEN LOPULLISET TILINPÄÄTÖKSET 2013-2015 | G2: Valitse kunta valikosta:
A4: =INDEX(Luvut!$B$3:'Luvut'!$B$304,$A$7) -> KOKO MAA (Manner-Suomi) | D4: 2013 | G4: 2014 | J4: 2015
A6: Asukasluku | D6: =VLOOKUP($A$4,Luvut!$B$3:$AT$304,2) -> 5422604 | G6: =VLOOKUP($A$4,Luvut!$B$3:$ED$304,46) -> 5442837 | I6: =((G6/D6)-1)*100 -> 0.3731233186 | J6: =VLOOKUP($A$4,Luvut!$B$3:$ED$304,90) -> 5458325 | L6: =((J6/G6)-1)*100 -> 0.2845574835
A7: 99
A8: Tunnuslukuja
I9: muut.% | L9: muut.% | N9: Konsernivelka | O9: Konsernivelka | P9: Konsernivelka
A10: Lainat, euro/as | D10: =E67 -> 2542.476272 | G10: =H67 -> 2696.598667 | I10: =((G10/D10)-1)*100 -> 6.061901044 | J10: =K67 -> 2840.501985 | L10: =((J10/G10)-1)*100 -> 5.33647517 | N10: 2013, milj. € | O10: 2014, milj. € | P10: 2015, milj. €
A11: Konsernilainat, euro/as | D11: =VLOOKUP($A$4,Luvut!$B$3:$FM$304,167) -> 5547.345703 | G11: =VLOOKUP($A$4,Luvut!$B$3:$FM$304,168) -> 5774 | I11: =((G11/D11)-1)*100 -> 4.08581525 | J11: =VLOOKUP($A$4,Luvut!$B$3:$FN$304,169) -> 5987 | L11: =((J11/G11)-1)*100 -> 3.688950468 | N11: =D11*D6 -> 30081059000 | O11: =G11*G6 -> 31426940838 | P11: =J11*J6 -> 32678991775
A12: Lainanhoitokate | D12: =VLOOKUP($A$4,Luvut!$B$3:$AT$304,4) -> 1.319371239 | G12: =VLOOKUP($A$4,Luvut!$B$3:$ED$304,48) -> 1.2 | J12: =VLOOKUP($A$4,Luvut!$B$3:$ED$304,92) -> 1.06
A13: Suhteellinen velkaantuneisuus, % | D13: =VLOOKUP($A$4,Luvut!$B$3:$AT$304,5) -> 50.71641386 | G13: =VLOOKUP($A$4,Luvut!$B$3:$ED$304,49) -> 52 | J13: =VLOOKUP($A$4,Luvut!$B$3:$ED$304,93) -> 54.9
A14: Rahoitusvarallisuus, euro/as | D14: =VLOOKUP($A$4,Luvut!$B$3:$AT$304,6) -> -2246.564197 | G14: =VLOOKUP($A$4,Luvut!$B$3:$ED$304,50) -> -2415 | J14: =VLOOKUP($A$4,Luvut!$B$3:$ED$304,94) -> -2611.638919
A15: Omavaraisuusaste, % | D15: =VLOOKUP($A$4,Luvut!$B$3:$AT$304,10) -> 60.44107974 | G15: =VLOOKUP($A$4,Luvut!$B$3:$ED$304,54) -> 61 | J15: =VLOOKUP($A$4,Luvut!$B$3:$ED$304,98) -> 0
A17: Rahavarat, euro/as | D17: =VLOOKUP($A$4,Luvut!$B$3:$AT$304,11) -> 797.3285529 | G17: =VLOOKUP($A$4,Luvut!$B$3:$ED$304,55) -> 790 | J17: =VLOOKUP($A$4,Luvut!$B$3:$ED$304,99) -> 753.7812424
A18: Kassan riittävyys, pv | D18: =VLOOKUP($A$4,Luvut!$B$3:$AT$304,12) -> 37.69979894 | G18: =VLOOKUP($A$4,Luvut!$B$3:$ED$304,56) -> 34 | J18: =VLOOKUP($A$4,Luvut!$B$3:$ED$304,100) -> 37.9407675
A19: Kassastamaksut, euro/as | D19: =VLOOKUP($A$4,Luvut!$B$3:$AT$304,13) -> 7719.535116 | G19: =VLOOKUP($A$4,Luvut!$B$3:$ED$304,57) -> 8466 | J19: =VLOOKUP($A$4,Luvut!$B$3:$ED$304,101) -> 7251.570583 | N19: 2013 - 2014 | O19: 2014 - 2015
A20: Tuloslaskelma | D20: 1000 | E20: euro/as | G20: 1000 | H20: euro/as | I20: muut.% | J20: 1000 | K20: euro/as | L20: muut.% | N20: €/as | O20: €/as
A22: Henkilöstömenot (palkat+sivukulut) | D22: =VLOOKUP($A$4,Luvut!$B$3:$AX$304,14) -> 14877516 | E22: =D22*1000/$D$6 -> 2743.611003 | G22: =VLOOKUP($A$4,Luvut!$B$3:$ED$304,58) -> 14767904 | H22: =G22*1000/$G$6 -> 2713.273243 | I22: =((G22/D22)-1)*100 -> -0.7367627768 | J22: =VLOOKUP($A$4,Luvut!$B$3:$ED$304,102) -> 14616405 | K22: =J22*1000/$J$6 -> 2677.818745 | L22: =((J22/G22)-1)*100 -> -1.025866636 | N22: =((H22/E22)-1)*100 -> -1.105760246 | O22: =((K22/H22)-1)*100 -> -1.306705791
A23: Palvelujen ostot | D23: =VLOOKUP($A$4,Luvut!$B$3:$EF$304,134) -> 15631272 | E23: =D23*1000/$D$6 -> 2882.613593 | G23: =VLOOKUP($A$4,Luvut!$B$3:$EF$304,135) -> 15975867 | H23: =G23*1000/$G$6 -> 2935.209524 | I23: =((G23/D23)-1)*100 -> 2.204523087 | J23: =VLOOKUP($A$4,Luvut!$B$3:$EG$304,136) -> 16399784 | K23: =J23*1000/$J$6 -> 3004.545167 | L23: =((J23/G23)-1)*100 -> 2.653483532 | N23: =((H23/E23)-1)*100 -> 1.824591791 | O23: =((K23/H23)-1)*100 -> 2.36220422
A24: Toimintatuotot, sis. valmistus omaan käyt. | D24: =VLOOKUP($A$4,Luvut!$B$3:$AT$304,15) -> 9099964 | E24: =D24*1000/$D$6 -> 1678.153891 | G24: =VLOOKUP($A$4,Luvut!$B$3:$ED$304,59) -> 9119940 | H24: =G24*1000/$G$6 -> 1675.585729 | I24: 0.2195173519 | J24: =VLOOKUP($A$4,Luvut!$B$3:$ED$304,103) -> 8028689 | K24: =J24*1000/$J$6 -> 1470.907101 | L24: -11.96555021 | N24: -0.1530349576 | O24: -12.21534801
A25: Toimintakulut | D25: =VLOOKUP($A$4,Luvut!$B$3:$AT$304,16) -> 36154817 | E25: =D25*1000/$D$6 -> 6667.427125 | G25: =VLOOKUP($A$4,Luvut!$B$3:$ED$304,60) -> 36434169 | H25: =G25*1000/$G$6 -> 6693.966584 | I25: 0.7726549964 | J25: =VLOOKUP($A$4,Luvut!$B$3:$ED$304,104) -> 36334056 | K25: =J25*1000/$J$6 -> 6656.631109 | L25: -0.274777778 | N25: 0.3980464736 | O25: -0.5577481474
A26: Toimintakate | D26: =VLOOKUP($A$4,Luvut!$B$3:$AT$304,17) -> -27054855 | E26: -4989.273604 | G26: =VLOOKUP($A$4,Luvut!$B$3:$ED$304,61) -> -27314229 | H26: -5018.380855 | I26: 0.9586966923 | J26: =VLOOKUP($A$4,Luvut!$B$3:$ED$304,105) -> -28305219 | K26: =J26*1000/$J$6 -> -5185.696894 | L26: 3.628108998 | N26: 0.583396585 | O26: =((K26/H26)-1)*100 -> 3.334064185
A28: Verotulot | D28: =VLOOKUP($A$4,Luvut!$B$3:$AT$304,18) -> 20550650 | E28: 3789.812053 | G28: =VLOOKUP($A$4,Luvut!$B$3:$ED$304,62) -> 21068274 | H28: 3870.825821 | I28: 2.518771912 | J28: =VLOOKUP($A$4,Luvut!$B$3:$ED$304,106) -> 21662871 | K28: =J28*1000/$J$6 -> 3968.776319 | L28: 2.822238784 | N28: 2.137672439 | O28: 2.530480629
A29: Valtionosuudet, | D29: =VLOOKUP($A$4,Luvut!$B$3:$AT$304,19) -> 8252678 | E29: 1521.90313 | G29: =VLOOKUP($A$4,Luvut!$B$3:$ED$304,63) -> 8160993 | H29: 1499.400588 | I29: -1.110972705 | J29: =VLOOKUP($A$4,Luvut!$B$3:$ED$304,107) -> 8196322 | K29: =J29*1000/$J$6 -> 1501.618537 | L29: 0.4329007512 | N29: -1.4785791 | O29: 0.1479223435
A30: josta hark.var. vos-korotus | D30: =VLOOKUP($A$4,Luvut!$B$3:$EI$304,137) -> 20000 | E30: 3.6882649 | G30: =VLOOKUP($A$4,Luvut!$B$3:$EI$304,138) -> 20000 | H30: 3.674554281 | J30: (ei määrärahaa 2015)
A31: Verorahoitus | D31: =SUM(D28:D29) -> 28803328 | E31: 5311.715183 | G31: =SUM(G28:G29) -> 29229267 | H31: 5370.226409 | I31: 1.478783979 | J31: =SUM(J28:J29) -> 29859193 | K31: =J31*1000/$J$6 -> 5470.394856 | L31: 2.155120756 | N31: 1.101550519 | O31: 1.865255548
A32: Käyttökate | D32: =D31+D26 -> 1748473 | E32: 322.4415797 | G32: =G26+G31 -> 1915038 | H32: 351.8455541 | J32: =J26+J31 -> 1553974 | K32: =J32*1000/$J$6 -> 284.6979614
A34: Korkotuotot/-menot, netto | D34: =VLOOKUP($A$4,Luvut!$B$3:$AT$304,22) -> 4659 | E34: 0.8591813085 | G34: =VLOOKUP($A$4,Luvut!$B$3:$ED$304,66) -> -14727 | H34: -2.705758045 | J34: =VLOOKUP($A$4,Luvut!$B$3:$ED$304,110) -> 56439 | K34: =J34*1000/$J$6 -> 10.33998525
A35: Muut rahoituskulut/-tuotot, netto | D35: =VLOOKUP($A$4,Luvut!$B$3:$AT$304,23) -> 309368 | E35: 57.05155678 | G35: =VLOOKUP($A$4,Luvut!$B$3:$ED$304,67) -> 295035 | H35: 54.20610612 | J35: =VLOOKUP($A$4,Luvut!$B$3:$ED$304,111) -> 482808 | K35: =J35*1000/$J$6 -> 88.45350909
A36: Vuosikate | D36: =VLOOKUP($A$4,Luvut!$B$3:$AT$304,24) -> 2062502 | E36: 380.3526866 | G36: =VLOOKUP($A$4,Luvut!$B$3:$ED$304,68) -> 2195426 | H36: 403.3606004 | J36: =VLOOKUP($A$4,Luvut!$B$3:$ED$304,112) -> 1894705 | K36: =J36*1000/$J$6 -> 347.1220567
A38: Suunnitelman mukaiset poistot ja arvonalen. | D38: =VLOOKUP($A$4,Luvut!$B$3:$AT$304,25) -> 2058484 | E38: 379.6117142 | G38: =VLOOKUP($A$4,Luvut!$B$3:$ED$304,69) -> 2065374 | H38: 379.4664437 | I38: 0.3347123417 | J38: =VLOOKUP($A$4,Luvut!$B$3:$ED$304,113) -> 2081911 | K38: =J38*1000/$J$6 -> 381.4193915 | L38: 0.8006782307
A39: Satunnaiset tuotot | D39: =VLOOKUP($A$4,Luvut!$B$3:$AT$304,26) -> 384160 | E39: 70.8441922 | G39: =VLOOKUP($A$4,Luvut!$B$3:$ED$304,70) -> 1946732 | H39: 357.6686202 | J39: =VLOOKUP($A$4,Luvut!$B$3:$ED$304,114) -> 346559 | K39: =J39*1000/$J$6 -> 63.49182212
A40: Satunnaiset kulut | D40: =VLOOKUP($A$4,Luvut!$B$3:$AT$304,27) -> 18131 | E40: 3.343596545 | G40: =VLOOKUP($A$4,Luvut!$B$3:$ED$304,71) -> 46309 | H40: 8.50824671 | J40: =VLOOKUP($A$4,Luvut!$B$3:$ED$304,115) -> 15730 | K40: =J40*1000/$J$6 -> 2.881836461
A41: Tilikauden tulos | D41: =VLOOKUP($A$4,Luvut!$B$3:$AT$304,28) -> 370047 | E41: 68.24156807 | G41: =VLOOKUP($A$4,Luvut!$B$3:$ED$304,72) -> 2030007 | H41: 372.9685456 | J41: =VLOOKUP($A$4,Luvut!$B$3:$ED$304,116) -> 143623 | K41: =J41*1000/$J$6 -> 26.31265086
A43: Poistoeron lisäys(-) tai vähennys(+) | D43: =VLOOKUP($A$4,Luvut!$B$3:$AT$304,29) -> -19191 | E43: -3.539074585 | G43: =VLOOKUP($A$4,Luvut!$B$3:$ED$304,73) -> 172916 | H43: 31.7694614 | J43: =VLOOKUP($A$4,Luvut!$B$3:$ED$304,117) -> -16481 | K43: =J43*1000/$J$6 -> -3.019424457
A44: Varausten lisäys(-) tai vähennys(+) | D44: =VLOOKUP($A$4,Luvut!$B$3:$AT$304,30) -> -6649 | E44: -1.226163666 | G44: =VLOOKUP($A$4,Luvut!$B$3:$ED$304,74) -> 103419 | H44: 19.00093646 | J44: =VLOOKUP($A$4,Luvut!$B$3:$ED$304,118) -> -15415 | K44: =J44*1000/$J$6 -> -2.824126449
A45: Rahastojen lisäys(-) tai vähennys(+) | D45: =VLOOKUP($A$4,Luvut!$B$3:$AT$304,31) -> 49155 | E45: 9.064833058 | G45: =VLOOKUP($A$4,Luvut!$B$3:$ED$304,75) -> 139174 | H45: 25.57012088 | J45: =VLOOKUP($A$4,Luvut!$B$3:$ED$304,119) -> 52925 | K45: =J45*1000/$J$6 -> 9.696198009
A46: Tilikauden yli-/alijäämä | D46: =VLOOKUP($A$4,Luvut!$B$3:$AT$304,32) -> 393357 | E46: 72.54024081 | G46: =VLOOKUP($A$4,Luvut!$B$3:$ED$304,76) -> 2445539 | H46: 449.3132901 | J46: =VLOOKUP($A$4,Luvut!$B$3:$ED$304,120) -> 164652 | K46: =J46*1000/$J$6 -> 30.16529796
A47: Kumulatiivinen yli-/alijäämä | D47: =VLOOKUP($A$4,Luvut!$B$3:$AU$304,33) -> 6961304 | E47: 1283.75666 | G47: =VLOOKUP($A$4,Luvut!$B$3:$ED$304,77) -> 9362856 | H47: 1720.21613 | J47: =VLOOKUP($A$4,Luvut!$B$3:$ED$304,121) -> 9422587 | K47: =J47*1000/$J$6 -> 1726.278116
A49: Rahoituslaskelma | D49: 1000 | E49: euro/as | G49: 1000 | H49: euro/as | J49: 1000 | K49: euro/as
A51: Toiminnan rahavirta | D51: =VLOOKUP($A$4,Luvut!$B$3:$AT$304,34) -> 1816605 | E51: 335.0060229 | G51: =VLOOKUP($A$4,Luvut!$B$3:$ED$304,78) -> 1480995 | H51: =G51*1000/$G$6 -> 272.0998259 | J51: =VLOOKUP($A$4,Luvut!$B$3:$ED$304,122) -> 1612201 | K51: =J51*1000/$J$6 -> 295.3655196
A52: Investoinnit, netto | D52: =D53+D54+D55 -> -2678018 | E52: -493.8619896 | G52: =G53+G54+G55 -> -1572867 | H52: -288.9792584 | I52: -41.26749708 | J52: =J53+J54+J55 -> -2501667 | K52: -458.3213715 | L52: 59.05140104
A53: - Investointimenot | D53: =VLOOKUP($A$4,Luvut!$B$3:$EP$304,140) -> -3817210 | E53: -703.944083 | G53: =VLOOKUP($A$4,Luvut!$B$3:$EP$304,143) -> -6790767 | H53: -1247.652098 | I53: 77.89870088 | J53: =VLOOKUP($A$4,Luvut!$B$3:$FM$304,146) -> -3613766 | K53: -662.0650108 | L53: -46.78412615
A54: + Rahoitusosuudet investointimenoihin | D54: =VLOOKUP($A$4,Luvut!$B$3:$EP$304,141) -> 210526 | E54: 38.82378282 | G54: =VLOOKUP($A$4,Luvut!$B$3:$EP$304,144) -> 222285 | H54: 40.83991492 | I54: =((G54/D54)-1)*100 -> 5.585533378 | J54: =VLOOKUP($A$4,Luvut!$B$3:$FM$304,147) -> 195876 | K54: 35.88573418 | L54: -11.8806937
A55: + Investointihyödykkeiden luovutustulot | D55: =VLOOKUP($A$4,Luvut!$B$3:$EP$304,142) -> 928666 | E55: 171.2583106 | G55: =VLOOKUP($A$4,Luvut!$B$3:$EP$304,145) -> 4995615 | H55: 917.8329243 | I55: =((G55/D55)-1)*100 -> 437.9345211 | J55: =VLOOKUP($A$4,Luvut!$B$3:$FM$304,148) -> 916223 | K55: 167.8579051 | L55: -81.65945534
A56: Saamisten muutos | D56: =VLOOKUP($A$4,Luvut!$B$3:$AT$304,36) -> 11698 | E56: 2.15726614 | G56: =VLOOKUP($A$4,Luvut!$B$3:$ED$304,80) -> 253496 | H56: 46.5742406 | J56: =VLOOKUP($A$4,Luvut!$B$3:$ED$304,124) -> 89705 | K56: 16.43452891
A57: Pitkäaikaisten lainojen vähennys | D57: =VLOOKUP($A$4,Luvut!$B$3:$AT$304,37) -> -1514912 | E57: -279.3698378 | G57: =VLOOKUP($A$4,Luvut!$B$3:$ED$304,81) -> -1787158 | H57: -328.350454 | J57: =VLOOKUP($A$4,Luvut!$B$3:$ED$304,125) -> -2268170 | K57: -415.5432298
A58: Pitkäaikaisten lainojen lisäys | D58: =VLOOKUP($A$4,Luvut!$B$3:$EY$304,149) -> 2724696 | E58: 502.470031 | G58: =VLOOKUP($A$4,Luvut!$B$3:$EY$304,151) -> 2522611 | H58: 463.4735525 | J58: =VLOOKUP($A$4,Luvut!$B$3:$EY$304,153) -> 1783034 | K58: 326.6632163
A59: ± Lyhytaikaisten lainojen muutos | D59: =VLOOKUP($A$4,Luvut!$B$3:$EY$304,150) -> 362801 | E59: 66.9053097 | G59: =VLOOKUP($A$4,Luvut!$B$3:$EY$304,152) -> 130924 | H59: 24.05436724 | J59: =VLOOKUP($A$4,Luvut!$B$3:$EY$304,154) -> 336121 | K59: 61.57951386 | N59: 2013 - 2014 | O59: 2014 - 2015
A60: Toiminnan ja investointien rahavirta | D60: =VLOOKUP($A$4,Luvut!$B$3:$AT$304,38) -> -886924 | E60: -163.5605329 | G60: =VLOOKUP($A$4,Luvut!$B$3:$ED$304,82) -> -91872 | H60: -16.87943255 | J60: =VLOOKUP($A$4,Luvut!$B$3:$ED$304,126) -> -890484 | K60: -163.1423559 | N60: €/as | O60: €/as
A62: Verotulot | D62: =VLOOKUP($A$4,Luvut!$B$3:$AT$304,39) -> 20550650 | E62: 3789.812053 | G62: =VLOOKUP($A$4,Luvut!$B$3:$ED$304,83) -> 21068274 | H62: 3870.825821 | I62: =((G62/D62)-1)*100 -> 2.518771912 | J62: =VLOOKUP($A$4,Luvut!$B$3:$ED$304,127) -> 21662871 | K62: =J62*1000/$J$6 -> 3968.776319 | L62: =((J62/G62)-1)*100 -> 2.822238784 | N62: =((H62/E62)-1)*100 -> 2.137672439 | O62: =((K62/H62)-1)*100 -> 2.530480629
A63: Kunnallisvero | D63: =VLOOKUP($A$4,Luvut!$B$3:$AT$304,40) -> 17881106 | E63: 3297.512782 | G63: =VLOOKUP($A$4,Luvut!$B$3:$ED$304,84) -> 18102840 | H63: 3325.993411 | I63: =((G63/D63)-1)*100 -> 1.240046337 | J63: =VLOOKUP($A$4,Luvut!$B$3:$ED$304,128) -> 18443219 | K63: =J63*1000/$J$6 -> 3378.91551 | L63: =((J63/G63)-1)*100 -> 1.880251938 | N63: =((H63/E63)-1)*100 -> 0.8637003512 | O63: =((K63/H63)-1)*100 -> 1.591166671
A64: Yhteisövero | D64: =VLOOKUP($A$4,Luvut!$B$3:$AT$304,41) -> 1308621 | E64: 241.3270451 | G64: =VLOOKUP($A$4,Luvut!$B$3:$ED$304,85) -> 1456282 | H64: 267.5593629 | I64: 11.2837101 | J64: =VLOOKUP($A$4,Luvut!$B$3:$ED$304,129) -> 1638497 | K64: =J64*1000/$J$6 -> 300.1831148 | L64: 12.51234308 | N64: 10.87002818 | O64: 12.19308924
A65: Kiinteistövero | D65: =VLOOKUP($A$4,Luvut!$B$3:$AT$304,42) -> 1360351 | E65: 250.8667423 | G65: =VLOOKUP($A$4,Luvut!$B$3:$ED$304,86) -> 1508596 | H65: 277.1708945 | I65: 10.89755512 | J65: =VLOOKUP($A$4,Luvut!$B$3:$ED$304,130) -> 1581155 | K65: =J65*1000/$J$6 -> 289.6776942 | L65: 4.809703857 | N65: 10.48530867 | O65: 4.512306268
A67: Lainakanta, | D67: =VLOOKUP($A$4,Luvut!$B$3:$FG$304,155) -> 13786842 | E67: 2542.476272 | G67: =VLOOKUP($A$4,Luvut!$B$3:$FG$304,159) -> 14677147 | H67: 2696.598667 | I67: 6.457642729 | J67: =VLOOKUP($A$4,Luvut!$B$3:$FM$304,163) -> 15504383 | K67: =J67*1000/$J$6 -> 2840.501985 | L67: 5.636217993 | N67: 6.061901044 | O67: 5.33647517
A68: josta pitkäaikainen laina | D68: =VLOOKUP($A$4,Luvut!$B$3:$FG$304,156) -> 9886108 | E68: 1823.129257 | G68: =VLOOKUP($A$4,Luvut!$B$3:$FG$304,160) -> 10627935 | H68: 1952.646203 | J68: =VLOOKUP($A$4,Luvut!$B$3:$FM$304,164) -> 11002347 | K68: =J68*1000/$J$6 -> 2015.700238 | N68: 7.104101122 | O68: 3.229158202
A69: josta lyhytaikainen laina | D69: =VLOOKUP($A$4,Luvut!$B$3:$FG$304,157) -> 3900735 | E69: 719.3471992 | G69: =VLOOKUP($A$4,Luvut!$B$3:$FG$304,161) -> 4042705 | H69: 742.7569483 | J69: =VLOOKUP($A$4,Luvut!$B$3:$FM$304,165) -> 4501949 | K69: =J69*1000/$J$6 -> 824.7858088 | N69: 3.254304603 | O69: 11.04383618
A70: Lainasaamiset | D70: =VLOOKUP($A$4,Luvut!$B$3:$FG$304,158) -> 4288514 | E70: 790.858783 | G70: =VLOOKUP($A$4,Luvut!$B$3:$FG$304,162) -> 5353203 | H70: 983.5317501 | J70: =VLOOKUP($A$4,Luvut!$B$3:$FM$304,166) -> 5552611 | K70: =J70*1000/$J$6 -> 1017.273797 | N70: 24.36249951 | O70: 3.430702393
A72: Tuloveroprosentti | D72: =VLOOKUP($A$4,Luvut!$B$3:$AT$304,43) -> 19.4 | G72: =VLOOKUP($A$4,Luvut!$B$3:$ED$304,87) -> 19.75 | J72: =VLOOKUP($A$4,Luvut!$B$3:$ED$304,131) -> 19.85
A73: Veroprosenttiyksikön tuotto | D73: =D63/D72 -> 921706.4948 | E73: =D73*1000/$D$6 -> 169.9748857 | G73: =G63/G72 -> 916599.4937 | H73: =G73*1000/$G$6 -> 168.4047297 | J73: =J63/J72 -> 929129.4207 | K73: =J73*1000/$J$6 -> 170.2224438
A75: Sijoitus vuosikatteen (euro/as) mukaan | D75: =VLOOKUP($A$4,Luvut!$B$3:$AT$304,45) -> - | G75: =VLOOKUP($A$4,Luvut!$B$3:$ED$304,89) -> - | J75: =VLOOKUP($A$4,Luvut!$B$3:$ED$304,133) -> -
A76: Lähde: Tilastokeskus
A78: Rahoitusvarallisuus = ((saamiset + rahoitusarvopaperit + rahat ja pankkisaamiset) - (vieras pääoma - saadut ennakot))
A79: Kunnat vuoden 2015 kuntajaolla

Sheet Luvut
C1: 2013 | D1: hakee muualta | E1: 92 | F1: 93 | G1: 94 | H1: vanha | I1: 96 | J1: 97 | K1: 98 | L1: 99 | M1: 100 | N1: 101 | O1: 102 | P1: 103 | Q1: 104 | R1: 105 | S1: 106 | T1: 107 | U1: 108 | V1: summana | W1: 110 | X1: 111 | Y1: 112 | Z1: 113 | AA1: 114 | AB1: 115 | AC1: 116 | AD1: 117 | AE1: 118 | AF1: 119 | AG1: 120 | AH1: 121 | AI1: 122 | AJ1: kaavasta | AK1: 124 | AL1: 125 | AM1: 126 | AN1: 127 | AO1: 128 | AP1: 129 | AQ1: 130 | AR1: 131 | AS1: kaavasta | AT1: 133 | AU1: 2014 | AV1: hakee muualta | AW1: 92 | AX1: 93 | AY1: 94 | AZ1: vanha | BA1: 96 | BB1: 97 | BC1: 98 | BD1: 99 | BE1: 100 | BF1: 101 | BG1: 102 | BH1: 103 | BI1: 104 | BJ1: 105 | BK1: 106 | BL1: 107 | BM1: 108 | BN1: summana | BO1: 110 | BP1: 111 | BQ1: 112 | BR1: 113 | BS1: 114 | BT1: 115 | BU1: 116 | BV1: 117 | BW1: 118 | BX1: 119 | BY1: 120 | BZ1: 121 | CA1: 122 | CB1: kaavasta | CC1: 124 | CD1: 125 | CE1: 126 | CF1: 127 | CG1: 128 | CH1: 129 | CI1: 130 | CJ1: 131 | CK1: kaavasta | CL1: 133 | CM1: 2015 | CN1: hakee muualta | CO1: 92 | CP1: 93 | CQ1: 94 | CR1: vanha | CS1: 96 | CT1: 97 | CU1: 98 | CV1: 99 | CW1: 100 | CX1: 101 | CY1: 102 | CZ1: 103 | DA1: 104 | DB1: 105 | DC1: 106 | DD1: 107 | DE1: 108 | DF1: summana | DG1: 110 | DH1: 111 | DI1: 112 | DJ1: 113 | DK1: 114 | DL1: 115 | DM1: 116 | DN1: 117 | DO1: 118 | DP1: 119 | DQ1: 120 | DR1: 121 | DS1: 122 | DT1: kaavasta | DU1: 124 | DV1: 125 | DW1: 126 | DX1: 127 | DY1: 128 | DZ1: 129 | EA1: 130 | EB1: 131 | EC1: kaavasta | ED1: 133 | EE1: Erillistiedot | EF1: 135 | EG1: 136 | EH1: 137 | EI1: 138 | EJ1: 139 | EK1: 2013 | EL1: 144 | EM1: 145 | EN1: 2014 | EO1: 147 | EP1: 148 | EQ1: 2015 | ER1: 147 | ES1: 148 | ET1: 2013 | EU1: 152 | EV1: 2014 | EW1: 154 | EX1: 2015 | EZ1: 2013 | FA1: 160 | FB1: 161 | FC1: 162 | FD1: 2014 | FE1: 164 | FF1: 165 | FG1: 166 | FH1: 2015 | FI1: 164 | FJ1: 165 | FK1: 166 | FL1: 2013 | FM1: 2014 | FN1: 2015 | FO1: Yhden vero%:n | FP1: Yhden vero%:n | FS1: Nettoinv.
A2: Kunta nro | B2: Kunta | C2: Asukasluku | D2: Lainat e/asukas | E2: Lainanhoitokate | F2: Suhteellinen velkaantuneisuus-% | G2: Rahoitusvarallisuus, e/as | H2: Vuosikate | I2: Suunnitelman mukaiset poistot | J2: Tilikauden tulos | K2: Omavaraisuusaste, % | L2: Rahavarat e/as | M2: Kassan riittävyys, pv | N2: Kassasta maksut, €/as | O2: Henkilöstökulut | P2: Toimintatuotot | Q2: Toimintakulut | R2: Toimintakate | S2: Verotulot | T2: Valtionosuudet | U2: Alv-takaisinperintä | V2: Käyttökate | W2: Korkotuotot/-menot, netto | X2: Muut rahoitustuotot/-menot, netto (sis Osinkotuotot) | Y2: Vuosikate | Z2: Suunnitelman mukaiset poistot ja arvonalet | AA2: Satunnaiset tuotot | AB2: Satunnaiset kulut | AC2: Tilikauden tulos | AD2: Poistoeron lisäys(-) tai vähennys(+) | AE2: Varausten lisäys(-) tai vähennys(+) | AF2: Rahastojen lisäys(-) tai vähennys(+) | AG2: Tilikauden yli- tai alijäämä | AH2: Kumulat yli/alij | AI2: Tulorah (toiminnan rahavirta) | AJ2: Investoinnit, netto | AK2: Saamisten muutos (ent Pitkäaikaisten saamisten muutokset, netto) | AL2: Pitkäaikaisten lainojen vähennys | AM2: Toim ja inv rahavirta | AN2: Verotulot | AO2: Kunnallisvero | AP2: Osuus yhteisöveron tuotosta | AQ2: Kiinteistövero | AR2: Tuloveroprosentti 2013 | AS2: Yhden veroprosentin tuotto 2012 | AT2: Sijoitus vuosikatteen mukaan | AU2: Asukasluku | AV2: Lainat e/asukas | AW2: Lainanhoitokate | AX2: Suhteellinen velkaantuneisuus-% | AY2: Rahoitusvarallisuus, e/as | AZ2: Vuosikate | BA2: Suunnitelman mukaiset poistot | BB2: Tilikauden tulos | BC2: Omavaraisuusaste, % | BD2: Rahavarat e/as | BE2: Kassan riittävyys, pv | BF2: Kassasta maksut, €/as | BG2: Henkilöstökulut | BH2: Toimintatuotot | BI2: Toimintakulut | BJ2: Toimintakate | BK2: Verotulot | BL2: Valtionosuudet | BM2: Alv-takaisinperintä | BN2: Käyttökate | BO2: Korkotuotot/-menot, netto | BP2: Muut rahoitustuotot/-menot, netto (sis Osinkotuotot) | BQ2: Vuosikate | BR2: Suunnitelman mukaiset poistot ja arvonalet | BS2: Satu. tuotot | BT2: Satu. kulut | BU2: Tilikauden tulos | BV2: Poistoeron lisäys(-) tai vähennys(+) | BW2: Varausten lisäys(-) tai vähennys(+) | BX2: Rahastojen lisäys(-) tai vähennys(+) | BY2: Tilikauden yli- tai alijäämä | BZ2: Kumulat yli/alij | CA2: Tulorah (toiminnan rahavirta) | CB2: Investoinnit, netto | CC2: Saamisten muutos (ent Pitkäaikaisten saamisten muutokset, netto) | CD2: Pitkäaikaisten lainojen vähennys | CE2: Toim ja inv rahavirta | CF2: Verotulot | CG2: Kunnallisvero | CH2: Osuus yhteisöveron tuotosta | CI2: Kiinteistövero | CJ2: Tuloveroprosentti 2014 | CK2: Yhden veroprosentin tuotto 2013 | CL2: Sijoitus vuosikatteen mukaan | CM2: Asukasluku | CN2: Lainat e/asukas | CO2: Lainanhoitokate | CP2: Suhteellinen velkaantuneisuus-% | CQ2: Rahoitusvarallisuus, e/as | CR2: Vuosikate | CS2: Suunnitelman mukaiset poistot | CT2: Tilikauden tulos | CU2: Omavaraisuusaste, % | CV2: Rahavarat e/as | CW2: Kassan riittävyys, pv | CX2: Kassasta maksut, €/as | CY2: Henkilöstökulut | CZ2: Toimintatuotot | DA2: Toimintakulut | DB2: Toimintakate | DC2: Verotulot | DD2: Valtionosuudet | DE2: Alv-takaisinperintä | DF2: Käyttökate | DG2: Korkotuotot/-menot, netto | DH2: Muut rahoitustuotot/-menot, netto (sis Osinkotuotot) | DI2: Vuosikate | DJ2: Suunnitelman mukaiset poistot ja arvonalet | DK2: Satu. tuotot | DL2: Satu. kulut | DM2: Tilikauden tulos | DN2: Poistoeron lisäys(-) tai vähennys(+) | DO2: Varausten lisäys(-) tai vähennys(+) | DP2: Rahastojen lisäys(-) tai vähennys(+) | DQ2: Tilikauden yli- tai alijäämä | DR2: Kumulat yli/alij | DS2: Tulorah (toiminnan rahavirta) | DT2: Investoinnit, netto | DU2: Saamisten muutos (ent Pitkäaikaisten saamisten muutokset, netto) | DV2: Pitkäaikaisten lainojen vähennys | DW2: Toim ja inv rahavirta | DX2: Verotulot | DY2: Kunnallisvero | DZ2: Osuus yhteisöveron tuotosta | EA2: Kiinteistövero | EB2: Tuloveroprosentti 2015 | EC2: Yhden veroprosentin tuotto 2006 | ED2: Sijoitus vuosikatteen mukaan | EE2: Palvelujen ostot 2013 | EF2: Palvelujen ostot 2014 | EG2: Palvelujen ostot 2015 | EH2: Harkvar2013 | EI2: Harkvar2014 | EJ2: Harkvar2015 | EK2: - Investointimenot | EL2: + Rahoitusos. investointimenoihin | EM2: + Investointihyödykk. luovutustulot | EN2: - Investointimenot | EO2: + Rahoitusosuudet investointimenoihin | EP2: + Investointihyödykkeiden luovutustulot | EQ2: - Investointimenot | ER2: + Rahoitusosuudet investointimenoihin | ES2: + Investointihyödykkeiden luovutustulot | ET2: Pitkäaikaisten lainojen lisäys | EU2: ± Lyhytaikaisten lainojen muutos | EV2: Pitkäaikaisten lainojen lisäys | EW2: ± Lyhytaikaisten lainojen muutos | EX2: Pitkäaikaisten lainojen lisäys | EY2: ± Lyhytaikaisten lainojen muutos | EZ2: Lainakanta | FA2: josta pitkäaik | FB2: josta lyhytaik | FC2: Lainasaamiset | FD2: Lainakanta | FE2: josta pitkäaik | FF2: josta lyhytaik | FG2: Lainasaamiset | FH2: Lainakanta | FI2: josta pitkäaik | FJ2: josta lyhytaik | FK2: Lainasaamiset | FL2: Konsernilainat €/as | FM2: Konsernilainat €/as | FN2: Konsernilainat €/as | FO2: tuotto | FP2: tuotto, €/as | FS2: 2015
A3: 20 | B3: Akaa | C3: 17108 | E3: 0.6043176329 | F3: 48.72661511 | G3: -2688.099135 | K3: 37.01165491 | L3: 98.55038578 | M3: 4.936072254 | N3: 7287.350947 | O3: 49369 | P3: 24589 | Q3: 110499 | R3: -85910 | S3: 57109 | T3: 32218 | W3: -295 | X3: 175 | Y3: 3297 | Z3: 3330 | AC3: -33 | AD3: 34 | AG3: 1 | AH3: -207 | AI3: 2267 | AK3: 722 | AL3: -5918 | AM3: -3328 | AN3: 57109 | AO3: 52871 | AP3: 1415 | AQ3: 2823 | AR3: 20.5 | AT3: 205 | AU3: 17052 | AW3: -0.08752584425 | AX3: 59.77583389 | AY3: -3520.935961 | BC3: 29.32083122 | BD3: 47.09125029 | BE3: 2.191118753 | BF3: 7844.534365 | BG3: 48569 | BH3: 22820 | BI3: 112573 | BJ3: -89753 | BK3: 57963 | BL3: 30594 | BO3: -292 | BP3: 184 | BQ3: -1304 | BR3: 3763 | BU3: -5067 | BV3: 32 | BY3: -5035 | BZ3: -5243 | CA3: -1711 | CC3: 2115 | CD3: -6586 | CE3: -14048 | CF3: 57963 | CG3: 53091 | CH3: 1707 | CI3: 3165 | CJ3: 21 | CL3: 300 | CM3: 17043 | CO3: 0.249724214 | CP3: 66 | CQ3: -3907.175967 | CU3: 25 | CV3: 117.467582 | CW3: 5.579837965 | CX3: 7684.034501 | CY3: 47398 | CZ3: 22841 | DA3: 110377 | DB3: -87536 | DC3: 59092 | DD3: 29881 | DG3: -218 | DH3: 40 | DI3: 1229 | DJ3: 4203 | DK3: 0 | DL3: 0 | DM3: -2974 | DN3: 31 | DO3: 0 | DP3: 0 | DQ3: -2943 | DR3: -8186 | DS3: 758 | DU3: 790 | DV3: -12000 | DW3: -6593 | DX3: =DC3 -> 59092 | DY3: 54123 | DZ3: 1775 | EA3: 3194 | EB3: 21.25 | ED3: 277 | EE3: 45394 | EF3: 48004 | EG3: 47031 | EH3: 1540 | EK3: -7548 | EL3: 715 | EM3: 1238 | EN3: -13964 | EO3: 1161 | EP3: 466 | EQ3: -8431 | ER3: 341 | ES3: 739 | ET3: 7509 | EV3: 10311 | EW3: 7580 | EX3: 6670 | EY3: 2418 | EZ3: 40898 | FA3: 34511 | FB3: 6387 | FC3: 7333 | FD3: 52203 | FE3: 38354 | FF3: 13849 | FG3: 7333 | FH3: 59953 | FI3: 43679 | FJ3: 16274 | FK3: 7333 | FL3: 3045.358896 | FM3: 3704.844007 | FN3: 4111 | FO3: =(DY3/EB3) -> 2546.964706 | FP3: =(FO3/CM3)*1000 -> 149.4434493 | FS3: -7467 | FV3: 4670 | FW3: =FV3*-1 -> -4670
A4: 5 | B4: Alajärvi | C4: 10227 | E4: 0.1518987342 | F4: 38.19534125 | G4: -3121.345458 | K4: 35.7482685 | L4: 360.5162804 | M4: 11.65933133 | N4: 11286.10541 | O4: 42843 | P4: 42459 | Q4: 101988 | R4: -59529 | S4: 27942 | T4: 32588 | W4: -345 | X4: -426 | Y4: 230 | Z4: 2584 | AC4: -2354 | AG4: -2354 | AH4: -4125 | AI4: 92 | AK4: 1282 | AL4: -3513 | AM4: -7384 | AN4: 27942 | AO4: 24456 | AP4: 1637 | AQ4: 1849 | AR4: 21 | AT4: 268 | AU4: 10171 | AW4: 0.8063660477 | AX4: 36.45751358 | AY4: -3052.600531 | BC4: 36.73358386 | BD4: 294.2680169 | BE4: 10.10765074 | BF4: 10626.38875 | BG4: 42751 | BH4: 43017 | BI4: 100641 | BJ4: -57624 | BK4: 28360 | BL4: 32821 | BO4: -363 | BP4: 78 | BQ4: 3272 | BR4: 3076 | BU4: 196 | BY4: 196 | BZ4: -3929 | CA4: 3239 | CC4: -7 | CD4: -4148 | CE4: 814 | CF4: 28360 | CG4: 24370 | CH4: 1764 | CI4: 2226 | CJ4: 21 | CL4: 172 | CM4: 10006 | CO4: 1.171779141 | CP4: 33 | CQ4: -2771.637018 | CU4: 41 | CV4: 396.6620028 | CW4: 14.6280103 | CX4: 9897.561463 | CY4: 41443 | CZ4: 41661 | DA4: 98986 | DB4: -57325 | DC4: 28454 | DD4: 34084 | DG4: -315 | DH4: 199 | DI4: 5024 | DJ4: 3095 | DK4: 0 | DL4: 0 | DM4: 1929 | DN4: 0 | DO4: 0 | DP4: 0 | DQ4: 1929 | DR4: -2000 | DS4: 4948 | DU4: 593 | DV4: -2000 | DW4: 3254 | DX4: =DC4 -> 28454 | DY4: 24150 | DZ4: 2048 | EA4: 2256 | EB4: 21.5 | ED4: 72 | EE4: 50458 | EF4: 49386 | EG4: 49220 | EK4: -8906 | EL4: 1243 | EM4: 187 | EN4: -2653 | EO4: 178 | EP4: 50 | EQ4: -2072 | ER4: 276 | ES4: 102 | ET4: 9000 | EU4: 1500 | EV4: 4000 | EW4: -1500 | EX4: 4240 | EY4: 0 | EZ4: 28002 | FA4: 20854 | FB4: 7148 | FC4: 566 | FD4: 26354 | FE4: 20615 | FF4: 5739 | FG4: 558 | FH4: 24115 | FI4: 18694 | FJ4: 5421 | FK4: 551 | FL4: 4159.088687 | FM4: 4090.649887 | FN4: 4146 | FO4: 1123.255814 | FP4: 112.2582265 | FS4: -1776 | FV4: 3040 | FW4: -3040
A5: 9 | B5: Alavieska | C5: 2740 | E5: 0.1872392638 | F5: 76.88030107 | G5: -4426.277372 | K5: 27.35470942 | L5: 302.919708 | M5: 11.58907463 | N5: 9540.510949 | O5: 3688 | P5: 2169 | Q5: 17055 | R5: -14886 | S5: 7397 | T5: 8237 | W5: -94 | X5: 4 | Y5: 658 | Z5: 652 | AC5: 6 | AG5: 6 | AH5: -2344 | AI5: 657 | AK5: 190 | AL5: -3970 | AM5: -4167 | AN5: 7397 | AO5: 6861 | AP5: 169 | AQ5: 367 | AR5: 21.5 | AT5: 176 | AU5: 2687 | AW5: 0.318946797 | AX5: 71.46880177 | AY5: -4254.558988 | BC5: 29.98600043 | BD5: 237.8116859 | BE5: 11.01932344 | BF5: 7877.186453 | BG5: 3613 | BH5: 2443 | BI5: 16971 | BJ5: -14528 | BK5: 7291 | BL5: 8376 | BO5: -103 | BP5: 36 | BQ5: 1072 | BR5: 691 | BU5: 381 | BY5: 381 | BZ5: -1962 | CA5: 959 | CC5: -142 | CD5: -3581 | CE5: 699 | CF5: 7291 | CG5: 6667 | CH5: 218 | CI5: 406 | CJ5: 21.5 | CL5: 117 | CM5: 2687 | CO5: 1.531868132 | CP5: 68 | CQ5: -3979.531076 | CU5: 33 | CV5: 460.7368813 | CW5: 26.63385595 | CX5: 6314.10495 | CY5: 3525 | CZ5: 2108 | DA5: 17064 | DB5: -14956 | DC5: 7792 | DD5: 8552 | DG5: -58 | DH5: 6 | DI5: 1336 | DJ5: 795 | DK5: 0 | DL5: 0 | DM5: 541 | DN5: 0 | DO5: 0 | DP5: 0 | DQ5: 541 | DR5: -1422 | DS5: 1336 | DU5: 213 | DV5: 0 | DW5: 763 | DX5: 7792 | DY5: 7099 | DZ5: 285 | EA5: 408 | EB5: 21.5 | ED5: 74 | EE5: 12308 | EF5: 12316 | EG5: 12293 | EH5: 360 | EI5: 385 | EK5: -5003 | EL5: 179 | EN5: -503 | EO5: 99 | EP5: 144 | EQ5: -650 | ER5: 72 | ES5: 5 | ET5: 3900 | EU5: 4000 | EW5: 2500 | EX5: 852 | EY5: 500 | EZ5: 12557 | FA5: 6976 | FB5: 5581 | FC5: 84 | FD5: 11476 | FE5: 6124 | FF5: 5352 | FG5: 84 | FH5: 11124 | FI5: 5479 | FJ5: 5645 | FK5: 84 | FL5: 5332.846715 | FM5: 4978.786751 | FN5: 4857 | FO5: 330.1860465 | FP5: 122.8827862 | FS5: -575 | FV5: 792 | FW5: -792
A6: 10 | B6: Alavus | C6: 12228 | E6: 0.6444541868 | F6: 50.3005637 | G6: -2319.103696 | K6: 49.82904901 | L6: 894.7497547 | M6: 42.5502115 | N6: 7675.253517 | O6: 33898 | P6: 16997 | Q6: 82972 | R6: -65975 | S6: 31480 | T6: 37029 | W6: -320 | X6: 361 | Y6: 2575 | Z6: 2872 | AC6: -297 | AG6: -297 | AH6: 9628 | AI6: 2467 | AK6: 507 | AL6: -4197 | AM6: -3475 | AN6: 31480 | AO6: 27504 | AP6: 1825 | AQ6: 2151 | AR6: 19.75 | AT6: 192 | AU6: 12103 | AW6: 1.013510788 | AX6: 47.22005319 | AY6: -2219.862844 | BC6: 52.35276876 | BD6: 893.9106007 | BE6: 39.86125551 | BF6: 8185.325952 | BG6: 33994 | BH6: 17096 | BI6: 83877 | BJ6: -66781 | BK6: 33580 | BL6: 37689 | BO6: -332 | BP6: 510 | BQ6: 4666 | BR6: 3091 | BS6: 1579 | BU6: 3154 | BY6: 3154 | BZ6: 12782 | CA6: 4543 | CC6: -328 | CD6: -4599 | CE6: 6426 | CF6: 33580 | CG6: 29054 | CH6: 2033 | CI6: 2493 | CJ6: 20.75 | CL6: 125 | CM6: 12050 | CO6: 0.36828594 | CP6: 52 | CQ6: -2476.182573 | CU6: 50 | CV6: 927.1369295 | CW6: 42.45078545 | CX6: 7971.701245 | CY6: 34642 | CZ6: 15659 | DA6: 86214 | DB6: -70555 | DC6: 34015 | DD6: 37398 | DG6: -7 | DH6: 1308 | DI6: 1584 | DJ6: 2982 | DK6: 0 | DL6: 0 | DM6: -1398 | DN6: 0 | DO6: 0 | DP6: 0 | DQ6: -1398 | DR6: 11384 | DS6: 1475 | DU6: -68 | DV6: -6000 | DW6: -3203 | DX6: 34015 | DY6: 29182 | DZ6: 2245 | EA6: 2588 | EB6: 20.75 | ED6: 264 | EE6: 38953 | EF6: 39183 | EG6: 41589 | EK6: -6302 | EL6: 221 | EM6: 139 | EN6: -5004 | EO6: 120 | EP6: 6767 | EQ6: -5241 | ER6: 185 | ES6: 378 | ET6: 10900 | EU6: -3500 | EV6: 4000 | EW6: 500 | EX6: 4783 | EY6: 1800 | EZ6: 31221 | FA6: 26545 | FB6: 4676 | FC6: 3962 | FD6: 31122 | FE6: 25838 | FF6: 5284 | FG6: 7983 | FH6: 34138 | FI6: 26718 | FJ6: 7420 | FK6: 7869 | FL6: 4847.808309 | FM6: 4885.152442 | FN6: 5039 | FO6: 1406.361446 | FP6: 116.7104934 | FS6: -4697 | FV6: 2706 | FW6: -2706
A7: 16 | B7: Asikkala | C7: 8405 | E7: 0.4148051525 | F7: 44.41592768 | G7: -2539.678763 | K7: 51.53028317 | L7: 40.57108864 | M7: 1.899417043 | N7: 7796.311719 | O7: 12672 | P7: 6484 | Q7: 49957 | R7: -43473 | S7: 29009 | T7: 16731 | W7: 10 | X7: 14 | Y7: 2291 | Z7: 2190 | AC7: 101 | AD7: 94 | AG7: 195 | AH7: 1865 | AI7: 2249 | AK7: 171 | AL7: -5880 | AM7: -5976 | AN7: 29009 | AO7: 25528 | AP7: 1460 | AQ7: 2021 | AR7: 20.75 | AT7: 159 | AU7: 8374 | AW7: 23.49484536 | AX7: 51.11758624 | AY7: -2963.577741 | BC7: 52.55998193 | BD7: 62.45521853 | BE7: 2.725669656 | BF7: 8363.50609 | BG7: 12790 | BH7: 6840 | BI7: 50890 | BJ7: -44050 | BK7: 29321 | BL7: 17043 | BO7: -60 | BP7: -42 | BQ7: 2212 | BR7: 2265 | BS7: 5541 | BU7: 5488 | BV7: 94 | BY7: 5582 | BZ7: 7446 | CA7: 7719 | CC7: -349 | CD7: -30 | CE7: 1124 | CF7: 29321 | CG7: 25414 | CH7: 1438 | CI7: 2469 | CJ7: 20.75 | CL7: 207 | CM7: 8287 | CO7: 33.65765766 | CP7: 38 | CQ7: -2145.529142 | CU7: 61 | CV7: 78.91878846 | CW7: 5.051849657 | CX7: 5701.942802 | CY7: 13159 | CZ7: 6847 | DA7: 49270 | DB7: -42423 | DC7: 29378 | DD7: 16868 | DG7: -78 | DH7: -63 | DI7: 3654 | DJ7: 2039 | DK7: 0 | DL7: 0 | DM7: 1615 | DN7: 94 | DO7: 0 | DP7: 0 | DQ7: 1709 | DR7: 9156 | DS7: 3294 | DU7: -129 | DV7: 0 | DW7: 2402 | DX7: 29378 | DY7: 25339 | DZ7: 1538 | EA7: 2501 | EB7: 20.75 | ED7: 102 | EE7: 33643 | EF7: 34437 | EG7: 32577 | EK7: -9435 | EL7: 1138 | EM7: 72 | EN7: -14210 | EO7: 1281 | EP7: 6334 | EQ7: -1540 | ER7: 113 | ES7: 535 | ET7: 600 | EU7: 2400 | EW7: 9000 | EX7: 29 | EY7: -7000 | EZ7: 15104 | FA7: 1574 | FB7: 13530 | FC7: 887 | FD7: 24075 | FE7: 1485 | FF7: 22590 | FG7: 1040 | FH7: 17046 | FI7: 1480 | FJ7: 15566 | FK7: 832 | FL7: 3073.765616 | FM7: 4091.951278 | FN7: 3833 | FO7: 1221.156627 | FP7: 147.3581063 | FS7: -1895 | FV7: 380 | FW7: -380
A8: 18 | B8: Askola | C8: 4991 | E8: 1.389784946 | F8: 54.54641128 | G8: -2696.653977 | K8: 30.78700462 | L8: 196.7541575 | M8: 11.95364349 | N8: 6007.814065 | O8: 12408 | P8: 4106 | Q8: 27251 | R8: -23145 | S8: 17645 | T8: 6755 | W8: -274 | X8: 296 | Y8: 1277 | Z8: 1203 | AA8: 8 | AC8: 82 | AG8: 82 | AH8: -447 | AI8: 1107 | AK8: -114 | AL8: -842 | AM8: 31 | AN8: 17645 | AO8: 15943 | AP8: 771 | AQ8: 931 | AR8: 20.25 | AT8: 169 | AU8: 5064 | AW8: 1.949152542 | AX8: 58.25628382 | AY8: -2829.581359 | BC8: 31.40290707 | BD8: 185.4265403 | BE8: 10.69275887 | BF8: 6329.581359 | BG8: 12656 | BH8: 4195 | BI8: 27431 | BJ8: -23236 | BK8: 18023 | BL8: 6984 | BO8: -156 | BP8: 180 | BQ8: 1795 | BR8: 975 | BU8: 820 | BY8: 820 | BZ8: 373 | CA8: 1723 | CC8: -636 | CD8: -843 | CE8: -861 | CF8: 18023 | CG8: 16047 | CH8: 935 | CI8: 1041 | CJ8: 20.25 | CL8: 149 | CM8: 5104 | CO8: 0.4508975713 | CP8: 65 | CQ8: -3262.34326 | CU8: 27 | CV8: 254.1144201 | CW8: 14.11716467 | CX8: 6570.141066 | CY8: 12949 | CZ8: 4397 | DA8: 29519 | DB8: -25122 | DC8: 18430 | DD8: 6844 | DG8: -137 | DH8: 488 | DI8: 290 | DJ8: 1103 | DK8: 0 | DL8: 0 | DM8: -813 | DN8: 0 | DO8: 0 | DP8: 0 | DQ8: -813 | DR8: -569 | DS8: 157 | DU8: 517 | DV8: -1300 | DW8: -2207 | DX8: 18430 | DY8: 16391 | DZ8: 987 | EA8: 1052 | EB8: 20.25 | ED8: 282 | EE8: 11418 | EF8: 11123 | EG8: 12710 | EK8: -1607 | EL8: 300 | EM8: 231 | EN8: -3557 | EO8: 860 | EP8: 113 | EQ8: -2542 | ER8: 21 | ES8: 157 | EU8: 670 | EW8: 1674 | EX8: 810 | EY8: 2198 | EZ8: 12702 | FA8: 9918 | FB8: 2784 | FC8: 0 | FD8: 13533 | FE8: 9142 | FF8: 4391 | FG8: 0 | FH8: 16221 | FI8: 9650 | FJ8: 6571 | FK8: 0 | FL8: 3604.688439 | FM8: 3731.042654 | FN8: 4215 | FO8: 809.4320988 | FP8: 158.5877936 | FS8: -2484 | FV8: 699 | FW8: -699
A9: 19 | B9: Aura | C9: 3962 | E9: 1.057831325 | F9: 71.18982406 | G9: -3249.873801 | K9: 15.99503025 | L9: 304.1393236 | M9: 19.42260985 | N9: 5715.547703 | O9: 7070 | P9: 2332 | Q9: 20688 | R9: -18356 | S9: 13501 | T9: 5708 | W9: -108 | X9: 24 | Y9: 769 | Z9: 647 | AC9: 122 | AD9: 28 | AG9: 150 | AH9: -2271 | AI9: 671 | AK9: 654 | AL9: -721 | AM9: -277 | AN9: 13501 | AO9: 12683 | AP9: 283 | AQ9: 535 | AR9: 21 | AT9: 201 | AU9: 3982 | AW9: 0.1517747858 | AX9: 72.64715432 | AY9: -3522.099448 | BC9: 12.94869693 | BD9: 127.8252135 | BE9: 7.771479963 | BF9: 6003.515821 | BG9: 7121 | BH9: 2826 | BI9: 21450 | BJ9: -18624 | BK9: 13628 | BL9: 5105 | BO9: -94 | BP9: 14 | BQ9: 29 | BR9: 620 | BU9: -591 | BV9: 28 | BY9: -563 | BZ9: -2834 | CA9: -99 | CC9: 126 | CD9: -722 | CE9: -1206 | CF9: 13628 | CG9: 12545 | CH9: 459 | CI9: 624 | CJ9: 21 | CL9: 291 | CM9: 3986 | CO9: 0.8925831202 | CP9: 74 | CQ9: -3805.067737 | CU9: 12 | CV9: 123.9337682 | CW9: 7.856987233 | CX9: 5757.400903 | CY9: 7090 | CZ9: 3226 | DA9: 21799 | DB9: -18573 | DC9: 13875 | DD9: 5377 | DG9: -64 | DH9: 22 | DI9: 634 | DJ9: 784 | DK9: 0 | DL9: 0 | DM9: -150 | DN9: 28 | DO9: 0 | DP9: 0 | DQ9: -122 | DR9: -2956 | DS9: 452 | DU9: 243 | DV9: 0 | DW9: -1098 | DX9: 13875 | DY9: 12633 | DZ9: 506 | EA9: 736 | EB9: 21 | ED9: 257 | EE9: 11236 | EF9: 11861 | EG9: 12248 | EH9: 515 | EK9: -1118 | EL9: 13 | EM9: 157 | EN9: -1634 | EO9: 351 | EP9: 176 | EQ9: -1867 | ER9: 75 | ES9: 242 | EU9: -60 | EW9: 750 | EX9: 718 | EY9: 2000 | EZ9: 13274 | FA9: 5123 | FB9: 8151 | FC9: 0 | FD9: 13303 | FE9: 4405 | FF9: 8898 | FG9: 0 | FH9: 14585 | FI9: 3691 | FJ9: 10894 | FK9: 0 | FL9: 4404.341242 | FM9: 4259.166248 | FN9: 5419 | FO9: 601.5714286 | FP9: 150.9210809 | FS9: -1321 | FV9: 607 | FW9: -607
A10: 46 | B10: Enonkoski | C10: 1522 | E10: 6.872 | F10: 15.71440845 | G10: 632.0630749 | K10: 83.73340368 | L10: 1687.910644 | M10: 72.55939023 | N10: 8490.801577 | O10: 4278 | P10: 2197 | Q10: 10890 | R10: -8693 | S10: 4238 | T10: 5204 | W10: 32 | X10: 73 | Y10: 854 | Z10: 331 | AB10: 44 | AC10: 479 | AF10: -1 | AG10: 478 | AH10: 4513 | AI10: 809 | AK10: 7 | AL10: -120 | AM10: -1087 | AN10: 4238 | AO10: 3478 | AP10: 432 | AQ10: 328 | AR10: 20.5 | AT10: 39 | AU10: 1503 | AW10: 9.644444444 | AX10: 17.70220745 | AY10: 858.2834331 | BC10: 82.38650667 | BD10: 2107.119095 | BE10: 98.42941076 | BF10: 7813.705921 | BG10: 4533 | BH10: 2142 | BI10: 10958 | BJ10: -8816 | BK10: 4394 | BL10: 5197 | BO10: 31 | BP10: 52 | BQ10: 858 | BR10: 413 | BT10: 150 | BU10: 295 | BY10: 295 | BZ10: 4808 | CA10: 817 | CC10: 21 | CD10: -80 | CE10: 257 | CF10: 4394 | CG10: 3539 | CH10: 495 | CI10: 360 | CJ10: 21 | CL10: 47 | CM10: 1473 | CO10: 1.448675497 | CP10: 11 | CQ10: 1194.840462 | CU10: 89 | CV10: 1955.193483 | CW10: 99.4512772 | CX10: 7175.831636 | CY10: 4521 | CZ10: 2147 | DA10: 11278 | DB10: -9131 | DC10: 4825 | DD10: 5096 | DG10: 21 | DH10: 119 | DI10: 871 | DJ10: 511 | DK10: 48 | DL10: 0 | DM10: 408 | DN10: 0 | DO10: 0 | DP10: 0 | DQ10: 408 | DR10: 5216 | DS10: 861 | DU10: 28 | DV10: 0 | DW10: 425 | DX10: 4825 | DY10: 3801 | DZ10: 606 | EA10: 418 | EB10: 21 | ED10: 47 | EE10: 5024 | EF10: 4798 | EG10: 5199 | EK10: -1903 | EM10: 7 | EN10: -696 | EO10: 1 | EP10: 135 | EQ10: -497 | ER10: 0 | ES10: 61 | ET10: 800 | EU10: 80 | EX10: 600 | EY10: -80 | EZ10: 760 | FA10: 680 | FB10: 80 | FC10: 631 | FD10: 680 | FE10: 600 | FF10: 80 | FG10: 524 | FH10: 0 | FI10: 0 | FJ10: 0 | FK10: 489 | FL10: 1983.574244 | FM10: 1551.56354 | FN10: 999 | FO10: 181 | FP10: 122.8784793 | FS10: -498 | FV10: 63 | FW10: -63
A11: 47 | B11: Enontekiö | C11: 1891 | E11: 0.2448979592 | F11: 36.84495844 | G11: -2776.837652 | K11: 50.33712916 | L11: 37.01745108 | M11: 1.384823848 | N11: 9756.742464 | O11: 6639 | P11: 2594 | Q11: 16705 | R11: -14111 | S11: 5676 | T11: 8332 | W11: -125 | X11: 331 | Y11: 103 | Z11: 307 | AC11: -204 | AG11: -204 | AH11: 41 | AI11: 103 | AK11: -270 | AL11: -806 | AM11: -534 | AN11: 5676 | AO11: 4687 | AP11: 282 | AQ11: 707 | AR11: 20.75 | AT11: 261 | AU11: 1890 | AW11: 0.6913043478 | AX11: 39.55418819 | AY11: -3064.550265 | BC11: 49.0600195 | BD11: 121.1640212 | BE11: 4.229154017 | BF11: 10457.14286 | BG11: 6973 | BH11: 2905 | BI11: 16911 | BJ11: -14006 | BK11: 5848 | BL11: 8474 | BO11: -92 | BP11: 320 | BQ11: 544 | BR11: 310 | BS11: 364 | BT11: 271 | BU11: 327 | BY11: 327 | BZ11: 368 | CA11: 638 | CC11: 3 | CD11: -828 | CE11: -666 | CF11: 5848 | CG11: 4718 | CH11: 322 | CI11: 808 | CJ11: 20.75 | CL11: 187 | CM11: 1861 | CO11: 0.443359375 | CP11: 42 | CQ11: -3372.380441 | CU11: 47 | CV11: 171.9505642 | CW11: 5.803726708 | CX11: 10814.07845 | CY11: 6877 | CZ11: 2594 | DA11: 17332 | DB11: -14738 | DC11: 6023 | DD11: 8833 | DG11: -93 | DH11: 336 | DI11: 361 | DJ11: 484 | DK11: 0 | DL11: 0 | DM11: -123 | DN11: 0 | DO11: 0 | DP11: 0 | DQ11: -123 | DR11: 245 | DS11: 361 | DU11: 46 | DV11: -1970 | DW11: -472 | DX11: 6023 | DY11: 4863 | DZ11: 338 | EA11: 822 | EB11: 20.75 | ED11: 239 | EE11: 7986 | EF11: 7906 | EG11: 8321 | EK11: -637 | EN11: -1738 | EO11: 117 | EP11: 317 | EQ11: -934 | ER11: 101 | ES11: 0 | EU11: 1063 | EV11: 1631 | EW11: -72 | EX11: 931 | EY11: -653 | EZ11: 4695 | FA11: 2739 | FB11: 1956 | FC11: 1834 | FD11: 5426 | FE11: 3542 | FF11: 1884 | FG11: 1682 | FH11: 5812 | FI11: 4581 | FJ11: 1231 | FK11: 1682 | FL11: 5769.434162 | FM11: 5707.936508 | FN11: 6451 | FO11: 234.3614458 | FP11: 125.9330714 | FS11: -833 | FV11: 874 | FW11: -874
A12: 49 | B12: Espoo | C12: 260753 | E12: 2.556450383 | F12: 33.7073947 | G12: 1498.364352 | K12: 81.62640207 | L12: 3000.306804 | M12: 157.0873698 | N12: 6971.356034 | O12: 613558 | P12: 328504 | Q12: 1573805 | R12: -1245301 | S12: 1307153 | T12: 40485 | W12: 11789 | X12: 50648 | Y12: 164774 | Z12: 108677 | AC12: 56097 | AD12: -35686 | AF12: 35080 | AG12: 55491 | AH12: 366060 | AI12: 129993 | AK12: 24636 | AL12: -62730 | AM12: -12258 | AN12: 1307153 | AO12: 1129132 | AP12: 108968 | AQ12: 69053 | AR12: 17.75 | AT12: 27 | AU12: 265543 | AW12: 2.613718021 | AX12: 35.24428966 | AY12: 945.2066144 | BC12: 81.1143045 | BD12: 2603.819344 | BE12: 130.1404743 | BF12: 7302.83231 | BG12: 627982 | BH12: 331138 | BI12: 1627818 | BJ12: -1296680 | BK12: 1332758 | BL12: 29769 | BO12: 12027 | BP12: 39224 | BQ12: 117098 | BR12: 117578 | BU12: -480 | BV12: -33559 | BX12: 40096 | BY12: 6057 | BZ12: 370844 | CA12: 90753 | CC12: 21375 | CD12: -42541 | CE12: -135014 | CF12: 1332758 | CG12: 1137028 | CH12: 121003 | CI12: 74727 | CJ12: 18 | CL12: 96 | CM12: 269800 | CO12: 2.834679428 | CP12: 49 | CQ12: 67.81319496 | CU12: 75 | CV12: 2710.874722 | CW12: 123.1457523 | CX12: 8034.944403 | CY12: 631945 | CZ12: 405147 | DA12: 1718159 | DB12: -1313012 | DC12: 1393802 | DD12: 30083 | DG12: 10858 | DH12: 35309 | DI12: 154834 | DJ12: 126686 | DK12: 0 | DL12: 0 | DM12: 28148 | DN12: -30876 | DO12: 0 | DP12: 40102 | DQ12: 37374 | DR12: 397468 | DS12: 120723 | DU12: 2947 | DV12: -269272 | DW12: -147671 | DX12: 1393802 | DY12: 1161281 | DZ12: 136157 | EA12: 96364 | EB12: 18 | ED12: 49 | EE12: 685761 | EF12: 713124 | EG12: 781379 | EK12: -224938 | EL12: 45514 | EM12: 37173 | EN12: -320189 | EO12: 59875 | EP12: 34547 | EQ12: -358407 | ER12: 42985 | ES12: 47028 | ET12: 116000 | EU12: 93207 | EV12: 117000 | EW12: -57479 | EX12: 51703 | EY12: 42360 | EZ12: 338665 | FA12: 174505 | FB12: 164160 | FC12: 286656 | FD12: 355644 | FE12: 237688 | FF12: 117956 | FG12: 286474 | FH12: 615573 | FI12: 446609 | FJ12: 168964 | FK12: 364890 | FL12: 7221.665714 | FM12: 8254.410773 | FN12: 10000 | FO12: 64515.61111 | FP12: 239.1238366 | FS12: -262144 | FV12: 55179 | FW12: -55179
A13: 50 | B13: Eura | C13: 12368 | E13: 1.914602347 | F13: 37.48953869 | G13: -2006.872574 | K13: 56.26088754 | L13: 44.38874515 | M13: 2.258979099 | N13: 7172.218629 | O13: 34802 | P13: 10541 | Q13: 76031 | R13: -65490 | S13: 44015 | T13: 24306 | W13: -202 | X13: 76 | Y13: 2705 | Z13: 2498 | AC13: 207 | AD13: 32 | AG13: 239 | AH13: 8055 | AI13: 2594 | AK13: -534 | AL13: -1302 | AM13: -6520 | AN13: 44015 | AO13: 39990 | AP13: 2097 | AQ13: 1928 | AR13: 20.5 | AT13: 187 | AU13: 12314 | AW13: 0.4445076836 | AX13: 47.47122606 | AY13: -2539.304856 | BC13: 49.14189291 | BD13: 181.0134806 | BE13: 9.3249702 | BF13: 7085.2688 | BG13: 35557 | BH13: 11074 | BI13: 77348 | BJ13: -66274 | BK13: 43027 | BL13: 23921 | BO13: -224 | BP13: 82 | BQ13: 532 | BR13: 2822 | BU13: -2290 | BV13: 30 | BY13: -2260 | BZ13: 5796 | CA13: 457 | CC13: 655 | CD13: -1508 | CE13: -5874 | CF13: 43027 | CG13: 38582 | CH13: 2261 | CI13: 2184 | CJ13: 20.5 | CL13: 285 | CM13: 12128 | CO13: 1.630863039 | CP13: 49 | CQ13: -2818.024406 | CU13: 48 | CV13: 118.5686016 | CW13: 6.040069967 | CX13: 7165.072559 | CY13: 35543 | CZ13: 11873 | DA13: 77842 | DB13: -65969 | DC13: 45291 | DD13: 24045 | DG13: -260 | DH13: 114 | DI13: 3195 | DJ13: 3302 | DK13: 0 | DL13: 0 | DM13: -107 | DN13: 28 | DO13: 0 | DP13: 0 | DQ13: -79 | DR13: 5717 | DS13: 2951 | DU13: -283 | DV13: -6329 | DW13: -3210 | DX13: 45291 | DY13: 40489 | DZ13: 2540 | EA13: 2262 | EB13: 20.5 | ED13: 199 | EE13: 30600 | EF13: 30825 | EG13: 30966 | EK13: -10737 | EL13: 1387 | EM13: 236 | EN13: -7213 | EO13: 779 | EP13: 103 | EQ13: -7095 | ER13: 640 | ES13: 294 | ET13: 6400 | EU13: -100 | EV13: 4487 | EW13: 4800 | EX13: 1850 | EY13: -2600 | EZ13: 16973 | FA13: 9465 | FB13: 7508 | FC13: 3730 | FD13: 24752 | FE13: 12374 | FF13: 12378 | FG13: 4313 | FH13: 26631 | FI13: 16295 | FJ13: 10336 | FK13: 3883 | FL13: 3284.52458 | FM13: 4125.954198 | FN13: 4394 | FO13: 1975.073171 | FP13: 162.8523393 | FS13: -6376 | FV13: 818 | FW13: -818
A14: 51 | B14: Eurajoki | C14: 5931 | E14: 20.67064846 | F14: 19.88082554 | G14: 2310.571573 | K14: 87.3235794 | L14: 3643.736301 | M14: 161.1048364 | N14: 8255.268926 | O14: 16971 | P14: 4721 | Q14: 39487 | R14: -34766 | S14: 36995 | T14: 8966 | W14: 33 | X14: 791 | Y14: 12019 | Z14: 2153 | AC14: 9866 | AD14: 3 | AG14: 9869 | AH14: 57007 | AI14: 12018 | AK14: 355 | AL14: -492 | AM14: 3718 | AN14: 36995 | AO14: 18577 | AP14: 4216 | AQ14: 14202 | AR14: 18 | AT14: 1 | AU14: 5954 | AW14: 143.2325581 | AX14: 19.09125548 | AY14: 2721.02788 | BC14: 88.75152608 | BD14: 4106.650991 | BE14: 170.6623131 | BF14: 8783.003023 | BG14: 17649 | BH14: 4795 | BI14: 41759 | BJ14: -36964 | BK14: 37951 | BL14: 9744 | BO14: 59 | BP14: 1497 | BQ14: 12287 | BR14: 2648 | BS14: 137 | BU14: 9776 | BV14: 3 | BY14: 9779 | BZ14: 66796 | CA14: 12223 | CC14: 397 | CD14: -56 | CE14: 3343 | CF14: 37951 | CG14: 18189 | CH14: 4292 | CI14: 15470 | CJ14: 18 | CL14: 2 | CM14: 5938 | CO14: 14.53139013 | CP14: 24 | CQ14: 2284.607612 | CU14: 88 | CV14: 3639.609296 | CW14: 176.5923439 | CX14: 7522.734928 | CY14: 18564 | CZ14: 5310 | DA14: 42891 | DB14: -37581 | DC14: 34546 | DD14: 8207 | DG14: 192 | DH14: 1096 | DI14: 6454 | DJ14: 3314 | DK14: 0 | DL14: 0 | DM14: 3140 | DN14: 2 | DO14: 0 | DP14: 0 | DQ14: 3142 | DR14: 69938 | DS14: 6264 | DU14: -1563 | DV14: 0 | DW14: -1866 | DX14: 34546 | DY14: 16365 | DZ14: 2179 | EA14: 16002 | EB14: 18 | ED14: 3 | EE14: 18556 | EF14: 19970 | EG14: 20205 | EK14: -8446 | EL14: 50 | EM14: 96 | EN14: -9328 | EP14: 448 | EQ14: -8648 | ER14: 0 | ES14: 518 | EW14: -356 | EX14: 419 | EY14: 846 | EZ14: 3810 | FA14: 3454 | FB14: 356 | FC14: 450 | FD14: 3398 | FE14: 2983 | FF14: 415 | FG14: 1280 | FH14: 3826 | FI14: 2565 | FJ14: 1261 | FK14: 2049 | FL14: 1172.14635 | FM14: 1028.888142 | FN14: 950 | FO14: 909.1666667 | FP14: 153.1099136 | FS14: -7328 | FV14: 701 | FW14: -701
A15: 52 | B15: Evijärvi | C15: 2685 | E15: -0.1972477064 | F15: 29.10698299 | G15: -1606.331471 | K15: 57.60276172 | L15: 185.1024209 | M15: 9.713788487 | N15: 6955.307263 | O15: 3989 | P15: 2087 | Q15: 17957 | R15: -15870 | S15: 7789 | T15: 7996 | W15: -37 | X15: -4 | Y15: -126 | Z15: 353 | AC15: -479 | AG15: -479 | AH15: -1574 | AI15: -137 | AK15: 15 | AL15: -396 | AM15: -283 | AN15: 7789 | AO15: 6628 | AP15: 564 | AQ15: 597 | AR15: 21 | AT15: 287 | AU15: 2651 | AW15: 4.682634731 | AX15: 27.95390525 | AY15: 437.570728 | BC15: 70.96554256 | BD15: 2331.950207 | BE15: 115.660977 | BF15: 7359.10977 | BG15: 4049 | BH15: 2274 | BI15: 17996 | BJ15: -15722 | BK15: 8849 | BL15: 8402 | BO15: -29 | BP15: 22 | BQ15: 1522 | BR15: 364 | BS15: 4982 | BU15: 6140 | BY15: 6140 | BZ15: 4782 | CA15: 1323 | CC15: -44 | CD15: -293 | CE15: 5538 | CF15: 8849 | CG15: 7351 | CH15: 782 | CI15: 716 | CJ15: 21.5 | CL15: 46 | CM15: 2576 | CO15: 2.0078125 | CP15: 28 | CQ15: 448.757764 | CU15: 72 | CV15: 2312.888199 | CW15: 120.7948675 | CX15: 6988.742236 | CY15: 3951 | CZ15: 1851 | DA15: 18133 | DB15: -16282 | DC15: 8877 | DD15: 7848 | DG15: 37 | DH15: 12 | DI15: 492 | DJ15: 409 | DK15: 0 | DL15: 0 | DM15: 83 | DN15: 0 | DO15: 0 | DP15: 0 | DQ15: 83 | DR15: 4866 | DS15: 485 | DU15: 19 | DV15: 0 | DW15: -70 | DX15: 8877 | DY15: 7048 | DZ15: 1099 | EA15: 730 | EB15: 21.5 | ED15: 243 | EE15: 12640 | EF15: 12654 | EG15: 12858 | EI15: 375 | EK15: -258 | EL15: 52 | EM15: 60 | EN15: -1177 | EP15: 5392 | EQ15: -574 | ER15: 0 | ES15: 19 | EU15: 1100 | EW15: 1100 | EX15: 234 | EY15: -500 | EZ15: 3602 | FA15: 409 | FB15: 3193 | FC15: 228 | FD15: 4409 | FE15: 175 | FF15: 4234 | FG15: 221 | FH15: 3675 | FI15: 0 | FJ15: 3675 | FK15: 214 | FL15: 2111.359404 | FM15: 2514.145605 | FN15: 2290 | FO15: 327.8139535 | FP15: 127.2569695 | FS15: -540 | FV15: 500 | FW15: -500
A16: 61 | B16: Forssa | C16: 17667 | E16: 2.418424566 | F16: 38.16266217 | G16: -1500.311315 | K16: 59.61437719 | L16: 605.8753608 | M16: 31.58160213 | N16: 7002.320711 | O16: 40448 | P16: 22453 | Q16: 110806 | R16: -88353 | S16: 58134 | T16: 39195 | W16: -507 | X16: 46 | Y16: 8515 | Z16: 5327 | AB16: 2507 | AC16: 681 | AD16: 165 | AG16: 847 | AH16: 8230 | AI16: 6642 | AK16: 935 | AL16: -3203 | AM16: 434 | AN16: 58134 | AO16: 51857 | AP16: 2927 | AQ16: 3350 | AR16: 20 | AT16: 62 | AU16: 17521 | AW16: 0.6374548421 | AX16: 40.6566203 | AY16: -1586.267907 | BC16: 58.54523084 | BD16: 739.4555105 | BE16: 33.8708037 | BF16: 7968.552023 | BG16: 29889 | BH16: 16878 | BI16: 110239 | BJ16: -93361 | BK16: 58861 | BL16: 39792 | BO16: -482 | BP16: 143 | BQ16: 4953 | BR16: 6253 | BS16: 4995 | BU16: 3695 | BV16: 116 | BW16: -3500 | BY16: 311 | BZ16: 8541 | CA16: 8492 | CC16: 2280 | CD16: -8064 | CE16: -472 | CF16: 58861 | CG16: 51232 | CH16: 3242 | CI16: 4387 | CJ16: 20 | CL16: 189 | CM16: 17422 | CO16: 1.912449799 | CP16: 46 | CQ16: -1751.922856 | CU16: 56 | CV16: 971.0136609 | CW16: 49.70781678 | CX16: 7130.065435 | CY16: 30424 | CZ16: 17993 | DA16: 110529 | DB16: -92536 | DC16: 59678 | DD16: 39859 | DG16: -475 | DH16: 174 | DI16: 6644 | DJ16: 5985 | DK16: 0 | DL16: 0 | DM16: 659 | DN16: 113 | DO16: 0 | DP16: 0 | DQ16: 772 | DR16: 8558 | DS16: 5295 | DU16: -98 | DV16: -6500 | DW16: -2727 | DX16: 59678 | DY16: 51849 | DZ16: 3453 | EA16: 4376 | EB16: 20 | ED16: 131 | EE16: 57170 | EF16: 71219 | EG16: 70785 | EK16: -9131 | EL16: 568 | EM16: 2355 | EN16: -20040 | EO16: 746 | EP16: 10330 | EQ16: -8867 | ER16: 135 | ES16: 710 | EU16: 2301 | EV16: 5000 | EW16: 5388 | EX16: 3236 | EY16: 4407 | EZ16: 34490 | FA16: 17512 | FB16: 16978 | FC16: 272 | FD16: 36816 | FE16: 19276 | FF16: 17540 | FG16: 1007 | FH16: 44486 | FI16: 22709 | FJ16: 21777 | FK16: 1007 | FL16: 3765.438388 | FM16: 3450.316763 | FN16: 3683 | FO16: 2592.45 | FP16: 148.8032373 | FS16: -7725 | FV16: 2820 | FW16: -2820
A17: 69 | B17: Haapajärvi | C17: 7616 | E17: -0.1892232835 | F17: 76.44500815 | G17: -2764.180672 | K17: 38.25477461 | L17: 2056.066176 | M17: 96.7357491 | N17: 7757.878151 | O17: 12922 | P17: 5177 | Q17: 51477 | R17: -46300 | S17: 21598 | T17: 22896 | W17: -532 | X17: 730 | Y17: -1608 | Z17: 1422 | AC17: -3030 | AD17: 85 | AG17: -2945 | AH17: -1411 | AI17: -1666 | AK17: -109 | AL17: -4991 | AM17: -2777 | AN17: 21598 | AO17: 19057 | AP17: 1110 | AQ17: 1431 | AR17: 21 | AT17: 299 | AU17: 7479 | AW17: 0.3345058037 | AX17: 70.87802074 | AY17: -2631.100414 | BC17: 39.44251926 | BD17: 1991.843829 | BE17: 92.70621633 | BF17: 7842.224896 | BG17: 12780 | BH17: 4984 | BI17: 49736 | BJ17: -44752 | BK17: 22444 | BL17: 23015 | BO17: -485 | BP17: 1179 | BQ17: 1401 | BR17: 2006 | BS17: 256 | BU17: -349 | BV17: 85 | BY17: -264 | BZ17: -1675 | CA17: 1640 | CC17: 82 | CD17: -5185 | CE17: 1450 | CF17: 22444 | CG17: 19350 | CH17: 1230 | CI17: 1864 | CJ17: 21 | CL17: 246 | CM17: 7438 | CO17: 0.6554138984 | CP17: 65 | CQ17: -2416.644259 | CU17: 42 | CV17: 1972.438828 | CW17: 101.998381 | CX17: 7058.349019 | CY17: 12724 | CZ17: 5134 | DA17: 49804 | DB17: -44670 | DC17: 23251 | DD17: 23465 | DG17: -429 | DH17: 1596 | DI17: 3213 | DJ17: 1625 | DK17: 0 | DL17: 0 | DM17: 1588 | DN17: 85 | DO17: 0 | DP17: 0 | DQ17: 1673 | DR17: -2 | DS17: 3210 | DU17: 82 | DV17: -4004 | DW17: 1690 | DX17: 23251 | DY17: 20055 | DZ17: 1353 | EA17: 1843 | EB17: 22 | ED17: 106 | EE17: 35343 | EF17: 33655 | EG17: 34099 | EK17: -1746 | EL17: 541 | EM17: 94 | EN17: -3092 | EO17: 331 | EP17: 2571 | EQ17: -1884 | ER17: 337 | ES17: 27 | ET17: 6079 | EU17: 1193 | EV17: 3415 | EW17: 3765 | EX17: 5132 | EY17: -1613 | EZ17: 30653 | FA17: 23733 | FB17: 6920 | FC17: 1184 | FD17: 32647 | FE17: 21963 | FF17: 10684 | FG17: 1177 | FH17: 29907 | FI17: 20835 | FJ17: 9072 | FK17: 1169 | FL17: 5315.388655 | FM17: 5635.913892 | FN17: 5213 | FO17: 911.5909091 | FP17: 122.5586057 | FS17: -1136 | FV17: 5099 | FW17: -5099
A18: 71 | B18: Haapavesi | C18: 7241 | E18: 0.4137566138 | F18: 44.81528429 | G18: -3000 | K18: 31.59090011 | L18: 1031.349261 | M18: 31.86938069 | N18: 11812.04254 | O18: 41183 | P18: 34724 | Q18: 75468 | R18: -40744 | S18: 20067 | T18: 21806 | W18: -443 | X18: 330 | Y18: 1016 | Z18: 2108 | AB18: 540 | AC18: -1632 | AG18: -1632 | AH18: 250 | AI18: 484 | AK18: -1245 | AL18: -3232 | AM18: -4893 | AN18: 20067 | AO18: 17890 | AP18: 1053 | AQ18: 1124 | AR18: 20.75 | AT18: 230 | AU18: 7175 | AW18: 0.5563156609 | AX18: 46.02951782 | AY18: -3336.30662 | BC18: 30.11029911 | BD18: 984.5296167 | BE18: 29.1409261 | BF18: 12331.56794 | BG18: 40444 | BH18: 34806 | BI18: 75773 | BJ18: -40967 | BK18: 21023 | BL18: 21863 | BO18: -409 | BP18: 289 | BQ18: 1799 | BR18: 2497 | BS18: 358 | BT18: 124 | BU18: -464 | BY18: -464 | BZ18: -214 | CA18: 1655 | CC18: 363 | CD18: -3615 | CE18: -2279 | CF18: 21023 | CG18: 18614 | CH18: 1155 | CI18: 1254 | CJ18: 21.25 | CL18: 216 | CM18: 7167 | CO18: 0.4187902188 | CP18: 50 | CQ18: -3565.927166 | CU18: 27 | CV18: 1144.690945 | CW18: 37.54385085 | CX18: 11128.64518 | CY18: 40997 | CZ18: 34211 | DA18: 76618 | DB18: -42407 | DC18: 21200 | DD18: 22107 | DG18: -230 | DH18: 800 | DI18: 1332 | DJ18: 2399 | DK18: 0 | DL18: 19 | DM18: -1086 | DN18: 0 | DO18: 0 | DP18: 0 | DQ18: -1086 | DR18: -1410 | DS18: 1212 | DU18: 2 | DV18: -10 | DW18: -1694 | DX18: 21200 | DY18: 18583 | DZ18: 1218 | EA18: 1399 | EB18: 21.25 | ED18: 245 | EE18: 24162 | EF18: 25446 | EG18: 25684 | EK18: -6235 | EL18: 706 | EM18: 152 | EN18: -8587 | EO18: 4208 | EP18: 445 | EQ18: -3613 | ER18: 663 | ES18: 44 | ET18: 5020 | EU18: 3000 | EV18: 10 | EW18: 4800 | EX18: 3590 | EY18: 6800 | EZ18: 21572 | FA18: 14957 | FB18: 6615 | FC18: 0 | FD18: 22767 | FE18: 11377 | FF18: 11390 | FG18: 0 | FH18: 25987 | FI18: 8051 | FJ18: 17936 | FK18: 0 | FL18: 6346.775307 | FM18: 3995.261324 | FN18: 6319 | FO18: 874.4941176 | FP18: 122.0167598 | FS18: -2869 | FV18: 1987 | FW18: -1987
A19: 72 | B19: Hailuoto | C19: 999 | E19: -1.717948718 | F19: 26.43992703 | G19: 821.8218218 | K19: 77.41885022 | L19: 2598.598599 | M19: 98.16015746 | N19: 9662.662663 | O19: 3502 | P19: 1384 | Q19: 7926 | R19: -6542 | S19: 3137 | T19: 3153 | W19: 2 | X19: 33 | Y19: -217 | Z19: 500 | AC19: -717 | AD19: -2279 | AE19: 2380 | AG19: -616 | AH19: 2587 | AI19: -198 | AK19: 681 | AL19: -101 | AM19: -1375 | AN19: 3137 | AO19: 2815 | AP19: 71 | AQ19: 251 | AR19: 19.25 | AT19: 301 | AU19: 997 | AW19: -0.6203703704 | AX19: 27.67707932 | AY19: -79.23771314 | BC19: 75.38523598 | BD19: 1864.593781 | BE19: 78.32563777 | BF19: 8689.067202 | BG19: 3707 | BH19: 1417 | BI19: 7864 | BJ19: -6447 | BK19: 3267 | BL19: 3095 | BO19: 11 | BP19: 0 | BQ19: -74 | BR19: 532 | BU19: -606 | BV19: 121 | BY19: -485 | BZ19: 2154 | CA19: -74 | CC19: 38 | CD19: -101 | CE19: -764 | CF19: 3267 | CG19: 2898 | CH19: 83 | CI19: 286 | CJ19: 19.25 | CL19: 299 | CM19: 993 | CO19: 5.540816327 | CP19: 42 | CQ19: 82.57804632 | CU19: 68 | CV19: 3097.683787 | CW19: 113.4424573 | CX19: 9966.767372 | CY19: 3558 | CZ19: 1467 | DA19: 7814 | DB19: -6347 | DC19: 3433 | DD19: 3397 | DG19: -6 | DH19: 57 | DI19: 533 | DJ19: 415 | DK19: 0 | DL19: 0 | DM19: 118 | DN19: 0 | DO19: 124 | DP19: 0 | DQ19: 242 | DR19: 2359 | DS19: 541 | DU19: -266 | DV19: -1000 | DW19: 145 | DX19: 3433 | DY19: 3048 | DZ19: 94 | EA19: 291 | EB19: 20 | ED19: 61 | EE19: 3468 | EF19: 3117 | EG19: 2807 | EK19: -1600 | EL19: 403 | EM19: 20 | EN19: -690 | EQ19: -691 | ER19: 90 | ES19: 205 | EX19: 88 | EY19: -13 | EZ19: 1163 | FA19: 1062 | FB19: 101 | FC19: 20 | FD19: 1062 | FE19: 961 | FF19: 101 | FG19: 13 | FH19: 1961 | FI19: 1808 | FJ19: 153 | FK19: 5 | FL19: 3647.647648 | FM19: 2025.075226 | FN19: 2847 | FO19: 152.4 | FP19: 153.4743202 | FS19: -550 | FV19: 0 | FW19: 0
A20: 74 | B20: Halsua | C20: 1229 | E20: 1.047826087 | F20: 50.09122978 | G20: -2352.318959 | K20: 42.89473684 | L20: 248.1692433 | M20: 13.25139864 | N20: 6835.638731 | O20: 2309 | P20: 811 | Q20: 7994 | R20: -7183 | S20: 3440 | T20: 3970 | W20: -101 | X20: 14 | Y20: 140 | Z20: 129 | AC20: 11 | AG20: 10 | AH20: 154 | AI20: 139 | AK20: 1741 | AL20: -128 | AM20: 40 | AN20: 3440 | AO20: 2917 | AP20: 300 | AQ20: 223 | AR20: 21 | AT20: 239 | AU20: 1222 | AW20: 0.3439054726 | AX20: 51.48772486 | AY20: -2438.625205 | BC20: 43.06980235 | BD20: 689.0343699 | BE20: 28.77082943 | BF20: 8741.407529 | BG20: 2334 | BH20: 870 | BI20: 8282 | BJ20: -7412 | BK20: 4114 | BL20: 3855 | BO20: -79 | BP20: -5 | BQ20: 473 | BR20: 127 | BU20: 346 | BY20: 346 | BZ20: 500 | CA20: 454 | CC20: 198 | CD20: -1528 | CE20: -94 | CF20: 4114 | CG20: 3426 | CH20: 403 | CI20: 285 | CJ20: 21.5 | CL20: 124 | CM20: 1225 | CO20: -0.009505703422 | CP20: 52 | CQ20: -2755.102041 | CU20: 43 | CV20: 154.2857143 | CW20: 8.43853211 | CX20: 6673.469388 | CY20: 2098 | CZ20: 890 | DA20: 8383 | DB20: -7493 | DC20: 3837 | DD20: 3645 | DG20: -49 | DH20: 1 | DI20: -59 | DJ20: 119 | DK20: 0 | DL20: 0 | DM20: -178 | DN20: 0 | DO20: 0 | DP20: 0 | DQ20: -178 | DR20: 321 | DS20: -64 | DU20: -53 | DV20: 0 | DW20: -386 | DX20: 3837 | DY20: 3114 | DZ20: 428 | EA20: 295 | EB20: 21.5 | ED20: 293 | EE20: 4968 | EF20: 5126 | EG20: 5551 | EH20: 160 | EK20: -177 | EM20: 78 | EN20: -786 | EP20: 238 | EQ20: -468 | ER20: 70 | ES20: 76 | EU20: -1250 | EW20: 2000 | EX20: 1003 | EY20: 700 | EZ20: 3538 | FA20: 2010 | FB20: 1528 | FC20: 65 | FD20: 4011 | FE20: 1008 | FF20: 3003 | FG20: 65 | FH20: 3708 | FI20: 1005 | FJ20: 2703 | FK20: 75 | FL20: 6414.157852 | FM20: 9596.563011 | FN20: 11127 | FO20: 144.8372093 | FP20: 118.2344566 | FS20: -312 | FV20: 188 | FW20: -188
A21: 75 | B21: Hamina | C21: 21203 | E21: 0.6612967914 | F21: 75.66868975 | G21: -4142.621327 | K21: 45.29686321 | L21: 452.3416498 | M21: 22.47592357 | N21: 7345.847286 | O21: 61816 | P21: 29076 | Q21: 133638 | R21: -104562 | S21: 77426 | T21: 34189 | W21: -1010 | X21: 2487 | Y21: 8530 | Z21: 9392 | AB21: 2336 | AC21: -3198 | AG21: -3198 | AH21: -2980 | AI21: 7280 | AK21: -1209 | AL21: -13597 | AM21: 1746 | AN21: 77426 | AO21: 68822 | AP21: 3929 | AQ21: 4675 | AR21: 20.5 | AT21: 87 | AU21: 21061 | AW21: 1.182389338 | AX21: 71.29827258 | AY21: -4228.811547 | BC21: 46.45624015 | BD21: 377.1900669 | BE21: 17.82162152 | BF21: 7725.13176 | BG21: 61050 | BH21: 31564 | BI21: 136516 | BJ21: -104952 | BK21: 80884 | BL21: 33996 | BO21: -884 | BP21: 2095 | BQ21: 11139 | BR21: 8863 | BU21: 2276 | BY21: 2276 | BZ21: -703 | CA21: 10560 | CC21: 1665 | CD21: -9223 | CE21: 3390 | CF21: 80884 | CG21: 71382 | CH21: 4548 | CI21: 4954 | CJ21: 21 | CL21: 59 | CM21: 20851 | CO21: 1.071102355 | CP21: 73 | CQ21: -4522.373028 | CU21: 45 | CV21: 383.3389286 | CW21: 18.29795975 | CX21: 7646.683612 | CY21: 61405 | CZ21: 30981 | DA21: 138906 | DB21: -107925 | DC21: 83054 | DD21: 34183 | DG21: -665 | DH21: 4260 | DI21: 10768 | DJ21: 9510 | DK21: 0 | DL21: 0 | DM21: 1258 | DN21: 0 | DO21: 0 | DP21: 0 | DQ21: 1258 | DR21: -1104 | DS21: 10316 | DU21: 634 | DV21: -14500 | DW21: -267 | DX21: 83054 | DY21: 72430 | DZ21: 4856 | EA21: 5768 | EB21: 21 | ED21: 66 | EE21: 50881 | EF21: 51160 | EG21: 53004 | EK21: -7672 | EL21: 721 | EM21: 1417 | EN21: -8876 | EO21: 92 | EP21: 1614 | EQ21: -11673 | ER21: 88 | ES21: 1002 | ET21: 11800 | EU21: 4602 | EV21: 10622 | EW21: -2553 | EX21: 9974 | EY21: 306 | EZ21: 78531 | FA21: 64705 | FB21: 13826 | FC21: 6534 | FD21: 77376 | FE21: 66352 | FF21: 11024 | FG21: 10984 | FH21: 82199 | FI21: 68390 | FJ21: 13809 | FK21: 15946 | FL21: 7322.218554 | FM21: 7222.639001 | FN21: 7294 | FO21: 3449.047619 | FP21: 165.4140146 | FS21: -10450 | FV21: 9905 | FW21: -9905
A22: 77 | B22: Hankasalmi | C22: 5404 | E22: -0.06644518272 | F22: 30.5318815 | G22: -1650.814212 | K22: 55.72716839 | L22: 208.7342709 | M22: 8.875953952 | N22: 8583.641747 | O22: 18606 | P22: 9384 | Q22: 41676 | R22: -32292 | S22: 14214 | T22: 17821 | W22: -139 | X22: 193 | Y22: -203 | Z22: 1230 | AC22: -1433 | AD22: 22 | AG22: -1412 | AH22: -1807 | AI22: -306 | AK22: -262 | AL22: -760 | AM22: -3517 | AN22: 14214 | AO22: 12462 | AP22: 695 | AQ22: 1057 | AR22: 20.5 | AT22: 285 | AU22: 5307 | AW22: 0.4819413093 | AX22: 33.63533409 | AY22: -2094.780479 | BC22: 50.95633694 | BD22: 148.8599962 | BE22: 6.218996679 | BF22: 8736.762766 | BG22: 18283 | BH22: 9405 | BI22: 42137 | BJ22: -32732 | BK22: 15093 | BL22: 17886 | BO22: -122 | BP22: 176 | BQ22: 301 | BR22: 1470 | BU22: -1169 | BV22: 22 | BY22: -1147 | BZ22: -2954 | CA22: 136 | CC22: 239 | CD22: -760 | CE22: -2291 | CF22: 15093 | CG22: 13233 | CH22: 700 | CI22: 1160 | CJ22: 21.5 | CL22: 280 | CM22: 5240 | CO22: 2.953519256 | CP22: 35 | CQ22: -2248.664122 | CU22: 50 | CV22: 106.1068702 | CW22: 4.804564502 | CX22: 8060.877863 | CY22: 18509 | CZ22: 9340 | DA22: 41109 | DB22: -31769 | DC22: 15329 | DD22: 18516 | DG22: -103 | DH22: 265 | DI22: 2120 | DJ22: 1634 | DK22: 0 | DL22: 0 | DM22: 486 | DN22: 22 | DO22: 0 | DP22: 0 | DQ22: 508 | DR22: -2447 | DS22: 1892 | DU22: -662 | DV22: 0 | DW22: -1259 | DX22: 15329 | DY22: 13209 | DZ22: 790 | EA22: 1330 | EB22: 22 | ED22: 118 | EE22: 17818 | EF22: 18666 | EG22: 17688 | EK22: -3662 | EL22: 289 | EM22: 163 | EN22: -3323 | EO22: 656 | EP22: 240 | EQ22: -3518 | ER22: 30 | ES22: 337 | ET22: 522 | EU22: 2000 | EV22: 1219 | EW22: 1500 | EX22: 649 | EY22: 1503 | EZ22: 6372 | FA22: 3612 | FB22: 2760 | FC22: 0 | FD22: 8331 | FE22: 4191 | FF22: 4140 | FG22: 0 | FH22: 9185 | FI22: 3417 | FJ22: 5768 | FK22: 0 | FL22: 2359.548483 | FM22: 2827.774637 | FN22: 2820 | FO22: 600.4090909 | FP22: 114.5818876 | FS22: -5012 | FV22: 985 | FW22: -985
A23: 78 | B23: Hanko | C23: 9109 | E23: 0.6045995562 | F23: 79.27129493 | G23: -6208.255571 | K23: 40.67207947 | L23: 74.21231749 | M23: 2.01282386 | N23: 13457.45966 | O23: 31551 | P23: 23467 | Q23: 69710 | R23: -46243 | S23: 38761 | T23: 13227 | W23: -822 | X23: 222 | Y23: 5145 | Z23: 5778 | AA23: 19732 | AC23: 19099 | AD23: 10 | AG23: 19109 | AH23: 5398 | AI23: 4250 | AK23: 1208 | AL23: -9065 | AM23: 28371 | AN23: 38761 | AO23: 34072 | AP23: 2661 | AQ23: 2028 | AR23: 21.25 | AT23: 38 | AU23: 9021 | AW23: 0.5253185234 | AX23: 108.4446314 | AY23: -7523.999557 | BC23: 36.07484331 | BD23: 19.28832724 | BE23: 0.7573336513 | BF23: 9296.086908 | BG23: 29981 | BH23: 14615 | BI23: 65541 | BJ23: -50926 | BK23: 39738 | BL23: 12503 | BO23: 951 | BP23: 125 | BQ23: 2391 | BR23: 3838 | BU23: -1447 | BV23: 10 | BY23: -1436 | BZ23: 3962 | CA23: 740 | CC23: -1782 | CD23: -5297 | CE23: -11340 | CF23: 39738 | CG23: 34051 | CH23: 3111 | CI23: 2576 | CJ23: 21.75 | CL23: 206 | CM23: 8864 | CO23: 3.127232143 | CP23: 109 | CQ23: -7790.162455 | CU23: 35 | CV23: 82.46841155 | CW23: 3.776253963 | CX23: 7971.119134 | CY23: 30206 | CZ23: 15872 | DA23: 67370 | DB23: -51498 | DC23: 40070 | DD23: 12103 | DG23: 851 | DH23: 586 | DI23: 1881 | DJ23: 3744 | DK23: 62 | DL23: 0 | DM23: -1801 | DN23: 10 | DO23: 0 | DP23: 0 | DQ23: -1791 | DR23: 2169 | DS23: 1312 | DU23: 140 | DV23: -975 | DW23: -1244 | DX23: 40070 | DY23: 34508 | DZ23: 2842 | EA23: 2720 | EB23: 21.75 | ED23: 229 | EE23: 28296 | EF23: 26574 | EG23: 28314 | EH23: 830 | EK23: -14526 | EL23: 908 | EM23: 37739 | EN23: -12475 | EO23: 28 | EP23: 367 | EQ23: -3288 | ER23: 0 | ES23: 732 | ET23: 10190 | EU23: 46 | EV23: 18000 | EX23: -25 | EY23: 0 | EZ23: 51934 | FA23: 10163 | FB23: 41771 | FC23: 30427 | FD23: 64637 | FE23: 24137 | FF23: 40500 | FG23: 30427 | FH23: 65637 | FI23: 24912 | FJ23: 40725 | FK23: 30427 | FL23: 6825.557141 | FM23: 8281.676089 | FN23: 8432 | FO23: 1586.574713 | FP23: 178.9908295 | FS23: -2585 | FV23: 13300 | FW23: -13300
A24: 79 | B24: Harjavalta | C24: 7407 | E24: 1.919472914 | F24: 38.49316701 | G24: -2071.283921 | K24: 57.95144749 | L24: 114.7563116 | M24: 5.089820359 | N24: 8229.377616 | O24: 15788 | P24: 8954 | Q24: 49206 | R24: -40252 | S24: 27742 | T24: 13714 | W24: -64 | X24: 59 | Y24: 1199 | Z24: 1515 | AC24: -316 | AG24: -315 | AH24: 8771 | AI24: -123 | AK24: -407 | AL24: -571 | AM24: -8373 | AN24: 27742 | AO24: 22592 | AP24: 3632 | AQ24: 1518 | AR24: 18.75 | AT24: 222 | AU24: 7366 | AW24: 2.487163431 | AX24: 37.18621062 | AY24: -2011.132229 | BC24: 59.63678113 | BD24: 259.435243 | BE24: 13.15668855 | BF24: 7197.393429 | BG24: 15917 | BH24: 6736 | BI24: 47988 | BJ24: -41252 | BK24: 30822 | BL24: 14325 | BO24: -141 | BP24: 50 | BQ24: 3804 | BR24: 2017 | BU24: 1787 | BY24: 1786 | BZ24: 10556 | CA24: 3318 | CC24: 624 | CD24: -1429 | CE24: 540 | CF24: 30822 | CG24: 23655 | CH24: 5575 | CI24: 1592 | CJ24: 19.75 | CL24: 67 | CM24: 7296 | CO24: 0.6434108527 | CP24: 36 | CQ24: -2053.316886 | CU24: 60 | CV24: 14.39144737 | CW24: 0.816711418 | CX24: 6431.743421 | CY24: 15341 | CZ24: 6204 | DA24: 47925 | DB24: -41721 | DC24: 30477 | DD24: 12673 | DG24: -164 | DH24: 77 | DI24: 1315 | DJ24: 2180 | DK24: 0 | DL24: 0 | DM24: -865 | DN24: 0 | DO24: 0 | DP24: 0 | DQ24: -865 | DR24: 9692 | DS24: 1087 | DU24: -73 | DV24: 0 | DW24: -634 | DX24: 30477 | DY24: 23439 | DZ24: 5237 | EA24: 1801 | EB24: 19.75 | ED24: 248 | EE24: 28636 | EF24: 26971 | EG24: 28056 | EK24: -11097 | EL24: 848 | EM24: 1999 | EN24: -3422 | EO24: 42 | EP24: 602 | EQ24: -2052 | ER24: 6 | ES24: 325 | ET24: 10000 | EU24: -1000 | EV24: 5000 | EW24: -4000 | EX24: 2143 | EY24: 1000 | EZ24: 13429 | FA24: 8000 | FB24: 5429 | FC24: 32 | FD24: 13000 | FE24: 10857 | FF24: 2143 | FG24: 31 | FH24: 11857 | FI24: 8714 | FJ24: 3143 | FK24: 29 | FL24: 2402.322128 | FM24: 2387.048602 | FN24: 2819 | FO24: 1186.78481 | FP24: 162.6623917 | FS24: -1711 | FV24: 0 | FW24: 0
A25: 81 | B25: Hartola | C25: 3098 | E25: 0.3184971098 | F25: 50.52305129 | G25: -2967.398321 | K25: 25.80494009 | L25: 297.2885733 | M25: 13.81462152 | N25: 7854.744997 | O25: 4985 | P25: 2979 | Q25: 21127 | R25: -18148 | S25: 9585 | T25: 9048 | W25: -159 | X25: 46 | Y25: 372 | Z25: 558 | AB25: 268 | AC25: -454 | AG25: -454 | AH25: -1675 | AI25: 22 | AK25: 13 | AL25: -1551 | AM25: -1031 | AN25: 9585 | AO25: 7397 | AP25: 962 | AQ25: 1226 | AR25: 21 | AT25: 235 | AU25: 3071 | AW25: 0.9976303318 | AX25: 65.80999646 | AY25: -3667.535005 | BC25: 24.73263368 | BD25: 332.7906219 | BE25: 13.05076444 | BF25: 9307.391729 | BG25: 4837 | BH25: 3092 | BI25: 20946 | BJ25: -17854 | BK25: 10089 | BL25: 9398 | BO25: -177 | BP25: 38 | BQ25: 1494 | BR25: 482 | BS25: 82 | BU25: 1094 | BY25: 1094 | BZ25: -581 | CA25: 1486 | CC25: -1766 | CD25: -1498 | CE25: -2107 | CF25: 10089 | CG25: 7632 | CH25: 1126 | CI25: 1331 | CJ25: 21.5 | CL25: 78 | CM25: 2982 | CO25: 0.8761363636 | CP25: 76 | CQ25: -4345.741113 | CU25: 25 | CV25: 423.2059021 | CW25: 17.8954934 | CX25: 8631.790744 | CY25: 4640 | CZ25: 3039 | DA25: 20545 | DB25: -17506 | DC25: 10219 | DD25: 8788 | DG25: -166 | DH25: 57 | DI25: 1364 | DJ25: 556 | DK25: 0 | DL25: 0 | DM25: 808 | DN25: 0 | DO25: 0 | DP25: 0 | DQ25: 808 | DR25: 227 | DS25: 1133 | DU25: 6 | DV25: -3016 | DW25: -1797 | DX25: 10219 | DY25: 7596 | DZ25: 1285 | EA25: 1338 | EB25: 21.5 | ED25: 93 | EE25: 14845 | EF25: 14788 | EG25: 14553 | EH25: 420 | EI25: 355 | EK25: -1485 | EL25: 258 | EM25: 174 | EN25: -5960 | EO25: 2162 | EP25: 205 | EQ25: -4678 | ER25: 1485 | ES25: 263 | ET25: 2000 | EU25: 500 | EV25: 4500 | EW25: 1000 | EX25: 1582 | EY25: 500 | EZ25: 8215 | FA25: 6218 | FB25: 1997 | FC25: 291 | FD25: 12218 | FE25: 9136 | FF25: 3082 | FG25: 244 | FH25: 14152 | FI25: 10696 | FJ25: 3456 | FK25: 211 | FL25: 8958.037444 | FM25: 10223.70563 | FN25: 10858 | FO25: 353.3023256 | FP25: 118.4783117 | FS25: -2729 | FV25: 1545 | FW25: -1545
A26: 82 | B26: Hattula | C26: 9684 | E26: 1.178523936 | F26: 55.25258268 | G26: -2756.505576 | K26: 44.15730781 | L26: 19.51672862 | M26: 1.325538497 | N26: 5374.122264 | O26: 20472 | P26: 5001 | Q26: 47664 | R26: -42663 | S26: 35391 | T26: 10621 | W26: -215 | X26: -6 | Y26: 3128 | Z26: 1543 | AC26: 1585 | AG26: 1586 | AH26: 2828 | AI26: 2799 | AK26: -52 | AL26: -2591 | AM26: 2025 | AN26: 35391 | AO26: 32727 | AP26: 978 | AQ26: 1686 | AR26: 20 | AT26: 127 | AU26: 9738 | AW26: 1.09455494 | AX26: 54.70676924 | AY26: -2704.662148 | BC26: 46.14288699 | BD26: 5.647976997 | BE26: 0.3615032774 | BF26: 5702.608338 | BG26: 20933 | BH26: 6136 | BI26: 48614 | BJ26: -42478 | BK26: 35322 | BL26: 10276 | BO26: -182 | BP26: 32 | BQ26: 2970 | BR26: 1517 | BS26: 505 | BU26: 1958 | BY26: 1958 | BZ26: 4786 | CA26: 2597 | CC26: -605 | CD26: -2680 | CE26: 311 | CF26: 35322 | CG26: 32132 | CH26: 1081 | CI26: 2109 | CJ26: 20 | CL26: 178 | CM26: 9747 | CO26: 1.032970451 | CP26: 64 | CQ26: -3220.991074 | CU26: 42 | CV26: 6.976505591 | CW26: 0.3850031799 | CX26: 6614.035088 | CY26: 20314 | CZ26: 6007 | DA26: 49058 | DB26: -43051 | DC26: 36768 | DD26: 9518 | DG26: -1 | DH26: -111 | DI26: 3119 | DJ26: 1551 | DK26: 0 | DL26: 0 | DM26: 1568 | DN26: 0 | DO26: 0 | DP26: 0 | DQ26: 1568 | DR26: 5039 | DS26: 2713 | DU26: 136 | DV26: -10000 | DW26: -5073 | DX26: 36768 | DY26: 33308 | DZ26: 1326 | EA26: 2134 | EB26: 20 | ED26: 161 | EE26: 21873 | EF26: 22358 | EG26: 23111 | EK26: -1343 | EM26: 569 | EN26: -3843 | EO26: 136 | EP26: 1421 | EQ26: -9424 | ER26: 1344 | ES26: 294 | ET26: 4000 | EU26: -2384 | EW26: 1431 | EX26: 3013 | EY26: -1009 | EZ26: 23659 | FA26: 18073 | FB26: 5586 | FC26: 4398 | FD26: 22411 | FE26: 15394 | FF26: 7017 | FG26: 4398 | FH26: 28389 | FI26: 22027 | FJ26: 6362 | FK26: 4398 | FL26: 3468.091698 | FM26: 3353.666051 | FN26: 3971 | FO26: 1665.4 | FP26: 170.8628296 | FS26: -7768 | FV26: 1420 | FW26: -1420
A27: 86 | B27: Hausjärvi | C27: 8808 | E27: 0.4618908788 | F27: 58.99359306 | G27: -2989.327884 | K27: 38.19264361 | L27: 258.0608538 | M27: 14.58716484 | N27: 6457.198002 | O27: 16482 | P27: 6042 | Q27: 47914 | R27: -41872 | S27: 30986 | T27: 13240 | W27: -343 | X27: -145 | Y27: 1866 | Z27: 2211 | AC27: -345 | AG27: -345 | AH27: 3886 | AI27: 1841 | AK27: -186 | AL27: -4450 | AM27: -2046 | AN27: 30986 | AO27: 28574 | AP27: 1104 | AQ27: 1308 | AR27: 20.5 | AT27: 191 | AU27: 8815 | AW27: 0.5574491479 | AX27: 63.06354068 | AY27: -3207.600681 | BC27: 36.62234617 | BD27: 310.153148 | BE27: 17.21543664 | BF27: 6575.836642 | BG27: 16510 | BH27: 6066 | BI27: 47911 | BJ27: -41845 | BK27: 31781 | BL27: 13098 | BO27: -515 | BP27: -1 | BQ27: 2518 | BR27: 2194 | BT27: 87 | BU27: 237 | BY27: 237 | BZ27: 4123 | CA27: 2466 | CC27: -62 | CD27: -4933 | CE27: -1963 | CF27: 31781 | CG27: 29055 | CH27: 1179 | CI27: 1547 | CJ27: 21 | CL27: 188 | CM27: 8729 | CO27: 0.5784855379 | CP27: 65 | CQ27: -2951.769962 | CU27: 34 | CV27: 730.7824493 | CW27: 42.9107077 | CX27: 6216.061405 | CY27: 16275 | CZ27: 6398 | DA27: 47577 | DB27: -41179 | DC27: 32179 | DD27: 12542 | DG27: -510 | DH27: 12 | DI27: 3043 | DJ27: 2386 | DK27: 0 | DL27: 0 | DM27: 657 | DN27: 0 | DO27: 0 | DP27: 0 | DQ27: 657 | DR27: 3127 | DS27: 4461 | DU27: 66 | DV27: -6800 | DW27: 4246 | DX27: 32179 | DY27: 29259 | DZ27: 1250 | EA27: 1670 | EB27: 21 | ED27: 144 | EE27: 25079 | EF27: 24998 | EG27: 25185 | EK27: -4019 | EL27: 91 | EM27: 42 | EN27: -4609 | EP27: 180 | EQ27: -727 | ER27: 0 | ES27: 512 | ET27: 6600 | EU27: 500 | EV27: 8500 | EW27: -1500 | EX27: 5637 | EY27: 0 | EZ27: 25987 | FA27: 19772 | FB27: 6215 | FC27: 177 | FD27: 28053 | FE27: 22586 | FF27: 5467 | FG27: 163 | FH27: 29216 | FI27: 23509 | FJ27: 5707 | FK27: 150 | FL27: 3368.755677 | FM27: 3593.306863 | FN27: 3682 | FO27: 1393.285714 | FP27: 159.6157308 | FS27: -121 | FV27: 3465 | FW27: -3465
A28: 111 | B28: Heinola | C28: 19979 | E28: 1.542428424 | F28: 50.7991965 | G28: 477.9518494 | K28: 64.07704448 | L28: 3362.180289 | M28: 178.8679472 | N28: 6860.903949 | O28: 57767 | P28: 20080 | Q28: 122141 | R28: -102061 | S28: 70867 | T28: 37426 | W28: -1024 | X28: 2554 | Y28: 7762 | Z28: 5257 | AC28: 2505 | AD28: 280 | AG28: 2785 | AH28: 13256 | AI28: 7337 | AK28: -356 | AL28: -4617 | AM28: 231 | AN28: 70867 | AO28: 61658 | AP28: 3421 | AQ28: 5788 | AR28: 20.5 | AT28: 94 | AU28: 19695 | AW28: 0.8804017556 | AX28: 48.05145118 | AY28: 747.6009139 | BC28: 65.67145156 | BD28: 3594.211729 | BE28: 183.881946 | BF28: 7134.399594 | BG28: 56707 | BH28: 20778 | BI28: 124210 | BJ28: -103432 | BK28: 71926 | BL28: 38384 | BO28: -959 | BP28: 3451 | BQ28: 9370 | BR28: 5073 | BU28: 4297 | BV28: 267 | BY28: 4564 | BZ28: 17820 | CA28: 9276 | CC28: 637 | CD28: -10787 | CE28: 5550 | CF28: 71926 | CG28: 62538 | CH28: 3455 | CI28: 5933 | CJ28: 20.5 | CL28: 82 | CM28: 19575 | CO28: 0.2749162049 | CP28: 52 | CQ28: 614.7637292 | CU28: 64 | CV28: 3740.383142 | CW28: 171.9185714 | CX28: 7941.200511 | CY28: 57358 | CZ28: 19892 | DA28: 127690 | DB28: -107798 | DC28: 71054 | DD28: 37385 | DG28: -725 | DH28: 3448 | DI28: 3187 | DJ28: 5487 | DK28: 1195 | DL28: 0 | DM28: -1105 | DN28: 260 | DO28: 0 | DP28: 0 | DQ28: -845 | DR28: 16976 | DS28: 4140 | DU28: 1215 | DV28: -20000 | DW28: -3074 | DX28: 71054 | DY28: 61577 | DZ28: 3517 | EA28: 5960 | EB28: 20.5 | ED28: 256 | EE28: 47909 | EF28: 50359 | EG28: 52303 | EK28: -8581 | EL28: 665 | EM28: 810 | EN28: -4151 | EO28: 192 | EP28: 233 | EQ28: -8080 | ER28: 345 | ES28: 521 | ET28: 9200 | EU28: -1500 | EW28: 8500 | EX28: 13787 | EY28: -3500 | EZ28: 47785 | FA28: 32998 | FB28: 14787 | FC28: 2374 | FD28: 45498 | FE28: 19211 | FF28: 26287 | FG28: 2374 | FH28: 48212 | FI28: 31925 | FJ28: 16287 | FK28: 2321 | FL28: 3253.716402 | FM28: 3127.951257 | FN28: 3249 | FO28: 3003.756098 | FP28: 153.4485874 | FS28: -7190 | FV28: 6262 | FW28: -6262
A29: 90 | B29: Heinävesi | C29: 3667 | E29: 1.526510481 | F29: 65.28831563 | G29: -3903.190619 | K29: 41.68634575 | L29: 932.9151895 | M29: 37.58096069 | N29: 9060.812653 | O29: 12819 | P29: 4975 | Q29: 28084 | R29: -23109 | S29: 11296 | T29: 12725 | W29: -19 | X29: 229 | Y29: 1122 | Z29: 1392 | AA29: 272 | AC29: 2 | AD29: -1402 | AE29: 1500 | AG29: 100 | AH29: 2414 | AI29: 1390 | AK29: -1 | AL29: -695 | AM29: -2566 | AN29: 11296 | AO29: 8669 | AP29: 1567 | AQ29: 1060 | AR29: 20.75 | AT29: 137 | AU29: 3638 | AW29: 1.367179487 | AX29: 61.50909574 | AY29: -3826.553051 | BC29: 41.26737353 | BD29: 940.626718 | BE29: 40.01505735 | BF29: 8579.989005 | BG29: 13001 | BH29: 5013 | BI29: 29193 | BJ29: -24180 | BK29: 11960 | BL29: 13151 | BO29: 4 | BP29: 275 | BQ29: 1210 | BR29: 1706 | BU29: -496 | BV29: 161 | BY29: -335 | BZ29: 2078 | CA29: 1191 | CC29: 11 | CD29: -852 | CE29: 369 | CF29: 11960 | CG29: 8889 | CH29: 1856 | CI29: 1215 | CJ29: 20.75 | CL29: 164 | CM29: 3574 | CO29: 3.049713193 | CP29: 62 | CQ29: -3799.104645 | CU29: 41 | CV29: 1124.510353 | CW29: 49.15672542 | CX29: 8349.748181 | CY29: 13003 | CZ29: 5157 | DA29: 29519 | DB29: -24362 | DC29: 12039 | DD29: 13492 | DG29: 70 | DH29: 542 | DI29: 1524 | DJ29: 1677 | DK29: 0 | DL29: 0 | DM29: -153 | DN29: 157 | DO29: 0 | DP29: 0 | DQ29: 4 | DR29: 2083 | DS29: 1517 | DU29: -117 | DV29: 0 | DW29: 346 | DX29: 12039 | DY29: 8630 | DZ29: 2182 | EA29: 1227 | EB29: 20.75 | ED29: 110 | EE29: 11863 | EF29: 12807 | EG29: 13068 | EK29: -4310 | EL29: 122 | EM29: 232 | EN29: -1043 | EO29: 122 | EP29: 99 | EQ29: -1199 | ER29: 21 | ES29: 7 | ET29: 203 | EU29: 3999 | EW29: -99 | EX29: 452 | EY29: 901 | EZ29: 15482 | FA29: 3507 | FB29: 11975 | FC29: 95 | FD29: 14531 | FE29: 2680 | FF29: 11851 | FG29: 95 | FH29: 14980 | FI29: 2228 | FJ29: 12752 | FK29: 75 | FL29: 5598.85465 | FM29: 5807.586586 | FN29: 5890 | FO29: 415.9036145 | FP29: 116.3692262 | FS29: -1157 | FV29: 225 | FW29: -225
A30: 91 | B30: Helsinki | C30: 612664 | E30: 3.800232062 | F30: 44.39381278 | G30: -1567.067757 | K30: 76.17615815 | L30: 1503.680647 | M30: 62.93107924 | N30: 8721.341551 | O30: 1921072 | P30: 1901173 | Q30: 4673472 | R30: -2772299 | S30: 2906349 | T30: 275737 | W30: 36806 | X30: 26082 | Y30: 472675 | Z30: 403088 | AA30: 77912 | AB30: 436 | AC30: 147063 | AD30: 11336 | AE30: -5293 | AF30: 5928 | AG30: 159034 | AH30: 2907440 | AI30: 451976 | AK30: 11005 | AL30: -113086 | AM30: -75122 | AN30: 2906349 | AO30: 2442087 | AP30: 268546 | AQ30: 195275 | AR30: 18.5 | AT30: 14 | AU30: 620715 | AW30: 1.690032333 | AX30: 45.5834058 | AY30: -1673.711768 | BC30: 77.97484912 | BD30: 1623.762919 | BE30: 44.3381778 | BF30: 13367.11373 | BG30: 1915576 | BH30: 1886495 | BI30: 4665124 | BJ30: -2778629 | BK30: 2951932 | BL30: 250648 | BO30: 28596 | BP30: 28116 | BQ30: 480663 | BR30: 408147 | BS30: 1172123 | BT30: 75 | BU30: 1244564 | BV30: 200862 | BW30: 96154 | BX30: 91621 | BY30: 1633201 | BZ30: 4500420 | CA30: 95257 | CC30: 101868 | CD30: -274933 | CE30: 402046 | CF30: 2951932 | CG30: 2435075 | CH30: 309755 | CI30: 206687 | CJ30: 18.5 | CL30: 18 | CM30: 628208 | CO30: 2.069566408 | CP30: 52 | CQ30: -1803.06841 | CU30: 78 | CV30: 1497.005769 | CW30: 76.873912 | CX30: 7107.835303 | CY30: 1837722 | CZ30: 1156368 | DA30: 4302828 | DB30: -3146460 | DC30: 3067915 | DD30: 273172 | DG30: 63985 | DH30: 20079 | DI30: 265115 | DJ30: 385696 | DK30: 139775 | DL30: 593 | DM30: 18601 | DN30: 3067 | DO30: -2116 | DP30: 9282 | DQ30: 28834 | DR30: 4479253 | DS30: 251180 | DU30: -11382 | DV30: -120000 | DW30: -166963 | DX30: 3067915 | DY30: 2480765 | DZ30: 372493 | EA30: 214657 | EB30: 18.5 | ED30: 112 | EE30: 1601481 | EF30: 1602583 | EG30: 1658468 | EK30: -647268 | EL30: 13196 | EM30: 106974 | EN30: -2720876 | EO30: 5229 | EP30: 3022436 | EQ30: -571167 | ER30: 5267 | ES30: 147757 | ET30: 403000 | EV30: 355000 | EX30: 116641 | EY30: 0 | EZ30: 1498566 | FA30: 1277633 | FB30: 220933 | FC30: 1523644 | FD30: 1578633 | FE30: 1461992 | FF30: 116641 | FG30: 2087066 | FH30: 1581992 | FI30: 1261264 | FJ30: 320728 | FK30: 2008843 | FL30: 7813.960017 | FM30: 7960.569666 | FN30: 7977 | FO30: 134095.4054 | FP30: 213.4570165 | FS30: -403282 | FV30: 116591 | FW30: -116591
A31: 97 | B31: Hirvensalmi | C31: 2338 | E31: 13.12408759 | F31: 18.28005915 | G31: 1118.905047 | K31: 77.61301989 | L31: 2347.305389 | M31: 114.0209472 | N31: 7514.114628 | O31: 3936 | P31: 3215 | Q31: 16037 | R31: -12822 | S31: 7078 | T31: 7289 | W31: -2 | X31: 251 | Y31: 1794 | Z31: 987 | AA31: 210 | AC31: 1017 | AG31: 1018 | AH31: 3120 | AI31: 1564 | AK31: 88 | AL31: -133 | AM31: 561 | AN31: 7078 | AO31: 5416 | AP31: 621 | AQ31: 1041 | AR31: 19.5 | AT31: 15 | AU31: 2326 | AW31: 13.48529412 | AX31: 17.49758947 | AY31: 1454.428203 | BC31: 79.72765085 | BD31: 2576.956148 | BE31: 126.609375 | BF31: 7429.062769 | BG31: 3868 | BH31: 2864 | BI31: 15994 | BJ31: -13130 | BK31: 7428 | BL31: 7339 | BO31: -1 | BP31: 195 | BQ31: 1831 | BR31: 714 | BU31: 1117 | BY31: 1118 | BZ31: 4087 | CA31: 1720 | CC31: -133 | CD31: -133 | CE31: 779 | CF31: 7428 | CG31: 5597 | CH31: 715 | CI31: 1116 | CJ31: 19.5 | CL31: 17 | CM31: 2290 | CO31: 8.611940299 | CP31: 16 | CQ31: 1689.082969 | CU31: 81 | CV31: 2731.004367 | CW31: 140.0607436 | CX31: 7117.030568 | CY31: 3803 | CZ31: 3001 | DA31: 16518 | DB31: -13517 | DC31: 7439 | DD31: 7056 | DG31: -1 | DH31: 346 | DI31: 1153 | DJ31: 816 | DK31: 0 | DL31: 0 | DM31: 337 | DN31: 0 | DO31: 0 | DP31: 0 | DQ31: 337 | DR31: 4424 | DS31: 1129 | DU31: 8 | DV31: 0 | DW31: 504 | DX31: 7439 | DY31: 5421 | DZ31: 872 | EA31: 1146 | EB31: 19.5 | ED31: 69 | EE31: 10613 | EF31: 10599 | EG31: 11250 | EK31: -1389 | EL31: 41 | EM31: 345 | EN31: -1142 | EO31: 112 | EP31: 89 | EQ31: -727 | ER31: 71 | ES31: 31 | EX31: 133 | EY31: 0 | EZ31: 967 | FA31: 834 | FB31: 133 | FC31: 38 | FD31: 833 | FE31: 700 | FF31: 133 | FG31: 38 | FH31: 700 | FI31: 567 | FJ31: 133 | FK31: 38 | FL31: 3544.91018 | FM31: 3483.233018 | FN31: 3479 | FO31: 278 | FP31: 121.3973799 | FS31: -710 | FV31: 301 | FW31: -301
A32: 98 | B32: Hollola | C32: 21987 | E32: 1.368087656 | F32: 41.37419887 | G32: -2050.25697 | K32: 50.20350759 | L32: 695.8657388 | M32: 27.51296945 | N32: 9231.682358 | O32: 83444 | P32: 76529 | Q32: 178038 | R32: -101509 | S32: 82596 | T32: 26558 | W32: -485 | X32: 303 | Y32: 7463 | Z32: 10328 | AA32: 1873 | AC32: -992 | AD32: 6 | AG32: -986 | AH32: 15322 | AI32: 7265 | AK32: -1777 | AL32: -5314 | AM32: -9430 | AN32: 82596 | AO32: 75525 | AP32: 2640 | AQ32: 4431 | AR32: 20.75 | AT32: 117 | AU32: 21892 | AW32: 1.256610385 | AX32: 39.68803075 | AY32: -2189.704001 | BC32: 47.95354435 | BD32: 1139.731409 | BE32: 41.31053957 | BF32: 10070.11694 | BG32: 81374 | BH32: 98334 | BI32: 200466 | BJ32: -102132 | BK32: 83231 | BL32: 26409 | BO32: -579 | BP32: 332 | BQ32: 7261 | BR32: 8624 | BU32: -1363 | BV32: 6 | BY32: -1358 | BZ32: 13964 | CA32: 7068 | CC32: 6777 | CD32: -5650 | CE32: -3994 | CF32: 83231 | CG32: 75171 | CH32: 3297 | CI32: 4763 | CJ32: 20.75 | CL32: 165 | CM32: 21813 | CO32: 0.9250588381 | CP32: 42 | CQ32: -2495.484344 | CU32: 46 | CV32: 1062.393985 | CW32: 39.01634732 | CX32: 9938.75212 | CY32: 79386 | CZ32: 96456 | DA32: 200875 | DB32: -104419 | DC32: 83775 | DD32: 27213 | DG32: -582 | DH32: 2071 | DI32: 6883 | DJ32: 9859 | DK32: 0 | DL32: 0 | DM32: -2976 | DN32: 5 | DO32: 0 | DP32: 0 | DQ32: -2971 | DR32: 11208 | DS32: 6684 | DU32: 142 | DV32: -10000 | DW32: -6941 | DX32: 83775 | DY32: 75686 | DZ32: 3209 | EA32: 4880 | EB32: 21 | ED32: 163 | EE32: 67329 | EF32: 89607 | EG32: 92638 | EK32: -19164 | EL32: 190 | EM32: 2279 | EN32: -13782 | EO32: 2296 | EP32: 424 | EQ32: -14376 | ER32: 55 | ES32: 696 | ET32: 16000 | EU32: 800 | EV32: 13000 | EW32: -2800 | EX32: 7488 | EY32: 0 | EZ32: 46597 | FA32: 38147 | FB32: 8450 | FC32: 1449 | FD32: 51148 | FE32: 43660 | FF32: 7488 | FG32: 335 | FH32: 53660 | FI32: 45687 | FJ32: 7973 | FK32: 60 | FL32: 2903.670351 | FM32: 3118.901882 | FN32: 3236 | FO32: 3604.095238 | FP32: 165.2269398 | FS32: -13599 | FV32: 3784 | FW32: -3784
A33: 99 | B33: Honkajoki | C33: 1819 | E33: 0.5365025467 | F33: 33.68298983 | G33: -2958.768554 | K33: 32.53215265 | L33: 103.3534909 | M33: 3.501199041 | N33: 10774.60143 | O33: 8675 | P33: 8687 | Q33: 18665 | R33: -9978 | S33: 5476 | T33: 4808 | W33: -75 | X33: 10 | Y33: 241 | Z33: 382 | AC33: -141 | AD33: 6 | AG33: -135 | AH33: -1833 | AI33: 137 | AK33: 71 | AL33: -514 | AM33: -5 | AN33: 5476 | AO33: 4538 | AP33: 646 | AQ33: 292 | AR33: 20.75 | AT33: 232 | AU33: 1788 | AW33: 1.028391167 | AX33: 33.52721451 | AY33: -2762.304251 | BC33: 34.43101292 | BD33: 222.0357942 | BE33: 7.633408839 | BF33: 10616.89038 | BG33: 8199 | BH33: 7957 | BI33: 18097 | BJ33: -10140 | BK33: 5901 | BL33: 4882 | BO33: -69 | BP33: 9 | BQ33: 583 | BR33: 365 | BU33: 218 | BV33: 5 | BY33: 223 | BZ33: -1609 | CA33: 615 | CC33: -127 | CD33: -565 | CE33: 438 | CF33: 5901 | CG33: 4648 | CH33: 826 | CI33: 427 | CJ33: 21.25 | CL33: 170 | CM33: 1793 | CO33: 0.9626556017 | CP33: 31 | CQ33: -2619.074177 | CU33: 38 | CV33: 6.692693809 | CW33: 0.2590949423 | CX33: 9428.332404 | CY33: 7834 | CZ33: 7538 | DA33: 17481 | DB33: -9943 | DC33: 6008 | DD33: 4392 | DG33: -53 | DH33: 8 | DI33: 411 | DJ33: 354 | DK33: 0 | DL33: 0 | DM33: 57 | DN33: 5 | DO33: 0 | DP33: 0 | DQ33: 62 | DR33: -1547 | DS33: 381 | DU33: 128 | DV33: 0 | DW33: 246 | DX33: 6008 | DY33: 4560 | DZ33: 951 | EA33: 497 | EB33: 21.5 | ED33: 219 | EE33: 8751 | EF33: 8734 | EG33: 8551 | EI33: 255 | EK33: -304 | EM33: 162 | EN33: -207 | EO33: 5 | EP33: 25 | EQ33: -200 | ER33: 3 | ES33: 62 | ET33: 400 | EU33: 13 | EV33: 400 | EW33: -241 | EX33: 429 | EY33: -131 | EZ33: 3894 | FA33: 2692 | FB33: 1202 | FC33: 6 | FD33: 3489 | FE33: 2644 | FF33: 845 | FG33: 1 | FH33: 2927 | FI33: 2332 | FJ33: 595 | FK33: 1 | FL33: 2918.636614 | FM33: 3086.689038 | FN33: 2800 | FO33: 212.0930233 | FP33: 118.289472 | FS33: -134 | FV33: 435 | FW33: -435
A34: 102 | B34: Huittinen | C34: 10543 | E34: 1.257252326 | F34: 34.97791781 | G34: -1500.901072 | K34: 60.89587124 | L34: 494.640994 | M34: 24.68102901 | N34: 7315.090581 | O34: 36000 | P34: 16206 | Q34: 70474 | R34: -54268 | S34: 30818 | T34: 25659 | W34: -229 | X34: 59 | Y34: 2039 | Z34: 3366 | AC34: -1327 | AD34: 35 | AG34: -1292 | AH34: 7404 | AI34: 1902 | AK34: 73 | AL34: -1569 | AM34: -2605 | AN34: 30818 | AO34: 27424 | AP34: 1609 | AQ34: 1785 | AR34: 19.75 | AT34: 203 | AU34: 10487 | AW34: 1.338831922 | AX34: 41.8869923 | AY34: -1949.175169 | BC34: 55.74271744 | BD34: 563.6502336 | BE34: 26.6162719 | BF34: 7729.569944 | BG34: 35923 | BH34: 15263 | BI34: 70717 | BJ34: -55454 | BK34: 32248 | BL34: 26132 | BO34: -261 | BP34: 56 | BQ34: 2721 | BR34: 3416 | BU34: -695 | BV34: 31 | BY34: -664 | BZ34: 6740 | CA34: 2522 | CC34: -110 | CD34: -1961 | CE34: -4817 | CF34: 32248 | CG34: 28545 | CH34: 1673 | CI34: 2030 | CJ34: 20.25 | CL34: 208 | CM34: 10473 | CO34: 1.940310078 | CP34: 43 | CQ34: -2284.827652 | CU34: 56 | CV34: 318.0559534 | CW34: 16.42194338 | CX34: 7069.225628 | CY34: 34672 | CZ34: 15770 | DA34: 69031 | DB34: -53261 | DC34: 32997 | DD34: 25202 | DG34: -216 | DH34: 96 | DI34: 4779 | DJ34: 3485 | DK34: 0 | DL34: 0 | DM34: 1294 | DN34: 29 | DO34: 0 | DP34: 0 | DQ34: 1323 | DR34: 8063 | DS34: 4172 | DU34: 316 | DV34: -4000 | DW34: -3351 | DX34: 32997 | DY34: 29159 | DZ34: 1789 | EA34: 2049 | EB34: 20.25 | ED34: 94 | EE34: 26472 | EF34: 26890 | EG34: 26594 | EK34: -4781 | EL34: 103 | EM34: 171 | EN34: -8081 | EO34: 392 | EP34: 350 | EQ34: -8391 | ER34: 36 | ES34: 832 | ET34: 4000 | EV34: 6000 | EX34: 2353 | EY34: 0 | EZ34: 14675 | FA34: 12851 | FB34: 1824 | FC34: 0 | FD34: 18714 | FE34: 16136 | FF34: 2578 | FG34: 0 | FH34: 20361 | FI34: 17777 | FJ34: 2584 | FK34: 0 | FL34: 1874.988144 | FM34: 2265.566892 | FN34: 2538 | FO34: 1439.950617 | FP34: 137.4917041 | FS34: -7466 | FV34: 1775 | FW34: -1775
A35: 103 | B35: Humppila | C35: 2463 | E35: 0.3699936427 | F35: 39.36272932 | G35: -1719.041819 | K35: 49.90989515 | L35: 321.1530654 | M35: 17.05446276 | N35: 6873.325213 | O35: 6070 | P35: 1826 | Q35: 14698 | R35: -12872 | S35: 7330 | T35: 6379 | W35: -31 | X35: -294 | Y35: 512 | Z35: 355 | AC35: 157 | AD35: 2 | AG35: 160 | AH35: -535 | AI35: 466 | AK35: 1063 | AL35: -1503 | AM35: 307 | AN35: 7330 | AO35: 6726 | AP35: 266 | AQ35: 338 | AR35: 21 | AT35: 193 | AU35: 2440 | AW35: 0.6594076655 | AX35: 35.8498238 | AY35: -1598.360656 | BC35: 54.69726813 | BD35: 204.0983607 | BE35: 11.68563163 | BF35: 6375 | BG35: 3914 | BH35: 1424 | BI35: 14024 | BJ35: -12600 | BK35: 7108 | BL35: 6224 | BO35: -28 | BP35: 7 | BQ35: 711 | BR35: 418 | BU35: 293 | BV35: 2 | BY35: 296 | BZ35: -239 | CA35: 712 | CC35: 197 | CD35: -1103 | CE35: 331 | CF35: 7108 | CG35: 6386 | CH35: 340 | CI35: 382 | CJ35: 21 | CL35: 185 | CM35: 2388 | CO35: 0.7989010989 | CP35: 32 | CQ35: -1520.100503 | CU35: 58 | CV35: 92.96482412 | CW35: 5.21495688 | CX35: 6506.700168 | CY35: 3806 | CZ35: 1527 | DA35: 14546 | DB35: -13019 | DC35: 7559 | DD35: 6157 | DG35: -27 | DH35: 18 | DI35: 682 | DJ35: 424 | DK35: 0 | DL35: 0 | DM35: 258 | DN35: 2 | DO35: 0 | DP35: 0 | DQ35: 260 | DR35: -21 | DS35: 623 | DU35: -88 | DV35: -1500 | DW35: 277 | DX35: 7559 | DY35: 6755 | DZ35: 402 | EA35: 402 | EB35: 21.5 | ED35: 186 | EE35: 6926 | EF35: 9005 | EG35: 9488 | EK35: -347 | EM35: 188 | EN35: -381 | EQ35: -418 | ER35: 0 | ES35: 72 | EU35: 1 | EW35: 300 | EX35: 865 | EY35: -700 | EZ35: 4473 | FA35: 1870 | FB35: 2603 | FC35: 426 | FD35: 3670 | FE35: 1080 | FF35: 2590 | FG35: 426 | FH35: 3605 | FI35: 1635 | FJ35: 1970 | FK35: 426 | FL35: 3412.911084 | FM35: 2925.819672 | FN35: 2888 | FO35: 314.1860465 | FP35: 131.5686962 | FS35: -338 | FV35: 958 | FW35: -958
A36: 105 | B36: Hyrynsalmi | C36: 2565 | E36: 0.04273084479 | F36: 41.52198929 | G36: -2367.641326 | K36: 52.61236596 | L36: 279.9220273 | M36: 11.14101093 | N36: 9170.760234 | O36: 4884 | P36: 2502 | Q36: 19945 | R36: -17443 | S36: 7425 | T36: 10060 | W36: -69 | X36: 42 | Y36: 15 | Z36: 447 | AC36: -432 | AD36: 77 | AG36: -355 | AH36: -1959 | AI36: -8 | AK36: -572 | AL36: -1964 | AM36: -803 | AN36: 7425 | AO36: 6156 | AP36: 578 | AQ36: 691 | AR36: 21 | AT36: 274 | AU36: 2490 | AW36: 1.314317673 | AX36: 37.60646745 | AY36: -2257.429719 | BC36: 55.58330968 | BD36: 398.7951807 | BE36: 17.09162501 | BF36: 8516.465863 | BG36: 4825 | BH36: 2357 | BI36: 19617 | BJ36: -17260 | BK36: 7851 | BL36: 10573 | BO36: -67 | BP36: 8 | BQ36: 1105 | BR36: 539 | BU36: 566 | BV36: 72 | BY36: 638 | BZ36: -1320 | CA36: 1077 | CC36: 309 | CD36: -824 | CE36: 450 | CF36: 7851 | CG36: 6378 | CH36: 666 | CI36: 807 | CJ36: 21.75 | CL36: 94 | CM36: 2422 | CO36: 0.8766467066 | CP36: 33 | CQ36: -2105.284889 | CU36: 59 | CV36: 474.4013212 | CW36: 21.27885737 | CX36: 8137.489678 | CY36: 4574 | CZ36: 2171 | DA36: 20030 | DB36: -17859 | DC36: 8278 | DD36: 10303 | DG36: -40 | DH36: 8 | DI36: 689 | DJ36: 535 | DK36: 0 | DL36: 0 | DM36: 154 | DN36: 54 | DO36: 0 | DP36: 0 | DQ36: 208 | DR36: -1113 | DS36: 689 | DU36: 535 | DV36: 0 | DW36: 523 | DX36: 8278 | DY36: 6711 | DZ36: 763 | EA36: 804 | EB36: 21.75 | ED36: 187 | EE36: 13447 | EF36: 13157 | EG36: 13723 | EI36: 360 | EK36: -1538 | EL36: 180 | EM36: 563 | EN36: -693 | EO36: 37 | EP36: 29 | EQ36: -189 | ER36: 23 | ES36: 0 | ET36: 920 | EU36: 1900 | EX36: 792 | EY36: 0 | EZ36: 7036 | FA36: 4312 | FB36: 2724 | FC36: 0 | FD36: 6212 | FE36: 3519 | FF36: 2693 | FG36: 0 | FH36: 5419 | FI36: 2815 | FJ36: 2604 | FK36: 0 | FL36: 5012.08577 | FM36: 4661.044177 | FN36: 4318 | FO36: 308.5517241 | FP36: 127.395427 | FS36: -166 | FV36: 734 | FW36: -734
A37: 106 | B37: Hyvinkää | C37: 46188 | E37: 0.8660933661 | F37: 51.95710127 | G37: -2455.118213 | K37: 54.5756093 | L37: 442.3010306 | M37: 23.1714885 | N37: 6967.177622 | O37: 127093 | P37: 60301 | Q37: 283957 | R37: -223656 | S37: 191585 | T37: 49692 | W37: -2074 | X37: 551 | Y37: 16098 | Z37: 16276 | AC37: -178 | AG37: -179 | AH37: 31211 | AI37: 11989 | AK37: -500 | AL37: -18931 | AM37: -6220 | AN37: 191585 | AO37: 164820 | AP37: 17617 | AQ37: 9148 | AR37: 19.25 | AT37: 113 | AU37: 46366 | AW37: 1.022897976 | AX37: 53.50523367 | AY37: -2437.367899 | BC37: 53.10068647 | BD37: 614.7176811 | BE37: 32.76122905 | BF37: 6848.703792 | BG37: 126617 | BH37: 67219 | BI37: 287933 | BJ37: -220714 | BK37: 191546 | BL37: 48012 | BO37: -2189 | BP37: 641 | BQ37: 17296 | BR37: 19634 | BU37: -2338 | BY37: -2340 | BZ37: 28870 | CA37: 9353 | CC37: 412 | CD37: -16854 | CE37: -342 | CF37: 191546 | CG37: 169086 | CH37: 13035 | CI37: 9425 | CJ37: 19.75 | CL37: 135 | CM37: 46463 | CO37: 1.009273841 | CP37: 53 | CQ37: -2423.390655 | CU37: 53 | CV37: 596.0441642 | CW37: 35.00264901 | CX37: 6215.41872 | CY37: 122108 | CZ37: 58597 | DA37: 284673 | DB37: -226076 | DC37: 195453 | DD37: 46981 | DG37: -2075 | DH37: 1121 | DI37: 15104 | DJ37: 19721 | DK37: 0 | DL37: 0 | DM37: -4617 | DN37: 0 | DO37: 0 | DP37: 0 | DQ37: -4617 | DR37: 25553 | DS37: 11006 | DU37: 2646 | DV37: -10000 | DW37: -179 | DX37: 195453 | DY37: 168042 | DZ37: 14262 | EA37: 13149 | EB37: 19.75 | ED37: 158 | EE37: 115315 | EF37: 119767 | EG37: 120530 | EK37: -24824 | EL37: 1628 | EM37: 4987 | EN37: -18405 | EO37: 328 | EP37: 8382 | EQ37: -17156 | ER37: 1179 | ES37: 4792 | ET37: 35000 | EV37: 25000 | EX37: 14945 | EY37: 0 | EZ37: 111283 | FA37: 94429 | FB37: 16854 | FC37: 3364 | FD37: 119426 | FE37: 104481 | FF37: 14945 | FG37: 3364 | FH37: 114481 | FI37: 103496 | FJ37: 10985 | FK37: 3334 | FL37: 4109.119252 | FM37: 4191.217703 | FN37: 4326 | FO37: 8508.455696 | FP37: 183.1232528 | FS37: -12002 | FV37: 14443 | FW37: -14443
A38: 283 | B38: Hämeenkoski | C38: 2086 | E38: 1.126796281 | F38: 88.37978271 | G38: -4576.701822 | K38: 33.83770521 | L38: 106.4237776 | M38: 6.03575419 | N38: 6435.762224 | O38: 2662 | P38: 1226 | Q38: 11905 | R38: -10679 | S38: 6499 | T38: 4977 | W38: -209 | X38: 535 | Y38: 1123 | Z38: 597 | AC38: 526 | AG38: 526 | AH38: 1997 | AI38: 1089 | AK38: 193 | AL38: -973 | AM38: 914 | AN38: 6499 | AO38: 5937 | AP38: 241 | AQ38: 321 | AR38: 21.5 | AT38: 47 | AU38: 2104 | AW38: 0.870246085 | AX38: 89.78764792 | AY38: -4354.562738 | BC38: 34.15955255 | BD38: 220.0570342 | BE38: 12.0024858 | BF38: 6692.015209 | BG38: 2537 | BH38: 1056 | BI38: 11942 | BJ38: -10886 | BK38: 6492 | BL38: 4790 | BO38: -192 | BP38: 379 | BQ38: 583 | BR38: 574 | BU38: 9 | BY38: 9 | BZ38: 2007 | CA38: 587 | CC38: 1 | CD38: -699 | CE38: -277 | CF38: 6492 | CG38: 5834 | CH38: 302 | CI38: 356 | CJ38: 21.5 | CL38: 194 | CM38: 2102 | CO38: 0.6229314421 | CP38: 85 | CQ38: -4658.420552 | CU38: 32 | CV38: 92.29305423 | CW38: 5.344957729 | CX38: 6302.568982 | CY38: 2497 | CZ38: 1429 | DA38: 12776 | DB38: -11347 | DC38: 6744 | DD38: 4744 | DG38: -172 | DH38: 766 | DI38: 355 | DJ38: 992 | DK38: 0 | DL38: 0 | DM38: -637 | DN38: 0 | DO38: 0 | DP38: 0 | DQ38: -637 | DR38: 1369 | DS38: 359 | DU38: 511 | DV38: 0 | DW38: -397 | DX38: 6744 | DY38: 6003 | DZ38: 369 | EA38: 372 | EB38: 21.5 | ED38: 253 | EE38: 8350 | EF38: 8583 | EG38: 9256 | EK38: -236 | EL38: 4 | EM38: 57 | EN38: -1163 | EO38: 293 | EP38: 6 | EQ38: -925 | ER38: 162 | ES38: 7 | EU38: -200 | EV38: 676 | EW38: 400 | EX38: 674 | EY38: 0 | EZ38: 9699 | FA38: 9000 | FB38: 699 | FC38: 954 | FD38: 10076 | FE38: 9002 | FF38: 1074 | FG38: 331 | FH38: 9402 | FI38: 8340 | FJ38: 1062 | FK38: 503 | FL38: 4919.463087 | FM38: 5333.65019 | FN38: 4975 | FO38: 279.2093023 | FP38: 132.8303056 | FS38: -759 | FV38: 517 | FW38: -517
A39: 108 | B39: Hämeenkyrö | C39: 10582 | E39: 1.028677151 | F39: 37.09731441 | G39: -1151.200151 | K39: 59.08947726 | L39: 741.3532414 | M39: 40.06527306 | N39: 6753.827254 | O39: 31486 | P39: 10803 | Q39: 63932 | R39: -53129 | S39: 33642 | T39: 21341 | W39: -104 | X39: 148 | Y39: 1898 | Z39: 2332 | AC39: -434 | AD39: 77 | AG39: -357 | AH39: 2424 | AI39: 1750 | AK39: 484 | AL39: -1836 | AM39: -3056 | AN39: 33642 | AO39: 30792 | AP39: 835 | AQ39: 2015 | AR39: 20 | AT39: 214 | AU39: 10610 | AW39: 1.820607176 | AX39: 47.37724871 | AY39: -2049.29312 | BC39: 53.34810438 | BD39: 578.2280867 | BE39: 27.73508137 | BF39: 7609.613572 | BG39: 31144 | BH39: 10594 | BI39: 63799 | BJ39: -53205 | BK39: 35801 | BL39: 21083 | BO39: -134 | BP39: 75 | BQ39: 3620 | BR39: 2864 | BU39: 756 | BV39: 77 | BY39: 833 | BZ39: 3700 | CA39: 3341 | CC39: 299 | CD39: -1836 | CE39: -10357 | CF39: 35801 | CG39: 32452 | CH39: 1106 | CI39: 2243 | CJ39: 21 | CL39: 156 | CM39: 10667 | CO39: 1.253931545 | CP39: 73 | CQ39: -3648.167245 | CU39: 42 | CV39: 650.0421862 | CW39: 24.35979865 | CX39: 9740.039374 | CY39: 31457 | CZ39: 10928 | DA39: 65515 | DB39: -54587 | DC39: 35767 | DD39: 21185 | DG39: -139 | DH39: 180 | DI39: 2388 | DJ39: 3629 | DK39: 0 | DL39: 0 | DM39: -1241 | DN39: 77 | DO39: 0 | DP39: 0 | DQ39: -1164 | DR39: 2536 | DS39: 2267 | DU39: 374 | DV39: -20000 | DW39: -17202 | DX39: 35767 | DY39: 32309 | DZ39: 1208 | EA39: 2250 | EB39: 21 | ED39: 220 | EE39: 24680 | EF39: 24560 | EG39: 25669 | EK39: -5022 | EM39: 216 | EN39: -14618 | EO39: 360 | EP39: 560 | EQ39: -20678 | ER39: 876 | ES39: 333 | ET39: 6000 | EU39: 632 | EW39: 8500 | EX39: 1839 | EY39: -2496 | EZ39: 16310 | FA39: 14474 | FB39: 1836 | FC39: 664 | FD39: 22975 | FE39: 12639 | FF39: 10336 | FG39: 426 | FH39: 38638 | FI39: 30799 | FJ39: 7839 | FK39: 390 | FL39: 2728.879229 | FM39: 3362.016965 | FN39: 4718 | FO39: 1538.52381 | FP39: 144.2320999 | FS39: -21977 | FV39: 704 | FW39: -704
A40: 109 | B40: Hämeenlinna | C40: 67806 | E40: 0.9228417579 | F40: 54.79999262 | G40: -1748.104887 | K40: 59.12896282 | L40: 1397.383712 | M40: 73.67162936 | N40: 6923.222134 | O40: 154178 | P40: 93869 | Q40: 421598 | R40: -327729 | S40: 254291 | T40: 92495 | W40: -2219 | X40: 4943 | Y40: 21781 | Z40: 14405 | AC40: 7376 | AD40: 180 | AE40: -81 | AG40: 7474 | AH40: -13315 | AI40: 15770 | AK40: 2767 | AL40: -24000 | AM40: -2112 | AN40: 254291 | AO40: 223427 | AP40: 12226 | AQ40: 18638 | AR40: 19.5 | AT40: 132 | AU40: 67976 | AW40: 0.6084398117 | AX40: 55.37666078 | AY40: -1907.790985 | BC40: 59.55953391 | BD40: 1370.20419 | BE40: 63.91538415 | BF40: 7824.791103 | BG40: 154913 | BH40: 89821 | BI40: 435692 | BJ40: -345871 | BK40: 268665 | BL40: 91585 | BO40: -1867 | BP40: 4835 | BQ40: 17347 | BR40: 18180 | BS40: 18115 | BU40: 17282 | BV40: -187 | BW40: 400 | BY40: 17497 | BZ40: 4644 | CA40: 12843 | CC40: 1776 | CD40: -31323 | CE40: -11611 | CF40: 268665 | CG40: 232535 | CH40: 13987 | CI40: 22143 | CJ40: 20.25 | CL40: 214 | CM40: 68011 | CO40: 0.707560148 | CP40: 55 | CQ40: -1865.683492 | CU40: 57 | CV40: 1379.600359 | CW40: 73.79753054 | CX40: 6823.455029 | CY40: 153841 | CZ40: 95638 | DA40: 445832 | DB40: -350194 | DC40: 278118 | DD40: 87268 | DG40: -1328 | DH40: 5608 | DI40: 19472 | DJ40: 17467 | DK40: 2000 | DL40: 0 | DM40: 4005 | DN40: 348 | DO40: -231 | DP40: 0 | DQ40: 4122 | DR40: -1355 | DS40: 24532 | DU40: -6624 | DV40: -30000 | DW40: 12231 | DX40: 278118 | DY40: 238409 | DZ40: 15526 | EA40: 24183 | EB40: 20.5 | ED40: 184 | EE40: 203035 | EF40: 213448 | EG40: 220037 | EK40: -25204 | EL40: 483 | EM40: 6839 | EN40: -67038 | EO40: 839 | EP40: 41745 | EQ40: -27038 | ER40: 1298 | ES40: 13439 | ET40: 32000 | EU40: 5295 | EV40: 40000 | EW40: -2207 | EX40: 29038 | EY40: -2893 | EZ40: 194881 | FA40: 133673 | FB40: 61208 | FC40: 43778 | FD40: 201350 | FE40: 144132 | FF40: 57218 | FG40: 43249 | FH40: 199421 | FI40: 144225 | FJ40: 55196 | FK40: 42886 | FL40: 5786.906763 | FM40: 5830.91091 | FN40: 5657 | FO40: 11629.70732 | FP40: 170.9974463 | FS40: -11703 | FV40: 20186 | FW40: -20186
A41: 139 | B41: Ii | C41: 9610 | E41: 0.9469332821 | F41: 56.25571216 | G41: -2982.726327 | K41: 47.43227377 | L41: 463.7877211 | M41: 23.86429315 | N41: 7093.548387 | O41: 18863 | P41: 7205 | Q41: 57926 | R41: -50721 | S41: 28935 | T41: 26239 | W41: -661 | X41: 460 | Y41: 4252 | Z41: 2179 | AC41: 2073 | AD41: 76 | AG41: 2149 | AH41: 3568 | AI41: 4645 | AK41: 269 | AL41: -4528 | AM41: 6 | AN41: 28935 | AO41: 25096 | AP41: 1175 | AQ41: 2664 | AR41: 20.5 | AT41: 72 | AU41: 9666 | AW41: 1.078485688 | AX41: 51.68364438 | AY41: -2844.713429 | BC41: 49.88229517 | BD41: 366.4390648 | BE41: 19.03964537 | BF41: 7024.829299 | BG41: 18597 | BH41: 8127 | BI41: 60259 | BJ41: -52132 | BK41: 30307 | BL41: 26464 | BO41: -421 | BP41: 31 | BQ41: 4249 | BR41: 2433 | BU41: 1816 | BV41: 75 | BY41: 1891 | BZ41: 5459 | CA41: 4272 | CC41: -533 | CD41: -3909 | CE41: 1198 | CF41: 30307 | CG41: 25868 | CH41: 1384 | CI41: 3055 | CJ41: 21.25 | CL41: 98 | CM41: 9663 | CO41: 0.734148363 | CP41: 57 | CQ41: -3155.748732 | CU41: 47 | CV41: 416.0198696 | CW41: 20.91243373 | CX41: 7261.099038 | CY41: 18106 | CZ41: 6765 | DA41: 61209 | DB41: -54444 | DC41: 31633 | DD41: 26315 | DG41: -457 | DH41: 49 | DI41: 3086 | DJ41: 2603 | DK41: 0 | DL41: 0 | DM41: 483 | DN41: 79 | DO41: -473 | DP41: 0 | DQ41: 89 | DR41: 5548 | DS41: 3031 | DU41: 317 | DV41: -5000 | DW41: -3025 | DX41: 31633 | DY41: 27149 | DZ41: 1429 | EA41: 3055 | EB41: 21.25 | ED41: 162 | EE41: 33301 | EF41: 35838 | EG41: 36862 | EK41: -5052 | EL41: 350 | EM41: 63 | EN41: -3315 | EO41: 195 | EP41: 46 | EQ41: -7034 | ER41: 897 | ES41: 81 | ET41: 5000 | EU41: -511 | EV41: 4000 | EW41: -2273 | EX41: 4369 | EY41: 2063 | EZ41: 27073 | FA41: 17495 | FB41: 9578 | FC41: 890 | FD41: 24892 | FE41: 17586 | FF41: 7306 | FG41: 890 | FH41: 27587 | FI41: 18218 | FJ41: 9369 | FK41: 890 | FL41: 4119.25078 | FM41: 4341.816677 | FN41: 4478 | FO41: 1277.6 | FP41: 132.215668 | FS41: -6183 | FV41: 2843 | FW41: -2843
A42: 140 | B42: Iisalmi | C42: 22171 | E42: 1.293796616 | F42: 37.31510991 | G42: -1137.116053 | K42: 58.11733991 | L42: 1059.988273 | M42: 54.03685878 | N42: 7159.848451 | O42: 45134 | P42: 30037 | Q42: 141233 | R42: -111196 | S42: 73141 | T42: 43666 | W42: -234 | X42: 1450 | Y42: 6827 | Z42: 6238 | AC42: 589 | AD42: -662 | AE42: 310 | AF42: 758 | AG42: 995 | AH42: 455 | AI42: 6006 | AK42: 460 | AL42: -5212 | AM42: -4062 | AN42: 73141 | AO42: 63237 | AP42: 4759 | AQ42: 5145 | AR42: 19.75 | AT42: 135 | AU42: 22115 | AW42: 1.544032922 | AX42: 36.02573027 | AY42: -1113.271535 | BC42: 60.26548058 | BD42: 1097.626046 | BE42: 50.7126667 | BF42: 7900.067827 | BG42: 45121 | BH42: 29148 | BI42: 142225 | BJ42: -113077 | BK42: 77418 | BL42: 42830 | BO42: -296 | BP42: 2165 | BQ42: 9040 | BR42: 6593 | BS42: 4714 | BU42: 7161 | BV42: -519 | BX42: -3655 | BY42: 2987 | BZ42: 3442 | CA42: 13594 | CC42: 1155 | CD42: -5734 | CE42: 410 | CF42: 77418 | CG42: 65664 | CH42: 6030 | CI42: 5724 | CJ42: 20.5 | CL42: 113 | CM42: 21945 | CO42: 1.374883865 | CP42: 32 | CQ42: -1113.055366 | CU42: 63 | CV42: 855.5023923 | CW42: 49.24619829 | CX42: 6340.760993 | CY42: 44340 | CZ42: 28348 | DA42: 143578 | DB42: -115230 | DC42: 77806 | DD42: 44894 | DG42: -218 | DH42: 1942 | DI42: 8631 | DJ42: 7199 | DK42: 0 | DL42: 0 | DM42: 1432 | DN42: 68 | DO42: 0 | DP42: 499 | DQ42: 1999 | DR42: 5441 | DS42: 8119 | DU42: 92 | DV42: 0 | DW42: 182 | DX42: 77806 | DY42: 65900 | DZ42: 6100 | EA42: 5806 | EB42: 20.5 | ED42: 121 | EE42: 84683 | EF42: 85485 | EG42: 86987 | EK42: -11541 | EL42: 458 | EM42: 1015 | EN42: -25998 | EO42: 1147 | EP42: 11667 | EQ42: -8818 | ER42: 226 | ES42: 655 | ET42: 9200 | EV42: 5300 | EX42: 6210 | EY42: 0 | EZ42: 42667 | FA42: 36987 | FB42: 5680 | FC42: 2528 | FD42: 42237 | FE42: 36027 | FF42: 6210 | FG42: 2267 | FH42: 36027 | FI42: 29817 | FJ42: 6210 | FK42: 2181 | FL42: 3834.964593 | FM42: 3840.425051 | FN42: 3575 | FO42: 3214.634146 | FP42: 146.4859488 | FS42: -7915 | FV42: 4886 | FW42: -4886
A43: 142 | B43: Iitti | C43: 6981 | E43: 1.337198068 | F43: 37.33282293 | G43: -1496.060736 | K43: 61.57838312 | L43: 401.6616531 | M43: 23.33257341 | N43: 6283.340496 | O43: 10577 | P43: 4583 | Q43: 40448 | R43: -35865 | S43: 22472 | T43: 14742 | W43: -141 | X43: 30 | Y43: 1238 | Z43: 1717 | AA43: 745 | AC43: 266 | AD43: 70 | AG43: 336 | AH43: 1402 | AI43: 774 | AK43: -1164 | AL43: -889 | AM43: 989 | AN43: 22472 | AO43: 19224 | AP43: 1006 | AQ43: 2242 | AR43: 19.75 | AT43: 217 | AU43: 6950 | AW43: 2.073517787 | AX43: 33.53156557 | AY43: -1434.244604 | BC43: 64.17478609 | BD43: 221.5827338 | BE43: 12.38378497 | BF43: 6530.935252 | BG43: 10128 | BH43: 4501 | BI43: 40285 | BJ43: -35784 | BK43: 23121 | BL43: 15257 | BO43: -153 | BP43: 25 | BQ43: 2466 | BR43: 1788 | BU43: 678 | BV43: 70 | BY43: 748 | BZ43: 2150 | CA43: 2220 | CC43: -514 | CD43: -1108 | CE43: 484 | CF43: 23121 | CG43: 19494 | CH43: 1151 | CI43: 2476 | CJ43: 19.75 | CL43: 147 | CM43: 6910 | CO43: 1.537931034 | CP43: 32 | CQ43: -1309.985528 | CU43: 66 | CV43: 414.1823444 | CW43: 25.65586856 | CX43: 5892.474674 | CY43: 9718 | CZ43: 3610 | DA43: 39978 | DB43: -36368 | DC43: 23519 | DD43: 15033 | DG43: -97 | DH43: 48 | DI43: 2117 | DJ43: 1810 | DK43: 110 | DL43: 0 | DM43: 417 | DN43: 70 | DO43: 0 | DP43: 0 | DQ43: 487 | DR43: 2637 | DS43: 1960 | DU43: 1326 | DV43: -149 | DW43: 858 | DX43: 23519 | DY43: 19743 | DZ43: 1280 | EA43: 2496 | EB43: 20.25 | ED43: 172 | EE43: 27370 | EF43: 27552 | EG43: 27682 | EK43: -2336 | EL43: 163 | EM43: 2388 | EN43: -3821 | EO43: 642 | EP43: 1443 | EQ43: -1742 | ER43: 0 | ES43: 640 | ET43: 2000 | EV43: 2000 | EW43: -1500 | EX43: 1337 | EY43: 0 | EZ43: 11610 | FA43: 9127 | FB43: 2483 | FC43: 993 | FD43: 11002 | FE43: 9814 | FF43: 1188 | FG43: 993 | FH43: 9814 | FI43: 8746 | FJ43: 1068 | FK43: 0 | FL43: 3434.32173 | FM43: 3557.553957 | FN43: 3416 | FO43: 974.962963 | FP43: 141.0944954 | FS43: -1103 | FV43: 555 | FW43: -555
A44: 143 | B44: Ikaalinen | C44: 7303 | E44: 3.939189189 | F44: 63.77518206 | G44: -3178.282897 | K44: 39.67661934 | L44: 18.75941394 | M44: 0.9383033419 | N44: 7297.412022 | O44: 21659 | P44: 6712 | Q44: 46672 | R44: -39960 | S44: 24363 | T44: 17124 | W44: -15 | X44: 94 | Y44: 1606 | Z44: 1292 | AC44: 314 | AD44: 3 | AG44: 317 | AH44: -994 | AI44: 1424 | AK44: 101 | AL44: -301 | AM44: -3853 | AN44: 24363 | AO44: 20590 | AP44: 1304 | AQ44: 2469 | AR44: 20.75 | AT44: 185 | AU44: 7298 | AW44: 0.08416318664 | AX44: 66.10575434 | AY44: -3382.707591 | BC44: 37.24338459 | BD44: 83.99561524 | BE44: 3.958897323 | BF44: 7744.176487 | BG44: 22755 | BH44: 6946 | BI44: 48149 | BJ44: -41203 | BK44: 23919 | BL44: 17568 | BO44: 3 | BP44: 107 | BQ44: 394 | BR44: 1627 | BU44: -1233 | BV44: 2 | BY44: -1231 | BZ44: -2225 | CA44: 359 | CC44: 674 | CD44: -6096 | CE44: -1456 | CF44: 23919 | CG44: 19794 | CH44: 1401 | CI44: 2724 | CJ44: 20.75 | CL44: 281 | CM44: 7207 | CO44: 3.722814499 | CP44: 52 | CQ44: -3047.453864 | CU44: 43 | CV44: 87.83127515 | CW44: 5.129545757 | CX44: 6249.757181 | CY44: 22463 | CZ44: 7216 | DA44: 47615 | DB44: -40399 | DC44: 25679 | DD44: 18044 | DG44: -17 | DH44: 117 | DI44: 3411 | DJ44: 2387 | DK44: 0 | DL44: 0 | DM44: 1024 | DN44: 2 | DO44: 0 | DP44: 0 | DQ44: 1026 | DR44: -1199 | DS44: 2889 | DU44: 3010 | DV44: 0 | DW44: 2713 | DX44: 25679 | DY44: 21098 | DZ44: 1621 | EA44: 2960 | EB44: 21.25 | ED44: 81 | EE44: 19173 | EF44: 19402 | EG44: 19223 | EK44: -6148 | EL44: 581 | EM44: 290 | EN44: -2107 | EO44: 249 | EP44: 43 | EQ44: -1045 | ER44: 3 | ES44: 866 | EU44: 3900 | EV44: 6000 | EW44: 1700 | EX44: 857 | EY44: -5800 | EZ44: 25996 | FA44: 0 | FB44: 25996 | FC44: 306 | FD44: 27600 | FE44: 5143 | FF44: 22457 | FG44: 306 | FH44: 20943 | FI44: 4286 | FJ44: 16657 | FK44: 306 | FL44: 5298.918253 | FM44: 5576.596328 | FN44: 4537 | FO44: 992.8470588 | FP44: 137.7614901 | FS44: -683 | FV44: 744 | FW44: -744
A45: 145 | B45: Ilmajoki | C45: 12099 | E45: 0.549729973 | F45: 67.94729388 | G45: -3710.885197 | K45: 44.89185922 | L45: 62.56715431 | M45: 3.384390196 | N45: 6747.747748 | O45: 25214 | P45: 10079 | Q45: 69901 | R45: -59822 | S45: 36254 | T45: 25862 | W45: -622 | X45: 53 | Y45: 1725 | Z45: 3011 | AC45: -1286 | AG45: -1286 | AH45: 9081 | AI45: 933 | AK45: 36 | AL45: -3726 | AM45: -5330 | AN45: 36254 | AO45: 33455 | AP45: 1100 | AQ45: 1699 | AR45: 19.75 | AT45: 229 | AU45: 12181 | AW45: 0.4660295034 | AX45: 72.95392804 | AY45: -4070.273377 | BC45: 42.25344437 | BD45: 5.582464494 | BE45: 0.3033191573 | BF45: 6717.675068 | BG45: 25832 | BH45: 9404 | BI45: 70566 | BJ45: -61162 | BK45: 36995 | BL45: 26256 | BO45: -585 | BP45: 74 | BQ45: 1578 | BR45: 3109 | BU45: -1531 | BY45: -1531 | BZ45: 7745 | CA45: 1145 | CC45: 26 | CD45: -4147 | CE45: -4609 | CF45: 36995 | CG45: 33862 | CH45: 1263 | CI45: 1870 | CJ45: 19.75 | CL45: 265 | CM45: 12159 | CO45: 0.6996410947 | CP45: 72 | CQ45: -4174.849905 | CU45: 41 | CV45: 31.74603175 | CW45: 1.808275791 | CX45: 6407.928284 | CY45: 25441 | CZ45: 9622 | DA45: 72246 | DB45: -62624 | DC45: 39043 | DD45: 26558 | DG45: -506 | DH45: 125 | DI45: 2537 | DJ45: 3059 | DK45: 0 | DL45: 0 | DM45: -522 | DN45: 0 | DO45: 0 | DP45: 0 | DQ45: -522 | DR45: 7223 | DS45: 1951 | DU45: 151 | DV45: -3500 | DW45: -1333 | DX45: 39043 | DY45: 35628 | DZ45: 1301 | EA45: 2114 | EB45: 20.25 | ED45: 233 | EE45: 37363 | EF45: 37466 | EG45: 39099 | EK45: -7453 | EL45: 141 | EM45: 1049 | EN45: -6413 | EO45: 87 | EP45: 572 | EQ45: -4250 | ER45: 0 | ES45: 966 | ET45: 6960 | EU45: 348 | EV45: 8000 | EW45: 395 | EX45: 3876 | EY45: 941 | EZ45: 41114 | FA45: 37512 | FB45: 3602 | FC45: 1740 | FD45: 45363 | FE45: 41366 | FF45: 3997 | FG45: 1706 | FH45: 45927 | FI45: 40990 | FJ45: 4937 | FK45: 1575 | FL45: 5346.474915 | FM45: 5683.52352 | FN45: 5684 | FO45: 1759.407407 | FP45: 144.7000088 | FS45: -3246 | FV45: 2979 | FW45: -2979
A46: 146 | B46: Ilomantsi | C46: 5614 | E46: 1.234057463 | F46: 27.5458604 | G46: -1379.764874 | K46: 65.43322714 | L46: 424.6526541 | M46: 17.53647723 | N46: 8838.617741 | O46: 22358 | P46: 8768 | Q46: 46161 | R46: -37393 | S46: 16854 | T46: 21892 | W46: -144 | X46: 392 | Y46: 1601 | Z46: 1523 | AC46: 78 | AD46: 49 | AG46: 127 | AH46: 4827 | AI46: 1569 | AK46: 355 | AL46: -1267 | AM46: -568 | AN46: 16854 | AO46: 13474 | AP46: 2257 | AQ46: 1123 | AR46: 20.25 | AT46: 150 | AU46: 5504 | AW46: 1.83632448 | AX46: 30.49889661 | AY46: -1405.704942 | BC46: 62.96561251 | BD46: 745.6395349 | BE46: 29.56247163 | BF46: 9206.213663 | BG46: 22215 | BH46: 8309 | BI46: 46627 | BJ46: -38318 | BK46: 18081 | BL46: 22328 | BO46: -123 | BP46: 454 | BQ46: 2422 | BR46: 1954 | BU46: 468 | BV46: 49 | BY46: 517 | BZ46: 5344 | CA46: 2404 | CC46: -60 | CD46: -1257 | CE46: 18 | CF46: 18081 | CG46: 14038 | CH46: 2751 | CI46: 1292 | CJ46: 20.25 | CL46: 97 | CM46: 5336 | CO46: 1.102906977 | CP46: 30 | CQ46: -1982.758621 | CU46: 63 | CV46: 347.4512744 | CW46: 13.96602964 | CX46: 9080.584708 | CY46: 22273 | CZ46: 8105 | DA46: 47070 | DB46: -38965 | DC46: 18491 | DD46: 21931 | DG46: -143 | DH46: 552 | DI46: 1745 | DJ46: 1770 | DK46: 0 | DL46: 0 | DM46: -25 | DN46: 49 | DO46: 0 | DP46: 0 | DQ46: 24 | DR46: 5368 | DS46: 1714 | DU46: 802 | DV46: -885 | DW46: -2857 | DX46: 18491 | DY46: 14038 | DZ46: 3155 | EA46: 1298 | EB46: 20.75 | ED46: 156 | EE46: 18657 | EF46: 19304 | EG46: 19284 | EK46: -2275 | EL46: 89 | EM46: 49 | EN46: -2858 | EO46: 420 | EP46: 52 | EQ46: -5282 | ER46: 620 | ES46: 91 | EV46: 3100 | EX46: 1568 | EY46: 0 | EZ46: 6839 | FA46: 5583 | FB46: 1256 | FC46: 1017 | FD46: 8682 | FE46: 7114 | FF46: 1568 | FG46: 1017 | FH46: 7999 | FI46: 6560 | FJ46: 1439 | FK46: 1017 | FL46: 2872.461703 | FM46: 3378.633721 | FN46: 3855 | FO46: 676.5301205 | FP46: 126.7860046 | FS46: -3951 | FV46: 0 | FW46: 0
A47: 153 | B47: Imatra | C47: 28219 | E47: 1.260215054 | F47: 41.56758044 | G47: -2229.384457 | K47: 58.33841668 | L47: 356.07215 | M47: 16.31255893 | N47: 7967.256104 | O47: 79080 | P47: 48953 | Q47: 187041 | R47: -138088 | S47: 103610 | T47: 48945 | W47: -985 | X47: 984 | Y47: 14466 | Z47: 11618 | AC47: 2848 | AF47: -236 | AG47: 2612 | AH47: 39626 | AI47: 9009 | AK47: -213 | AL47: -11199 | AM47: -1753 | AN47: 103610 | AO47: 90633 | AP47: 6113 | AQ47: 6864 | AR47: 19.5 | AT47: 54 | AU47: 28037 | AW47: 0.899511674 | AX47: 44.41869303 | AY47: -2037.771516 | BC47: 60.72940887 | BD47: 353.8181688 | BE47: 16.76397191 | BF47: 7703.641616 | BG47: 76952 | BH47: 33518 | BI47: 175853 | BJ47: -142335 | BK47: 104484 | BL47: 48827 | BO47: -862 | BP47: 326 | BQ47: 10440 | BR47: 9017 | BS47: 9444 | BU47: 10867 | BX47: -221 | BY47: 10646 | BZ47: 50273 | CA47: 8630 | CC47: -4998 | CD47: -11757 | CE47: 5142 | CF47: 104484 | CG47: 91339 | CH47: 5480 | CI47: 7665 | CJ47: 19.5 | CL47: 137 | CM47: 27835 | CO47: 0.9439104863 | CP47: 51 | CQ47: -2407.400754 | CU47: 58 | CV47: 511.8376145 | CW47: 23.86289797 | CX47: 7828.920424 | CY47: 74694 | CZ47: 31035 | DA47: 175318 | DB47: -144283 | DC47: 107621 | DD47: 49046 | DG47: -631 | DH47: 180 | DI47: 11933 | DJ47: 8437 | DK47: 0 | DL47: 0 | DM47: 3496 | DN47: 0 | DO47: 0 | DP47: -140 | DQ47: 3356 | DR47: 53629 | DS47: 11678 | DU47: -2523 | DV47: -27000 | DW47: -9895 | DX47: 107621 | DY47: 93785 | DZ47: 4831 | EA47: 9005 | EB47: 20 | ED47: 109 | EE47: 70146 | EF47: 70867 | EG47: 73485 | EK47: -25189 | EL47: 760 | EM47: 13667 | EN47: -26969 | EO47: 815 | EP47: 22666 | EQ47: -26567 | ER47: 933 | ES47: 4061 | ET47: 11000 | EV47: 10000 | EX47: 12715 | EY47: 0 | EZ47: 48241 | FA47: 36984 | FB47: 11257 | FC47: 0 | FD47: 46484 | FE47: 35169 | FF47: 11315 | FG47: 0 | FH47: 60770 | FI47: 47854 | FJ47: 12916 | FK47: 0 | FL47: 5769.481555 | FM47: 6133.288155 | FN47: 6792 | FO47: 4689.25 | FP47: 168.4659601 | FS47: -20013 | FV47: 11458 | FW47: -11458
A48: 148 | B48: Inari | C48: 6794 | E48: 2.320053715 | F48: 39.3378361 | G48: -1236.237857 | K48: 65.98566081 | L48: 936.4144834 | M48: 40.55272257 | N48: 8428.319105 | O48: 23016 | P48: 7705 | Q48: 50062 | R48: -42357 | S48: 24467 | T48: 22165 | W48: -283 | X48: 732 | Y48: 4724 | Z48: 1811 | AB48: 93 | AC48: 2820 | AE48: 348 | AF48: -32 | AG48: 3136 | AH48: 3445 | AI48: 4438 | AK48: -71 | AL48: -1775 | AM48: 1037 | AN48: 24467 | AO48: 18821 | AP48: 1809 | AQ48: 3837 | AR48: 19 | AT48: 21 | AU48: 6814 | AW48: 2.776724592 | AX48: 37.63767361 | AY48: -1499.706487 | BC48: 68.0654771 | BD48: 1091.86968 | BE48: 43.34418694 | BF48: 9194.599354 | BG48: 24891 | BH48: 8594 | BI48: 51240 | BJ48: -42646 | BK48: 25038 | BL48: 22025 | BO48: -238 | BP48: 728 | BQ48: 4907 | BR48: 1724 | BU48: 3183 | BX48: 12 | BY48: 3195 | BZ48: 6640 | CA48: 4098 | CC48: 3325 | CD48: -1533 | CE48: -1915 | CF48: 25038 | CG48: 18946 | CH48: 2063 | CI48: 4029 | CJ48: 19 | CL48: 22 | CM48: 6804 | CO48: 1.611806798 | CP48: 36 | CQ48: -1622.281011 | CU48: 70 | CV48: 912.6984127 | CW48: 40.80892282 | CX48: 8163.286302 | CY48: 24732 | CZ48: 8426 | DA48: 53885 | DB48: -45459 | DC48: 25281 | DD48: 22731 | DG48: -272 | DH48: 1670 | DI48: 3234 | DJ48: 1851 | DK48: 0 | DL48: 0 | DM48: 1383 | DN48: 0 | DO48: 0 | DP48: -136 | DQ48: 1247 | DR48: 4689 | DS48: 3103 | DU48: -1785 | DV48: -1680 | DW48: -752 | DX48: 25281 | DY48: 18850 | DZ48: 2363 | EA48: 4068 | EB48: 19 | ED48: 80 | EE48: 20244 | EF48: 19070 | EG48: 21250 | EK48: -4956 | EL48: 563 | EM48: 992 | EN48: -9509 | EO48: 204 | EP48: 3292 | EQ48: -5615 | ER48: 141 | ES48: 1619 | ET48: 2599 | EU48: -300 | EV48: 1826 | EW48: -300 | EX48: 1866 | EY48: 0 | EZ48: 14137 | FA48: 12567 | FB48: 1570 | FC48: 3376 | FD48: 14430 | FE48: 12860 | FF48: 1570 | FG48: 3279 | FH48: 14244 | FI48: 12674 | FJ48: 1570 | FK48: 3345 | FL48: 6805.710921 | FM48: 7251.100675 | FN48: 7083 | FO48: 992.1052632 | FP48: 145.812061 | FS48: -3682 | FV48: 1630 | FW48: -1630
A49: 149 | B49: Inkoo | C49: 5562 | E49: 0.9040807741 | F49: 50.45728178 | G49: -2642.574613 | K49: 42.95034906 | L49: 154.4408486 | M49: 8.564424049 | N49: 6581.984898 | O49: 11723 | P49: 3763 | Q49: 32508 | R49: -28745 | S49: 25402 | T49: 5387 | W49: -162 | X49: 105 | Y49: 1987 | Z49: 1375 | AC49: 612 | AG49: 612 | AH49: 5375 | AI49: 1935 | AK49: -308 | AL49: -2215 | AM49: 379 | AN49: 25402 | AO49: 21102 | AP49: 2340 | AQ49: 1960 | AR49: 20.75 | AT49: 107 | AU49: 5560 | AW49: 1.053220036 | AX49: 61.10210228 | AY49: -3259.532374 | BC49: 39.69258847 | BD49: 127.5179856 | BE49: 6.251751462 | BF49: 7444.964029 | BG49: 12404 | BH49: 4035 | BI49: 32256 | BJ49: -28221 | BK49: 25477 | BL49: 5022 | BO49: -156 | BP49: 77 | BQ49: 2199 | BR49: 1445 | BU49: 754 | BW49: -19 | BY49: 735 | BZ49: 6110 | CA49: 1900 | CC49: -391 | CD49: -2080 | CE49: -3424 | CF49: 25477 | CG49: 20654 | CH49: 1916 | CI49: 2907 | CJ49: 20.75 | CL49: 120 | CM49: 5541 | CO49: 0.9088213491 | CP49: 59 | CQ49: -3219.635445 | CU49: 40 | CV49: 237.1413102 | CW49: 12.85128617 | CX49: 6735.246345 | CY49: 12016 | CZ49: 4944 | DA49: 33966 | DB49: -29022 | DC49: 26367 | DD49: 5060 | DG49: -190 | DH49: 47 | DI49: 2262 | DJ49: 1440 | DK49: 0 | DL49: 0 | DM49: 822 | DN49: 0 | DO49: -11 | DP49: 0 | DQ49: 811 | DR49: 6919 | DS49: 1505 | DU49: 497 | DV49: -2800 | DW49: 292 | DX49: 26367 | DY49: 21376 | DZ49: 2069 | EA49: 2922 | EB49: 20.75 | ED49: 116 | EE49: 17726 | EF49: 16423 | EG49: 18671 | EK49: -1713 | EL49: 94 | EM49: 63 | EN49: -6898 | EO49: 1117 | EP49: 457 | EQ49: -2276 | ER49: 171 | ES49: 892 | EU49: 1000 | EV49: 5000 | EW49: 400 | EX49: 2508 | EY49: -400 | EZ49: 14359 | FA49: 9779 | FB49: 4580 | FC49: 0 | FD49: 17680 | FE49: 12412 | FF49: 5268 | FG49: 0 | FH49: 17573 | FI49: 12810 | FJ49: 4763 | FK49: 0 | FL49: 3598.705502 | FM49: 2852.158273 | FN49: 2781 | FO49: 1030.168675 | FP49: 185.9174652 | FS49: -1176 | FV49: 2239 | FW49: -2239
A50: 151 | B50: Isojoki | C50: 2257 | E50: 0.9381443299 | F50: 23.90348198 | G50: -1216.659282 | K50: 72.15117931 | L50: 206.4687638 | M50: 10.0058827 | N50: 7531.67922 | O50: 3772 | P50: 2130 | Q50: 16131 | R50: -14001 | S50: 6086 | T50: 8154 | W50: -31 | X50: 34 | Y50: 242 | Z50: 459 | AC50: -217 | AD50: 3 | AG50: -215 | AH50: 684 | AI50: -368 | AK50: -369 | AL50: -260 | AM50: -794 | AN50: 6086 | AO50: 5282 | AP50: 483 | AQ50: 321 | AR50: 21.75 | AT50: 244 | AU50: 2198 | AW50: 1.578125 | AX50: 24.92841913 | AY50: -1367.606915 | BC50: 71.44548938 | BD50: 257.9617834 | BE50: 12.09555815 | BF50: 7784.349409 | BG50: 3620 | BH50: 1868 | BI50: 15850 | BJ50: -13982 | BK50: 6344 | BL50: 8203 | BO50: -44 | BP50: 41 | BQ50: 562 | BR50: 462 | BU50: 100 | BV50: 3 | BY50: 103 | BZ50: 787 | CA50: 563 | CC50: 182 | CD50: -340 | CE50: -289 | CF50: 6344 | CG50: 5470 | CH50: 473 | CI50: 401 | CJ50: 22 | CL50: 213 | CM50: 2123 | CO50: 3.102236422 | CP50: 22 | CQ50: -1064.060292 | CU50: 74 | CV50: 515.3085257 | CW50: 25.19623927 | CX50: 7464.908149 | CY50: 3472 | CZ50: 1981 | DA50: 15928 | DB50: -13947 | DC50: 6470 | DD50: 8423 | DG50: -38 | DH50: 36 | DI50: 934 | DJ50: 530 | DK50: 0 | DL50: 0 | DM50: 404 | DN50: 2 | DO50: 0 | DP50: 0 | DQ50: 406 | DR50: 1192 | DS50: 916 | DU50: 227 | DV50: 0 | DW50: 842 | DX50: 6470 | DY50: 5513 | DZ50: 556 | EA50: 401 | EB50: 22 | ED50: 103 | EE50: 11026 | EF50: 11051 | EG50: 11252 | EK50: -557 | EM50: 132 | EN50: -855 | EP50: 3 | EQ50: -114 | ER50: 0 | ES50: 39 | ET50: 1050 | EU50: 200 | EV50: 1000 | EW50: -200 | EX50: 275 | EY50: -300 | EZ50: 2202 | FA50: 1462 | FB50: 740 | FC50: 25 | FD50: 2662 | FE50: 2087 | FF50: 575 | FG50: 21 | FH50: 2138 | FI50: 1863 | FJ50: 275 | FK50: 196 | FL50: 1600.797519 | FM50: 1934.030937 | FN50: 1768 | FO50: 250.5909091 | FP50: 118.0362266 | FS50: -91 | FV50: 172 | FW50: -172
A51: 152 | B51: Isokyrö | C51: 4854 | E51: 0.5078341014 | F51: 39.59370904 | G51: -1504.944376 | K51: 56.33102852 | L51: 655.3358055 | M51: 35.21900689 | N51: 6791.718171 | O51: 11917 | P51: 3861 | Q51: 29444 | R51: -25583 | S51: 14705 | T51: 11954 | W51: -137 | X51: 13 | Y51: 952 | Z51: 1138 | AC51: -186 | AD51: 27 | AG51: -159 | AH51: 4455 | AI51: 925 | AK51: -112 | AL51: -2020 | AM51: 425 | AN51: 14705 | AO51: 13456 | AP51: 517 | AQ51: 732 | AR51: 20.5 | AT51: 200 | AU51: 4842 | AW51: 1.099086099 | AX51: 31.14018335 | AY51: -1322.593969 | BC51: 62.79678374 | BD51: 387.6497315 | BE51: 21.03872374 | BF51: 6725.320116 | BG51: 11699 | BH51: 4140 | BI51: 29166 | BJ51: -25026 | BK51: 15402 | BL51: 11874 | BO51: -115 | BP51: 21 | BQ51: 2156 | BR51: 1241 | BU51: 915 | BY51: 915 | BZ51: 5370 | CA51: 2127 | CC51: 94 | CD51: -1950 | CE51: 916 | CF51: 15402 | CG51: 14013 | CH51: 516 | CI51: 873 | CJ51: 21 | CL51: 93 | CM51: 4785 | CO51: 1.774788624 | CP51: 29 | CQ51: -1044.514107 | CU51: 66 | CV51: 597.0741902 | CW51: 35.91668389 | CX51: 6067.711599 | CY51: 11739 | CZ51: 3786 | DA51: 29320 | DB51: -25534 | DC51: 15738 | DD51: 12063 | DG51: -74 | DH51: 35 | DI51: 2228 | DJ51: 1128 | DK51: 0 | DL51: 0 | DM51: 1100 | DN51: 0 | DO51: 0 | DP51: 0 | DQ51: 1100 | DR51: 6531 | DS51: 2207 | DU51: 286 | DV51: 0 | DW51: 1346 | DX51: 15738 | DY51: 14296 | DZ51: 550 | EA51: 892 | EB51: 21.5 | ED51: 86 | EE51: 14296 | EF51: 14143 | EG51: 14310 | EK51: -1348 | EL51: 788 | EM51: 60 | EN51: -1306 | EO51: 45 | EP51: 50 | EQ51: -911 | ER51: 0 | ES51: 50 | ET51: 2000 | EX51: 1220 | EY51: 0 | EZ51: 7425 | FA51: 5475 | FB51: 1950 | FC51: 431 | FD51: 5475 | FE51: 4255 | FF51: 1220 | FG51: 431 | FH51: 4255 | FI51: 3225 | FJ51: 1030 | FK51: 431 | FL51: 3063.452822 | FM51: 2871.540686 | FN51: 2576 | FO51: 664.9302326 | FP51: 138.9613861 | FS51: -656 | FV51: 1420 | FW51: -1420
A52: 164 | B52: Jalasjärvi | C52: 7987 | E52: -0.496840705 | F52: 72.53349376 | G52: -4108.300989 | K52: 31.46941702 | L52: 1000.37561 | M52: 32.01367773 | N52: 11405.6592 | O52: 27393 | P52: 19341 | Q52: 66585 | R52: -47244 | S52: 23460 | T52: 18801 | W52: 135 | X52: 37 | Y52: -4811 | Z52: 2449 | AA52: 8936 | AC52: 1676 | AF52: 33 | AG52: 1708 | AH52: -14909 | AI52: -4706 | AK52: 532 | AL52: -9000 | AM52: 12135 | AN52: 23460 | AO52: 20576 | AP52: 1604 | AQ52: 1280 | AR52: 20.5 | AT52: 304 | AU52: 7885 | AW52: 0.08192771084 | AX52: 69.67944533 | AY52: -4397.209892 | BC52: 33.81429075 | BD52: 1013.189601 | BE52: 36.0109293 | BF52: 10269.49905 | BG52: 25390 | BH52: 15563 | BI52: 64028 | BJ52: -48465 | BK52: 25296 | BL52: 23467 | BO52: 168 | BP52: 152 | BQ52: 618 | BR52: 2063 | BU52: -1445 | BX52: 1445 | BZ52: -10756 | CA52: 374 | CC52: 463 | CD52: -9000 | CE52: -6649 | CF52: 25296 | CG52: 22165 | CH52: 1694 | CI52: 1437 | CJ52: 22 | CL52: 276 | CM52: 7776 | CO52: 0.07568570839 | CP52: 69 | CQ52: -4825.617284 | CU52: 32 | CV52: 549.382716 | CW52: 21.65756907 | CX52: 9258.873457 | CY52: 23526 | CZ52: 15037 | DA52: 63268 | DB52: -48231 | DC52: 25535 | DD52: 23122 | DG52: -10 | DH52: 61 | DI52: 461 | DJ52: 2289 | DK52: 0 | DL52: 0 | DM52: -1828 | DN52: 0 | DO52: 0 | DP52: 102 | DQ52: -1726 | DR52: -12482 | DS52: 556 | DU52: 5882 | DV52: -8500 | DW52: -3107 | DX52: 25535 | DY52: 22455 | DZ52: 1680 | EA52: 1400 | EB52: 22 | ED52: 281 | EE52: 31475 | EF52: 31724 | EG52: 34922 | EH52: 1000 | EI52: 950 | EK52: -2078 | EL52: 78 | EM52: 14395 | EN52: -7593 | EO52: 96 | EP52: 474 | EQ52: -4467 | ER52: 0 | ES52: 804 | ET52: 4847 | EU52: 8307 | EV52: 8500 | EX52: 9425 | EY52: 211 | EZ52: 10600 | FA52: 1100 | FB52: 9500 | FC52: 15702 | FD52: 18600 | FE52: 8675 | FF52: 9925 | FG52: 10350 | FH52: 27541 | FI52: 15900 | FJ52: 11641 | FK52: 9989 | FL52: 5415.550269 | FM52: 6829.169309 | FN52: 7503 | FO52: 1020.681818 | FP52: 131.2605219 | FS52: -2668 | FV52: 1312 | FW52: -1312
A53: 165 | B53: Janakkala | C53: 16842 | E53: 0.7900552486 | F53: 54.98772073 | G53: -2664.469778 | K53: 45.73735044 | L53: 461.8216364 | M53: 25.56271892 | N53: 6594.169339 | O53: 44964 | P53: 19578 | Q53: 98127 | R53: -78549 | S53: 59066 | T53: 24124 | W53: -461 | X53: 122 | Y53: 4302 | Z53: 5674 | AC53: -1372 | AD53: 97 | AE53: 500 | AG53: -775 | AH53: 1436 | AI53: 3748 | AK53: -903 | AL53: -5594 | AM53: -2441 | AN53: 59066 | AO53: 54468 | AP53: 1771 | AQ53: 2827 | AR53: 19.75 | AT53: 170 | AU53: 16840 | AW53: 0.7010766308 | AX53: 54.27154807 | AY53: -2645.84323 | BC53: 46.13293308 | BD53: 501.1876485 | BE53: 26.92455601 | BF53: 6794.299287 | BG53: 44180 | BH53: 20502 | BI53: 98817 | BJ53: -78315 | BK53: 61107 | BL53: 23622 | BO53: -567 | BP53: 123 | BQ53: 5970 | BR53: 4774 | BU53: 1196 | BV53: 56 | BY53: 1252 | BZ53: 2770 | CA53: 5178 | CC53: -262 | CD53: -8802 | CE53: 44 | CF53: 61107 | CG53: 56093 | CH53: 2024 | CI53: 2990 | CJ53: 20.5 | CL53: 148 | CM53: 16853 | CO53: 0.6108135044 | CP53: 57 | CQ53: -2709.072569 | CU53: 42 | CV53: 671.3938171 | CW53: 36.14541397 | CX53: 6779.801816 | CY53: 45572 | CZ53: 19799 | DA53: 101202 | DB53: -81403 | DC53: 62545 | DD53: 23531 | DG53: -551 | DH53: 146 | DI53: 4268 | DJ53: 5126 | DK53: 0 | DL53: 0 | DM53: -858 | DN53: 8 | DO53: 0 | DP53: 0 | DQ53: -850 | DR53: -40 | DS53: 5847 | DU53: 536 | DV53: -10450 | DW53: 738 | DX53: 62545 | DY53: 57247 | DZ53: 2207 | EA53: 3091 | EB53: 20.5 | ED53: 202 | EE53: 38545 | EF53: 40914 | EG53: 40737 | EK53: -6931 | EL53: 94 | EM53: 648 | EN53: -6273 | EO53: 189 | EP53: 950 | EQ53: -5689 | ER53: 5 | ES53: 575 | ET53: 11190 | EU53: -6 | EV53: 10000 | EW53: 161 | EX53: 7392 | EY53: 250 | EZ53: 42183 | FA53: 36151 | FB53: 6032 | FC53: 1028 | FD53: 43541 | FE53: 36403 | FF53: 7138 | FG53: 1003 | FH53: 46850 | FI53: 38423 | FJ53: 8427 | FK53: 1003 | FL53: 4208.763805 | FM53: 4190.142518 | FN53: 4249 | FO53: 2792.536585 | FP53: 165.6996728 | FS53: -6492 | FV53: 5623 | FW53: -5623
A54: 167 | B54: Joensuu | C54: 74471 | E54: 1.807131999 | F54: 39.62642159 | G54: -1396.369056 | K54: 60.14980017 | L54: 1005.881484 | M54: 50.49510226 | N54: 7270.93768 | O54: 207550 | P54: 145529 | Q54: 484087 | R54: -338558 | S54: 238111 | T54: 123843 | W54: -1170 | X54: 4316 | Y54: 26542 | Z54: 23172 | AC54: 3370 | AD54: 445 | AE54: -703 | AF54: -471 | AG54: 2641 | AH54: 15442 | AI54: 19447 | AK54: -746 | AL54: -13799 | AM54: -14372 | AN54: 238111 | AO54: 205567 | AP54: 14756 | AQ54: 17788 | AR54: 19.5 | AT54: 109 | AU54: 75041 | AW54: 1.841106884 | AX54: 41.1779119 | AY54: -1478.258552 | BC54: 57.96157848 | BD54: 1269.172852 | BE54: 58.5615423 | BF54: 7910.448955 | BG54: 221000 | BH54: 179235 | BI54: 530146 | BJ54: -350911 | BK54: 254655 | BL54: 125258 | BO54: -1548 | BP54: 5521 | BQ54: 32975 | BR54: 24206 | BS54: 1899 | BU54: 10668 | BV54: -2386 | BW54: -553 | BX54: -542 | BY54: 7187 | BZ54: 22629 | CA54: 29428 | CC54: -1912 | CD54: -17120 | CE54: -8238 | CF54: 254655 | CG54: 218399 | CH54: 16545 | CI54: 19711 | CJ54: 20.5 | CL54: 99 | CM54: 75514 | CO54: 1.357919324 | CP54: 40 | CQ54: -1658.963901 | CU54: 60 | CV54: 1084.765739 | CW54: 52.5824773 | CX54: 7529.875255 | CY54: 224577 | CZ54: 184932 | DA54: 550030 | DB54: -365098 | DC54: 261994 | DD54: 129006 | DG54: -993 | DH54: 5117 | DI54: 28631 | DJ54: 27092 | DK54: 0 | DL54: 0 | DM54: 1539 | DN54: 1059 | DO54: 1164 | DP54: -148 | DQ54: 3614 | DR54: 26243 | DS54: 23305 | DU54: 546 | DV54: -20000 | DW54: -15108 | DX54: 261994 | DY54: 223747 | DZ54: 18640 | EA54: 19607 | EB54: 20.5 | ED54: 132 | EE54: 205603 | EF54: 233253 | EG54: 240288 | EK54: -45833 | EL54: 2648 | EM54: 9366 | EN54: -47528 | EO54: 1939 | EP54: 7923 | EQ54: -45820 | ER54: 835 | ES54: 6572 | ET54: 33400 | EU54: -3217 | EV54: 35000 | EW54: 1715 | EX54: 20663 | EY54: 1928 | EZ54: 130763 | FA54: 100257 | FB54: 30506 | FC54: 30896 | FD54: 150357 | FE54: 114594 | FF54: 35763 | FG54: 29318 | FH54: 151624 | FI54: 113011 | FJ54: 38613 | FK54: 28280 | FL54: 4597.722603 | FM54: 4875.614664 | FN54: 5150 | FO54: 10914.4878 | FP54: 144.535951 | FS54: -46269 | FV54: 9446 | FW54: -9446
A55: 169 | B55: Jokioinen | C55: 5595 | E55: 1.378209577 | F55: 47.48687643 | G55: -2147.631814 | K55: 52.4668435 | L55: 85.07596068 | M55: 4.947320462 | N55: 6276.675603 | O55: 13883 | P55: 4241 | Q55: 29872 | R55: -25631 | S55: 18488 | T55: 9084 | W55: -146 | X55: 30 | Y55: 1825 | Z55: 1347 | AC55: 478 | AG55: 478 | AH55: 4003 | AI55: 1603 | AK55: 197 | AL55: -1280 | AM55: -1358 | AN55: 18488 | AO55: 17143 | AP55: 771 | AQ55: 574 | AR55: 20.5 | AT55: 125 | AU55: 5516 | AW55: 2.129291454 | AX55: 63.17662715 | AY55: -2963.923133 | BC55: 47.45502469 | BD55: 234.0464104 | BE55: 12.1732672 | BF55: 7017.585207 | BG55: 9781 | BH55: 4000 | BI55: 29443 | BJ55: -25443 | BK55: 18854 | BL55: 9457 | BO55: -155 | BP55: 30 | BQ55: 2743 | BR55: 1012 | BU55: 1731 | BY55: 1732 | BZ55: 5734 | CA55: 2637 | CC55: -160 | CD55: -1197 | CE55: -4356 | CF55: 18854 | CG55: 17039 | CH55: 983 | CI55: 832 | CJ55: 20.5 | CL55: 72 | CM55: 5425 | CO55: 1.909533751 | CP55: 64 | CQ55: -3286.820276 | CU55: 48 | CV55: 230.4147465 | CW55: 12.61753319 | CX55: 6665.437788 | CY55: 9748 | CZ55: 4045 | DA55: 30339 | DB55: -26294 | DC55: 19311 | DD55: 9667 | DG55: -167 | DH55: 40 | DI55: 2549 | DJ55: 1366 | DK55: 0 | DL55: 0 | DM55: 1183 | DN55: 0 | DO55: 0 | DP55: 0 | DQ55: 1183 | DR55: 6698 | DS55: 2453 | DU55: 844 | DV55: -4100 | DW55: -1565 | DX55: 19311 | DY55: 17492 | DZ55: 980 | EA55: 839 | EB55: 20.5 | ED55: 83 | EE55: 12465 | EF55: 17097 | EG55: 18028 | EK55: -3803 | EL55: 842 | EN55: -7893 | EO55: 773 | EP55: 127 | EQ55: -5103 | ER55: 816 | ES55: 269 | ET55: 1000 | EU55: 240 | EV55: 4500 | EW55: 2490 | EX55: 1242 | EY55: -1500 | EZ55: 11374 | FA55: 6542 | FB55: 4832 | FC55: 558 | FD55: 17168 | FE55: 9726 | FF55: 7442 | FG55: 558 | FH55: 18526 | FI55: 12336 | FJ55: 6190 | FK55: 470 | FL55: 2773.36908 | FM55: 3838.288615 | FN55: 4101 | FO55: 853.2682927 | FP55: 157.2844779 | FS55: -3383 | FV55: 2224 | FW55: -2224
A56: 171 | B56: Joroinen | C56: 5213 | E56: 0.5502935421 | F56: 56.49729279 | G56: -3327.258776 | K56: 44.9541979 | L56: 456.9345866 | M56: 20.95415984 | N56: 7959.332438 | O56: 10423 | P56: 10697 | Q56: 37461 | R56: -26764 | S56: 15955 | T56: 12163 | W56: -196 | X56: 46 | Y56: 1204 | Z56: 1421 | AA56: 394 | AC56: 177 | AD56: 32 | AG56: 209 | AH56: 1752 | AI56: 65 | AK56: 1094 | AL56: -2353 | AM56: 161 | AN56: 15955 | AO56: 14205 | AP56: 937 | AQ56: 813 | AR56: 20 | AT56: 180 | AU56: 5178 | AW56: 0.7426799862 | AX56: 48.69122572 | AY56: -508.1112399 | BC56: 54.58926398 | BD56: 2868.675164 | BE56: 138.5953117 | BF56: 7554.847431 | BG56: 10188 | BH56: 8825 | BI56: 35481 | BJ56: -26656 | BK56: 16653 | BL56: 12109 | BO56: -232 | BP56: 42 | BQ56: 1916 | BR56: 1830 | BS56: 4077 | BU56: 4163 | BV56: 32 | BW56: 346 | BY56: 4541 | BZ56: 6293 | CA56: 1278 | CC56: -58 | CD56: -2663 | CE56: 11396 | CF56: 16653 | CG56: 14557 | CH56: 1089 | CI56: 1007 | CJ56: 20.25 | CL56: 139 | CM56: 5110 | CO56: 0.4752353664 | CP56: 60 | CQ56: -595.1076321 | CU56: 52 | CV56: 3192.759295 | CW56: 156.052804 | CX56: 7467.710372 | CY56: 8994 | CZ56: 4322 | DA56: 32500 | DB56: -28178 | DC56: 17216 | DD56: 12069 | DG56: -208 | DH56: 30 | DI56: 929 | DJ56: 1032 | DK56: 186 | DL56: 0 | DM56: 83 | DN56: 31 | DO56: -170 | DP56: 0 | DQ56: -56 | DR56: 6237 | DS56: 981 | DU56: -213 | DV56: -3600 | DW56: -427 | DX56: 17216 | DY56: 14684 | DZ56: 1371 | EA56: 1161 | EB56: 20.25 | ED56: 247 | EE56: 24511 | EF56: 22861 | EG56: 20962 | EK56: -1868 | EL56: 10 | EM56: 1954 | EN56: -985 | EP56: 11103 | EQ56: -1677 | ER56: 22 | ES56: 247 | ET56: 3930 | EU56: -500 | EV56: 4800 | EX56: 2211 | EY56: 0 | EZ56: 13498 | FA56: 10835 | FB56: 2663 | FC56: 310 | FD56: 15635 | FE56: 13424 | FF56: 2211 | FG56: 306 | FH56: 17023 | FI56: 14171 | FJ56: 2852 | FK56: 302 | FL56: 4346.24976 | FM56: 4798.957126 | FN56: 5036 | FO56: 725.1358025 | FP56: 141.9052451 | FS56: -1220 | FV56: 1768 | FW56: -1768
A57: 172 | B57: Joutsa | C57: 4857 | E57: 0.2616093584 | F57: 65.33869083 | G57: -4262.301832 | K57: 19.89008806 | L57: 78.03170681 | M57: 3.305969793 | N57: 8615.194565 | O57: 13086 | P57: 6164 | Q57: 34512 | R57: -28348 | S57: 14445 | T57: 14500 | W57: -177 | X57: 129 | Y57: 549 | Z57: 1164 | AC57: -615 | AD57: 23 | AG57: -592 | AH57: -742 | AI57: 549 | AK57: 470 | AL57: -2632 | AM57: -3540 | AN57: 14445 | AO57: 11938 | AP57: 1012 | AQ57: 1495 | AR57: 20.5 | AT57: 240 | AU57: 4782 | AW57: 1.141788386 | AX57: 61.13068182 | AY57: -3795.692179 | BC57: 24.74537037 | BD57: 377.2480134 | BE57: 18.51895601 | BF57: 7435.382685 | BG57: 12581 | BH57: 5829 | BI57: 32185 | BJ57: -26356 | BK57: 15049 | BL57: 14411 | BO57: -146 | BP57: 94 | BQ57: 3052 | BR57: 1576 | BU57: 1476 | BV57: 23 | BY57: 1499 | BZ57: 757 | CA57: 3029 | CC57: 214 | CD57: -2654 | CE57: 2605 | CF57: 15049 | CG57: 12291 | CH57: 1111 | CI57: 1647 | CJ57: 21 | CL57: 32 | CM57: 4688 | CO57: 1.425337569 | CP57: 50 | CQ57: -3101.962457 | CU57: 33 | CV57: 430.4607509 | CW57: 24.96255126 | CX57: 6294.15529 | CY57: 12280 | CZ57: 5953 | DA57: 32302 | DB57: -26349 | DC57: 15063 | DD57: 14782 | DG57: -83 | DH57: 171 | DI57: 3502 | DJ57: 1268 | DK57: 0 | DL57: 0 | DM57: 2234 | DN57: 23 | DO57: 0 | DP57: 0 | DQ57: 2257 | DR57: 3014 | DS57: 3378 | DU57: 154 | DV57: 0 | DW57: 3072 | DX57: 15063 | DY57: 12130 | DZ57: 1278 | EA57: 1655 | EB57: 21 | ED57: 20 | EE57: 17081 | EF57: 15554 | EG57: 15885 | EK57: -4484 | EL57: 147 | EM57: 248 | EN57: -623 | EO57: 82 | EP57: 117 | EQ57: -763 | ER57: 27 | ES57: 890 | ET57: 6000 | EU57: -927 | EW57: 2000 | EX57: 2431 | EY57: -1000 | EZ57: 17900 | FA57: 12246 | FB57: 5654 | FC57: 923 | FD57: 17246 | FE57: 9815 | FF57: 7431 | FG57: 965 | FH57: 13815 | FI57: 7714 | FJ57: 6101 | FK57: 965 | FL57: 5039.118798 | FM57: 4962.986198 | FN57: 4277 | FO57: 577.6190476 | FP57: 123.2122542 | FS57: -387 | FV57: 2380 | FW57: -2380
A58: 174 | B58: Juankoski | C58: 4995 | E58: 0.2451730419 | F58: 68.1645047 | G58: -4285.485485 | K58: 29.97574778 | L58: 284.0840841 | M58: 12.627941 | N58: 8211.211211 | O58: 13738 | P58: 7209 | Q58: 37380 | R58: -30171 | S58: 16416 | T58: 13918 | W58: -241 | X58: 502 | Y58: 424 | Z58: 1482 | AB58: 4077 | AC58: -5135 | AD58: 93 | AG58: -5042 | AH58: -7570 | AI58: -3743 | AK58: 50 | AL58: -2496 | AM58: -4488 | AN58: 16416 | AO58: 14823 | AP58: 468 | AQ58: 1125 | AR58: 21.5 | AT58: 249 | AU58: 4882 | AW58: 0.08409842086 | AX58: 71.4200655 | AY58: -4732.69152 | BC58: 24.51387125 | BD58: 253.3797624 | BE58: 10.78014946 | BF58: 8579.065957 | BG58: 13339 | BH58: 7159 | BI58: 37225 | BJ58: -30066 | BK58: 15296 | BL58: 14494 | BO58: -219 | BP58: 496 | BQ58: 1 | BR58: 1442 | BT58: 997 | BU58: -2438 | BV58: 70 | BY58: -2368 | BZ58: -9938 | CA58: -1052 | CC58: 719 | CD58: -2496 | CE58: -2648 | CF58: 15296 | CG58: 13373 | CH58: 572 | CI58: 1351 | CJ58: 21.5 | CL58: 293 | CM58: 4804 | CO58: 0.3750940557 | CP58: 74 | CQ58: -4883.014155 | CU58: 22 | CV58: 565.9866778 | CW58: 25.44835633 | CX58: 8117.818485 | CY58: 12589 | CZ58: 6945 | DA58: 37081 | DB58: -30136 | DC58: 15742 | DD58: 14532 | DG58: -146 | DH58: 843 | DI58: 835 | DJ58: 1454 | DK58: 0 | DL58: 0 | DM58: -619 | DN58: 77 | DO58: 0 | DP58: 0 | DQ58: -542 | DR58: -10480 | DS58: 664 | DU58: 538 | DV58: 0 | DW58: -188 | DX58: 15742 | DY58: 13711 | DZ58: 687 | EA58: 1344 | EB58: 21.5 | ED58: 250 | EE58: 19865 | EF58: 19979 | EG58: 20674 | EI58: 700 | EK58: -848 | EM58: 104 | EN58: -1904 | EO58: 232 | EP58: 76 | EQ58: -1112 | ER58: 32 | ES58: 228 | EU58: 6600 | EW58: 3950 | EX58: 2496 | EY58: 3550 | EZ58: 21978 | FA58: 12382 | FB58: 9596 | FC58: 1152 | FD58: 23432 | FE58: 9886 | FF58: 13546 | FG58: 187 | FH58: 24486 | FI58: 7466 | FJ58: 17020 | FK58: 162 | FL58: 6135.735736 | FM58: 7009.627202 | FN58: 7605 | FO58: 637.7209302 | FP58: 132.7479039 | FS58: -849 | FV58: 1948 | FW58: -1948
A59: 176 | B59: Juuka | C59: 5203 | F59: 15.34988713 | G59: 718.8160677 | K59: 79.80955354 | L59: 1466.077263 | M59: 65.50951742 | N59: 8168.556602 | O59: 17134 | P59: 6919 | Q59: 40141 | R59: -33222 | S59: 13430 | T59: 20407 | W59: 30 | X59: 353 | Y59: 998 | Z59: 1528 | AC59: -530 | AD59: -34 | AE59: 411 | AG59: -153 | AH59: 4932 | AI59: 938 | AK59: 523 | AL59: 0 | AM59: -1238 | AN59: 13430 | AO59: 11413 | AP59: 1198 | AQ59: 819 | AR59: 20.25 | AT59: 206 | AU59: 5140 | AW59: 77.84848485 | AX59: 25.61041272 | AY59: -799.0272374 | BC59: 70.27862128 | BD59: 688.7159533 | BE59: 24.84043371 | BF59: 10119.84436 | BG59: 18038 | BH59: 7250 | BI59: 40586 | BJ59: -33336 | BK59: 14743 | BL59: 20724 | BO59: 56 | BP59: 349 | BQ59: 2536 | BR59: 1715 | BU59: 821 | BV59: 358 | BW59: 35 | BY59: 1214 | BZ59: 6146 | CA59: 2444 | CC59: -925 | CE59: -4051 | CF59: 14743 | CG59: 12008 | CH59: 1519 | CI59: 1216 | CJ59: 20.75 | CL59: 73 | CM59: 5034 | CO59: 54.47540984 | CP59: 24 | CQ59: -806.7143425 | CU59: 73 | CV59: 794.7953913 | CW59: 33.65671814 | CX59: 8619.388161 | CY59: 18625 | CZ59: 8112 | DA59: 41368 | DB59: -33256 | DC59: 15520 | DD59: 20578 | DG59: 59 | DH59: 709 | DI59: 3262 | DJ59: 2021 | DK59: 3307 | DL59: 932 | DM59: 3616 | DN59: 344 | DO59: 0 | DP59: 0 | DQ59: 3960 | DR59: 10106 | DS59: 5446 | DU59: 768 | DV59: 0 | DW59: -883 | DX59: 15520 | DY59: 12462 | DZ59: 1832 | EA59: 1226 | EB59: 20.75 | ED59: 32 | EE59: 18423 | EF59: 17750 | EG59: 17690 | EK59: -2358 | EL59: 39 | EM59: 143 | EN59: -7512 | EO59: 832 | EP59: 185 | EQ59: -7713 | ER59: 252 | ES59: 1132 | EV59: 5000 | EX59: 0 | EY59: 0 | EZ59: 0 | FA59: 0 | FB59: 0 | FC59: 130 | FD59: 5000 | FE59: 5000 | FF59: 0 | FG59: 3980 | FH59: 5000 | FI59: 5000 | FJ59: 0 | FK59: 2986 | FL59: 1381.510667 | FM59: 2347.859922 | FN59: 2486 | FO59: 600.5783133 | FP59: 119.3043928 | FS59: -4089 | FV59: 0 | FW59: 0
A60: 177 | B60: Juupajoki | C60: 2039 | E60: 0.3881700555 | F60: 47.36140922 | G60: -2897.008337 | K60: 52.8333824 | L60: 4.413928396 | M60: 0.2105094521 | N60: 7653.261403 | O60: 5074 | P60: 2144 | Q60: 13074 | R60: -10930 | S60: 6347 | T60: 5020 | W60: -34 | X60: -40 | Y60: 363 | Z60: 439 | AC60: -76 | AD60: 10 | AG60: -66 | AH60: 326 | AI60: 194 | AK60: 285 | AL60: -1025 | AM60: -842 | AN60: 6347 | AO60: 5477 | AP60: 404 | AQ60: 466 | AR60: 20 | AT60: 216 | AU60: 2033 | AW60: 0.6721311475 | AX60: 39.25302087 | AY60: -2310.378751 | BC60: 58.94423678 | BD60: 25.5779636 | BE60: 1.318604974 | BF60: 7080.177078 | BG60: 3634 | BH60: 2034 | BI60: 12536 | BJ60: -10502 | BK60: 6668 | BL60: 4953 | BO60: -39 | BP60: -35 | BQ60: 1045 | BR60: 468 | BT60: 29 | BU60: 548 | BV60: 11 | BY60: 559 | BZ60: 885 | CA60: 1016 | CC60: -129 | CD60: -1585 | CE60: 998 | CF60: 6668 | CG60: 5542 | CH60: 587 | CI60: 539 | CJ60: 20 | CL60: 69 | CM60: 1988 | CO60: 5.544303797 | CP60: 40 | CQ60: -1931.589537 | CU60: 62 | CV60: 526.6599598 | CW60: 31.53354237 | CX60: 6096.076459 | CY60: 3190 | CZ60: 1207 | DA60: 11959 | DB60: -10752 | DC60: 7280 | DD60: 4709 | DG60: -27 | DH60: 52 | DI60: 1262 | DJ60: 475 | DK60: 0 | DL60: 7 | DM60: 780 | DN60: 11 | DO60: 0 | DP60: 0 | DQ60: 791 | DR60: 1676 | DS60: 1255 | DU60: 206 | DV60: 0 | DW60: 843 | DX60: 7280 | DY60: 5987 | DZ60: 752 | EA60: 541 | EB60: 21 | ED60: 35 | EE60: 6482 | EF60: 7240 | EG60: 7751 | EK60: -1352 | EL60: 124 | EM60: 192 | EN60: -168 | EO60: 150 | EQ60: -449 | ER60: 37 | ES60: 0 | ET60: 778 | EU60: 1067 | EV60: 1400 | EW60: -185 | EX60: 185 | EY60: 0 | EZ60: 4499 | FA60: 2329 | FB60: 2170 | FC60: 157 | FD60: 4129 | FE60: 2944 | FF60: 1185 | FG60: 148 | FH60: 3945 | FI60: 2759 | FJ60: 1186 | FK60: 145 | FL60: 3593.918588 | FM60: 3378.258731 | FN60: 3259 | FO60: 285.0952381 | FP60: 143.4080675 | FS60: -371 | FV60: 532 | FW60: -532
A61: 178 | B61: Juva | C61: 6684 | E61: 1.417548227 | F61: 46.11188318 | G61: -2771.394375 | K61: 65.97059224 | L61: 284.5601436 | M61: 12.84469361 | N61: 8086.175943 | O61: 18735 | P61: 10623 | Q61: 46434 | R61: -35811 | S61: 18851 | T61: 18737 | W61: -233 | X61: 496 | Y61: 2040 | Z61: 1473 | AA61: 1773 | AC61: 2340 | AD61: 30 | AG61: 2370 | AH61: 3311 | AI61: 2989 | AK61: 1137 | AL61: -1369 | AM61: -965 | AN61: 18851 | AO61: 15697 | AP61: 1787 | AQ61: 1367 | AR61: 19.75 | AT61: 139 | AU61: 6616 | AW61: 0.4034334764 | AX61: 45.43082005 | AY61: -2936.064087 | BC61: 65.95854138 | BD61: 72.24909311 | BE61: 3.185793846 | BF61: 8277.660218 | BG61: 19507 | BH61: 10449 | BI61: 47743 | BJ61: -37294 | BK61: 19356 | BL61: 19241 | BO61: -243 | BP61: 386 | BQ61: 1446 | BR61: 1419 | BU61: 27 | BV61: 30 | BY61: 58 | BZ61: 3369 | CA61: 1331 | CC61: -574 | CD61: -3948 | CE61: -941 | CF61: 19356 | CG61: 15787 | CH61: 2057 | CI61: 1512 | CJ61: 19.75 | CL61: 230 | CM61: 6548 | CO61: 0.9396226415 | CP61: 50 | CQ61: -3200.977398 | CU61: 65 | CV61: 156.6890654 | CW61: 7.267699115 | CX61: 7869.27306 | CY61: 16973 | CZ61: 7169 | DA61: 45254 | DB61: -38085 | DC61: 19827 | DD61: 19937 | DG61: -166 | DH61: 581 | DI61: 1824 | DJ61: 1594 | DK61: 0 | DL61: 0 | DM61: 230 | DN61: 30 | DO61: 0 | DP61: 0 | DQ61: 260 | DR61: 3629 | DS61: 1803 | DU61: 776 | DV61: -4000 | DW61: -1556 | DX61: 19827 | DY61: 15887 | DZ61: 2448 | EA61: 1492 | EB61: 19.75 | ED61: 192 | EE61: 23005 | EF61: 24699 | EG61: 24937 | EK61: -5996 | EL61: 500 | EM61: 1542 | EN61: -2827 | EO61: 325 | EP61: 230 | EQ61: -3963 | ER61: 381 | ES61: 223 | ET61: 4000 | EU61: -1500 | EW61: 3400 | EX61: 1952 | EY61: -100 | EZ61: 15848 | FA61: 10473 | FB61: 5375 | FC61: 1037 | FD61: 15299 | FE61: 7947 | FF61: 7352 | FG61: 1037 | FH61: 17248 | FI61: 9893 | FJ61: 7355 | FK61: 1037 | FL61: 4051.915021 | FM61: 3987.605804 | FN61: 4221 | FO61: 804.4050633 | FP61: 122.847444 | FS61: -3305 | FV61: 941 | FW61: -941
A62: 179 | B62: Jyväskylä | C62: 134658 | E62: 1.539645853 | F62: 63.83569809 | G62: -3500.349032 | K62: 48.96630934 | L62: 33.35858248 | M62: 1.803414827 | N62: 6751.570646 | O62: 335028 | P62: 169500 | Q62: 769504 | R62: -600004 | S62: 478131 | T62: 144277 | W62: 9464 | X62: 2404 | Y62: 34272 | Z62: 72759 | AC62: -38487 | AD62: 340 | AF62: -4 | AG62: -38151 | AH62: 58187 | AI62: 24599 | AK62: 9578 | AL62: -19796 | AM62: -73046 | AN62: 478131 | AO62: 422619 | AP62: 18165 | AQ62: 37347 | AR62: 20 | AT62: 171 | AU62: 135780 | AW62: 1.517549897 | AX62: 63.38231532 | AY62: -3416.217411 | BC62: 48.17282689 | BD62: 67.462071 | BE62: 3.964794278 | BF62: 6210.575932 | BG62: 334744 | BH62: 172531 | BI62: 772129 | BJ62: -599598 | BK62: 483706 | BL62: 145078 | BO62: 5956 | BP62: 4450 | BQ62: 39592 | BR62: 53183 | BU62: -13591 | BV62: 340 | BX62: -3 | BY62: -13254 | BZ62: 44933 | CA62: 28098 | CC62: -5201 | CD62: -23798 | CE62: 807 | CF62: 483706 | CG62: 423866 | CH62: 20441 | CI62: 39399 | CJ62: 20 | CL62: 183 | CM62: 137368 | CO62: 1.356893013 | CP62: 61 | CQ62: -3363.425252 | CU62: 48 | CV62: 84.46654243 | CW62: 4.753182372 | CX62: 6486.241337 | CY62: 330494 | CZ62: 175245 | DA62: 794652 | DB62: -619407 | DC62: 490468 | DD62: 157402 | DG62: 6515 | DH62: 10402 | DI62: 40814 | DJ62: 54036 | DK62: 0 | DL62: 0 | DM62: -13222 | DN62: 340 | DO62: 0 | DP62: -6 | DQ62: -12888 | DR62: 32044 | DS62: 28531 | DU62: 3554 | DV62: -25000 | DW62: -62431 | DX62: 490468 | DY62: 426989 | DZ62: 22523 | EA62: 40956 | EB62: 20 | ED62: 177 | EE62: 292862 | EF62: 302030 | EG62: 323284 | EK62: -112558 | EL62: 1734 | EM62: 13179 | EN62: -40358 | EO62: 566 | EP62: 12501 | EQ62: -107323 | ER62: 1066 | ES62: 15295 | ET62: 30000 | EU62: 4931 | EV62: 30000 | EW62: 2945 | EX62: 28468 | EY62: -335 | EZ62: 396938 | FA62: 313373 | FB62: 83565 | FC62: 225463 | FD62: 406087 | FE62: 315673 | FF62: 90414 | FG62: 225032 | FH62: 402282 | FI62: 320229 | FJ62: 82053 | FK62: 162824 | FL62: 7961.131162 | FM62: 8106.444248 | FN62: 7869 | FO62: 21349.45 | FP62: 155.4179285 | FS62: -90074 | FV62: 25477 | FW62: -25477
A63: 181 | B63: Jämijärvi | C63: 1971 | E63: 0.6191222571 | F63: 41.78110019 | G63: -2256.722476 | K63: 34.2849956 | L63: 152.7143582 | M63: 8.185441812 | N63: 6809.741248 | O63: 2650 | P63: 785 | Q63: 11915 | R63: -11130 | S63: 5589 | T63: 5933 | W63: -40 | X63: 3 | Y63: 355 | Z63: 336 | AC63: 19 | AG63: 19 | AH63: -824 | AI63: 330 | AK63: -2 | AL63: -598 | AM63: -267 | AN63: 5589 | AO63: 5015 | AP63: 257 | AQ63: 317 | AR63: 20.5 | AT63: 213 | AU63: 1997 | AW63: 0.3526645768 | AX63: 49.63837393 | AY63: -2733.600401 | BC63: 29.76273552 | BD63: 66.59989985 | BE63: 3.550687537 | BF63: 6846.269404 | BG63: 2465 | BH63: 724 | BI63: 11810 | BJ63: -11086 | BK63: 5546 | BL63: 5759 | BO63: -44 | BP63: 6 | BQ63: 181 | BR63: 348 | BU63: -167 | BY63: -167 | BZ63: -991 | CA63: 181 | CC63: 13 | CD63: -594 | CE63: -998 | CF63: 5546 | CG63: 4917 | CH63: 268 | CI63: 361 | CJ63: 21.5 | CL63: 269 | CM63: 1948 | CO63: 0.4151724138 | CP63: 49 | CQ63: -2943.531828 | CU63: 28 | CV63: 26.69404517 | CW63: 1.463941381 | CX63: 6655.544148 | CY63: 2479 | CZ63: 957 | DA63: 12177 | DB63: -11220 | DC63: 5884 | DD63: 5630 | DG63: -44 | DH63: 9 | DI63: 257 | DJ63: 354 | DK63: 0 | DL63: 0 | DM63: -97 | DN63: 0 | DO63: 0 | DP63: 0 | DQ63: -97 | DR63: -1088 | DS63: 257 | DU63: 24 | DV63: -560 | DW63: -103 | DX63: 5884 | DY63: 5198 | DZ63: 288 | EA63: 398 | EB63: 21.5 | ED63: 263 | EE63: 8231 | EF63: 8368 | EG63: 8750 | EH63: 260 | EK63: -862 | EL63: 88 | EM63: 177 | EN63: -1221 | EO63: 28 | EP63: 14 | EQ63: -368 | ER63: 8 | ES63: 0 | ET63: 1188 | EV63: 1432 | EX63: 681 | EY63: 250 | EZ63: 3902 | FA63: 3311 | FB63: 591 | FC63: 107 | FD63: 4741 | FE63: 4081 | FF63: 660 | FG63: 107 | FH63: 4869 | FI63: 3892 | FJ63: 977 | FK63: 267 | FL63: 2710.806697 | FM63: 3119.679519 | FN63: 3177 | FO63: 241.7674419 | FP63: 124.1105964 | FS63: -359 | FV63: 716 | FW63: -716
A64: 182 | B64: Jämsä | C64: 22138 | E64: 1.488040228 | F64: 39.07694338 | G64: -1828.710814 | K64: 58.37762928 | L64: 538.5310326 | M64: 25.41158127 | N64: 7735.206432 | O64: 68990 | P64: 38619 | Q64: 156652 | R64: -118033 | S64: 83116 | T64: 45371 | W64: -708 | X64: 371 | Y64: 10117 | Z64: 8170 | AB64: 637 | AC64: 1310 | AD64: 247 | AG64: 1557 | AH64: 861 | AI64: 9480 | AK64: 2363 | AL64: -6526 | AM64: 4943 | AN64: 83116 | AO64: 73383 | AP64: 4932 | AQ64: 4801 | AR64: 21 | AT64: 68 | AU64: 21808 | AW64: 1.100080783 | AX64: 33.36989713 | AY64: -1801.724138 | BC64: 62.30378593 | BD64: 269.6716801 | BE64: 11.88817753 | BF64: 8279.668012 | BG64: 66077 | BH64: 39396 | BI64: 157789 | BJ64: -118393 | BK64: 85119 | BL64: 44570 | BO64: -651 | BP64: 822 | BQ64: 11467 | BR64: 9374 | BU64: 2093 | BV64: 246 | BX64: -221 | BY64: 2118 | BZ64: 2979 | CA64: 11203 | CC64: 1631 | CD64: -10352 | CE64: 1863 | CF64: 85119 | CG64: 72571 | CH64: 6816 | CI64: 5732 | CJ64: 21 | CL64: 62 | CM64: 21542 | CO64: 2.070780757 | CP64: 32 | CQ64: -1723.748956 | CU64: 63 | CV64: 301.5504596 | CW64: 14.12586163 | CX64: 7791.802061 | CY64: 59437 | CZ64: 40807 | DA64: 163308 | DB64: -122501 | DC64: 87105 | DD64: 44619 | DG64: -487 | DH64: 1702 | DI64: 9915 | DJ64: 8197 | DK64: 0 | DL64: 0 | DM64: 1718 | DN64: 247 | DO64: 0 | DP64: 0 | DQ64: 1965 | DR64: 4944 | DS64: 9356 | DU64: -392 | DV64: -4000 | DW64: 1767 | DX64: 87105 | DY64: 72040 | DZ64: 9084 | EA64: 5981 | EB64: 21 | ED64: 90 | EE64: 67543 | EF64: 71554 | EG64: 82482 | EK64: -7264 | EL64: 64 | EM64: 2805 | EN64: -10658 | EO64: 530 | EP64: 788 | EQ64: -8875 | ER64: 208 | ES64: 1078 | ET64: 4000 | EX64: 4484 | EY64: 4000 | EZ64: 43418 | FA64: 31310 | FB64: 12108 | FC64: 5846 | FD64: 33067 | FE64: 26823 | FF64: 6244 | FG64: 6783 | FH64: 34823 | FI64: 26764 | FJ64: 8059 | FK64: 6408 | FL64: 3216.731412 | FM64: 2694.882612 | FN64: 2802 | FO64: 3430.47619 | FP64: 159.245947 | FS64: -7127 | FV64: 6948 | FW64: -6948
A65: 186 | B65: Järvenpää | C65: 39953 | E65: 5.336144578 | F65: 33.21295237 | G65: -1768.578079 | K65: 67.06640738 | L65: 2.80329387 | M65: 0.1649784091 | N65: 6202.037394 | O65: 103313 | P65: 47617 | Q65: 227595 | R65: -179978 | S65: 166876 | T65: 25647 | W65: -118 | X65: 428 | Y65: 12855 | Z65: 12687 | AC65: 168 | AD65: -568 | AE65: -96 | AG65: -496 | AH65: 54732 | AI65: 7066 | AK65: 1293 | AL65: -2058 | AM65: -7231 | AN65: 166876 | AO65: 152630 | AP65: 4206 | AQ65: 10040 | AR65: 19 | AT65: 131 | AU65: 40390 | AW65: 10.49749463 | AX65: 40.9473862 | AY65: -2210.769993 | BC65: 62.49922224 | BD65: 51.86927457 | BE65: 2.865303477 | BF65: 6607.427581 | BG65: 101245 | BH65: 46205 | BI65: 230285 | BJ65: -184080 | BK65: 173505 | BL65: 24459 | BO65: -87 | BP65: 469 | BQ65: 14266 | BR65: 13371 | BS65: 2258 | BU65: 3153 | BV65: -249 | BW65: 450 | BY65: 3355 | BZ65: 58087 | CA65: 12874 | CC65: 224 | CD65: -1000 | CE65: -18540 | CF65: 173505 | CG65: 157015 | CH65: 4619 | CI65: 11871 | CJ65: 19.75 | CL65: 151 | CM65: 40900 | CO65: 15.98313659 | CP65: 44 | CQ65: -2442.273839 | CU65: 59 | CV65: 47.48166259 | CW65: 2.808793752 | CX65: 6170.195599 | CY65: 98243 | CZ65: 52885 | DA65: 242665 | DB65: -189780 | DC65: 175502 | DD65: 23150 | DG65: 221 | DH65: 293 | DI65: 9385 | DJ65: 15149 | DK65: 951 | DL65: 0 | DM65: -4813 | DN65: 220 | DO65: 0 | DP65: 0 | DQ65: -4593 | DR65: 53494 | DS65: 1829 | DU65: -661 | DV65: 0 | DW65: -10682 | DX65: 175502 | DY65: 158708 | DZ65: 4673 | EA65: 12121 | EB65: 19.75 | ED65: 218 | EE65: 89300 | EF65: 93842 | EG65: 105798 | EK65: -19983 | EL65: 316 | EM65: 5370 | EN65: -36619 | EO65: 704 | EP65: 4501 | EQ65: -22377 | ER65: 303 | ES65: 9563 | EU65: 7237 | EW65: 17820 | EX65: 500 | EY65: 11309 | EZ65: 45818 | FA65: 1500 | FB65: 44318 | FC65: 5009 | FD65: 62637 | FE65: 500 | FF65: 62137 | FG65: 5009 | FH65: 73500 | FI65: 0 | FJ65: 73500 | FK65: 4991 | FL65: 4298.726003 | FM65: 4950.037138 | FN65: 6168 | FO65: 8035.848101 | FP65: 196.4755037 | FS65: -12719 | FV65: 2326 | FW65: -2326
A66: 202 | B66: Kaarina | C66: 31798 | E66: 14.68718593 | F66: 51.76746281 | G66: -2109.189257 | K66: 50.73558144 | L66: 687.7162086 | M66: 43.05328112 | N66: 5830.36669 | O66: 72346 | P66: 30795 | Q66: 177850 | R66: -147055 | S66: 128457 | T66: 29364 | W66: 501 | X66: 85 | Y66: 11352 | Z66: 7494 | AC66: 3858 | AD66: 17 | AG66: 3875 | AH66: 23610 | AI66: 9916 | AK66: 869 | AL66: -457 | AM66: 2937 | AN66: 128457 | AO66: 117808 | AP66: 4930 | AQ66: 5719 | AR66: 19 | AT66: 108 | AU66: 32148 | AW66: 11.26934524 | AX66: 48.97731837 | AY66: -2249.906682 | BC66: 52.04063521 | BD66: 387.7379619 | BE66: 23.38601072 | BF66: 6051.667289 | BG66: 74547 | BH66: 31213 | BI66: 180903 | BJ66: -149690 | BK66: 126692 | BL66: 29317 | BO66: 851 | BP66: 237 | BQ66: 7407 | BR66: 7696 | BU66: -289 | BV66: 17 | BY66: -272 | BZ66: 23338 | CA66: 5321 | CC66: 948 | CD66: -507 | CE66: -5354 | CF66: 126692 | CG66: 115789 | CH66: 4746 | CI66: 6157 | CJ66: 19 | CL66: 223 | CM66: 32590 | CO66: 13.54699248 | CP66: 52 | CQ66: -2426.541884 | CU66: 50 | CV66: 359.3433569 | CW66: 22.41627685 | CX66: 5851.119975 | CY66: 77811 | CZ66: 32552 | DA66: 184769 | DB66: -152217 | DC66: 129819 | DD66: 28403 | DG66: 743 | DH66: 692 | DI66: 7132 | DJ66: 7877 | DK66: 0 | DL66: 0 | DM66: -745 | DN66: 17 | DO66: 0 | DP66: 0 | DQ66: -728 | DR66: 22610 | DS66: 4567 | DU66: -1545 | DV66: 0 | DW66: -6867 | DX66: 129819 | DY66: 118694 | DZ66: 4671 | EA66: 6454 | EB66: 19.25 | ED66: 224 | EE66: 80592 | EF66: 81070 | EG66: 80757 | EK66: -8856 | EM66: 1877 | EN66: -13435 | EO66: 459 | EP66: 2301 | EQ66: -14646 | ER66: 67 | ES66: 3145 | EU66: 10000 | EW66: -5000 | EX66: 457 | EY66: 8000 | EZ66: 62077 | FA66: 1620 | FB66: 60457 | FC66: 2385 | FD66: 56570 | FE66: 1113 | FF66: 55457 | FG66: 2291 | FH66: 64114 | FI66: 657 | FJ66: 63457 | FK66: 2291 | FL66: 3298.352098 | FM66: 3128.09506 | FN66: 3231 | FO66: 6165.922078 | FP66: 189.1967499 | FS66: -11202 | FV66: 460 | FW66: -460
A67: 204 | B67: Kaavi | C67: 3261 | E67: 1.448445172 | F67: 24.78583666 | G67: -1288.255136 | K67: 59.01584765 | L67: 249.0033732 | M67: 11.81926942 | N67: 7689.665747 | O67: 7432 | P67: 3365 | Q67: 23833 | R67: -20468 | S67: 8498 | T67: 12651 | W67: -82 | X67: 203 | Y67: 802 | Z67: 688 | AA67: 70 | AC67: 184 | AD67: 45 | AG67: 229 | AH67: -419 | AI67: 812 | AK67: -23 | AL67: -528 | AM67: 409 | AN67: 8498 | AO67: 6993 | AP67: 698 | AQ67: 807 | AR67: 20.5 | AT67: 173 | AU67: 3214 | AW67: 1.987321712 | AX67: 20.56222363 | AY67: -1146.54636 | BC67: 64.03024729 | BD67: 182.0161792 | BE67: 8.32553515 | BF67: 7979.77598 | BG67: 7364 | BH67: 3277 | BI67: 24267 | BJ67: -20990 | BK67: 9084 | BL67: 12967 | BO67: -57 | BP67: 183 | BQ67: 1187 | BR67: 651 | BU67: 536 | BV67: 45 | BY67: 581 | BZ67: 162 | CA67: 1180 | CC67: 124 | CD67: -564 | CE67: 521 | CF67: 9084 | CG67: 7354 | CH67: 834 | CI67: 896 | CJ67: 20.5 | CL67: 141 | CM67: 3194 | CO67: 1.300955414 | CP67: 33 | CQ67: -1853.788353 | CU67: 53 | CV67: 393.550407 | CW67: 14.95258115 | CX67: 9606.76268 | CY67: 7313 | CZ67: 3474 | DA67: 24720 | DB67: -21246 | DC67: 9268 | DD67: 12524 | DG67: -49 | DH67: 431 | DI67: 758 | DJ67: 709 | DK67: 0 | DL67: 0 | DM67: 49 | DN67: 267 | DO67: 0 | DP67: 0 | DQ67: 316 | DR67: 478 | DS67: 905 | DU67: -113 | DV67: -3000 | DW67: -2207 | DX67: 9268 | DY67: 7342 | DZ67: 949 | EA67: 977 | EB67: 21.25 | ED67: 214 | EE67: 13543 | EF67: 13935 | EG67: 14423 | EK67: -623 | EL67: 13 | EM67: 207 | EN67: -711 | EO67: 8 | EP67: 44 | EQ67: -3919 | ER67: 706 | ES67: 101 | EX67: 569 | EY67: 0 | EZ67: 3832 | FA67: 3267 | FB67: 565 | FC67: 441 | FD67: 3267 | FE67: 2697 | FF67: 570 | FG67: 441 | FH67: 5698 | FI67: 5123 | FJ67: 575 | FK67: 441 | FL67: 3127.261576 | FM67: 3406.65837 | FN67: 4440 | FO67: =(DY67/EB67) -> 345.5058824 | FP67: =(FO67/CM67)*1000 -> 108.1734134 | FS67: -3284 | FV67: 479 | FW67: =FV67*-1 -> -479
A68: 205 | B68: Kajaani | C68: 37868 | E68: 1.836327345 | F68: 35.24783425 | G68: -2315.385022 | K68: 68.56852738 | L68: 160.3464667 | M68: 5.507120334 | N68: 10627.41629 | O68: 103960 | P68: 51588 | Q68: 281015 | R68: -229427 | S68: 135261 | T68: 113163 | W68: -40 | X68: 4616 | Y68: 23573 | Z68: 13278 | AA68: 79366 | AC68: 89661 | AD68: -1173 | AE68: 589 | AF68: 1252 | AG68: 90329 | AH68: 77280 | AI68: 25344 | AK68: 816 | AL68: -12260 | AM68: 61777 | AN68: 135261 | AO68: 121014 | AP68: 5201 | AQ68: 9046 | AR68: 21 | AT68: 28 | AU68: 37791 | AW68: 1.516526248 | AX68: 36.72555519 | AY68: -2294.064724 | BC68: 69.01463558 | BD68: 0 | BE68: 0 | BF68: 7973.935593 | BG68: 94825 | BH68: 49790 | BI68: 271896 | BJ68: -222106 | BK68: 137144 | BL68: 99420 | BO68: 3496 | BP68: 1797 | BQ68: 19751 | BR68: 13037 | BU68: 6714 | BV68: 276 | BW68: -2100 | BX68: 317 | BY68: 5207 | BZ68: 80652 | CA68: 19543 | CC68: -12516 | CD68: -12578 | CE68: 9642 | CF68: 137144 | CG68: 121533 | CH68: 5767 | CI68: 9844 | CJ68: 21 | CL68: 65 | CM68: 37622 | CO68: 0.9323984178 | CP68: 41 | CQ68: -2725.958216 | CU68: 66 | CV68: 117.4578704 | CW68: 4.937868518 | CX68: 8682.31354 | CY68: 94305 | CZ68: 50124 | DA68: 280901 | DB68: -230777 | DC68: 138123 | DD68: 99516 | DG68: 3344 | DH68: 2537 | DI68: 11724 | DJ68: 13351 | DK68: 0 | DL68: 0 | DM68: -1627 | DN68: 247 | DO68: -2500 | DP68: 2915 | DQ68: -965 | DR68: 73687 | DS68: 11498 | DU68: 6931 | DV68: -25000 | DW68: -14245 | DX68: =DC68 -> 138123 | DY68: 122195 | DZ68: 6127 | EA68: 9801 | EB68: 21 | ED68: 164 | EE68: 142653 | EF68: 142160 | EG68: 150787 | EK68: -46064 | EL68: 2511 | EM68: 79986 | EN68: -15932 | EO68: 1161 | EP68: 4870 | EQ68: -27107 | ER68: 1122 | ES68: 242 | ET68: 19445 | EU68: -7071 | EV68: 555 | EW68: 2706 | EX68: 12664 | EY68: 4740 | EZ68: 82384 | FA68: 69806 | FB68: 12578 | FC68: 69551 | FD68: 73067 | FE68: 58947 | FF68: 14120 | FG68: 69846 | FH68: 90143 | FI68: 69858 | FJ68: 20285 | FK68: 70994 | FL68: 8217.069821 | FM68: 8098.674288 | FN68: 8129 | FO68: 5818.809524 | FP68: 154.6650769 | FS68: -23714 | FV68: 9462 | FW68: -9462
A69: 208 | B69: Kalajoki | C69: 12644 | E69: 1.045562599 | F69: 56.61817233 | G69: -2056.232205 | K69: 55.45307286 | L69: 1195.665929 | M69: 56.67697206 | N69: 7700.094907 | O69: 44322 | P69: 24143 | Q69: 83824 | R69: -59681 | S69: 35447 | T69: 28891 | W69: -173 | X69: 465 | Y69: 4949 | Z69: 4482 | AC69: 467 | AD69: 73 | AG69: 540 | AH69: 11922 | AI69: 4034 | AK69: 1816 | AL69: -4719 | AM69: -2910 | AN69: 35447 | AO69: 31542 | AP69: 1943 | AQ69: 1962 | AR69: 19.5 | AT69: 91 | AU69: 12632 | AW69: 1.540954274 | AX69: 52.88752791 | AY69: -1942.447752 | BC69: 57.98266626 | BD69: 1215.167828 | BE69: 53.52928812 | BF69: 8285.861305 | BG69: 44063 | BH69: 24573 | BI69: 83775 | BJ69: -59202 | BK69: 36666 | BL69: 29439 | BO69: -100 | BP69: 714 | BQ69: 7517 | BR69: 5646 | BS69: 2146 | BU69: 4017 | BV69: 73 | BY69: 4090 | BZ69: 16012 | CA69: 7331 | CC69: 858 | CD69: -4796 | CE69: 1446 | CF69: 36666 | CG69: 32145 | CH69: 2298 | CI69: 2223 | CJ69: 19.5 | CL69: 39 | CM69: 12621 | CO69: 1.615083026 | CP69: 52 | CQ69: -1873.306394 | CU69: 59 | CV69: 1230.885033 | CW69: 60.72258514 | CX69: 7398.779811 | CY69: 43231 | CZ69: 21869 | DA69: 83325 | DB69: -61456 | DC69: 38461 | DD69: 29439 | DG69: -88 | DH69: 461 | DI69: 6793 | DJ69: 5007 | DK69: 438 | DL69: 0 | DM69: 2224 | DN69: 54 | DO69: 0 | DP69: 0 | DQ69: 2278 | DR69: 18382 | DS69: 6513 | DU69: 599 | DV69: -10651 | DW69: 1503 | DX69: 38461 | DY69: 32831 | DZ69: 2933 | EA69: 2697 | EB69: 20 | ED69: 60 | EE69: 29985 | EF69: 29510 | EG69: 30171 | EK69: -8658 | EL69: 500 | EM69: 1214 | EN69: -15983 | EO69: 908 | EP69: 9190 | EQ69: -8979 | ER69: 1542 | ES69: 2427 | EU69: 7000 | EW69: 1900 | EX69: 4126 | EY69: -7400 | EZ69: 36438 | FA69: 8219 | FB69: 28219 | FC69: 1471 | FD69: 33542 | FE69: 4516 | FF69: 29026 | FG69: 1467 | FH69: 32666 | FI69: 12604 | FJ69: 20062 | FK69: 2064 | FL69: 4471.686175 | FM69: 4501.820773 | FN69: 4341 | FO69: 1641.55 | FP69: 130.0649711 | FS69: -7109 | FV69: 3053 | FW69: -3053
A70: 211 | B70: Kangasala | C70: 30345 | E70: 1.847129008 | F70: 48.0126945 | G70: -1455.231504 | K70: 53.50311176 | L70: 1190.673917 | M70: 58.21638098 | N70: 7465.183721 | O70: 89903 | P70: 48287 | Q70: 182548 | R70: -134261 | S70: 114831 | T70: 34846 | W70: -1111 | X70: 1899 | Y70: 16204 | Z70: 12505 | AA70: 2709 | AC70: 6408 | AD70: 13 | AG70: 6422 | AH70: 45237 | AI70: 13388 | AK70: 1616 | AL70: -8253 | AM70: -5416 | AN70: 114831 | AO70: 105966 | AP70: 2698 | AQ70: 6167 | AR70: 20 | AT70: 48 | AU70: 30471 | AW70: 1.139286717 | AX70: 50.74824465 | AY70: -1706.245282 | BC70: 52.20896454 | BD70: 1151.357028 | BE70: 58.18182025 | BF70: 7222.966099 | BG70: 88886 | BH70: 43841 | BI70: 184538 | BJ70: -140697 | BK70: 115742 | BL70: 34596 | BO70: -1307 | BP70: 2514 | BQ70: 10848 | BR70: 12600 | BU70: -1752 | BV70: 10 | BY70: -1742 | BZ70: 43495 | CA70: 10366 | CC70: 3280 | CD70: -9360 | CE70: -7669 | CF70: 115742 | CG70: 105852 | CH70: 3242 | CI70: 6648 | CJ70: 20.5 | CL70: 146 | CM70: 30607 | CO70: 1.628816238 | CP70: 46 | CQ70: -1560.198647 | CU70: 54 | CV70: 1187.70216 | CW70: 66.62321686 | CX70: 6506.910184 | CY70: 87242 | CZ70: 47337 | DA70: 187851 | DB70: -140514 | DC70: 121621 | DD70: 35982 | DG70: -1202 | DH70: 2727 | DI70: 18366 | DJ70: 12707 | DK70: 0 | DL70: 0 | DM70: 5659 | DN70: 10 | DO70: 0 | DP70: 0 | DQ70: 5669 | DR70: 49165 | DS70: 17068 | DU70: 740 | DV70: -7000 | DW70: 4073 | DX70: 121621 | DY70: 111088 | DZ70: 3781 | EA70: 6752 | EB70: 21 | ED70: 43 | EE70: 68014 | EF70: 69498 | EG70: 71890 | EK70: -26457 | EL70: 110 | EM70: 7543 | EN70: -19127 | EO70: 307 | EP70: 785 | EQ70: -15759 | ER70: 361 | ES70: 2403 | ET70: 13000 | EU70: 4205 | EV70: 16000 | EW70: -4205 | EX70: 10807 | EY70: 0 | EZ70: 63704 | FA70: 50139 | FB70: 13565 | FC70: 109 | FD70: 66139 | FE70: 55683 | FF70: 10456 | FG70: 78 | FH70: 62333 | FI70: 51480 | FJ70: 10853 | FK70: 46 | FL70: 3906.145988 | FM70: 4014.669686 | FN70: 3752 | FO70: 5289.904762 | FP70: 172.8331676 | FS70: -16580 | FV70: 7141 | FW70: -7141
A71: 213 | B71: Kangasniemi | C71: 5801 | E71: 1.814096916 | F71: 39.28222249 | G71: -2387.519393 | K71: 57.13833569 | L71: 91.01878986 | M71: 4.421806167 | N71: 7513.187381 | O71: 18700 | P71: 5177 | Q71: 40118 | R71: -34941 | S71: 16865 | T71: 19893 | W71: -50 | X71: 208 | Y71: 1975 | Z71: 1332 | AA71: 459 | AC71: 1102 | AG71: 1102 | AH71: 5051 | AI71: 1896 | AK71: -361 | AL71: -1051 | AM71: 379 | AN71: 16865 | AO71: 13617 | AP71: 1839 | AQ71: 1409 | AR71: 20 | AT71: 116 | AU71: 5693 | AW71: 1.366336634 | AX71: 41.22593908 | AY71: -2572.457404 | BC71: 55.61410141 | BD71: 169.1551028 | BE71: 7.801638034 | BF71: 7913.929387 | BG71: 18982 | BH71: 5391 | BI71: 41478 | BJ71: -36087 | BK71: 17550 | BL71: 19867 | BO71: -25 | BP71: 154 | BQ71: 1459 | BR71: 1391 | BU71: 68 | BY71: 68 | BZ71: 5119 | CA71: 1427 | CC71: 57 | CD71: -1051 | CE71: -965 | CF71: 17550 | CG71: 13865 | CH71: 2134 | CI71: 1551 | CJ71: 20 | CL71: 212 | CM71: 5628 | CO71: 2 | CP71: 55 | CQ71: -3361.940299 | CU71: 50 | CV71: 98.08102345 | CW71: 3.814464218 | CX71: 9385.216773 | CY71: 18308 | CZ71: 5413 | DA71: 40731 | DB71: -35318 | DC71: 18092 | DD71: 19138 | DG71: -36 | DH71: 241 | DI71: 2001 | DJ71: 1978 | DK71: 0 | DL71: 0 | DM71: 23 | DN71: 0 | DO71: 0 | DP71: 0 | DQ71: 23 | DR71: 5142 | DS71: 1466 | DU71: -1829 | DV71: -8000 | DW71: -4442 | DX71: 18092 | DY71: 13713 | DZ71: 2655 | EA71: 1724 | EB71: 20 | ED71: 142 | EE71: 16393 | EF71: 16982 | EG71: 17355 | EK71: -2221 | EL71: 4 | EM71: 700 | EN71: -2465 | EP71: 73 | EQ71: -8276 | ER71: 2145 | ES71: 223 | EU71: 760 | EW71: 1800 | EX71: 967 | EY71: -1700 | EZ71: 11410 | FA71: 4858 | FB71: 6552 | FC71: 1942 | FD71: 12158 | FE71: 3891 | FF71: 8267 | FG71: 1814 | FH71: 17490 | FI71: 11229 | FJ71: 6261 | FK71: 1665 | FL71: 3092.053094 | FM71: 3324.960478 | FN71: 4256 | FO71: 685.65 | FP71: 121.8283582 | FS71: -6479 | FV71: 1782 | FW71: -1782
A72: 214 | B72: Kankaanpää | C72: 11972 | E72: 0.3933962264 | F72: 57.04114993 | G72: -2828.015369 | K72: 26.23796004 | L72: 238.6401604 | M72: 12.38323972 | N72: 7033.995991 | O72: 22266 | P72: 9974 | Q72: 73625 | R72: -63651 | S72: 38712 | T72: 25494 | W72: -218 | X72: 1056 | Y72: 1393 | Z72: 2523 | AC72: -1130 | AG72: -1130 | AH72: -572 | AI72: 1231 | AK72: 220 | AL72: -3965 | AM72: -4959 | AN72: 38712 | AO72: 33848 | AP72: 2337 | AQ72: 2527 | AR72: 21 | AT72: 236 | AU72: 11883 | AW72: 0.8997529848 | AX72: 52.75918858 | AY72: -2827.23218 | BC72: 28.51750595 | BD72: 217.7059665 | BE72: 11.28169132 | BF72: 7043.507532 | BG72: 21864 | BH72: 10021 | BI72: 73397 | BJ72: -63376 | BK72: 40352 | BL72: 26261 | BO72: -274 | BP72: 1111 | BQ72: 4074 | BR72: 2970 | BU72: 1104 | BY72: 1104 | BZ72: 532 | CA72: 4074 | CC72: 1320 | CD72: -4561 | CE72: 180 | CF72: 40352 | CG72: 35178 | CH72: 2447 | CI72: 2727 | CJ72: 21.5 | CL72: 155 | CM72: 11769 | CO72: 0.5732098999 | CP72: 57 | CQ72: -3271.815787 | CU72: 27 | CV72: 145.2119976 | CW72: 7.141704067 | CX72: 7421.531141 | CY72: 22137 | CZ72: 9514 | DA72: 75078 | DB72: -65564 | DC72: 41345 | DD72: 26144 | DG72: -220 | DH72: 1129 | DI72: 2802 | DJ72: 2508 | DK72: 0 | DL72: 0 | DM72: 294 | DN72: 0 | DO72: 0 | DP72: 0 | DQ72: 294 | DR72: 825 | DS72: 2740 | DU72: 764 | DV72: -8000 | DW72: -4962 | DX72: 41345 | DY72: 35602 | DZ72: 2595 | EA72: 3148 | EB72: 21.5 | ED72: 211 | EE72: 44791 | EF72: 44705 | EG72: 46074 | EK72: -6469 | EL72: 20 | EM72: 259 | EN72: -4506 | EO72: 250 | EP72: 362 | EQ72: -8357 | ER72: 437 | ES72: 218 | ET72: 10000 | EV72: 5000 | EX72: 5061 | EY72: 0 | EZ72: 31005 | FA72: 26444 | FB72: 4561 | FC72: 1748 | FD72: 31443 | FE72: 26382 | FF72: 5061 | FG72: 1682 | FH72: 34383 | FI72: 28721 | FJ72: 5662 | FK72: 1617 | FL72: 4608.586702 | FM72: 4747.454347 | FN72: 4947 | FO72: 1655.906977 | FP72: 140.7007373 | FS72: -7665 | FV72: 3569 | FW72: -3569
A73: 216 | B73: Kannonkoski | C73: 1520 | E73: 1.221507353 | F73: 68.28317679 | G73: -4709.868421 | K73: 54.14116338 | L73: 1396.052632 | M73: 42.58467121 | N73: 11965.78947 | O73: 4121 | P73: 5406 | Q73: 14506 | R73: -9100 | S73: 3964 | T73: 6281 | W73: -61 | X73: 148 | Y73: 1232 | Z73: 841 | AC73: 391 | AD73: 1 | AG73: 392 | AH73: 9128 | AI73: 1231 | AK73: 127 | AL73: -991 | AM73: -342 | AN73: 3964 | AO73: 3247 | AP73: 425 | AQ73: 292 | AR73: 20 | AT73: 10 | AU73: 1475 | AW73: 1.125560538 | AX73: 66.28116645 | AY73: -4182.372881 | BC73: 55.18586893 | BD73: 1943.050847 | BE73: 58.86500478 | BF73: 12048.13559 | BG73: 4147 | BH73: 5484 | BI73: 14716 | BJ73: -9232 | BK73: 4220 | BL73: 6379 | BO73: -50 | BP73: 106 | BQ73: 1423 | BR73: 919 | BU73: 504 | BV73: 1 | BY73: 505 | BZ73: 9633 | CA73: 1421 | CC73: -215 | CD73: -1255 | CE73: 973 | CF73: 4220 | CG73: 3305 | CH73: 493 | CI73: 422 | CJ73: 21 | CL73: 8 | CM73: 1462 | CO73: 1.28116939 | CP73: 65 | CQ73: -3664.158687 | CU73: 58 | CV73: 2006.839945 | CW73: 70.10408484 | CX73: 10448.70041 | CY73: 4081 | CZ73: 5284 | DA73: 14392 | DB73: -9108 | DC73: 4311 | DD73: 6196 | DG73: -39 | DH73: 68 | DI73: 1428 | DJ73: 943 | DK73: 0 | DL73: 37 | DM73: 448 | DN73: 1 | DO73: 0 | DP73: 0 | DQ73: 449 | DR73: 10377 | DS73: 1349 | DU73: -245 | DV73: -1300 | DW73: 552 | DX73: 4311 | DY73: 3343 | DZ73: 577 | EA73: 391 | EB73: 21 | ED73: 6 | EE73: 8643 | EF73: 8817 | EG73: 8599 | EK73: -2575 | EL73: 1000 | EM73: 2 | EN73: -1707 | EO73: 1159 | EP73: 100 | EQ73: -2121 | ER73: 1273 | ES73: 51 | ET73: 1620 | EU73: -70 | EV73: 1560 | EW73: -470 | EX73: 1101 | EY73: -240 | EZ73: 9288 | FA73: 5543 | FB73: 3745 | FC73: 0 | FD73: 9124 | FE73: 6013 | FF73: 3111 | FG73: 0 | FH73: 9082 | FI73: 6125 | FJ73: 2957 | FK73: 0 | FL73: 6770.394737 | FM73: 6842.033898 | FN73: 6870 | FO73: 159.1904762 | FP73: 108.8854146 | FS73: -568 | FV73: 707 | FW73: -707
A74: 217 | B74: Kannus | C74: 5675 | E74: 2.948148148 | F74: 47.41686634 | G74: -2663.788546 | K74: 49.22744692 | L74: 37.88546256 | M74: 2.003958121 | N74: 6900.440529 | O74: 9983 | P74: 3525 | Q74: 32636 | R74: -29111 | S74: 17516 | T74: 13181 | W74: -8 | X74: 0 | Y74: 1578 | Z74: 826 | AC74: 752 | AD74: 101 | AG74: 853 | AH74: 5282 | AI74: 1465 | AK74: 85 | AL74: -526 | AM74: -2851 | AN74: 17516 | AO74: 15532 | AP74: 1042 | AQ74: 942 | AR74: 20.5 | AT74: 156 | AU74: 5643 | AW74: 2.923913043 | AX74: 46.3549478 | AY74: -2549.707602 | BC74: 50.50364919 | BD74: 82.04855573 | BE74: 4.968979712 | BF74: 6026.936027 | BG74: 9775 | BH74: 3254 | BI74: 32437 | BJ74: -29183 | BK74: 17885 | BL74: 12866 | BO74: -18 | BP74: 39 | BQ74: 1589 | BR74: 1028 | BU74: 561 | BV74: 102 | BX74: -300 | BY74: 363 | BZ74: 5645 | CA74: 1562 | CC74: -16 | CD74: -526 | CE74: 754 | CF74: 17885 | CG74: 15667 | CH74: 1067 | CI74: 1151 | CJ74: 20.5 | CL74: 190 | CM74: 5590 | CO74: 3.226345083 | CP74: 47 | CQ74: -2419.856887 | CU74: 51 | CV74: 255.2772809 | CW74: 15.84783667 | CX74: 5879.427549 | CY74: 9442 | CZ74: 3058 | DA74: 32727 | DB74: -29669 | DC74: 18568 | DD74: 12824 | DG74: -6 | DH74: 16 | DI74: 1726 | DJ74: 1070 | DK74: 0 | DL74: 0 | DM74: 656 | DN74: 102 | DO74: 0 | DP74: 0 | DQ74: 758 | DR74: 6403 | DS74: 1717 | DU74: -156 | DV74: 0 | DW74: 846 | DX74: 18568 | DY74: 16114 | DZ74: 1147 | EA74: 1307 | EB74: 20.5 | ED74: 168 | EE74: 19847 | EF74: 19974 | EG74: 20557 | EK74: -5083 | EL74: 629 | EM74: 138 | EN74: -999 | EO74: 103 | EP74: 88 | EQ74: -897 | ER74: 0 | ES74: 26 | EU74: 5100 | EW74: 400 | EX74: 526 | EY74: 800 | EZ74: 13942 | FA74: 1316 | FB74: 12626 | FC74: 1314 | FD74: 13815 | FE74: 789 | FF74: 13026 | FG74: 1137 | FH74: 14089 | FI74: 263 | FJ74: 13826 | FK74: 774 | FL74: 4156.299559 | FM74: 4069.643806 | FN74: 4060 | FO74: 786.0487805 | FP74: 140.6169554 | FS74: -859 | FV74: 865 | FW74: -865
A75: 218 | B75: Karijoki | C75: 1462 | E75: -0.3179487179 | F75: 34.70771881 | G75: -1320.109439 | K75: 55.24424412 | L75: 727.0861833 | M75: 36.05566397 | N75: 7360.465116 | O75: 1759 | P75: 1046 | Q75: 9423 | R75: -8377 | S75: 3889 | T75: 4354 | W75: -24 | X75: 3 | Y75: -155 | Z75: 240 | AC75: -395 | AG75: -395 | AH75: 669 | AI75: -170 | AK75: -45 | AL75: -360 | AM75: -969 | AN75: 3889 | AO75: 3431 | AP75: 266 | AQ75: 192 | AR75: 21 | AT75: 294 | AU75: 1409 | AW75: 1.438692098 | AX75: 32.06364993 | AY75: -1327.182399 | BC75: 56.87181312 | BD75: 825.4080908 | BE75: 39.86617205 | BF75: 7557.132718 | BG75: 1795 | BH75: 1174 | BI75: 9540 | BJ75: -8366 | BK75: 4304 | BL75: 4577 | BO75: -26 | BP75: 7 | BQ75: 496 | BR75: 235 | BU75: 261 | BY75: 261 | BZ75: 930 | CA75: 497 | CC75: 40 | CD75: -335 | CE75: 65 | CF75: 4304 | CG75: 3785 | CH75: 290 | CI75: 229 | CJ75: 21.5 | CL75: 152 | CM75: 1369 | CO75: 1.374025974 | CP75: 35 | CQ75: -1135.865595 | CU75: 57 | CV75: 1164.353543 | CW75: 58.14030179 | CX75: 7309.715121 | CY75: 1724 | CZ75: 1109 | DA75: 9154 | DB75: -8045 | DC75: 4073 | DD75: 4481 | DG75: -20 | DH75: 9 | DI75: 494 | DJ75: 250 | DK75: 0 | DL75: 0 | DM75: 244 | DN75: 0 | DO75: 0 | DP75: 0 | DQ75: 244 | DR75: 1175 | DS75: 493 | DU75: -60 | DV75: -665 | DW75: 282 | DX75: 4073 | DY75: 3538 | DZ75: 301 | EA75: 234 | EB75: 22 | ED75: 139 | EE75: 6935 | EF75: 7033 | EG75: 6756 | EK75: -945 | EL75: 130 | EM75: 16 | EN75: -737 | EO75: 303 | EP75: 2 | EQ75: -215 | ER75: 3 | ES75: 1 | ET75: 1095 | EV75: 390 | EX75: 350 | EY75: 0 | EZ75: 2211 | FA75: 1875 | FB75: 336 | FC75: 165 | FD75: 2266 | FE75: 1946 | FF75: 320 | FG75: 132 | FH75: 2580 | FI75: 2273 | FJ75: 307 | FK75: 99 | FL75: 1963.74829 | FM75: 2148.33215 | FN75: 2471 | FO75: 160.8181818 | FP75: 117.4712796 | FS75: -211 | FV75: 342 | FW75: -342
A76: 224 | B76: Karkkila | C76: 9074 | E76: 0.6572706935 | F76: 83.62007756 | G76: -4762.61847 | K76: 12.03620429 | L76: 182.9402689 | M76: 10.1477189 | N76: 6580.119021 | O76: 14129 | P76: 7371 | Q76: 52117 | R76: -44746 | S76: 32354 | T76: 15202 | W76: -586 | X76: 120 | Y76: 2344 | Z76: 1814 | AA76: 28 | AC76: 558 | AG76: 558 | AH76: -1061 | AI76: 2003 | AK76: -112 | AL76: -3881 | AM76: -518 | AN76: 32354 | AO76: 29327 | AP76: 1167 | AQ76: 1860 | AR76: 20.75 | AT76: 165 | AU76: 8977 | AW76: 0.7166666667 | AX76: 86.0952765 | AY76: -4876.573466 | BC76: 12.87991105 | BD76: 44.11273254 | BE76: 2.356105433 | BF76: 6833.797482 | BG76: 13387 | BH76: 7166 | BI76: 51544 | BJ76: -44378 | BK76: 31683 | BL76: 15708 | BO76: -496 | BP76: 122 | BQ76: 2639 | BR76: 1941 | BU76: 698 | BY76: 698 | BZ76: -401 | CA76: 2290 | CC76: -1744 | CD76: -3880 | CE76: -562 | CF76: 31683 | CG76: 28456 | CH76: 1206 | CI76: 2021 | CJ76: 20.75 | CL76: 180 | CM76: 8969 | CO76: 0.751651255 | CP76: 98 | CQ76: -5361.467276 | CU76: 13 | CV76: 256.5503401 | CW76: 11.49775484 | CX76: 8144.274724 | CY76: 13496 | CZ76: 7018 | DA76: 52106 | DB76: -45088 | DC76: 31856 | DD76: 16514 | DG76: -460 | DH76: 145 | DI76: 2952 | DJ76: 2011 | DK76: 8 | DL76: 40 | DM76: 909 | DN76: 0 | DO76: 0 | DP76: 0 | DQ76: 909 | DR76: 500 | DS76: 2550 | DU76: -1049 | DV76: -14250 | DW76: -4318 | DX76: 31856 | DY76: 28524 | DZ76: 1262 | EA76: 2070 | EB76: 20.75 | ED76: 153 | EE76: 34382 | EF76: 34632 | EG76: 34750 | EK76: -3113 | EM76: 592 | EN76: -5415 | EO76: 2131 | EP76: 432 | EQ76: -9608 | ER76: 2169 | ES76: 571 | EU76: 5800 | EV76: 10000 | EW76: -5000 | EX76: 4080 | EY76: -2500 | EZ76: 41520 | FA76: 15140 | FB76: 26380 | FC76: 0 | FD76: 42640 | FE76: 21060 | FF76: 21580 | FG76: 0 | FH76: 50310 | FI76: 29770 | FJ76: 20540 | FK76: 0 | FL76: 4915.252369 | FM76: 5091.121756 | FN76: 5985 | FO76: 1374.650602 | FP76: 153.2668751 | FS76: -8234 | FV76: 3101 | FW76: -3101
A77: 226 | B77: Karstula | C77: 4343 | E77: 1.52238806 | F77: 51.28646846 | G77: -3029.70297 | K77: 46.10630048 | L77: 713.7923095 | M77: 25.68322135 | N77: 10144.14 | O77: 13018 | P77: 10053 | Q77: 35827 | R77: -25774 | S77: 10949 | T77: 14988 | W77: 465 | X77: 25 | Y77: 653 | Z77: 1418 | AC77: -765 | AF77: 1500 | AG77: 735 | AH77: 739 | AI77: 653 | AK77: -870 | AL77: -408 | AM77: -5933 | AN77: 10949 | AO77: 9108 | AP77: 1166 | AQ77: 675 | AR77: 18.5 | AT77: 225 | AU77: 4286 | AW77: 5.790748899 | AX77: 46.38810198 | AY77: -2753.14979 | BC77: 48.48132201 | BD77: 1131.124592 | BE77: 46.62275386 | BF77: 8855.342977 | BG77: 13010 | BH77: 10322 | BI77: 35548 | BJ77: -25226 | BK77: 12120 | BL77: 15682 | BO77: -12 | BP77: 14 | BQ77: 2578 | BR77: 1727 | BU77: 851 | BX77: 642 | BY77: 1493 | BZ77: 2231 | CA77: 2578 | CC77: 1164 | CD77: -403 | CE77: 1095 | CF77: 12120 | CG77: 10094 | CH77: 1189 | CI77: 837 | CJ77: 19.5 | CL77: 38 | CM77: 4268 | CO77: 12.2300885 | CP77: 47 | CQ77: -2446.344892 | CU77: 50 | CV77: 1121.836926 | CW77: 52.39297278 | CX77: 7815.370197 | CY77: 12484 | CZ77: 9681 | DA77: 34434 | DB77: -24753 | DC77: 12328 | DD77: 15067 | DG77: 19 | DH77: 77 | DI77: 2738 | DJ77: 1892 | DK77: 0 | DL77: 0 | DM77: 846 | DN77: 0 | DO77: 0 | DP77: 0 | DQ77: 846 | DR77: 3299 | DS77: 2738 | DU77: -1254 | DV77: 0 | DW77: 1690 | DX77: 12328 | DY77: 10168 | DZ77: 1234 | EA77: 926 | EB77: 20 | ED77: 33 | EE77: 20016 | EF77: 19763 | EG77: 19467 | EK77: -7730 | EL77: 1040 | EM77: 104 | EN77: -1940 | EO77: 68 | EP77: 389 | EQ77: -1082 | ER77: 0 | ES77: 34 | EU77: 1995 | EX77: 200 | EY77: 200 | EZ77: 15003 | FA77: 600 | FB77: 14403 | FC77: 850 | FD77: 14600 | FE77: 200 | FF77: 14400 | FG77: 823 | FH77: 14600 | FI77: 0 | FJ77: 14600 | FK77: 1057 | FL77: 4853.327193 | FM77: 4881.941204 | FN77: 4964 | FO77: 508.4 | FP77: 119.1190253 | FS77: -1132 | FV77: 291 | FW77: -291
A78: 230 | B78: Karvia | C78: 2523 | E78: 326.6666667 | F78: 9.240015024 | G78: 78.08164883 | K78: 90.03666302 | L78: 377.7249306 | M78: 21.94051974 | N78: 6283.78914 | O78: 3983 | P78: 1366 | Q78: 15410 | R78: -14044 | S78: 6074 | T78: 8534 | W78: 6 | X78: 407 | Y78: 977 | Z78: 787 | AC78: 190 | AG78: 191 | AH78: 8784 | AI78: 988 | AK78: -80 | AL78: 0 | AM78: 775 | AN78: 6074 | AO78: 5326 | AP78: 442 | AQ78: 306 | AR78: 19.75 | AT78: 95 | AU78: 2491 | AW78: 1695 | AX78: 7.870509658 | AY78: 538.7394621 | BC78: 91.64867699 | BD78: 676.4351666 | BE78: 38.63222362 | BF78: 6391.007627 | BG78: 3999 | BH78: 1588 | BI78: 15361 | BJ78: -13773 | BK78: 6295 | BL78: 8736 | BO78: 7 | BP78: 429 | BQ78: 1694 | BR78: 833 | BU78: 861 | BY78: 861 | BZ78: 9645 | CA78: 1692 | CC78: -244 | CE78: 1172 | CF78: 6295 | CG78: 5416 | CH78: 518 | CI78: 361 | CJ78: 19.75 | CL78: 25 | CM78: 2475 | CP78: 9 | CQ78: 801.6161616 | CU78: 90 | CV78: 1179.79798 | CW78: 63.64124918 | CX78: 6766.464646 | CY78: 3924 | CZ78: 1489 | DA78: 15993 | DB78: -14504 | DC78: 6660 | DD78: 8674 | DG78: 0 | DH78: 415 | DI78: 1243 | DJ78: 830 | DK78: 0 | DL78: 0 | DM78: 413 | DN78: 0 | DO78: 0 | DP78: 0 | DQ78: 413 | DR78: 10058 | DS78: 1243 | DU78: 375 | DV78: 0 | DW78: 480 | DX78: 6660 | DY78: 5635 | DZ78: 612 | EA78: 413 | EB78: 19.75 | ED78: 71 | EE78: 10139 | EF78: 10046 | EG78: 10715 | EK78: -438 | EL78: 36 | EM78: 188 | EN78: -556 | EO78: 34 | EP78: 2 | EQ78: -772 | ER78: 8 | ES78: 1 | EU78: -150 | EW78: -500 | EX78: 0 | EY78: 0 | EZ78: 500 | FA78: 0 | FB78: 500 | FC78: 246 | FD78: 0 | FE78: 0 | FF78: 0 | FG78: 246 | FH78: 0 | FI78: 0 | FJ78: 0 | FK78: 246 | FL78: 2732.857709 | FM78: 2855.881172 | FN78: 2802 | FO78: 285.3164557 | FP78: 115.279376 | FS78: -580 | FV78: 17 | FW78: -17
A79: 231 | B79: Kaskinen | C79: 1350 | E79: 27 | F79: 38.87435736 | G79: -2290.37037 | K79: 77.04651529 | L79: 434.8148148 | M79: 19.82007401 | N79: 8007.407407 | O79: 4381 | P79: 3062 | Q79: 9951 | R79: -6889 | S79: 6570 | T79: 1455 | W79: -43 | X79: 25 | Y79: 1118 | Z79: 918 | AA79: 41 | AC79: 241 | AG79: 241 | AH79: 9982 | AI79: 1118 | AK79: 106 | AL79: 0 | AM79: 572 | AN79: 6570 | AO79: 4903 | AP79: 1106 | AQ79: 561 | AR79: 21 | AT79: 8 | AU79: 1324 | AW79: 0.8927576602 | AX79: 48.08822113 | AY79: -2873.111782 | BC79: 74.05699057 | BD79: 506.0422961 | BE79: 20.38086507 | BF79: 9062.688822 | BG79: 3996 | BH79: 2729 | BI79: 9755 | BJ79: -7026 | BK79: 6130 | BL79: 1524 | BO79: -36 | BP79: 13 | BQ79: 605 | BR79: 883 | BS79: 36 | BU79: -242 | BY79: -241 | BZ79: 9740 | CA79: 605 | CC79: 97 | CD79: -682 | CE79: -716 | CF79: 6130 | CG79: 4702 | CH79: 868 | CI79: 560 | CJ79: 21 | CL79: 89 | CM79: 1285 | CO79: -0.06304985337 | CP79: 46 | CQ79: -3102.723735 | CU79: 74 | CV79: 95.71984436 | CW79: 4.564819522 | CX79: 7653.696498 | CY79: 4208 | CZ79: 2464 | DA79: 10160 | DB79: -7696 | DC79: 6192 | DD79: 1494 | DG79: 0 | DH79: -28 | DI79: -43 | DJ79: 902 | DK79: 0 | DL79: 0 | DM79: -945 | DN79: 0 | DO79: 0 | DP79: 0 | DQ79: -945 | DR79: 8795 | DS79: -43 | DU79: -68 | DV79: 0 | DW79: -182 | DX79: 6192 | DY79: 4692 | DZ79: 892 | EA79: 608 | EB79: 21 | ED79: 290 | EE79: 4431 | EF79: 4704 | EG79: 4928 | EK79: -816 | EL79: 157 | EM79: 113 | EN79: -1526 | EO79: 143 | EP79: 62 | EQ79: -368 | ER79: 229 | ES79: 0 | EV79: 1400 | EX79: 682 | EY79: 0 | EZ79: 3068 | FA79: 3068 | FB79: 0 | FC79: 0 | FD79: 3786 | FE79: 3786 | FF79: 0 | FG79: 0 | FH79: 3104 | FI79: 3104 | FJ79: 0 | FK79: 0 | FL79: 2939.259259 | FM79: 3463.746224 | FN79: 3097 | FO79: 223.4285714 | FP79: 173.8743747 | FS79: -319 | FV79: 0 | FW79: 0
A80: 232 | B80: Kauhajoki | C80: 14081 | E80: 1.331560284 | F80: 57.96963871 | G80: -3874.085647 | K80: 31.79249262 | L80: 736.0272708 | M80: 26.95611897 | N80: 9966.195583 | O80: 24423 | P80: 47158 | Q80: 125443 | R80: -78285 | S80: 43307 | T80: 35087 | W80: -1055 | X80: 5875 | Y80: 4929 | Z80: 4248 | AC80: 681 | AD80: 52 | AG80: 733 | AH80: -11222 | AI80: 4316 | AK80: -106 | AL80: -3433 | AM80: -5430 | AN80: 43307 | AO80: 37492 | AP80: 2996 | AQ80: 2819 | AR80: 21.5 | AT80: 112 | AU80: 14007 | AW80: 0.7897925464 | AX80: 57.06459551 | AY80: -4022.060398 | BC80: 30.99463865 | BD80: 712.0011423 | BE80: 26.84334142 | BF80: 9681.373599 | BG80: 23314 | BH80: 46763 | BI80: 124705 | BJ80: -77942 | BK80: 44840 | BL80: 36110 | BO80: -1091 | BP80: 1255 | BQ80: 3172 | BR80: 4314 | BU80: -1142 | BV80: 45 | BY80: -1097 | BZ80: -10319 | CA80: 2959 | CC80: 1251 | CD80: -4317 | CE80: -1929 | CF80: 44840 | CG80: 38090 | CH80: 3395 | CI80: 3355 | CJ80: 22 | CL80: 225 | CM80: 13875 | CO80: 0.9514401773 | CP80: 55 | CQ80: -4004.396396 | CU80: 31 | CV80: 878.8468468 | CW80: 33.06669341 | CX80: 9700.972973 | CY80: 23275 | CZ80: 46041 | DA80: 128273 | DB80: -82232 | DC80: 46722 | DD80: 37291 | DG80: -1075 | DH80: 5401 | DI80: 4061 | DJ80: 4317 | DK80: 0 | DL80: 0 | DM80: -256 | DN80: 43 | DO80: 0 | DP80: 0 | DQ80: -213 | DR80: -10393 | DS80: 4010 | DU80: 2179 | DV80: -3700 | DW80: 601 | DX80: 46722 | DY80: 39413 | DZ80: 3910 | EA80: 3399 | EB80: 22 | ED80: 179 | EE80: 93896 | EF80: 94870 | EG80: 98455 | EK80: -10566 | EL80: 12 | EM80: 808 | EN80: -5570 | EO80: 166 | EP80: 516 | EQ80: -3567 | ER80: 0 | ES80: 158 | ET80: 15600 | EU80: -3950 | EV80: 4100 | EW80: -700 | EX80: 4324 | EY80: 0 | EZ80: 60673 | FA80: 48259 | FB80: 12414 | FC80: 1450 | FD80: 59756 | FE80: 48025 | FF80: 11731 | FG80: 1314 | FH80: 59133 | FI80: 47216 | FJ80: 11917 | FK80: 1272 | FL80: 6387.046375 | FM80: 6354.822589 | FN80: 6256 | FO80: 1791.5 | FP80: 129.1171171 | FS80: -3452 | FV80: 3128 | FW80: -3128
A81: 233 | B81: Kauhava | C81: 17065 | E81: 0.77071949 | F81: 35.95435004 | G81: -1266.100205 | K81: 56.23302538 | L81: 793.8470554 | M81: 41.09996841 | N81: 7049.98535 | O81: 29217 | P81: 12755 | Q81: 106572 | R81: -93817 | S81: 53162 | T81: 43875 | W81: -251 | X81: 77 | Y81: 3046 | Z81: 3489 | AC81: -443 | AD81: -436 | AE81: 380 | AF81: 345 | AG81: -154 | AH81: 6159 | AI81: 3004 | AK81: -1149 | AL81: -4053 | AM81: -5722 | AN81: 53162 | AO81: 47123 | AP81: 3047 | AQ81: 2992 | AR81: 20.75 | AT81: 215 | AU81: 16908 | AW81: 1.167820069 | AX81: 38.41073506 | AY81: -1487.284126 | BC81: 54.29913332 | BD81: 771.173409 | BE81: 38.22248904 | BF81: 7364.206293 | BG81: 31509 | BH81: 12871 | BI81: 108723 | BJ81: -95852 | BK81: 56558 | BL81: 44888 | BO81: -404 | BP81: 362 | BQ81: 5552 | BR81: 4041 | BU81: 1511 | BV81: 260 | BX81: 3 | BY81: 1774 | BZ81: 7933 | CA81: 5344 | CC81: -1403 | CD81: -4679 | CE81: -3551 | CF81: 56558 | CG81: 49850 | CH81: 3483 | CI81: 3225 | CJ81: 21.75 | CL81: 167 | CM81: 16784 | CO81: 1.30945674 | CP81: 41 | CQ81: -1652.645377 | CU81: 54 | CV81: 878.991897 | CW81: 44.60644141 | CX81: 7192.504766 | CY81: 33725 | CZ81: 12723 | DA81: 108852 | DB81: -96129 | DC81: 56605 | DD81: 45568 | DG81: -300 | DH81: 422 | DI81: 6100 | DJ81: 3942 | DK81: 0 | DL81: 0 | DM81: 2158 | DN81: -299 | DO81: 387 | DP81: 93 | DQ81: 2339 | DR81: 10272 | DS81: 6095 | DU81: 1673 | DV81: -7000 | DW81: -2697 | DX81: 56605 | DY81: 48710 | DZ81: 3984 | EA81: 3911 | EB81: 21.75 | ED81: 138 | EE81: 70659 | EF81: 70654 | EG81: 68363 | EK81: -9156 | EL81: 267 | EM81: 163 | EN81: -10487 | EO81: 365 | EP81: 1227 | EQ81: -9637 | ER81: 0 | ES81: 779 | ET81: 10000 | EU81: 210 | EV81: 10000 | EW81: 527 | EX81: 4562 | EY81: -252 | EZ81: 30520 | FA81: 26503 | FB81: 4017 | FC81: 2896 | FD81: 36369 | FE81: 31824 | FF81: 4545 | FG81: 2898 | FH81: 38554 | FI81: 34262 | FJ81: 4292 | FK81: 2845 | FL81: 4781.658365 | FM81: 5650.46132 | FN81: 6179 | FO81: 2239.54023 | FP81: 133.4330452 | FS81: -8997 | FV81: 4056 | FW81: -4056
A82: 235 | B82: Kauniainen | C82: 9101 | F82: 13.49647391 | G82: -141.4130315 | K82: 90.54849492 | L82: 618.9429733 | M82: 28.75386337 | N82: 7856.82892 | O82: 33849 | P82: 11814 | Q82: 65258 | R82: -53444 | S82: 55974 | T82: 3112 | W82: 295 | X82: 140 | Y82: 6077 | Z82: 7062 | AC82: -985 | AG82: -985 | AH82: 39362 | AI82: 5387 | AK82: 347 | AL82: 0 | AM82: -280 | AN82: 55974 | AO82: 52278 | AP82: 906 | AQ82: 2790 | AR82: 16.5 | AT82: 24 | AU82: 9357 | AW82: 1646 | AX82: 17.37485089 | AY82: -603.3985252 | BC82: 87.68089918 | BD82: 448.1137117 | BE82: 19.27391222 | BF82: 8486.160094 | BG82: 34131 | BH82: 11836 | BI82: 68397 | BJ82: -56561 | BK82: 58978 | BL82: 2119 | BO82: 279 | BP82: 120 | BQ82: 4935 | BR82: 6473 | BU82: -1538 | BY82: -1538 | BZ82: 37860 | CA82: 4138 | CC82: -181 | CE82: -4266 | CF82: 58978 | CG82: 55011 | CH82: 1030 | CI82: 2937 | CJ82: 16.5 | CL82: 60 | CM82: 9486 | CO82: 4294.5 | CP82: 12 | CQ82: -185.2203247 | CU82: 90 | CV82: 519.3970061 | CW82: 26.45690201 | CX82: 7165.612482 | CY82: 34389 | CZ82: 18505 | DA82: 70562 | DB82: -52057 | DC82: 59940 | DD82: 325 | DG82: 267 | DH82: 130 | DI82: 8587 | DJ82: 6996 | DK82: 0 | DL82: 0 | DM82: 1591 | DN82: 0 | DO82: 0 | DP82: 0 | DQ82: 1591 | DR82: 39100 | DS82: 1640 | DU82: 170 | DV82: 0 | DW82: 3329 | DX82: 59940 | DY82: 54761 | DZ82: 1354 | EA82: 3825 | EB82: 16.5 | ED82: 8 | EE82: 22129 | EF82: 24614 | EG82: 26730 | EK82: -6243 | EL82: 132 | EM82: 444 | EN82: -10726 | EO82: 89 | EP82: 2233 | EQ82: -5783 | ER82: 0 | ES82: 7472 | EW82: 3000 | EX82: 0 | EY82: -4000 | EZ82: 1000 | FA82: 0 | FB82: 1000 | FC82: 6034 | FD82: 4000 | FE82: 0 | FF82: 4000 | FG82: 6037 | FH82: 0 | FI82: 0 | FJ82: 0 | FK82: 5620 | FL82: 2263.927041 | FM82: 2539.91664 | FN82: 2148 | FO82: 3318.848485 | FP82: 349.8680671 | FS82: 1794 | FV82: 0 | FW82: 0
A83: 236 | B83: Kaustinen | C83: 4288 | E83: 1.008417508 | F83: 66.65297092 | G83: -4388.059701 | K83: 26.99173722 | L83: 237.4067164 | M83: 10.43618695 | N83: 8303.171642 | O83: 11294 | P83: 7893 | Q83: 29855 | R83: -21962 | S83: 13772 | T83: 9975 | W83: -342 | X83: 9 | Y83: 1452 | Z83: 1338 | AC83: 114 | AG83: 114 | AH83: -1747 | AI83: 1431 | AK83: 71 | AL83: -1437 | AM83: -1737 | AN83: 13772 | AO83: 12224 | AP83: 882 | AQ83: 666 | AR83: 21 | AT83: 118 | AU83: 4283 | AW83: 1.503957784 | AX83: 76.74198473 | AY83: -5193.322438 | BC83: 26.50827934 | BD83: 281.8118141 | BE83: 10.46026545 | BF83: 9833.527901 | BG83: 11165 | BH83: 8418 | BI83: 29906 | BJ83: -21488 | BK83: 14887 | BL83: 9445 | BO83: -319 | BP83: 3 | BQ83: 2528 | BR83: 1261 | BU83: 1267 | BY83: 1267 | BZ83: -480 | CA83: 1904 | CC83: -428 | CD83: -1573 | CE83: -3474 | CF83: 14887 | CG83: 12825 | CH83: 1194 | CI83: 868 | CJ83: 21 | CL83: 41 | CM83: 4305 | CO83: 0.6314731021 | CP83: 95 | CQ83: -6506.852497 | CU83: 23 | CV83: 33.44947735 | CW83: 1.328715524 | CX83: 9188.617886 | CY83: 11188 | CZ83: 7138 | DA83: 29507 | DB83: -22369 | DC83: 14528 | DD83: 9090 | DG83: -309 | DH83: 6 | DI83: 946 | DJ83: 1113 | DK83: 0 | DL83: 0 | DM83: -167 | DN83: 0 | DO83: 0 | DP83: 0 | DQ83: -167 | DR83: -646 | DS83: 898 | DU83: 604 | DV83: -5000 | DW83: -5698 | DX83: 14528 | DY83: 12120 | DZ83: 1513 | EA83: 895 | EB83: 21.5 | ED83: 222 | EE83: 16046 | EF83: 15923 | EG83: 15964 | EH83: 555 | EK83: -3816 | EL83: 521 | EM83: 127 | EN83: -10299 | EO83: 784 | EP83: 4137 | EQ83: -6711 | ER83: 0 | ES83: 115 | ET83: 5000 | EU83: -600 | EV83: 3000 | EW83: 2300 | EX83: 1679 | EY83: 1100 | EZ83: 17601 | FA83: 16031 | FB83: 1570 | FC83: 0 | FD83: 21328 | FE83: 17349 | FF83: 3979 | FG83: 0 | FH83: 25749 | FI83: 20436 | FJ83: 5313 | FK83: 0 | FL83: 7579.524254 | FM83: 8402.288116 | FN83: 9546 | FO83: 563.7209302 | FP83: 130.9456284 | FS83: -6540 | FV83: 1503 | FW83: -1503
A84: 239 | B84: Keitele | C84: 2427 | E84: 2.826923077 | F84: 39.00551858 | G84: -2114.544705 | K84: 52.39448333 | L84: 48.6196951 | M84: 2.318083961 | N84: 7655.541821 | O84: 6677 | P84: 3168 | Q84: 17342 | R84: -14174 | S84: 6907 | T84: 7502 | W84: -26 | X84: 206 | Y84: 415 | Z84: 523 | AC84: -108 | AG84: -108 | AH84: -22 | AI84: 433 | AK84: -122 | AL84: -130 | AM84: -451 | AN84: 6907 | AO84: 5799 | AP84: 694 | AQ84: 414 | AR84: 19.5 | AT84: 220 | AU84: 2398 | AW84: 3.993548387 | AX84: 42.85231307 | AY84: -2605.504587 | BC84: 50.16032982 | BD84: 57.54795663 | BE84: 2.558931112 | BF84: 8208.507089 | BG84: 6707 | BH84: 3103 | BI84: 17308 | BJ84: -14205 | BK84: 7065 | BL84: 7579 | BO84: -25 | BP84: 180 | BQ84: 594 | BR84: 491 | BU84: 103 | BY84: 103 | BZ84: 83 | CA84: 568 | CC84: 386 | CD84: -130 | CE84: -1142 | CF84: 7065 | CG84: 5827 | CH84: 779 | CI84: 459 | CJ84: 19.5 | CL84: 218 | CM84: 2379 | CO84: 4.6953125 | CP84: 43 | CQ84: -2619.167718 | CU84: 50 | CV84: 17.65447667 | CW84: 0.8423076923 | CX84: 7650.273224 | CY84: 6702 | CZ84: 3558 | DA84: 17786 | DB84: -14228 | DC84: 7338 | DD84: 7326 | DG84: -18 | DH84: 285 | DI84: 583 | DJ84: 544 | DK84: 0 | DL84: 0 | DM84: 39 | DN84: 0 | DO84: 0 | DP84: 0 | DQ84: 39 | DR84: 123 | DS84: 526 | DU84: -292 | DV84: 0 | DW84: -238 | DX84: 7338 | DY84: 5810 | DZ84: 986 | EA84: 542 | EB84: 19.5 | ED84: 205 | EE84: 8545 | EF84: 8415 | EG84: 8795 | EK84: -1079 | EL84: 108 | EM84: 87 | EN84: -2220 | EO84: 254 | EP84: 256 | EQ84: -869 | ER84: 0 | ES84: 105 | EU84: 600 | EW84: 600 | EX84: 110 | EY84: 529 | EZ84: 5106 | FA84: 1127 | FB84: 3979 | FC84: 503 | FD84: 5574 | FE84: 996 | FF84: 4578 | FG84: 487 | FH84: 5995 | FI84: 887 | FJ84: 5108 | FK84: 228 | FL84: 6373.300371 | FM84: 5850.708924 | FN84: 6170 | FO84: 297.9487179 | FP84: 125.2411593 | FS84: -700 | FV84: 61 | FW84: -61
A85: 240 | B85: Kemi | C85: 22120 | E85: 0.732717784 | F85: 60.22418435 | G85: -3843.80651 | K85: 44.59642682 | L85: 133.8155515 | M85: 6.138496852 | N85: 7956.781193 | O85: 66700 | P85: 25422 | Q85: 149194 | R85: -123772 | S85: 86388 | T85: 45433 | W85: -2496 | X85: 726 | Y85: 6279 | Z85: 6384 | AA85: 5246 | AC85: 5141 | AF85: -164 | AG85: 4977 | AH85: 14079 | AI85: 9394 | AK85: -150 | AL85: -9608 | AM85: -204 | AN85: 86388 | AO85: 72351 | AP85: 8073 | AQ85: 5964 | AR85: 20.75 | AT85: 153 | AU85: 21929 | AW85: 0.2042143017 | AX85: 63.03749357 | AY85: -3990.651649 | BC85: 42.93930959 | BD85: 130.4665055 | BE85: 5.962628829 | BF85: 7986.456291 | BG85: 67401 | BH85: 24469 | BI85: 152521 | BJ85: -128052 | BK85: 84453 | BL85: 45002 | BO85: -2195 | BP85: 986 | BQ85: 194 | BR85: 4220 | BU85: -4026 | BX85: 23 | BY85: -4001 | BZ85: 10077 | CA85: -163 | CC85: -35 | CD85: -10845 | CE85: -2967 | CF85: 84453 | CG85: 71393 | CH85: 6566 | CI85: 6494 | CJ85: 20.75 | CL85: 290 | CM85: 21758 | CO85: 0.2026351298 | CP85: 66 | CQ85: -4263.397371 | CU85: 40 | CV85: 32.12611453 | CW85: 1.507506957 | CX85: 7778.426326 | CY85: 67704 | CZ85: 24258 | DA85: 153798 | DB85: -129540 | DC85: 87302 | DD85: 43191 | DG85: -2949 | DH85: 2459 | DI85: -739 | DJ85: 4576 | DK85: 0 | DL85: 0 | DM85: -5315 | DN85: 0 | DO85: 0 | DP85: 25 | DQ85: -5290 | DR85: 4787 | DS85: -460 | DU85: -1697 | DV85: -10000 | DW85: -4482 | DX85: 87302 | DY85: 74603 | DZ85: 6187 | EA85: 6512 | EB85: 21.25 | ED85: 291 | EE85: 61345 | EF85: 64318 | EG85: 63531 | EK85: -14750 | EL85: 412 | EM85: 4740 | EN85: -9448 | EO85: 216 | EP85: 6428 | EQ85: -4291 | ER85: 230 | ES85: 39 | ET85: 13000 | EU85: -3575 | EV85: 11000 | EW85: 1775 | EX85: 9307 | EY85: 4000 | EZ85: 79429 | FA85: 53359 | FB85: 26070 | FC85: 18876 | FD85: 81361 | FE85: 55053 | FF85: 26308 | FG85: 18876 | FH85: 86052 | FI85: 55276 | FJ85: 30776 | FK85: 18876 | FL85: 5856.103074 | FM85: 5793.697843 | FN85: 5936 | FO85: 3510.729412 | FP85: 161.3534981 | FS85: -3994 | FV85: 9559 | FW85: -9559
A86: 320 | B86: Kemijärvi | C86: 7983 | E86: 0.6012962963 | F86: 51.42840859 | G86: -3730.176625 | K86: 51.36714618 | L86: 299.636728 | M86: 11.16313562 | N86: 9797.194037 | O86: 36302 | P86: 13090 | Q86: 68186 | R86: -55096 | S86: 27344 | T86: 29749 | W86: -492 | X86: 1239 | Y86: 2744 | Z86: 2828 | AC86: -84 | AG86: -84 | AH86: -715 | AI86: 2719 | AK86: 1302 | AL86: -4897 | AM86: -1091 | AN86: 27344 | AO86: 22654 | AP86: 979 | AQ86: 3711 | AR86: 20 | AT86: 114 | AU86: 7892 | AW86: 0.2111972438 | AX86: 59.63704719 | AY86: -4208.312215 | BC86: 46.47247729 | BD86: 669.2853523 | BE86: 23.38103496 | BF86: 10448.17537 | BG86: 37376 | BH86: 12766 | BI86: 70597 | BJ86: -57831 | BK86: 28364 | BL86: 29623 | BO86: -512 | BP86: 1067 | BQ86: 711 | BR86: 2716 | BU86: -2005 | BX86: 6 | BY86: -1999 | BZ86: -2513 | CA86: 535 | CC86: 222 | CD86: -5290 | CE86: -3552 | CF86: 28364 | CG86: 23347 | CH86: 1120 | CI86: 3897 | CJ86: 20.5 | CL86: 270 | CM86: 7766 | CO86: 0.05829128241 | CP86: 65 | CQ86: -4800.669585 | CU86: 44 | CV86: 214.3960855 | CW86: 8.892018436 | CX86: 8800.540819 | CY86: 32241 | CZ86: 11846 | DA86: 66861 | DB86: -55015 | DC86: 28542 | DD86: 25729 | DG86: -435 | DH86: 1070 | DI86: -110 | DJ86: 2625 | DK86: 0 | DL86: 0 | DM86: -2735 | DN86: 0 | DO86: 0 | DP86: 6 | DQ86: -2729 | DR86: -5243 | DS86: -235 | DU86: -526 | DV86: -258 | DW86: -3996 | DX86: 28542 | DY86: 23378 | DZ86: 1208 | EA86: 3956 | EB86: 20.5 | ED86: 289 | EE86: 21909 | EF86: 22852 | EG86: 25123 | EK86: -4188 | EL86: 345 | EM86: 33 | EN86: -5480 | EO86: 1034 | EP86: 359 | EQ86: -6383 | ER86: 176 | ES86: 2446 | ET86: 5284 | EV86: 8875 | EX86: 5302 | EY86: 5500 | EZ86: 28613 | FA86: 23487 | FB86: 5126 | FC86: 1340 | FD86: 32197 | FE86: 26895 | FF86: 5302 | FG86: 1420 | FH86: 32653 | FI86: 22411 | FJ86: 10242 | FK86: 1253 | FL86: 8669.17199 | FM86: 8836.923467 | FN86: 8880 | FO86: 1140.390244 | FP86: 146.8439665 | FS86: -3147 | FV86: 4403 | FW86: -4403
A87: 241 | B87: Keminmaa | C87: 8565 | E87: -0.15594682 | F87: 42.47592745 | G87: -2246.234676 | K87: 53.46267141 | L87: 190.1926445 | M87: 9.966893523 | N87: 6965.090485 | O87: 25251 | P87: 5912 | Q87: 54239 | R87: -48327 | S87: 33403 | T87: 14273 | W87: -40 | X87: 19 | Y87: -672 | Z87: 1801 | AC87: -2473 | AG87: -2473 | AH87: 3505 | AI87: -1098 | AK87: 127 | AL87: -2545 | AM87: -3066 | AN87: 33403 | AO87: 29170 | AP87: 1055 | AQ87: 3178 | AR87: 20.75 | AT87: 288 | AU87: 8469 | AW87: 0.806462702 | AX87: 39.574157 | AY87: -2140.39438 | BC87: 54.82915718 | BD87: 159.4048884 | BE87: 8.683890524 | BF87: 6700.082654 | BG87: 24143 | BH87: 5454 | BI87: 52768 | BJ87: -47314 | BK87: 34741 | BL87: 14520 | BO87: -136 | BP87: 233 | BQ87: 2044 | BR87: 1884 | BU87: 160 | BY87: 160 | BZ87: 3665 | CA87: 1920 | CC87: -269 | CD87: -2607 | CE87: 1067 | CF87: 34741 | CG87: 30019 | CH87: 1137 | CI87: 3585 | CJ87: 21 | CL87: 220 | CM87: 8388 | CO87: 0.7092461938 | CP87: 43 | CQ87: -1964.711493 | CU87: 53 | CV87: 541.4878398 | CW87: 28.70999584 | CX87: 6884.120172 | CY87: 23095 | CZ87: 5897 | DA87: 51825 | DB87: -45928 | DC87: 34655 | DD87: 12791 | DG87: -117 | DH87: 420 | DI87: 1618 | DJ87: 1918 | DK87: 0 | DL87: 0 | DM87: -300 | DN87: 0 | DO87: 0 | DP87: 0 | DQ87: -300 | DR87: 3365 | DS87: 1621 | DU87: 33 | DV87: -4000 | DW87: 1583 | DX87: 34655 | DY87: 29972 | DZ87: 3623 | EA87: 1060 | EB87: 21.25 | ED87: 240 | EE87: 23483 | EF87: 23449 | EG87: 23173 | EI87: 1200 | EK87: -2618 | EL87: 221 | EM87: 429 | EN87: -1065 | EO87: 28 | EP87: 184 | EQ87: -918 | ER87: 2 | ES87: 878 | ET87: 3474 | EU87: 3200 | EV87: 5000 | EW87: -3200 | EX87: 2401 | EY87: 0 | EZ87: 16567 | FA87: 10901 | FB87: 5666 | FC87: 4925 | FD87: 15759 | FE87: 13375 | FF87: 2384 | FG87: 4883 | FH87: 17359 | FI87: 14885 | FJ87: 2474 | FK87: 4826 | FL87: 4027.904262 | FM87: 3765.025387 | FN87: 3886 | FO87: 1410.447059 | FP87: 168.1505793 | FS87: -72 | FV87: 2686 | FW87: -2686
A88: 322 | B88: Kemiönsaari | C88: 7012 | E88: 1.449144914 | F88: 45.1100644 | G88: -1937.393041 | K88: 59.48810888 | L88: 976.4689104 | M88: 46.30723193 | N88: 7696.662864 | O88: 23674 | P88: 7562 | Q88: 47254 | R88: -39692 | S88: 22590 | T88: 21908 | W88: -330 | X88: 22 | Y88: 4498 | Z88: 2384 | AC88: 2114 | AD88: 167 | AG88: 2281 | AH88: 12512 | AI88: 4426 | AK88: -274 | AL88: -3001 | AM88: 2128 | AN88: 22590 | AO88: 19384 | AP88: 633 | AQ88: 2573 | AR88: 19.75 | AT88: 26 | AU88: 6943 | AW88: 1.616319444 | AX88: 43.16351812 | AY88: -2214.316578 | BC88: 61.27629589 | BD88: 615.5840415 | BE88: 27.33406925 | BF88: 8220.077776 | BG88: 24060 | BH88: 7711 | BI88: 48076 | BJ88: -40365 | BK88: 21667 | BL88: 22372 | BO88: -282 | BP88: 24 | BQ88: 3416 | BR88: 2557 | BU88: 859 | BV88: 165 | BY88: 1024 | BZ88: 13536 | CA88: 3146 | CC88: 380 | CD88: -1996 | CE88: -1850 | CF88: 21667 | CG88: 18010 | CH88: 746 | CI88: 2911 | CJ88: 19.75 | CL88: 74 | CM88: 6909 | CO88: 1.900374181 | CP88: 57 | CQ88: -3181.068172 | CU88: 54 | CV88: 868.1430019 | CW88: 32.23686536 | CX88: 9829.497757 | CY88: 24841 | CZ88: 7780 | DA88: 49072 | DB88: -41292 | DC88: 22792 | DD88: 22532 | DG88: -201 | DH88: 18 | DI88: 3849 | DJ88: 2765 | DK88: 0 | DL88: 0 | DM88: 1084 | DN88: 165 | DO88: 0 | DP88: 0 | DQ88: 1249 | DR88: 14785 | DS88: 3508 | DU88: 384 | DV88: -10495 | DW88: -6517 | DX88: 22792 | DY88: 18861 | DZ88: 811 | EA88: 3120 | EB88: 19.75 | ED88: 53 | EE88: 17505 | EF88: 18164 | EG88: 18114 | EK88: -3412 | EL88: 414 | EM88: 700 | EN88: -6761 | EO88: 1226 | EP88: 539 | EQ88: -10574 | ER88: 169 | ES88: 380 | ET88: 4500 | EX88: 1924 | EY88: 0 | EZ88: 16146 | FA88: 14149 | FB88: 1997 | FC88: 1 | FD88: 14149 | FE88: 12224 | FF88: 1925 | FG88: 1 | FH88: 22720 | FI88: 20378 | FJ88: 2342 | FK88: 1 | FL88: 4669.566458 | FM88: 4143.453838 | FN88: 5292 | FO88: 954.9873418 | FP88: 138.2236708 | FS88: -9482 | FV88: 3797 | FW88: -3797
A89: 244 | B89: Kempele | C89: 16605 | E89: 1.121106513 | F89: 45.25765246 | G89: -1903.643481 | K89: 58.25936706 | L89: 309.3646492 | M89: 19.12216738 | N89: 5905.088829 | O89: 41500 | P89: 10885 | Q89: 84351 | R89: -73466 | S89: 58575 | T89: 20021 | W89: -741 | X89: 17 | Y89: 4406 | Z89: 4588 | AA89: 669 | AC89: 487 | AE89: 948 | AG89: 1435 | AH89: 6072 | AI89: 2452 | AK89: 1637 | AL89: -3850 | AM89: -4658 | AN89: 58575 | AO89: 54335 | AP89: 1456 | AQ89: 2784 | AR89: 19.5 | AT89: 162 | AU89: 16889 | AW89: 0.7762649494 | AX89: 49.60504832 | AY89: -1941.796436 | BC89: 54.97662524 | BD89: 470.9574279 | BE89: 30.00981993 | BF89: 5728.107052 | BG89: 42955 | BH89: 10255 | BI89: 86441 | BJ89: -76186 | BK89: 60200 | BL89: 20189 | BO89: -815 | BP89: 16 | BQ89: 3404 | BR89: 5014 | BU89: -1610 | BV89: 948 | BY89: -662 | BZ89: 5411 | CA89: 1844 | CC89: -223 | CD89: -4620 | CE89: -1446 | CF89: 60200 | CG89: 55674 | CH89: 1567 | CI89: 2959 | CJ89: 20.5 | CL89: 240 | CM89: 17066 | CO89: 1.166126126 | CP89: 48 | CQ89: -2039.552326 | CU89: 54 | CV89: 417.7311614 | CW89: 26.94980995 | CX89: 5657.623345 | CY89: 42495 | CZ89: 10965 | DA89: 89595 | DB89: -78630 | DC89: 63605 | DD89: 21421 | DG89: -760 | DH89: 76 | DI89: 5712 | DJ89: 5078 | DK89: 0 | DL89: 0 | DM89: 634 | DN89: 842 | DO89: 0 | DP89: 0 | DQ89: 1476 | DR89: 6120 | DS89: 4400 | DU89: -342 | DV89: -6900 | DW89: -390 | DX89: 63605 | DY89: 58387 | DZ89: 2228 | EA89: 2990 | EB89: 20.5 | ED89: 149 | EE89: 32164 | EF89: 32416 | EG89: 36184 | EK89: -8856 | EL89: 21 | EM89: 1725 | EN89: -4847 | EO89: 38 | EP89: 1519 | EQ89: -7493 | ER89: 519 | ES89: 2184 | ET89: 8700 | EV89: 6200 | EX89: 4790 | EY89: 0 | EZ89: 31670 | FA89: 27050 | FB89: 4620 | FC89: 0 | FD89: 33250 | FE89: 28770 | FF89: 4480 | FG89: 0 | FH89: 35360 | FI89: 30310 | FJ89: 5050 | FK89: 0 | FL89: 3062.210178 | FM89: 3026.11167 | FN89: 3049 | FO89: 2848.146341 | FP89: 166.8900938 | FS89: -4878 | FV89: 2648 | FW89: -2648
A90: 245 | B90: Kerava | C90: 34913 | E90: 1.761376784 | F90: 33.18294553 | G90: -1643.313379 | K90: 77.28464992 | L90: 118.0076189 | M90: 7.046100936 | N90: 6112.995159 | O90: 75861 | P90: 39412 | Q90: 185630 | R90: -146218 | S90: 145147 | T90: 18268 | W90: -374 | X90: 943 | Y90: 17766 | Z90: 10541 | AC90: 7225 | AF90: -1 | AG90: 7224 | AH90: 95534 | AI90: 13263 | AK90: 2062 | AL90: -9870 | AM90: 161 | AN90: 145147 | AO90: 129210 | AP90: 6812 | AQ90: 9125 | AR90: 18.75 | AT90: 57 | AU90: 35317 | AW90: 2.041397021 | AX90: 32.40682618 | AY90: -1590.423875 | BC90: 77.96829905 | BD90: 108.4463573 | BE90: 6.519924258 | BF90: 6071.070589 | BG90: 75120 | BH90: 37485 | BI90: 188401 | BJ90: -150916 | BK90: 149491 | BL90: 18679 | BO90: -345 | BP90: 2511 | BQ90: 19420 | BR90: 10520 | BU90: 8900 | BX90: 4 | BY90: 8904 | BZ90: 102127 | CA90: 17822 | CC90: -792 | CD90: -9281 | CE90: 3438 | CF90: 149491 | CG90: 131254 | CH90: 8525 | CI90: 9712 | CJ90: 19 | CL90: 55 | CM90: 35293 | CO90: 2.058702703 | CP90: 31 | CQ90: -1565.891253 | CU90: 79 | CV90: 135.5226249 | CW90: 8.627600692 | CX90: 5733.431559 | CY90: 77527 | CZ90: 40378 | DA90: 195286 | DB90: -154908 | DC90: 152164 | DD90: 20222 | DG90: -223 | DH90: 2132 | DI90: 18713 | DJ90: 11137 | DK90: 7001 | DL90: 0 | DM90: 14577 | DN90: 0 | DO90: 0 | DP90: 1 | DQ90: 14578 | DR90: 116705 | DS90: 21114 | DU90: 340 | DV90: -7000 | DW90: 1045 | DX90: 152164 | DY90: 132253 | DZ90: 10198 | EA90: 9713 | EB90: 19 | ED90: 62 | EE90: 81195 | EF90: 84190 | EG90: 86775 | EK90: -17413 | EL90: 68 | EM90: 4243 | EN90: -16383 | EO90: 93 | EP90: 1906 | EQ90: -25282 | ER90: 28 | ES90: 5185 | ET90: 16000 | EU90: -8000 | EV90: 8000 | EW90: -2500 | EX90: 8920 | EY90: 1500 | EZ90: 46588 | FA90: 20307 | FB90: 26281 | FC90: 5991 | FD90: 42807 | FE90: 19387 | FF90: 23420 | FG90: 5991 | FH90: 42387 | FI90: 17000 | FJ90: 25387 | FK90: 5990 | FL90: 4477.443932 | FM90: 4374.04083 | FN90: 4845 | FO90: 6960.684211 | FP90: 197.2256314 | FS90: -20246 | FV90: 16684 | FW90: -16684
A91: 249 | B91: Keuruu | C91: 10310 | E91: 1.864510847 | F91: 54.99389376 | G91: -3701.163919 | K91: 49.69311103 | L91: 132.2987391 | M91: 5.713990589 | N91: 8451.018429 | O91: 32580 | P91: 18702 | Q91: 75237 | R91: -56535 | S91: 33447 | T91: 27278 | W91: -41 | X91: 310 | Y91: 4459 | Z91: 3216 | AC91: 1243 | AD91: 10 | AG91: 1252 | AH91: 5862 | AI91: 4399 | AK91: -59 | AL91: -2347 | AM91: -3617 | AN91: 33447 | AO91: 29177 | AP91: 2128 | AQ91: 2142 | AR91: 20.5 | AT91: 78 | AU91: 10177 | AW91: 2.369529984 | AX91: 59.33871407 | AY91: -4336.936229 | BC91: 48.66105178 | BD91: 95.3129606 | BE91: 3.88246776 | BF91: 8960.597426 | BG91: 33075 | BH91: 18825 | BI91: 75304 | BJ91: -56479 | BK91: 34255 | BL91: 27702 | BO91: -90 | BP91: 345 | BQ91: 5733 | BR91: 3428 | BU91: 2305 | BV91: 5 | BY91: 2310 | BZ91: 8172 | CA91: 5662 | CC91: 1327 | CD91: -2353 | CE91: -6046 | CF91: 34255 | CG91: 29603 | CH91: 2327 | CI91: 2325 | CJ91: 20.5 | CL91: 50 | CM91: 10117 | CO91: 1.983292383 | CP91: 76 | CQ91: -5580.013838 | CU91: 43 | CV91: 101.512306 | CW91: 4.172705516 | CX91: 8879.60858 | CY91: 32823 | CZ91: 18256 | DA91: 76142 | DB91: -57886 | DC91: 34378 | DD91: 27169 | DG91: -45 | DH91: 600 | DI91: 3963 | DJ91: 4119 | DK91: 0 | DL91: 0 | DM91: -156 | DN91: 5 | DO91: 0 | DP91: 0 | DQ91: -151 | DR91: 8021 | DS91: 3749 | DU91: -737 | DV91: -1206 | DW91: -12351 | DX91: 34378 | DY91: 29390 | DZ91: 2447 | EA91: 2541 | EB91: 20.5 | ED91: 124 | EE91: 32689 | EF91: 32392 | EG91: 33198 | EK91: -9441 | EL91: 1231 | EM91: 194 | EN91: -13409 | EO91: 1568 | EP91: 133 | EQ91: -18040 | ER91: 1679 | ES91: 261 | ET91: 981 | EU91: 4500 | EW91: 5500 | EX91: 1962 | EY91: 13300 | EZ91: 31936 | FA91: 10083 | FB91: 21853 | FC91: 0 | FD91: 35082 | FE91: 8123 | FF91: 26959 | FG91: 0 | FH91: 47626 | FI91: 7687 | FJ91: 39939 | FK91: 0 | FL91: 6706.401552 | FM91: 7132.357276 | FN91: 8500 | FO91: 1433.658537 | FP91: 141.7078716 | FS91: -14999 | FV91: 2835 | FW91: -2835
A92: 250 | B92: Kihniö | C92: 2111 | E92: -1.102505695 | F92: 46.78722036 | G92: -2606.347703 | K92: 57.24809589 | L92: 241.5916627 | M92: 10.58331912 | N92: 8332.070109 | O92: 6921 | P92: 2335 | Q92: 14514 | R92: -12179 | S92: 5760 | T92: 5896 | W92: -75 | X92: 32 | Y92: -566 | Z92: 748 | AC92: -1314 | AD92: 126 | AG92: -1188 | AH92: 1247 | AI92: -604 | AK92: 168 | AL92: -357 | AM92: -2758 | AN92: 5760 | AO92: 4854 | AP92: 464 | AQ92: 442 | AR92: 20.5 | AT92: 302 | AU92: 2080 | AW92: -0.8108108108 | AX92: 57.34819801 | AY92: -3193.269231 | BC92: 48.0501049 | BD92: 519.7115385 | BE92: 24.82009184 | BF92: 7642.788462 | BG92: 6942 | BH92: 2349 | BI92: 14783 | BJ92: -12434 | BK92: 5994 | BL92: 5919 | BO92: -99 | BP92: 35 | BQ92: -585 | BR92: 798 | BU92: -1383 | BV92: 116 | BY92: -1267 | BZ92: -20 | CA92: -620 | CC92: 78 | CD92: -487 | CE92: -1137 | CF92: 5994 | CG92: 4998 | CH92: 489 | CI92: 507 | CJ92: 20.5 | CL92: 303 | CM92: 2038 | CO92: -0.001356852103 | CP92: 67 | CQ92: -3579.980373 | CU92: 42 | CV92: 704.1216879 | CW92: 29.26117318 | CX92: 8783.120707 | CY92: 4342 | CZ92: 1602 | DA92: 13953 | DB92: -12351 | DC92: 6196 | DD92: 6103 | DG92: -118 | DH92: 62 | DI92: -123 | DJ92: 807 | DK92: 0 | DL92: 0 | DM92: -930 | DN92: 109 | DO92: 0 | DP92: 0 | DQ92: -821 | DR92: -841 | DS92: -107 | DU92: -195 | DV92: -2800 | DW92: -664 | DX92: 6196 | DY92: 5116 | DZ92: 572 | EA92: 508 | EB92: 21.5 | ED92: 295 | EE92: 5476 | EF92: 5822 | EG92: 8359 | EK92: -2630 | EL92: 371 | EM92: 105 | EN92: -517 | EQ92: -625 | ER92: 0 | ES92: 68 | ET92: 2500 | EV92: 2200 | EX92: 615 | EY92: 0 | EZ92: 4682 | FA92: 4243 | FB92: 439 | FC92: 144 | FD92: 6395 | FE92: 5850 | FF92: 545 | FG92: 144 | FH92: 8581 | FI92: 7942 | FJ92: 639 | FK92: 142 | FL92: 2677.877783 | FM92: 3565.865385 | FN92: 4628 | FO92: 237.9534884 | FP92: 116.7583358 | FS92: -659 | FV92: 226 | FW92: -226
A93: 256 | B93: Kinnula | C93: 1769 | E93: 27.525 | F93: 58.02257954 | G93: -2556.811758 | K93: 58.71448034 | L93: 89.31599774 | M93: 3.873589468 | N93: 8416.054268 | O93: 6272 | P93: 2953 | Q93: 13723 | R93: -10770 | S93: 4166 | T93: 7592 | W93: 93 | X93: 5 | Y93: 1086 | Z93: 742 | AC93: 344 | AD93: 13 | AG93: 357 | AH93: 3535 | AI93: 1099 | AK93: -135 | AL93: -25 | AM93: 135 | AN93: 4166 | AO93: 3453 | AP93: 420 | AQ93: 293 | AR93: 20 | AT93: 31 | AU93: 1766 | AW93: 77.1 | AX93: 54.3 | AY93: -1840 | BC93: 61.2 | BD93: 1020 | BE93: 47 | BG93: 5693 | BH93: 2789 | BI93: 13531 | BJ93: -10742 | BK93: 4616 | BL93: 7607 | BO93: 67 | BP93: 13 | BQ93: 1561 | BR93: 747 | BU93: 814 | BV93: 12 | BY93: 827 | BZ93: 4362 | CA93: 1499 | CC93: 700 | CD93: 0 | CE93: 1263 | CF93: 4616 | CG93: 3803 | CH93: 461 | CI93: 352 | CJ93: 20.5 | CL93: 6 | CM93: 1745 | CO93: 192.7142857 | CP93: 51 | CQ93: -1371.346705 | CU93: 63 | CV93: 1312.320917 | CW93: 62.1357419 | CX93: 7708.882521 | CY93: 5685 | CZ93: 2881 | DA93: 13777 | DB93: -10896 | DC93: 4789 | DD93: 7344 | DG93: 73 | DH93: 32 | DI93: 1342 | DJ93: 794 | DK93: 0 | DL93: 0 | DM93: 548 | DN93: 13 | DO93: 0 | DP93: 0 | DQ93: 561 | DR93: 4922 | DS93: 1278 | DU93: 51 | DV93: 0 | DW93: 830 | DX93: 4789 | DY93: 3880 | DZ93: 544 | EA93: 365 | EB93: 20.5 | ED93: 19 | EE93: 5663 | EF93: 6109 | EG93: 6322 | EK93: -1217 | EL93: 196 | EM93: 57 | EN93: -329 | EP93: 94 | EQ93: -535 | ER93: 0 | ES93: 87 | ET93: 0 | EU93: 295 | EV93: 0 | EW93: 7 | EX93: 0 | EY93: -601 | EZ93: 6500 | FA93: 0 | FB93: 6500 | FC93: 100 | FD93: 6507 | FE93: 0 | FF93: 6505 | FG93: 100 | FH93: 5900 | FI93: 0 | FJ93: 5900 | FK93: 100 | FL93: 4286.037309 | FM93: 4303.510759 | FN93: 3972 | FO93: 189.2682927 | FP93: 108.463205 | FS93: -543 | FV93: 115 | FW93: -115
A94: 257 | B94: Kirkkonummi | C94: 37899 | E94: 0.8312928956 | F94: 55.95983336 | G94: -2610.543814 | K94: 39.59129239 | L94: 530.8055622 | M94: 30.11539298 | N94: 6433.388744 | O94: 97137 | P94: 31973 | Q94: 217847 | R94: -185874 | S94: 171133 | T94: 23251 | W94: -1910 | X94: 329 | Y94: 6929 | Z94: 13552 | AC94: -6623 | AD94: 27 | AF94: 141 | AG94: -6455 | AH94: 24034 | AI94: 4817 | AK94: 4046 | AL94: -8791 | AM94: -7299 | AN94: 171133 | AO94: 156326 | AP94: 6451 | AQ94: 8356 | AR94: 19 | AT94: 210 | AU94: 38220 | AW94: 1.081650093 | AX94: 57.04230334 | AY94: -2593.380429 | BC94: 38.64762635 | BD94: 543.0664574 | BE94: 31.86233813 | BF94: 6221.1146 | BG94: 91561 | BH94: 29565 | BI94: 212712 | BJ94: -183147 | BK94: 174981 | BL94: 21630 | BO94: -1904 | BP94: 374 | BQ94: 11934 | BR94: 13660 | BU94: -1726 | BV94: 25 | BX94: -50 | BY94: -1751 | BZ94: 22283 | CA94: 11601 | CC94: -1525 | CD94: -10883 | CE94: 386 | CF94: 174981 | CG94: 158314 | CH94: 7793 | CI94: 8874 | CJ94: 19.5 | CL94: 176 | CM94: 38649 | CO94: 1.024966315 | CP94: 60 | CQ94: -2869.750834 | CU94: 36 | CV94: 275.0135838 | CW94: 17.19750432 | CX94: 5836.890993 | CY94: 95846 | CZ94: 36643 | DA94: 223292 | DB94: -186649 | DC94: 178491 | DD94: 20685 | DG94: -1645 | DH94: 383 | DI94: 11198 | DJ94: 12954 | DK94: 81 | DL94: 0 | DM94: -1675 | DN94: 23 | DO94: 0 | DP94: 271 | DQ94: -1381 | DR94: 20606 | DS94: 10038 | DU94: -9984 | DV94: 0 | DW94: -10588 | DX94: 178491 | DY94: 160693 | DZ94: 7947 | EA94: 9851 | EB94: 19.5 | ED94: 180 | EE94: 86292 | EF94: 88185 | EG94: 92530 | EK94: -15021 | EL94: 234 | EM94: 2714 | EN94: -12157 | EO94: 594 | EP94: 348 | EQ94: -23138 | ER94: 205 | ES94: 2307 | ET94: 10000 | EU94: -204 | EV94: 10000 | EW94: 2093 | EX94: 10883 | EY94: 13498 | EZ94: 89133 | FA94: 80342 | FB94: 8791 | FC94: 1450 | FD94: 90342 | FE94: 79459 | FF94: 10883 | FG94: 1450 | FH94: 92957 | FI94: 67079 | FJ94: 25878 | FK94: 1154 | FL94: 3629.858308 | FM94: 3716.431188 | FN94: 3818 | FO94: 8240.666667 | FP94: 213.2181083 | FS94: -16354 | FV94: 7251 | FW94: -7251
A95: 260 | B95: Kitee | C95: 11197 | E95: 0.625464684 | F95: 44.0715409 | G95: -2652.585514 | K95: 33.7841614 | L95: 156.2918639 | M95: 7.261906115 | N95: 7855.586318 | O95: 31550 | P95: 10943 | Q95: 77268 | R95: -66325 | S95: 34253 | T95: 34926 | W95: -444 | X95: 489 | Y95: 2899 | Z95: 2177 | AC95: 722 | AD95: 96 | AF95: 1 | AG95: 819 | AH95: -11100 | AI95: 2659 | AK95: 318 | AL95: -4914 | AM95: -1908 | AN95: 34253 | AO95: 29634 | AP95: 1836 | AQ95: 2783 | AR95: 21.5 | AT95: 164 | AU95: 10986 | AW95: 2.027937996 | AX95: 36.81759439 | AY95: -2301.929729 | BC95: 45.4214893 | BD95: 294.5567085 | BE95: 13.29483803 | BF95: 8086.837794 | BG95: 31378 | BH95: 11152 | BI95: 75149 | BJ95: -63997 | BK95: 36823 | BL95: 37916 | BO95: -372 | BP95: 487 | BQ95: 10857 | BR95: 2384 | BU95: 8473 | BV95: 264 | BX95: 1 | BY95: 8738 | BZ95: -2362 | CA95: 10799 | CC95: 777 | CD95: -5153 | CE95: 4387 | CF95: 36823 | CG95: 31657 | CH95: 2075 | CI95: 3091 | CJ95: 22.5 | CL95: 7 | CM95: 10832 | CO95: 2.112324493 | CP95: 33 | CQ95: -2009.508863 | CU95: 53 | CV95: 290.620384 | CW95: 16.047093 | CX95: 6610.32127 | CY95: 32438 | CZ95: 11049 | DA95: 74899 | DB95: -63850 | DC95: 36097 | DD95: 36704 | DG95: -257 | DH95: 992 | DI95: 9198 | DJ95: 2890 | DK95: 0 | DL95: 0 | DM95: 6308 | DN95: 245 | DO95: 0 | DP95: 0 | DQ95: 6553 | DR95: 4191 | DS95: 9083 | DU95: 687 | DV95: 0 | DW95: 3496 | DX95: 36097 | DY95: 30623 | DZ95: 2374 | EA95: 3100 | EB95: 22.5 | ED95: 12 | EE95: 37133 | EF95: 36185 | EG95: 34134 | EI95: 1470 | EK95: -5268 | EL95: 416 | EM95: 285 | EN95: -8094 | EO95: 1380 | EP95: 302 | EQ95: -7040 | ER95: 1297 | ES95: 156 | ET95: 4000 | EU95: 863 | EV95: 5000 | EW95: -2500 | EX95: 4207 | EY95: -200 | EZ95: 24420 | FA95: 13327 | FB95: 11093 | FC95: 108 | FD95: 21768 | FE95: 13861 | FF95: 7907 | FG95: 108 | FH95: 17360 | FI95: 9930 | FJ95: 7430 | FK95: 108 | FL95: 3741.805841 | FM95: 3526.306208 | FN95: 3210 | FO95: 1361.022222 | FP95: 125.6482849 | FS95: -5539 | FV95: 3565 | FW95: -3565
A96: 261 | B96: Kittilä | C96: 6478 | E96: 0.4087241553 | F96: 65.7571076 | G96: -4405.372028 | K96: 38.94001904 | L96: 249.7684471 | M96: 9.956167709 | N96: 9156.684162 | O96: 24380 | P96: 6220 | Q96: 49645 | R96: -43425 | S96: 23396 | T96: 20225 | W96: -451 | X96: 1425 | Y96: 1170 | Z96: 2428 | AC96: -1258 | AD96: 123 | AG96: -1135 | AH96: 4249 | AI96: 945 | AK96: -585 | AL96: -3515 | AM96: -3713 | AN96: 23396 | AO96: 17341 | AP96: 1297 | AQ96: 4758 | AR96: 19 | AT96: 212 | AU96: 6470 | AW96: 0.9068549305 | AX96: 66.69599411 | AY96: -5137.248841 | BC96: 37.35914182 | BD96: 206.4914992 | BE96: 7.17149286 | BF96: 10509.58269 | BG96: 24962 | BH96: 9343 | BI96: 52598 | BJ96: -43255 | BK96: 25471 | BL96: 20879 | BO96: -431 | BP96: 887 | BQ96: 3226 | BR96: 2330 | BU96: 875 | BV96: 126 | BY96: 1001 | BZ96: 5250 | CA96: 616 | CC96: -4190 | CD96: -3960 | CE96: -6509 | CF96: 25471 | CG96: 18111 | CH96: 2369 | CI96: 4991 | CJ96: 19.5 | CL96: 56 | CM96: 6416 | CO96: 0.9953370072 | CP96: 68 | CQ96: -5080.5798 | CU96: 39 | CV96: 451.9950125 | CW96: 17.31272489 | CX96: 9529.301746 | CY96: 25297 | CZ96: 6696 | DA96: 52106 | DB96: -45410 | DC96: 27547 | DD96: 21182 | DG96: -426 | DH96: 2695 | DI96: 4270 | DJ96: 2595 | DK96: 0 | DL96: 0 | DM96: 1675 | DN96: -57 | DO96: 277 | DP96: 0 | DQ96: 1895 | DR96: 7146 | DS96: 4115 | DU96: 1328 | DV96: -7055 | DW96: 28 | DX96: 27547 | DY96: 18371 | DZ96: 4330 | EA96: 4846 | EB96: 19.5 | ED96: 28 | EE96: 18666 | EF96: 20440 | EG96: 20044 | EK96: -5604 | EL96: 719 | EM96: 227 | EN96: -10976 | EO96: 893 | EP96: 2958 | EQ96: -4784 | ER96: 527 | ES96: 15 | ET96: 5000 | EU96: 1377 | EV96: 7700 | EW96: 116 | EX96: 4292 | EY96: -2202 | EZ96: 26499 | FA96: 19162 | FB96: 7337 | FC96: 525 | FD96: 30355 | FE96: 22902 | FF96: 7453 | FG96: 514 | FH96: 30917 | FI96: 25666 | FJ96: 5251 | FK96: 389 | FL96: 9151.898734 | FM96: 10342.04019 | FN96: 10171 | FO96: 942.1025641 | FP96: 146.8364346 | FS96: -3903 | FV96: 2822 | FW96: -2822
A97: 263 | B97: Kiuruvesi | C97: 8866 | E97: 0.3925091352 | F97: 54.14637412 | G97: -2736.747124 | K97: 49.40744528 | L97: 704.3762689 | M97: 32.48339794 | N97: 7914.730431 | O97: 17094 | P97: 6970 | Q97: 59686 | R97: -52716 | S97: 23126 | T97: 29710 | W97: -240 | X97: 1141 | Y97: 1021 | Z97: 2552 | AC97: -1531 | AD97: 19 | AG97: -1512 | AH97: 1936 | AI97: 999 | AK97: 54 | AL97: -3016 | AM97: -5815 | AN97: 23126 | AO97: 20200 | AP97: 1418 | AQ97: 1508 | AR97: 19.75 | AT97: 238 | AU97: 8752 | AW97: 0.7832624113 | AX97: 55.3229529 | AY97: -2968.578611 | BC97: 48.13852683 | BD97: 763.7111517 | BE97: 35.16322913 | BF97: 7927.445155 | BG97: 16671 | BH97: 7439 | BI97: 59969 | BJ97: -52530 | BK97: 24224 | BL97: 29919 | BO97: -314 | BP97: 1120 | BQ97: 2419 | BR97: 3670 | BS97: 1232 | BU97: -19 | BV97: 19 | BY97: 0 | BZ97: 1936 | CA97: 3612 | CC97: 471 | CD97: -3183 | CE97: -1827 | CF97: 24224 | CG97: 20971 | CH97: 1639 | CI97: 1614 | CJ97: 20.75 | CL97: 195 | CM97: 8600 | CO97: 1.19599875 | CP97: 55 | CQ97: -2980.697674 | CU97: 48 | CV97: 872.7906977 | CW97: 45.06291429 | CX97: 7069.418605 | CY97: 16140 | CZ97: 7395 | DA97: 59951 | DB97: -52556 | DC97: 24935 | DD97: 30238 | DG97: -223 | DH97: 1734 | DI97: 3580 | DJ97: 3803 | DK97: 0 | DL97: 0 | DM97: -223 | DN97: 19 | DO97: 0 | DP97: 0 | DQ97: -204 | DR97: 1732 | DS97: 3518 | DU97: 33 | DV97: 0 | DW97: 288 | DX97: 24935 | DY97: 21344 | DZ97: 1935 | EA97: 1656 | EB97: 20.75 | ED97: 113 | EE97: 37544 | EF97: 38066 | EG97: 38198 | EK97: -7160 | EL97: 318 | EM97: 28 | EN97: -5872 | EO97: 386 | EP97: 47 | EQ97: -3314 | ER97: 70 | ES97: 14 | ET97: 3000 | EU97: 5997 | EV97: 3000 | EW97: 2500 | EX97: 2953 | EY97: 3303 | EZ97: 27260 | FA97: 14230 | FB97: 13030 | FC97: 1342 | FD97: 29577 | FE97: 14127 | FF97: 15450 | FG97: 1229 | FH97: 29926 | FI97: 11173 | FJ97: 18753 | FK97: 1173 | FL97: 5605.007895 | FM97: 6228.062157 | FN97: 6466 | FO97: 1028.626506 | FP97: 119.6077333 | FS97: -3242 | FV97: 3038 | FW97: -3038
A98: 265 | B98: Kivijärvi | C98: 1259 | E98: 0.009803921569 | F98: 18.35227273 | G98: -1076.250993 | K98: 79.1804294 | L98: 124.7021446 | M98: 5.015315946 | N98: 9075.456712 | O98: 2369 | P98: 1676 | Q98: 10564 | R98: -8888 | S98: 3218 | T98: 5666 | W98: 0 | X98: 0 | Y98: -4 | Z98: 343 | AC98: -347 | AG98: -347 | AH98: 3578 | AI98: -4 | AK98: -57 | AL98: -97 | AM98: -454 | AN98: 3218 | AO98: 2499 | AP98: 441 | AQ98: 278 | AR98: 20 | AT98: 277 | AU98: 1244 | AW98: 7.227722772 | AX98: 19.20086784 | AY98: -1284.565916 | BC98: 77.21006459 | BD98: 102.8938907 | BE98: 4.050984132 | BF98: 9270.900322 | BG98: 2276 | BH98: 1727 | BI98: 10324 | BJ98: -8597 | BK98: 3476 | BL98: 5859 | BO98: -3 | BP98: -9 | BQ98: 726 | BR98: 388 | BU98: 338 | BY98: 338 | BZ98: 3916 | CA98: 727 | CC98: 28 | CD98: -97 | CE98: -244 | CF98: 3476 | CG98: 2617 | CH98: 488 | CI98: 371 | CJ98: 20 | CL98: 42 | CM98: 1200 | CO98: 6.216 | CP98: 58 | CQ98: -3095 | CU98: 57 | CV98: 1346.666667 | CW98: 32.18772169 | CX98: 15270.83333 | CY98: 2166 | CZ98: 1706 | DA98: 10020 | DB98: -8314 | DC98: 3585 | DD98: 5474 | DG98: -28 | DH98: 33 | DI98: 749 | DJ98: 476 | DK98: 0 | DL98: 0 | DM98: 273 | DN98: 0 | DO98: 0 | DP98: 0 | DQ98: 273 | DR98: 4543 | DS98: 749 | DU98: 0 | DV98: -4321 | DW98: -2468 | DX98: 3585 | DY98: 2630 | DZ98: 375 | EA98: 580 | EB98: 21 | ED98: 38 | EE98: 7284 | EF98: 7012 | EG98: 6875 | EK98: -757 | EL98: 55 | EM98: 252 | EN98: -1095 | EO98: 121 | EP98: 3 | EQ98: -4063 | ER98: 837 | ES98: 9 | EX98: 97 | EY98: 0 | EZ98: 1047 | FA98: 950 | FB98: 97 | FC98: 691 | FD98: 950 | FE98: 853 | FF98: 97 | FG98: 691 | FH98: 5174 | FI98: 4866 | FJ98: 308 | FK98: 691 | FL98: 2566.322478 | FM98: 2538.585209 | FN98: 6118 | FO98: 125.2380952 | FP98: 104.3650794 | FS98: -3294 | FV98: 97 | FW98: -97
A99: 271 | B99: Kokemäki | C99: 7769 | E99: 0.2594339623 | F99: 45.83984573 | G99: -2388.853134 | K99: 35.82243251 | L99: 326.5542541 | M99: 16.58051174 | N99: 7188.698674 | O99: 17451 | P99: 6212 | Q99: 48601 | R99: -42389 | S99: 25149 | T99: 17904 | W99: -133 | X99: -11 | Y99: 520 | Z99: 1173 | AA99: 692 | AC99: 39 | AG99: 39 | AH99: 714 | AI99: 1113 | AK99: 232 | AL99: -2404 | AM99: 123 | AN99: 25149 | AO99: 21902 | AP99: 1338 | AQ99: 1909 | AR99: 20.25 | AT99: 255 | AU99: 7702 | AW99: 0.01142857143 | AX99: 52.91473493 | AY99: -2998.5718 | BC99: 29.81087158 | BD99: 120.4881849 | BE99: 5.958449874 | BF99: 7380.810179 | BG99: 17974 | BH99: 5385 | BI99: 49726 | BJ99: -44341 | BK99: 25929 | BL99: 18296 | BO99: -96 | BP99: 85 | BQ99: -127 | BR99: 1473 | BU99: -1600 | BY99: -1601 | BZ99: -887 | CA99: -363 | CC99: -665 | CD99: -2468 | CE99: -1632 | CF99: 25929 | CG99: 22409 | CH99: 1441 | CI99: 2079 | CJ99: 20.75 | CL99: 296 | CM99: 7591 | CO99: 0.7395533141 | CP99: 57 | CQ99: -3294.164142 | CU99: 29 | CV99: 103.938875 | CW99: 5.135894281 | CX99: 7386.773811 | CY99: 17866 | CZ99: 4685 | DA99: 47824 | DB99: -43139 | DC99: 27021 | DD99: 17945 | DG99: -12 | DH99: 73 | DI99: 1887 | DJ99: 1677 | DK99: 0 | DL99: 0 | DM99: 210 | DN99: 0 | DO99: 0 | DP99: 0 | DQ99: 210 | DR99: -676 | DS99: 1841 | DU99: -169 | DV99: -6200 | DW99: -697 | DX99: 27021 | DY99: 23112 | DZ99: 1625 | EA99: 2284 | EB99: 21.25 | ED99: 204 | EE99: 27384 | EF99: 27775 | EG99: 26095 | EK99: -3542 | EL99: 23 | EM99: 2529 | EN99: -1525 | EP99: 256 | EQ99: -3784 | ER99: 1180 | ES99: 66 | ET99: 3800 | EU99: -100 | EV99: 3400 | EW99: 1900 | EX99: 2610 | EY99: -1700 | EZ99: 17123 | FA99: 8655 | FB99: 8468 | FC99: 1246 | FD99: 19955 | FE99: 9445 | FF99: 10510 | FG99: 4157 | FH99: 21844 | FI99: 12504 | FJ99: 9340 | FK99: 5362 | FL99: 3884.026258 | FM99: 4343.93664 | FN99: 4730 | FO99: 1087.623529 | FP99: 143.2780305 | FS99: -2439 | FV99: 2577 | FW99: -2577
A100: 272 | B100: Kokkola | C100: 47031 | E100: 0.6238199532 | F100: 82.10676048 | G100: -5773.064574 | K100: 32.35186664 | L100: 405.8387021 | M100: 15.53872215 | N100: 9533.031405 | O100: 168099 | P100: 147465 | Q100: 371841 | R100: -224376 | S100: 171672 | T100: 76445 | W100: -2475 | X100: 952 | Y100: 22218 | Z100: 21715 | AC100: 503 | AD100: 2730 | AF100: -31 | AG100: 3202 | AH100: 10889 | AI100: 20020 | AK100: -3865 | AL100: -37161 | AM100: -14152 | AN100: 171672 | AO100: 146444 | AP100: 13763 | AQ100: 11465 | AR100: 20.5 | AT100: 66 | AU100: 47278 | AW100: 0.6957776718 | AX100: 86.81350738 | AY100: -3901.349465 | BC100: 35.4190223 | BD100: 587.2287322 | BE100: 22.13887627 | BF100: 9681.543212 | BG100: 164944 | BH100: 142694 | BI100: 367839 | BJ100: -225145 | BK100: 175899 | BL100: 77387 | BO100: -2943 | BP100: 952 | BQ100: 26150 | BR100: 21477 | BS100: 9534 | BU100: 14207 | BV100: 1284 | BX100: -6 | BY100: 15485 | BZ100: 26450 | CA100: 28463 | CC100: 1347 | CD100: -38903 | CE100: -15697 | CF100: 175899 | CG100: 148875 | CH100: 13181 | CI100: 13843 | CJ100: 20.5 | CL100: 52 | CM100: 47570 | CO100: 0.1072529166 | CP100: 83 | CQ100: -5101.618667 | CU100: 38 | CV100: 447.9293672 | CW100: 17.74184129 | CX100: 9215.177633 | CY100: 164650 | CZ100: 88136 | DA100: 342272 | DB100: -254136 | DC100: 182108 | DD100: 78907 | DG100: -2331 | DH100: 722 | DI100: 5065 | DJ100: 15319 | DK100: 0 | DL100: 0 | DM100: -10254 | DN100: 284 | DO100: 0 | DP100: 395 | DQ100: -9575 | DR100: 16875 | DS100: 609 | DU100: 99738 | DV100: -39000 | DW100: -59238 | DX100: 182108 | DY100: 153250 | DZ100: 14686 | EA100: 14172 | EB100: 21 | ED100: 272 | EE100: 132323 | EF100: 133698 | EG100: 132522 | EK100: -38476 | EL100: 1592 | EM100: 2712 | EN100: -49424 | EO100: 2033 | EP100: 3231 | EQ100: -67623 | ER100: 2996 | ES100: 4780 | ET100: 65605 | EU100: -10430 | EV100: 75585 | EW100: -4191 | EX100: 69957 | EY100: -1577 | EZ100: 250931 | FA100: 212037 | FB100: 38894 | FC100: 2838 | FD100: 283422 | FE100: 239138 | FF100: 44284 | FG100: 2958 | FH100: 250888 | FI100: 208181 | FJ100: 42707 | FK100: 1990 | FL100: 8306.414918 | FM100: 9557.722408 | FN100: 10155 | FO100: 7297.619048 | FP100: 153.4080103 | FS100: -54543 | FV100: 25357 | FW100: -25357
B101: KOKO MAA (Manner-Suomi) | C101: 5422604 | E101: 1.319371239 | F101: 50.71641386 | G101: -2246.564197 | K101: 60.44107974 | L101: 797.3285529 | M101: 37.69979894 | N101: 7719.535116 | O101: 14877516 | P101: 9099964 | Q101: 36154817 | R101: -27054855 | S101: 20550650 | T101: 8252678 | W101: 4659 | X101: 309368 | Y101: 2062502 | Z101: 2058484 | AA101: 384160 | AB101: 18131 | AC101: 370047 | AD101: -19191 | AE101: -6649 | AF101: 49155 | AG101: 393357 | AH101: 6961304 | AI101: 1816605 | AK101: 11698 | AL101: -1514912 | AM101: -886924 | AN101: 20550650 | AO101: 17881106 | AP101: 1308621 | AQ101: 1360351 | AR101: 19.4 | AT101: - | AU101: 5442837 | AW101: 1.2 | AX101: 52 | AY101: -2415 | BC101: 61 | BD101: 790 | BE101: 34 | BF101: 8466 | BG101: 14767904 | BH101: 9119940 | BI101: 36434169 | BJ101: -27314229 | BK101: 21068274 | BL101: 8160993 | BO101: -14727 | BP101: 295035 | BQ101: 2195426 | BR101: 2065374 | BS101: 1946732 | BT101: 46309 | BU101: 2030007 | BV101: 172916 | BW101: 103419 | BX101: 139174 | BY101: 2445539 | BZ101: 9362856 | CA101: 1480995 | CC101: 253496 | CD101: -1787158 | CE101: -91872 | CF101: 21068274 | CG101: 18102840 | CH101: 1456282 | CI101: 1508596 | CJ101: 19.75 | CL101: - | CM101: 5458325 | CO101: 1.06 | CP101: 54.9 | CQ101: -2611.638919 | CV101: 753.7812424 | CW101: 37.9407675 | CX101: 7251.570583 | CY101: 14616405 | CZ101: 8028689 | DA101: 36334056 | DB101: -28305219 | DC101: 21662871 | DD101: 8196322 | DG101: 56439 | DH101: 482808 | DI101: 1894705 | DJ101: 2081911 | DK101: 346559 | DL101: 15730 | DM101: 143623 | DN101: -16481 | DO101: -15415 | DP101: 52925 | DQ101: 164652 | DR101: 9422587 | DS101: 1612201 | DU101: 89705 | DV101: -2268170 | DW101: -890484 | DX101: 21662871 | DY101: 18443219 | DZ101: 1638497 | EA101: 1581155 | EB101: 19.85 | ED101: - | EE101: 15631272 | EF101: 15975867 | EG101: 16399784 | EH101: 20000 | EI101: 20000 | EK101: -3817210 | EL101: 210526 | EM101: 928666 | EN101: -6790767 | EO101: 222285 | EP101: 4995615 | EQ101: -3613766 | ER101: 195876 | ES101: 916223 | ET101: 2724696 | EU101: 362801 | EV101: 2522611 | EW101: 130924 | EX101: 1783034 | EY101: 336121 | EZ101: 13786842 | FA101: 9886108 | FB101: 3900735 | FC101: 4288514 | FD101: 14677147 | FE101: 10627935 | FF101: 4042705 | FG101: 5353203 | FH101: 15504383 | FI101: 11002347 | FJ101: 4501949 | FK101: 5552611 | FL101: 5547.345703 | FM101: 5774 | FN101: 5987 | FO101: 929129.4207 | FP101: 170.2224438 | FS101: -2544190 | FV101: 1315633 | FW101: -1315633
A102: 273 | B102: Kolari | C102: 3885 | E102: 2.045482483 | F102: 51.88104852 | G102: -3387.902188 | K102: 43.19105691 | L102: 259.7168597 | M102: 10.83318626 | N102: 8750.579151 | O102: 13984 | P102: 4949 | Q102: 27905 | R102: -22956 | S102: 13568 | T102: 12689 | W102: -158 | X102: 12 | Y102: 3155 | Z102: 1340 | AA102: 109 | AC102: 1924 | AD102: 20 | AG102: 1944 | AH102: 5128 | AI102: 3264 | AK102: -259 | AL102: -1454 | AM102: -434 | AN102: 13568 | AO102: 10233 | AP102: 514 | AQ102: 2821 | AR102: 20 | AT102: 9 | AU102: 3840 | AW102: 1.461192351 | AX102: 48.94978616 | AY102: -3271.875 | BC102: 46.13186507 | BD102: 186.4583333 | BE102: 7.486107133 | BF102: 9091.145833 | BG102: 14638 | BH102: 4714 | BI102: 29011 | BJ102: -24297 | BK102: 14244 | BL102: 12607 | BO102: -157 | BP102: 31 | BQ102: 2428 | BR102: 1515 | BU102: 913 | BV102: 13 | BY102: 926 | BZ102: 6054 | CA102: 2316 | CC102: -105 | CD102: -1608 | CE102: 968 | CF102: 14244 | CG102: 10350 | CH102: 571 | CI102: 3323 | CJ102: 20 | CL102: 34 | CM102: 3848 | CO102: 2.500683995 | CP102: 42 | CQ102: -3004.417879 | CU102: 51 | CV102: 244.8024948 | CW102: 12.01614594 | CX102: 7436.070686 | CY102: 14593 | CZ102: 5786 | DA102: 29258 | DB102: -23472 | DC102: 14217 | DD102: 12901 | DG102: -132 | DH102: -1 | DI102: 3512 | DJ102: 1609 | DK102: 0 | DL102: 0 | DM102: 1903 | DN102: 14 | DO102: 0 | DP102: 0 | DQ102: 1917 | DR102: 7275 | DS102: 3173 | DU102: 939 | DV102: 0 | DW102: 1040 | DX102: 14217 | DY102: 10300 | DZ102: 683 | EA102: 3234 | EB102: 20 | ED102: 7 | EE102: 10196 | EF102: 10564 | EG102: 10277 | EK102: -4438 | EL102: 740 | EN102: -3615 | EO102: 772 | EP102: 1495 | EQ102: -2292 | ER102: 104 | ES102: 55 | ET102: 2592 | EU102: 500 | EV102: 1550 | EW102: -900 | EX102: 1318 | EY102: -800 | EZ102: 12370 | FA102: 9063 | FB102: 3307 | FC102: 1288 | FD102: 11411 | FE102: 9293 | FF102: 2118 | FG102: 1725 | FH102: 9293 | FI102: 8124 | FJ102: 1169 | FK102: 1675 | FL102: 4493.436293 | FM102: 4346.09375 | FN102: 3595 | FO102: 515 | FP102: 133.8357588 | FS102: -1684 | FV102: 1391 | FW102: -1391
A103: 275 | B103: Konnevesi | C103: 2846 | E103: 0.9027272727 | F103: 54.49499502 | G103: -2931.131413 | K103: 53.58219151 | L103: 683.4153197 | M103: 31.70015628 | N103: 7868.938862 | O103: 6796 | P103: 3521 | Q103: 20298 | R103: -16777 | S103: 8393 | T103: 9165 | W103: -88 | X103: 176 | Y103: 869 | Z103: 633 | AC103: 236 | AG103: 236 | AH103: 4890 | AI103: 867 | AK103: -29 | AL103: -976 | AM103: -50 | AN103: 8393 | AO103: 7238 | AP103: 548 | AQ103: 607 | AR103: 21 | AT103: 138 | AU103: 2831 | AW103: 0.7571825765 | AX103: 58.04386258 | AY103: -3380.430943 | BC103: 52.89581245 | BD103: 470.1518898 | BE103: 20.20945131 | BF103: 8491.345814 | BG103: 6728 | BH103: 3476 | BI103: 20269 | BJ103: -16793 | BK103: 8196 | BL103: 9257 | BO103: -83 | BP103: 136 | BQ103: 713 | BR103: 574 | BS103: 244 | BU103: 383 | BY103: 383 | BZ103: 5273 | CA103: 957 | CC103: -47 | CD103: -975 | CE103: -602 | CF103: 8196 | CG103: 6878 | CH103: 602 | CI103: 716 | CJ103: 21 | CL103: 215 | CM103: 2757 | CO103: 0.84192673 | CP103: 77 | CQ103: -5033.369605 | CU103: 46 | CV103: 589.4087777 | CW103: 20.43004271 | CX103: 10530.28654 | CY103: 6787 | CZ103: 3577 | DA103: 20218 | DB103: -16641 | DC103: 8842 | DD103: 8870 | DG103: -70 | DH103: 306 | DI103: 1142 | DJ103: 703 | DK103: 0 | DL103: 0 | DM103: 439 | DN103: 0 | DO103: 0 | DP103: 0 | DQ103: 439 | DR103: 5713 | DS103: 1142 | DU103: 334 | DV103: -4000 | DW103: -4396 | DX103: 8842 | DY103: 7372 | DZ103: 703 | EA103: 767 | EB103: 21.5 | ED103: 115 | EE103: 11181 | EF103: 11379 | EG103: 11320 | EK103: -961 | EL103: 17 | EM103: 27 | EN103: -2010 | EO103: 21 | EP103: 430 | EQ103: -5965 | ER103: 400 | ES103: 27 | ET103: 800 | EU103: 80 | EW103: 1000 | EX103: 1375 | EY103: -734 | EZ103: 9141 | FA103: 8166 | FB103: 975 | FC103: 396 | FD103: 9164 | FE103: 7189 | FF103: 1975 | FG103: 1026 | FH103: 11057 | FI103: 9815 | FJ103: 1242 | FK103: 963 | FL103: 5165.846803 | FM103: 5117.979513 | FN103: 5543 | FO103: 342.8837209 | FP103: 124.3684153 | FS103: -5034 | FV103: 846 | FW103: -846
A104: 276 | B104: Kontiolahti | C104: 14422 | E104: 0.7174048659 | F104: 68.72472398 | G104: -2981.486618 | K104: 38.27521063 | L104: 535.2239634 | M104: 31.48640494 | N104: 6204.479268 | O104: 25461 | P104: 12613 | Q104: 75178 | R104: -62565 | S104: 44885 | T104: 23112 | W104: -964 | X104: 269 | Y104: 4737 | Z104: 4986 | AC104: -249 | AD104: 80 | AG104: -169 | AH104: 12345 | AI104: 3995 | AK104: 1107 | AL104: -7002 | AM104: -545 | AN104: 44885 | AO104: 41195 | AP104: 1665 | AQ104: 2025 | AR104: 19.75 | AT104: 124 | AU104: 14681 | AW104: 0.6702361743 | AX104: 63.23381821 | AY104: -3091.274436 | BC104: 39.25544554 | BD104: 114.5698522 | BE104: 6.639306146 | BF104: 6298.549145 | BG104: 24895 | BH104: 13957 | BI104: 78407 | BJ104: -64450 | BK104: 46501 | BL104: 22243 | BO104: -913 | BP104: 259 | BQ104: 3640 | BR104: 4217 | BU104: -577 | BV104: 80 | BY104: -497 | BZ104: 11848 | CA104: 2228 | CC104: -550 | CD104: -5887 | CE104: -2275 | CF104: 46501 | CG104: 42709 | CH104: 1643 | CI104: 2149 | CJ104: 19.75 | CL104: 217 | CM104: 14827 | CO104: 0.9721934816 | CP104: 59 | CQ104: -2881.7023 | CU104: 42 | CV104: 297.7675862 | CW104: 18.49379131 | CX104: 5876.846294 | CY104: 24118 | CZ104: 13324 | DA104: 78562 | DB104: -65238 | DC104: 50282 | DD104: 22194 | DG104: -828 | DH104: 512 | DI104: 6676 | DJ104: 4214 | DK104: 0 | DL104: 0 | DM104: 2462 | DN104: 80 | DO104: 0 | DP104: 0 | DQ104: 2542 | DR104: 14389 | DS104: 6035 | DU104: 1414 | DV104: -7500 | DW104: 2504 | DX104: 50282 | DY104: 45667 | DZ104: 2104 | EA104: 2511 | EB104: 20.5 | ED104: 99 | EE104: 42376 | EF104: 45774 | EG104: 46864 | EK104: -6283 | EL104: 777 | EM104: 966 | EN104: -7245 | EO104: 1228 | EP104: 1514 | EQ104: -4253 | ER104: 44 | ES104: 678 | ET104: 8000 | EU104: 7000 | EV104: 8000 | EW104: -7000 | EX104: 6891 | EY104: -1500 | EZ104: 49379 | FA104: 30892 | FB104: 18487 | FC104: 23 | FD104: 44492 | FE104: 31977 | FF104: 12515 | FG104: 23 | FH104: 43601 | FI104: 32481 | FJ104: 11120 | FK104: 23 | FL104: 4484.19082 | FM104: 4092.636741 | FN104: 4058 | FO104: 2227.658537 | FP104: 150.243376 | FS104: -3483 | FV104: 5816 | FW104: -5816
A105: 280 | B105: Korsnäs | C105: 2218 | E105: 1.912536443 | F105: 18.51439183 | G105: -798.4670875 | K105: 71.01194831 | L105: 270.0631199 | M105: 12.50557685 | N105: 7882.32642 | O105: 5735 | P105: 2860 | Q105: 15528 | R105: -12668 | S105: 6959 | T105: 6336 | W105: -22 | X105: 26 | Y105: 631 | Z105: 791 | AC105: -160 | AD105: 315 | AG105: 155 | AH105: 4638 | AI105: 588 | AK105: -29 | AL105: -318 | AM105: -933 | AN105: 6959 | AO105: 5699 | AP105: 764 | AQ105: 496 | AR105: 20 | AT105: 151 | AU105: 2219 | AW105: 3.656346749 | AX105: 18.96978995 | AY105: -751.6899504 | BC105: 70.08389894 | BD105: 472.7354664 | BE105: 21.61726513 | BF105: 7981.973862 | BG105: 5736 | BH105: 2845 | BI105: 15789 | BJ105: -12944 | BK105: 7915 | BL105: 6188 | BO105: -37 | BP105: 20 | BQ105: 1142 | BR105: 834 | BU105: 308 | BV105: -144 | BW105: 200 | BY105: 364 | BZ105: 5002 | CA105: 1142 | CC105: 123 | CD105: -284 | CE105: -366 | CF105: 7915 | CG105: 6440 | CH105: 835 | CI105: 640 | CJ105: 21 | CL105: 68 | CM105: 2201 | CO105: 1.270547945 | CP105: 22 | CQ105: -1194.002726 | CU105: 68 | CV105: 176.7378464 | CW105: 8.804179327 | CX105: 7327.124035 | CY105: 5794 | CZ105: 2666 | DA105: 15292 | DB105: -12626 | DC105: 6631 | DD105: 6345 | DG105: -35 | DH105: 20 | DI105: 334 | DJ105: 936 | DK105: 0 | DL105: 0 | DM105: -602 | DN105: 318 | DO105: 0 | DP105: 0 | DQ105: -284 | DR105: 4718 | DS105: 327 | DU105: 145 | DV105: -500 | DW105: -957 | DX105: 6631 | DY105: 5014 | DZ105: 969 | EA105: 648 | EB105: 21 | ED105: 258 | EE105: 8030 | EF105: 8306 | EG105: 7752 | EK105: -1604 | EL105: 40 | EM105: 43 | EN105: -1598 | EO105: 90 | EQ105: -1571 | ER105: 151 | ES105: 136 | EU105: 629 | EV105: 500 | EX105: 255 | EY105: 0 | EZ105: 1086 | FA105: 852 | FB105: 234 | FC105: 0 | FD105: 1302 | FE105: 1046 | FF105: 256 | FG105: 0 | FH105: 1546 | FI105: 1318 | FJ105: 228 | FK105: 0 | FL105: 897.6555455 | FM105: 928.7967553 | FN105: 1296 | FO105: 238.7619048 | FP105: 108.47883 | FS105: -1169 | FV105: 240 | FW105: -240
A106: 284 | B106: Koski tl | C106: 2423 | E106: 14.125 | F106: 16.74074074 | G106: 61.08130417 | K106: 79.34488557 | L106: 835.3281057 | M106: 43.31125051 | N106: 7039.620305 | O106: 6583 | P106: 2943 | Q106: 15467 | R106: -12524 | S106: 6482 | T106: 7450 | W106: 38 | X106: 19 | Y106: 1465 | Z106: 595 | AA106: 304 | AC106: 1174 | AD106: 25 | AE106: -650 | AG106: 550 | AH106: 2993 | AI106: 1769 | AK106: -12 | AL106: -100 | AM106: 314 | AN106: 6482 | AO106: 5828 | AP106: 315 | AQ106: 339 | AR106: 19.5 | AT106: 33 | AU106: 2438 | AW106: 11.25490196 | AX106: 17.01952482 | AY106: 169.4011485 | BC106: 78.26445146 | BD106: 1052.091879 | BE106: 54.1577486 | BF106: 7090.648072 | BG106: 6935 | BH106: 3006 | BI106: 15927 | BJ106: -12921 | BK106: 6574 | BL106: 7424 | BO106: 10 | BP106: 60 | BQ106: 1147 | BR106: 597 | BU106: 550 | BV106: 25 | BW106: -100 | BY106: 475 | BZ106: 3467 | CA106: 1097 | CC106: 206 | CD106: -100 | CE106: 17 | CF106: 6574 | CG106: 5856 | CH106: 345 | CI106: 373 | CJ106: 19.5 | CL106: 84 | CM106: 2399 | CO106: 8.445544554 | CP106: 17 | CQ106: 252.6052522 | CU106: 78 | CV106: 1215.506461 | CW106: 63.38752903 | CX106: 6999.166319 | CY106: 7025 | CZ106: 3140 | DA106: 16619 | DB106: -13479 | DC106: 6869 | DD106: 7425 | DG106: 18 | DH106: 35 | DI106: 852 | DJ106: 629 | DK106: 0 | DL106: 0 | DM106: 223 | DN106: -324 | DO106: 350 | DP106: 0 | DQ106: 249 | DR106: 3716 | DS106: 883 | DU106: 57 | DV106: 0 | DW106: 183 | DX106: 6869 | DY106: 6010 | DZ106: 379 | EA106: 480 | EB106: 19.5 | ED106: 143 | EE106: 7323 | EF106: 7348 | EG106: 7808 | EK106: -1485 | EL106: 27 | EM106: 3 | EN106: -1256 | EO106: 30 | EP106: 146 | EQ106: -899 | ER106: 188 | ES106: 11 | EX106: 100 | EY106: 0 | EZ106: 400 | FA106: 300 | FB106: 101 | FC106: 23 | FD106: 300 | FE106: 200 | FF106: 100 | FG106: 23 | FH106: 200 | FI106: 100 | FJ106: 100 | FK106: 23 | FL106: 1323.565827 | FM106: 1097.621001 | FN106: 983 | FO106: 308.2051282 | FP106: 128.4723336 | FS106: -807 | FV106: 100 | FW106: -100
A107: 285 | B107: Kotka | C107: 54771 | E107: 0.2646446863 | F107: 78.06194649 | G107: -4744.572858 | K107: 45.63757685 | L107: 0 | M107: 0 | N107: 8055.576856 | O107: 157386 | P107: 92287 | Q107: 385446 | R107: -293159 | S107: 207652 | T107: 90210 | W107: -3074 | X107: 4335 | Y107: 5964 | Z107: 21345 | AA107: 1491 | AB107: 64 | AC107: -13954 | AD107: 1227 | AG107: -12727 | AH107: -42819 | AI107: 5222 | AK107: 2521 | AL107: -33531 | AM107: -6813 | AN107: 207652 | AO107: 185757 | AP107: 8583 | AQ107: 13312 | AR107: 20.5 | AT107: 243 | AU107: 54518 | AW107: 0.2918994413 | AX107: 80.10985488 | AY107: -5052.40471 | BC107: 45.41300545 | BD107: 0 | BE107: 0 | BF107: 8225.393448 | BG107: 154823 | BH107: 94191 | BI107: 388050 | BJ107: -293859 | BK107: 209467 | BL107: 91082 | BO107: -2870 | BP107: 3558 | BQ107: 7378 | BR107: 20524 | BS107: 19367 | BU107: 6221 | BV107: 3848 | BY107: 10069 | BZ107: -32750 | CA107: 3983 | CC107: 4091 | CD107: -34249 | CE107: -14692 | CF107: 209467 | CG107: 184750 | CH107: 10842 | CI107: 13875 | CJ107: 20.5 | CL107: 264 | CM107: 54319 | CO107: 0.3633051877 | CP107: 83 | CQ107: -5315.524954 | CU107: 43 | CV107: 0 | CW107: 0 | CX107: 8062.979804 | CY107: 151928 | CZ107: 90753 | DA107: 390951 | DB107: -300198 | DC107: 211078 | DD107: 96737 | DG107: -2237 | DH107: 11109 | DI107: 9886 | DJ107: 18684 | DK107: 0 | DL107: 0 | DM107: -8798 | DN107: 271 | DO107: 0 | DP107: 0 | DQ107: -8527 | DR107: -41277 | DS107: 9251 | DU107: -2085 | DV107: -30000 | DW107: -13371 | DX107: 211078 | DY107: 185520 | DZ107: 10334 | EA107: 15224 | EB107: 20.5 | ED107: 246 | EE107: 163430 | EF107: 168457 | EG107: 168897 | EH107: 1700 | EK107: -16978 | EL107: -154 | EM107: 5097 | EN107: -21923 | EO107: 218 | EP107: 3030 | EQ107: -24851 | ER107: 1716 | ES107: 1278 | ET107: 30000 | EU107: 9117 | EV107: 30000 | EW107: 17319 | EX107: 32432 | EY107: 17286 | EZ107: 253273 | FA107: 194307 | FB107: 58966 | FC107: 4781 | FD107: 266382 | FE107: 191710 | FF107: 74672 | FG107: 4781 | FH107: 281271 | FI107: 193163 | FJ107: 88108 | FK107: 4781 | FL107: 10514.28676 | FM107: 10466.59819 | FN107: 10585 | FO107: 9049.756098 | FP107: 166.6038789 | FS107: -21858 | FV107: 26950 | FW107: -26950
A108: 286 | B108: Kouvola | C108: 86926 | E108: 1.051174692 | F108: 46.23526669 | G108: -2241.607804 | K108: 53.98348328 | L108: 404.1598601 | M108: 20.46198796 | N108: 7209.384994 | O108: 278039 | P108: 94363 | Q108: 567273 | R108: -472910 | S108: 326022 | T108: 164042 | W108: -1351 | X108: 8565 | Y108: 24368 | Z108: 20556 | AC108: 3812 | AD108: 102 | AG108: 3914 | AH108: -4619 | AI108: 23018 | AK108: -1853 | AL108: -23048 | AM108: -10433 | AN108: 326022 | AO108: 286092 | AP108: 16241 | AQ108: 23689 | AR108: 20 | AT108: 154 | AU108: 86453 | AW108: 0.1848882717 | AX108: 47.11755742 | AY108: -2267.532648 | BC108: 53.69809071 | BD108: 391.8198327 | BE108: 17.20969109 | BF108: 8310.099129 | BG108: 272908 | BH108: 93311 | BI108: 580690 | BJ108: -487379 | BK108: 322188 | BL108: 163960 | BO108: -1869 | BP108: 8615 | BQ108: 5515 | BR108: 23019 | BS108: 25728 | BU108: 8224 | BV108: 102 | BY108: 8327 | BZ108: 3408 | CA108: 15897 | CC108: -3833 | CD108: -44254 | CE108: 16597 | CF108: 322188 | CG108: 278689 | CH108: 18159 | CI108: 25340 | CJ108: 20 | CL108: 279 | CM108: 85855 | CO108: 0.6211484594 | CP108: 50 | CQ108: -2393.570555 | CU108: 52 | CV108: 523.3940947 | CW108: 25.50113267 | CX108: 7491.38664 | CY108: 271380 | CZ108: 77271 | DA108: 570794 | DB108: -493462 | DC108: 332743 | DD108: 166672 | DG108: -905 | DH108: 16334 | DI108: 14582 | DJ108: 20923 | DK108: 2445 | DL108: 572 | DM108: -4468 | DN108: 102 | DO108: 0 | DP108: 3 | DQ108: -4363 | DR108: -954 | DS108: 14452 | DU108: 3579 | DV108: -50000 | DW108: -8927 | DX108: 332743 | DY108: 288291 | DZ108: 19392 | EA108: 25060 | EB108: 20.5 | ED108: 252 | EE108: 205408 | EF108: 218191 | EG108: 207087 | EK108: -40080 | EL108: 3637 | EM108: 2992 | EN108: -74566 | EO108: 1755 | EP108: 73511 | EQ108: -30106 | ER108: 951 | ES108: 5776 | ET108: 55855 | EU108: -5970 | EV108: 37050 | EX108: 25402 | EY108: 0 | EZ108: 186118 | FA108: 164364 | FB108: 21754 | FC108: 21583 | FD108: 178913 | FE108: 153512 | FF108: 25401 | FG108: 40061 | FH108: 203512 | FI108: 179658 | FJ108: 23854 | FK108: 40707 | FL108: 3876.768746 | FM108: 3849.305403 | FN108: 4049 | FO108: 14062.97561 | FP108: 163.7991452 | FS108: -28284 | FV108: 21744 | FW108: -21744
A109: 287 | B109: Kristiinankaupunki | C109: 7001 | E109: 0.2117298897 | F109: 64.21767581 | G109: -3546.207685 | K109: 31.89785434 | L109: 450.5070704 | M109: 20.52031158 | N109: 8013.283817 | O109: 22413 | P109: 7607 | Q109: 47562 | R109: -39955 | S109: 21633 | T109: 19052 | W109: -465 | X109: 55 | Y109: 320 | Z109: 1887 | AC109: -1567 | AG109: -1573 | AH109: -2299 | AI109: 79 | AK109: 101 | AL109: -3250 | AM109: -4363 | AN109: 21633 | AO109: 19054 | AP109: 921 | AQ109: 1658 | AR109: 20.5 | AT109: 262 | AU109: 6845 | AW109: 1.163080408 | AX109: 63.07762091 | AY109: -3568.590212 | BC109: 33.4921195 | BD109: 907.815924 | BE109: 40.05067896 | BF109: 8273.338203 | BG109: 22112 | BH109: 9544 | BI109: 47797 | BJ109: -38253 | BK109: 23260 | BL109: 20107 | BO109: -602 | BP109: 16 | BQ109: 4528 | BR109: 2213 | BU109: 2315 | BY109: 2315 | BZ109: 22 | CA109: 2615 | CC109: 328 | CD109: -3808 | CE109: 380 | CF109: 23260 | CG109: 20472 | CH109: 1013 | CI109: 1775 | CJ109: 21 | CL109: 28 | CM109: 6793 | CO109: 0.827601913 | CP109: 62 | CQ109: -3633.887826 | CU109: 35 | CV109: 681.7311939 | CW109: 33.89102757 | CX109: 7342.116885 | CY109: 21989 | CZ109: 8654 | DA109: 47622 | DB109: -38967 | DC109: 23239 | DD109: 19390 | DG109: -526 | DH109: -37 | DI109: 3099 | DJ109: 2278 | DK109: 0 | DL109: 0 | DM109: 821 | DN109: 0 | DO109: 0 | DP109: 0 | DQ109: 821 | DR109: 843 | DS109: 2215 | DU109: 41 | DV109: -3000 | DW109: 81 | DX109: 23239 | DY109: 20266 | DZ109: 1185 | EA109: 1788 | EB109: 21.5 | ED109: 95 | EE109: 19693 | EF109: 20348 | EG109: 20326 | EI109: 980 | EK109: -4777 | EL109: 96 | EM109: 239 | EN109: -4395 | EO109: 105 | EP109: 2055 | EQ109: -3169 | ER109: 0 | ES109: 1035 | ET109: 7186 | EV109: 6100 | EW109: -227 | EX109: 3856 | EY109: 0 | EZ109: 23472 | FA109: 20470 | FB109: 3002 | FC109: 0 | FD109: 25536 | FE109: 22762 | FF109: 2774 | FG109: 0 | FH109: 24680 | FI109: 20731 | FJ109: 3949 | FK109: 0 | FL109: 4398.371661 | FM109: 4589.481373 | FN109: 4554 | FO109: 942.6046512 | FP109: 138.7611734 | FS109: -2515 | FV109: 2310 | FW109: -2310
A110: 288 | B110: Kruunupyy | C110: 6682 | E110: 0.04820819113 | F110: 47.1160591 | G110: -2581.113439 | K110: 26.23506962 | L110: 253.3672553 | M110: 12.36063049 | N110: 7481.741993 | O110: 11145 | P110: 6713 | Q110: 44206 | R110: -37493 | S110: 20108 | T110: 17375 | W110: -318 | X110: 112 | Y110: -216 | Z110: 1468 | AB110: 3 | AC110: -1687 | AG110: -1687 | AH110: 2075 | AI110: -279 | AK110: -1072 | AL110: -2015 | AM110: -3629 | AN110: 20108 | AO110: 17409 | AP110: 1578 | AQ110: 1121 | AR110: 19.5 | AT110: 284 | AU110: 6662 | AW110: 0.3566781477 | AX110: 51.75395257 | AY110: -3036.025218 | BC110: 32.71747049 | BD110: 311.1678175 | BE110: 15.12261662 | BF110: 7510.35725 | BG110: 11074 | BH110: 6420 | BI110: 43720 | BJ110: -37300 | BK110: 21404 | BL110: 16705 | BO110: -358 | BP110: 103 | BQ110: 554 | BR110: 1631 | BS110: 4882 | BT110: 2 | BU110: 3803 | BY110: 3803 | BZ110: 5878 | CA110: 467 | CC110: 1220 | CD110: -2235 | CE110: -3059 | CF110: 21404 | CG110: 18154 | CH110: 1893 | CI110: 1357 | CJ110: 20 | CL110: 274 | CM110: 6682 | CO110: 0.3792866941 | CP110: 56 | CQ110: -3343.16073 | CU110: 31 | CV110: 32.77461838 | CW110: 1.703172608 | CX110: 7023.795271 | CY110: 10492 | CZ110: 2663 | DA110: 40377 | DB110: -37714 | DC110: 22777 | DD110: 16004 | DG110: -381 | DH110: 42 | DI110: 721 | DJ110: 1090 | DK110: 0 | DL110: 0 | DM110: -369 | DN110: 0 | DO110: 0 | DP110: 0 | DQ110: -369 | DR110: 5408 | DS110: 604 | DU110: -3 | DV110: -4355 | DW110: -2112 | DX110: 22777 | DY110: 19049 | DZ110: 1504 | EA110: 2224 | EB110: 20.75 | ED110: 271 | EE110: 27911 | EF110: 27790 | EG110: 27370 | EK110: -3437 | EM110: 87 | EN110: -3687 | EP110: 161 | EQ110: -2843 | ER110: 0 | ES110: 127 | ET110: 4000 | EV110: 4500 | EW110: 2720 | EX110: 2531 | EY110: 69 | EZ110: 13484 | FA110: 11474 | FB110: 2010 | FC110: 0 | FD110: 18469 | FE110: 13436 | FF110: 5033 | FG110: 0 | FH110: 20364 | FI110: 14983 | FJ110: 5381 | FK110: 0 | FL110: 2609.248728 | FM110: 3312.368658 | FN110: 3635 | FO110: 918.0240964 | FP110: 137.3876229 | FS110: -2737 | FV110: 1528 | FW110: -1528
A111: 290 | B111: Kuhmo | C111: 9104 | E111: 0.6148222838 | F111: 34.30186103 | G111: -481.8760984 | K111: 58.43264339 | L111: 1898.725835 | M111: 83.3307799 | N111: 8316.673989 | O111: 17530 | P111: 9398 | Q111: 67248 | R111: -57850 | S111: 27411 | T111: 32024 | W111: -169 | X111: 788 | Y111: 2204 | Z111: 1840 | AA111: 1206 | AC111: 1570 | AD111: 42 | AG111: 1612 | AH111: -3218 | AI111: 3342 | AK111: 79 | AL111: -3732 | AM111: 901 | AN111: 27411 | AO111: 23558 | AP111: 2348 | AQ111: 1505 | AR111: 21 | AT111: 174 | AU111: 8950 | AW111: 1.440317683 | AX111: 33.49124036 | AY111: 127.8212291 | BC111: 59.29194715 | BD111: 2092.402235 | BE111: 89.45511772 | BF111: 8537.541899 | BG111: 17075 | BH111: 9026 | BI111: 67611 | BJ111: -58585 | BK111: 29499 | BL111: 32825 | BO111: -218 | BP111: 2422 | BQ111: 5943 | BR111: 2154 | BS111: 869 | BU111: 4658 | BV111: 42 | BY111: 4701 | BZ111: 1483 | CA111: 6259 | CC111: -4375 | CD111: -4059 | CE111: 5547 | CF111: 29499 | CG111: 24833 | CH111: 2630 | CI111: 2036 | CJ111: 21.5 | CL111: 27 | CM111: 8806 | CO111: 0.5690661479 | CP111: 38 | CQ111: -560.6404724 | CU111: 57 | CV111: 2050.079491 | CW111: 85.74070942 | CX111: 8727.231433 | CY111: 17192 | CZ111: 6916 | DA111: 67361 | DB111: -60445 | DC111: 29580 | DD111: 32479 | DG111: -109 | DH111: 652 | DI111: 2157 | DJ111: 1920 | DK111: 0 | DL111: 0 | DM111: 237 | DN111: 43 | DO111: 0 | DP111: 0 | DQ111: 280 | DR111: 1763 | DS111: 2002 | DU111: 2945 | DV111: -3570 | DW111: -5947 | DX111: 29580 | DY111: 24548 | DZ111: 2949 | EA111: 2083 | EB111: 21.5 | ED111: 206 | EE111: 41796 | EF111: 42268 | EG111: 43923 | EK111: -4413 | EL111: 136 | EM111: 1836 | EN111: -4235 | EO111: 473 | EP111: 3050 | EQ111: -9393 | ER111: 1444 | ES111: 0 | ET111: 7093 | EV111: 2251 | EW111: 1500 | EX111: 3929 | EY111: 2500 | EZ111: 18274 | FA111: 14215 | FB111: 4059 | FC111: 276 | FD111: 17967 | FE111: 12538 | FF111: 5429 | FG111: 239 | FH111: 20107 | FI111: 12967 | FJ111: 7140 | FK111: 440 | FL111: 3103.031634 | FM111: 2968.379888 | FN111: 3137 | FO111: 1141.767442 | FP111: 129.6578971 | FS111: -8048 | FV111: 3111 | FW111: -3111
A112: 291 | B112: Kuhmoinen | C112: 2409 | E112: 1.932631579 | F112: 23.02188552 | G112: -244.9149024 | K112: 76.86383982 | L112: 1293.897883 | M112: 53.4786594 | N112: 8831.050228 | O112: 4714 | P112: 2485 | Q112: 18222 | R112: -15737 | S112: 7542 | T112: 8981 | W112: 43 | X112: 75 | Y112: 904 | Z112: 1321 | AC112: -417 | AD112: 12 | AG112: -405 | AH112: 3229 | AI112: 866 | AK112: -199 | AL112: -461 | AM112: -1347 | AN112: 7542 | AO112: 5692 | AP112: 658 | AQ112: 1192 | AR112: 19.75 | AT112: 97 | AU112: 2374 | AW112: 3.857142857 | AX112: 26.63713209 | AY112: -215.2485257 | BC112: 73.54046832 | BD112: 1481.88711 | BE112: 63.46414274 | BF112: 8522.74642 | BG112: 4780 | BH112: 2877 | BI112: 18376 | BJ112: -15499 | BK112: 7685 | BL112: 9076 | BO112: 106 | BP112: 15 | BQ112: 1383 | BR112: 1117 | BU112: 266 | BV112: 12 | BY112: 278 | BZ112: 3507 | CA112: 1384 | CC112: -533 | CD112: -344 | CE112: 151 | CF112: 7685 | CG112: 5609 | CH112: 748 | CI112: 1328 | CJ112: 19.75 | CL112: 43 | CM112: 2334 | CO112: 5.735849057 | CP112: 21 | CQ112: -107.1122536 | CU112: 78 | CV112: 1430.59126 | CW112: 64.87809422 | CX112: 8048.414739 | CY112: 4546 | CZ112: 2664 | DA112: 18119 | DB112: -15455 | DC112: 8155 | DD112: 9040 | DG112: 93 | DH112: -19 | DI112: 1803 | DJ112: 1114 | DK112: 0 | DL112: 0 | DM112: 689 | DN112: 3 | DO112: 0 | DP112: 0 | DQ112: 692 | DR112: 4199 | DS112: 1690 | DU112: 612 | DV112: -1000 | DW112: 254 | DX112: 8155 | DY112: 5917 | DZ112: 906 | EA112: 1332 | EB112: 20.75 | ED112: 17 | EE112: 11722 | EF112: 11808 | EG112: 11929 | EK112: -2550 | EL112: 32 | EM112: 305 | EN112: -1233 | EQ112: -1609 | ER112: 0 | ES112: 173 | ET112: 700 | EU112: 1500 | EW112: 1500 | EX112: 297 | EY112: -2000 | EZ112: 2761 | FA112: 917 | FB112: 1844 | FC112: 359 | FD112: 3917 | FE112: 670 | FF112: 3247 | FG112: 582 | FH112: 2620 | FI112: 1409 | FJ112: 1211 | FK112: 571 | FL112: 2468.244085 | FM112: 2921.229992 | FN112: 2311 | FO112: 285.1566265 | FP112: 122.1750756 | FS112: -1465 | FV112: 780 | FW112: -780
A113: 297 | B113: Kuopio | C113: 106342 | E113: 1.460458522 | F113: 50.88578768 | G113: -2655.470087 | K113: 51.6109628 | L113: 496.8027684 | M113: 23.32677884 | N113: 7773.59839 | O113: 284135 | P113: 236429 | Q113: 738587 | R113: -502158 | S113: 384482 | T113: 153132 | W113: -776 | X113: 3079 | Y113: 37759 | Z113: 44706 | AA113: 7585 | AC113: 638 | AD113: 351 | AG113: 989 | AH113: 7794 | AI113: 37089 | AK113: 865 | AL113: -24443 | AM113: -22915 | AN113: 384482 | AO113: 335325 | AP113: 17079 | AQ113: 32078 | AR113: 19.5 | AT113: 110 | AU113: 107543 | AW113: 1.361660802 | AX113: 50.56634936 | AY113: -2886.947547 | BC113: 57.31852342 | BD113: 494.9183117 | BE113: 18.47445289 | BF113: 9778.107362 | BG113: 289293 | BH113: 241123 | BI113: 754019 | BJ113: -512896 | BK113: 405737 | BL113: 149060 | BO113: -1776 | BP113: 2889 | BQ113: 43014 | BR113: 49699 | BS113: 126024 | BT113: 1322 | BU113: 118017 | BV113: 274 | BW113: 96 | BY113: 118387 | BZ113: 128288 | CA113: 56221 | CC113: 19196 | CD113: -30166 | CE113: 51153 | CF113: 405737 | CG113: 352702 | CH113: 19247 | CI113: 33788 | CJ113: 20.5 | CL113: 115 | CM113: 112119 | CO113: 0.8911011189 | CP113: 53 | CQ113: -2874.963209 | CU113: 56 | CV113: 465.5410769 | CW113: 23.77258525 | CX113: 7147.833998 | CY113: 308628 | CZ113: 201644 | DA113: 764350 | DB113: -562706 | DC113: 429383 | DD113: 164183 | DG113: 2047 | DH113: 5426 | DI113: 36745 | DJ113: 50470 | DK113: 270 | DL113: 0 | DM113: -13455 | DN113: 482 | DO113: 0 | DP113: 0 | DQ113: -12973 | DR113: 117036 | DS113: 29350 | DU113: -2520 | DV113: -45000 | DW113: -3634 | DX113: 429383 | DY113: 369418 | DZ113: 21790 | EA113: 38175 | EB113: 20.5 | ED113: 155 | EE113: 315426 | EF113: 326488 | EG113: 347061 | EK113: -75205 | EL113: 6140 | EM113: 9061 | EN113: -190374 | EO113: 3312 | EP113: 181994 | EQ113: -46958 | ER113: 651 | ES113: 13323 | ET113: 75700 | EU113: -13800 | EV113: 87272 | EX113: 41952 | EY113: -500 | EZ113: 248734 | FA113: 220068 | FB113: 28666 | FC113: 50710 | FD113: 305841 | FE113: 264848 | FF113: 40993 | FG113: 135557 | FH113: 314106 | FI113: 278926 | FJ113: 35180 | FK113: 135453 | FL113: 7757.725076 | FM113: 8195.428805 | FN113: 8103 | FO113: 18020.39024 | FP113: 160.7255705 | FS113: -31934 | FV113: 12990 | FW113: -12990
A114: 300 | B114: Kuortane | C114: 3819 | E114: -18.42857143 | F114: 38.05211251 | G114: -1941.084053 | K114: 60.92902526 | L114: 26.4467138 | M114: 1.218677686 | N114: 7920.921707 | O114: 10947 | P114: 3610 | Q114: 26618 | R114: -23008 | S114: 10519 | T114: 11930 | W114: -7 | X114: 22 | Y114: -544 | Z114: 895 | AC114: -1439 | AG114: -1439 | AH114: 988 | AI114: -571 | AK114: 244 | AL114: 0 | AM114: -3896 | AN114: 10519 | AO114: 9341 | AP114: 512 | AQ114: 666 | AR114: 20 | AT114: 298 | AU114: 3727 | AW114: 42.48387097 | AX114: 39.13684059 | AY114: -2102.763617 | BC114: 59.17735515 | BD114: 485.3769788 | BE114: 23.0901175 | BF114: 7672.658975 | BG114: 11645 | BH114: 4115 | BI114: 26559 | BJ114: -22444 | BK114: 11425 | BL114: 12288 | BO114: -1 | BP114: 20 | BQ114: 1288 | BR114: 1022 | BU114: 266 | BY114: 266 | BZ114: 1253 | CA114: 1168 | CC114: 34 | CD114: -2 | CE114: -620 | CF114: 11425 | CG114: 10035 | CH114: 526 | CI114: 864 | CJ114: 21 | CL114: 153 | CM114: 3715 | CO114: 64.53846154 | CP114: 41 | CQ114: -2256.79677 | CU114: 58 | CV114: 405.3835801 | CW114: 20.57916214 | CX114: 7190.040377 | CY114: 12031 | CZ114: 3836 | DA114: 26514 | DB114: -22678 | DC114: 11001 | DD114: 12477 | DG114: 10 | DH114: 18 | DI114: 828 | DJ114: 1143 | DK114: 0 | DL114: 0 | DM114: -315 | DN114: 0 | DO114: 0 | DP114: 0 | DQ114: -315 | DR114: 720 | DS114: 752 | DU114: 31 | DV114: 0 | DW114: -458 | DX114: 11001 | DY114: 9670 | DZ114: 611 | EA114: 720 | EB114: 21 | ED114: 221 | EE114: 12708 | EF114: 12035 | EG114: 11700 | EK114: -3603 | EL114: 184 | EM114: 94 | EN114: -2000 | EO114: 58 | EP114: 154 | EQ114: -1646 | ER114: 163 | ES114: 273 | EU114: 3468 | EW114: 460 | EX114: 2 | EY114: 170 | EZ114: 6856 | FA114: 684 | FB114: 6172 | FC114: 2167 | FD114: 7314 | FE114: 682 | FF114: 6632 | FG114: 1916 | FH114: 7482 | FI114: 680 | FJ114: 6802 | FK114: 1847 | FL114: 3642.576591 | FM114: 4046.149718 | FN114: 3941 | FO114: 460.4761905 | FP114: 123.9505223 | FS114: -1284 | FV114: 0 | FW114: 0
A115: 301 | B115: Kurikka | C115: 14322 | E115: 1.924437299 | F115: 50.57998152 | G115: -939.2542941 | K115: 71.29430647 | L115: 1788.507192 | M115: 76.43705648 | N115: 8540.427315 | O115: 25092 | P115: 9233 | Q115: 90685 | R115: -81452 | S115: 38246 | T115: 34765 | W115: 3 | X115: 14048 | Y115: 5610 | Z115: 4235 | AA115: 9455 | AC115: 10830 | AD115: 204 | AE115: -3000 | AG115: 8034 | AH115: 41158 | AI115: 14865 | AK115: -181 | AL115: -2735 | AM115: 8557 | AN115: 38246 | AO115: 34743 | AP115: 1683 | AQ115: 1820 | AR115: 19 | AT115: 90 | AU115: 14188 | AW115: -0.2876122345 | AX115: 66.2683968 | AY115: -1702.988441 | BC115: 63.77840534 | BD115: 2054.271215 | BE115: 82.72194272 | BF115: 9064.209191 | BG115: 24583 | BH115: 8121 | BI115: 95926 | BJ115: -87805 | BK115: 38957 | BL115: 35613 | BO115: -81 | BP115: 8843 | BQ115: -4473 | BR115: 3701 | BU115: -8174 | BV115: -2279 | BW115: 2618 | BY115: -7835 | BZ115: 33323 | CA115: -5141 | CC115: 1062 | CD115: -13166 | CE115: -4456 | CF115: 38957 | CG115: 35159 | CH115: 1743 | CI115: 2055 | CJ115: 19 | CL115: 304 | CM115: 13958 | CO115: 0.5069239147 | CP115: 62 | CQ115: -1646.224387 | CU115: 65 | CV115: 1932.511821 | CW115: 106.2656233 | CX115: 6637.770454 | CY115: 25041 | CZ115: 7319 | DA115: 89292 | DB115: -81973 | DC115: 39915 | DD115: 35747 | DG115: -99 | DH115: 18312 | DI115: 2765 | DJ115: 4155 | DK115: 0 | DL115: 0 | DM115: -1390 | DN115: 42 | DO115: 381 | DP115: 0 | DQ115: -967 | DR115: 32356 | DS115: 2501 | DU115: -319 | DV115: -5400 | DW115: 364 | DX115: 39915 | DY115: 35681 | DZ115: 2065 | EA115: 2169 | EB115: 19 | ED115: 238 | EE115: 55920 | EF115: 57286 | EG115: 56507 | EK115: -17932 | EL115: 83 | EM115: 11542 | EN115: -16431 | EO115: 105 | EP115: 17011 | EQ115: -2733 | ER115: 218 | ES115: 378 | ET115: 13000 | EU115: -1200 | EV115: 20990 | EW115: -800 | EX115: 5934 | EY115: 0 | EZ115: 33283 | FA115: 24089 | FB115: 9194 | FC115: 12358 | FD115: 45079 | FE115: 39145 | FF115: 5934 | FG115: 18772 | FH115: 44545 | FI115: 37490 | FJ115: 7055 | FK115: 17945 | FL115: 3962.993995 | FM115: 5333.239357 | FN115: 5264 | FO115: 1877.947368 | FP115: 134.5427259 | FS115: -2227 | FV115: 1962 | FW115: -1962
A116: 304 | B116: Kustavi | C116: 869 | E116: 3.035573123 | F116: 29.20634921 | G116: -937.8596087 | K116: 73.12205153 | L116: 814.7295742 | M116: 30.95591759 | N116: 9606.444189 | O116: 2017 | P116: 1062 | Q116: 6800 | R116: -5738 | S116: 3895 | T116: 2603 | W116: -30 | X116: 8 | Y116: 738 | Z116: 255 | AA116: 33 | AC116: 516 | AD116: 18 | AG116: 534 | AH116: 2056 | AI116: 738 | AK116: -236 | AL116: -223 | AM116: -122 | AN116: 3895 | AO116: 2551 | AP116: 135 | AQ116: 1209 | AR116: 19.25 | AT116: 5 | AU116: 892 | AW116: 2.04620462 | AX116: 31.05565717 | AY116: -919.2825112 | BC116: 72.4887815 | BD116: 1140.134529 | BE116: 46.53441143 | BF116: 8942.825112 | BG116: 2251 | BH116: 1222 | BI116: 7042 | BJ116: -5820 | BK116: 3979 | BL116: 2453 | BO116: -33 | BP116: 8 | BQ116: 587 | BR116: 270 | BT116: 26 | BU116: 291 | BV116: 18 | BY116: 309 | BZ116: 2366 | CA116: 547 | CC116: 145 | CD116: -270 | CE116: 52 | CF116: 3979 | CG116: 2469 | CH116: 142 | CI116: 1368 | CJ116: 19.25 | CL116: 30 | CM116: 895 | CO116: 1.75261324 | CP116: 29 | CQ116: -998.8826816 | CU116: 75 | CV116: 758.6592179 | CW116: 35.93373931 | CX116: 7706.145251 | CY116: 2354 | CZ116: 1230 | DA116: 7128 | DB116: -5898 | DC116: 4028 | DD116: 2363 | DG116: -32 | DH116: 12 | DI116: 471 | DJ116: 271 | DK116: 0 | DL116: 0 | DM116: 200 | DN116: 18 | DO116: 0 | DP116: 0 | DQ116: 218 | DR116: 2584 | DS116: 462 | DU116: -62 | DV116: 0 | DW116: -73 | DX116: 4028 | DY116: 2502 | DZ116: 167 | EA116: 1359 | EB116: 19.25 | ED116: 63 | EE116: 3846 | EF116: 3785 | EG116: 3761 | EK116: -1295 | EL116: 407 | EM116: 28 | EN116: -632 | EO116: 83 | EP116: 54 | EQ116: -695 | ER116: 148 | ES116: 12 | ET116: 470 | EV116: 450 | EW116: 0 | EX116: 255 | EY116: 0 | EZ116: 1530 | FA116: 1303 | FB116: 227 | FC116: 0 | FD116: 1731 | FE116: 1476 | FF116: 255 | FG116: 0 | FH116: 1476 | FI116: 1234 | FJ116: 242 | FK116: 0 | FL116: 1760.644419 | FM116: 1941 | FN116: 4531 | FO116: 129.974026 | FP116: 145.2223754 | FS116: -495 | FV116: 174 | FW116: -174
A117: 305 | B117: Kuusamo | C117: 15952 | E117: 1.817979404 | F117: 36.27915797 | G117: -885.9077232 | K117: 63.38663806 | L117: 1370.925276 | M117: 64.988276 | N117: 7699.661484 | O117: 54026 | P117: 21172 | Q117: 112012 | R117: -90840 | S117: 49923 | T117: 45545 | W117: -614 | X117: 1838 | Y117: 5852 | Z117: 4347 | AC117: 1505 | AF117: 355 | AG117: 1860 | AH117: 7575 | AI117: 5079 | AK117: 908 | AL117: -2913 | AM117: 1810 | AN117: 49923 | AO117: 40653 | AP117: 2957 | AQ117: 6313 | AR117: 19.5 | AT117: 102 | AU117: 15823 | AW117: 1.677108888 | AX117: 35.86725215 | AY117: -712.7599065 | BC117: 64.36110859 | BD117: 1596.031094 | BE117: 74.4522523 | BF117: 7824.495987 | BG117: 54380 | BH117: 21054 | BI117: 111640 | BJ117: -90586 | BK117: 52361 | BL117: 45662 | BO117: -547 | BP117: 1401 | BQ117: 8291 | BR117: 4686 | BU117: 3605 | BX117: 261 | BY117: 3866 | BZ117: 11262 | CA117: 8145 | CC117: 142 | CD117: -4703 | CE117: 1473 | CF117: 52361 | CG117: 42428 | CH117: 3086 | CI117: 6847 | CJ117: 20 | CL117: 63 | CM117: 15688 | CO117: 1.480892537 | CP117: 38 | CQ117: -705.5073942 | CU117: 63 | CV117: 1740.374809 | CW117: 83.20957709 | CX117: 7634.17899 | CY117: 52637 | CZ117: 19506 | DA117: 112862 | DB117: -93356 | DC117: 52714 | DD117: 44846 | DG117: -492 | DH117: 1604 | DI117: 5254 | DJ117: 5147 | DK117: 0 | DL117: 0 | DM117: 107 | DN117: 0 | DO117: 0 | DP117: 527 | DQ117: 634 | DR117: 11680 | DS117: 5061 | DU117: 205 | DV117: -5000 | DW117: 753 | DX117: 52714 | DY117: 42246 | DZ117: 3595 | EA117: 6873 | EB117: 20 | ED117: 148 | EE117: 43946 | EF117: 43645 | EG117: 46447 | EK117: -7542 | EL117: 1516 | EM117: 2757 | EN117: -7461 | EO117: 480 | EP117: 309 | EQ117: -5446 | ER117: 1064 | ES117: 74 | EU117: 1000 | EV117: 7500 | EW117: -2000 | EX117: 3379 | EY117: 0 | EZ117: 26951 | FA117: 20498 | FB117: 6453 | FC117: 6482 | FD117: 27748 | FE117: 24371 | FF117: 3377 | FG117: 4875 | FH117: 29369 | FI117: 25760 | FJ117: 3609 | FK117: 5329 | FL117: 3741.850552 | FM117: 3817.607281 | FN117: 3807 | FO117: 2112.3 | FP117: 134.6443141 | FS117: -4293 | FV117: 4686 | FW117: -4686
A118: 312 | B118: Kyyjärvi | C118: 1431 | E118: -0.9126344086 | F118: 85.18236358 | G118: -2796.645702 | K118: 41.6379142 | L118: 3301.18798 | M118: 135.5017682 | N118: 8892.382949 | O118: 2671 | P118: 1718 | Q118: 11373 | R118: -9655 | S118: 3946 | T118: 4859 | W118: 21 | X118: 91 | Y118: -738 | Z118: 485 | AC118: -1223 | AG118: -1223 | AH118: 909 | AI118: -745 | AK118: 64 | AL118: -685 | AM118: -1313 | AN118: 3946 | AO118: 3184 | AP118: 530 | AQ118: 232 | AR118: 19.5 | AT118: 303 | AU118: 1399 | AW118: 0.120610687 | AX118: 88.71041762 | AY118: -3308.791994 | BC118: 39.90689013 | BD118: 3400.285919 | BE118: 131.9079997 | BF118: 9408.863474 | BG118: 2600 | BH118: 1751 | BI118: 11034 | BJ118: -9283 | BK118: 4283 | BL118: 4878 | BO118: 9 | BP118: 142 | BQ118: 29 | BR118: 505 | BS118: 510 | BU118: 34 | BY118: 34 | BZ118: 942 | CA118: 29 | CC118: -59 | CD118: -605 | CE118: -196 | CF118: 4283 | CG118: 3288 | CH118: 704 | CI118: 291 | CJ118: 20.5 | CL118: 287 | CM118: 1379 | CO118: 1.71047619 | CP118: 103 | CQ118: -3184.916606 | CU118: 40 | CV118: 3846.990573 | CW118: 139.6455358 | CX118: 10055.1124 | CY118: 2616 | CZ118: 1753 | DA118: 10364 | DB118: -8611 | DC118: 4527 | DD118: 4528 | DG118: -10 | DH118: 430 | DI118: 863 | DJ118: 523 | DK118: 0 | DL118: 0 | DM118: 340 | DN118: 0 | DO118: 0 | DP118: 0 | DQ118: 340 | DR118: 2008 | DS118: 863 | DU118: -1116 | DV118: -1700 | DW118: -472 | DX118: 4527 | DY118: 3519 | DZ118: 723 | EA118: 285 | EB118: 20.5 | ED118: 37 | EE118: 7627 | EF118: 7327 | EG118: 6742 | EK118: -587 | EL118: 3 | EM118: 16 | EN118: -1057 | EO118: 51 | EP118: 781 | EQ118: -1507 | ER118: 169 | ES118: 3 | ET118: 1900 | EV118: 1300 | EX118: 490 | EY118: 725 | EZ118: 8247 | FA118: 7642 | FB118: 605 | FC118: 356 | FD118: 8942 | FE118: 8452 | FF118: 490 | FG118: 784 | FH118: 10152 | FI118: 9822 | FJ118: 330 | FK118: 801 | FL118: 7989.51782 | FM118: 8640.45747 | FN118: 10017 | FO118: 171.6585366 | FP118: 124.4804471 | FS118: -1092 | FV118: 780 | FW118: -780
A119: 316 | B119: Kärkölä | C119: 4755 | E119: -0.5041322314 | F119: 57.06518022 | G119: -3016.61409 | K119: 26.38682569 | L119: 377.0767613 | M119: 20.70831883 | N119: 6646.267087 | O119: 2357 | P119: 4951 | Q119: 29510 | R119: -24559 | S119: 15358 | T119: 8933 | W119: -98 | X119: -54 | Y119: -420 | Z119: 1226 | AC119: -1646 | AG119: -1646 | AH119: -4252 | AI119: -513 | AK119: 81 | AL119: -490 | AM119: -1678 | AN119: 15358 | AO119: 13982 | AP119: 416 | AQ119: 960 | AR119: 20.75 | AT119: 291 | AU119: 4647 | AW119: 7.404432133 | AX119: 50.14807204 | AY119: -3134.710566 | BC119: 37.13305097 | BD119: 161.8248332 | BE119: 8.018462797 | BF119: 7366.257801 | BG119: 2301 | BH119: 8755 | BI119: 27709 | BJ119: -18954 | BK119: 15460 | BL119: 8877 | BO119: -111 | BP119: -51 | BQ119: 5221 | BR119: 1268 | BU119: 3953 | BY119: 3953 | BZ119: -299 | CA119: 1332 | CC119: -726 | CD119: -598 | CE119: 3460 | CF119: 15460 | CG119: 13914 | CH119: 478 | CI119: 1068 | CJ119: 21 | CL119: 5 | CM119: 4604 | CO119: 0.3501440922 | CP119: 63 | CQ119: -3430.929626 | CU119: 33 | CV119: 241.3119027 | CW119: 12.00458851 | CX119: 7337.098175 | CY119: 2242 | CZ119: 4441 | DA119: 28280 | DB119: -23839 | DC119: 16170 | DD119: 7954 | DG119: -80 | DH119: -46 | DI119: 147 | DJ119: 1304 | DK119: 0 | DL119: 0 | DM119: -1157 | DN119: 0 | DO119: 0 | DP119: 0 | DQ119: -1157 | DR119: -1456 | DS119: 156 | DU119: 238 | DV119: 0 | DW119: -1416 | DX119: 16170 | DY119: 14315 | DZ119: 627 | EA119: 1228 | EB119: 21.75 | ED119: 287 | EE119: 25865 | EF119: 24221 | EG119: 24532 | EH119: 620 | EI119: 665 | EK119: -1404 | EL119: 135 | EM119: 104 | EN119: -2038 | EO119: 224 | EP119: 3942 | EQ119: -1955 | ER119: 378 | ES119: 5 | ET119: 2158 | EU119: 1000 | EW119: 2500 | EX119: 598 | EY119: 2500 | EZ119: 12283 | FA119: 10685 | FB119: 1598 | FC119: 862 | FD119: 14185 | FE119: 10087 | FF119: 4098 | FG119: 4504 | FH119: 16087 | FI119: 9489 | FJ119: 6598 | FK119: 4305 | FL119: 2874.868559 | FM119: 3337.637185 | FN119: 3756 | FO119: 658.1609195 | FP119: 142.9541528 | FS119: -1571 | FV119: 524 | FW119: -524
A120: 317 | B120: Kärsämäki | C120: 2721 | E120: 1.180731364 | F120: 75.5980118 | G120: -2224.549798 | K120: 40.5915493 | L120: 2968.761485 | M120: 139.5725444 | N120: 7763.68982 | O120: 4689 | P120: 2283 | Q120: 19122 | R120: -16839 | S120: 6204 | T120: 10827 | W120: -153 | X120: 1485 | Y120: 1524 | Z120: 492 | AB120: 1178 | AC120: -146 | AD120: 54 | AF120: 3257 | AG120: 3165 | AH120: 2246 | AI120: 246 | AK120: 1107 | AL120: -1267 | AM120: 55 | AN120: 6204 | AO120: 5641 | AP120: 365 | AQ120: 198 | AR120: 20.75 | AT120: 42 | AU120: 2696 | AW120: 0.7252419955 | AX120: 74.20986094 | AY120: -2235.163205 | BC120: 41.36535027 | BD120: 2775.593472 | BE120: 121.9219266 | BF120: 8309.347181 | BG120: 4722 | BH120: 1853 | BI120: 18995 | BJ120: -17142 | BK120: 7065 | BL120: 10857 | BO120: -128 | BP120: 191 | BQ120: 843 | BR120: 509 | BU120: 334 | BV120: 55 | BY120: 389 | BZ120: 2636 | CA120: 1008 | CC120: -694 | CD120: -1212 | CE120: 314 | CF120: 7065 | CG120: 6228 | CH120: 397 | CI120: 440 | CJ120: 21.5 | CL120: 175 | CM120: 2658 | CO120: 0.9376026273 | CP120: 77 | CQ120: -2202.031603 | CU120: 41 | CV120: 3290.443943 | CW120: 136.3876784 | CX120: 8805.869074 | CY120: 6284 | CZ120: 2571 | DA120: 19759 | DB120: -17188 | DC120: 7215 | DD120: 10794 | DG120: -100 | DH120: 321 | DI120: 1041 | DJ120: 513 | DK120: 0 | DL120: 0 | DM120: 528 | DN120: 0 | DO120: 55 | DP120: 0 | DQ120: 583 | DR120: 3219 | DS120: 1041 | DU120: -75 | DV120: -2400 | DW120: 300 | DX120: 7215 | DY120: 6235 | DZ120: 476 | EA120: 504 | EB120: 21.5 | ED120: 125 | EE120: 13110 | EF120: 12719 | EG120: 11569 | EH120: 360 | EK120: -373 | EL120: 67 | EM120: 115 | EN120: -1842 | EO120: 114 | EP120: 1034 | EQ120: -1076 | ER120: 335 | ES120: 0 | EU120: 700 | EW120: 1600 | EX120: 1117 | EY120: -1200 | EZ120: 12439 | FA120: 10527 | FB120: 1912 | FC120: 270 | FD120: 12826 | FE120: 9409 | FF120: 3417 | FG120: 420 | FH120: 12910 | FI120: 10616 | FJ120: 2294 | FK120: 540 | FL120: 7223.814774 | FM120: 7343.47181 | FN120: 7118 | FO120: 290 | FP120: 109.1045899 | FS120: -815 | FV120: 1691 | FW120: -1691
A121: 319 | B121: Köyliö | C121: 2688 | E121: 2.949152542 | F121: 28.52209045 | G121: -1239.955357 | K121: 53.22494953 | L121: 157.3660714 | M121: 9.913001605 | N121: 5794.270833 | O121: 4474 | P121: 1262 | Q121: 14886 | R121: -13624 | S121: 8912 | T121: 5172 | W121: -17 | X121: 60 | Y121: 503 | Z121: 352 | AC121: 151 | AG121: 151 | AH121: -1157 | AI121: 472 | AK121: 15 | AL121: -158 | AM121: 216 | AN121: 8912 | AO121: 8084 | AP121: 370 | AQ121: 458 | AR121: 20.5 | AT121: 208 | AU121: 2647 | AW121: 2.243362832 | AX121: 28.53790977 | AY121: -1268.228183 | BC121: 54.63808109 | BD121: 113.7136381 | BE121: 7.220360147 | BF121: 5748.394409 | BG121: 4376 | BH121: 1230 | BI121: 14452 | BJ121: -13222 | BK121: 8798 | BL121: 4889 | BO121: -17 | BP121: 41 | BQ121: 489 | BR121: 350 | BU121: 139 | BW121: 131 | BY121: 269 | BZ121: -887 | CA121: 434 | CC121: 20 | CD121: -208 | CE121: -37 | CF121: 8798 | CG121: 7839 | CH121: 414 | CI121: 545 | CJ121: 20.5 | CL121: 247 | CM121: 2627 | CO121: 1.279569892 | CP121: 29 | CQ121: -1285.496764 | CU121: 53 | CV121: 126.7605634 | CW121: 7.949313277 | CX121: 5820.32737 | CY121: 4422 | CZ121: 1274 | DA121: 15162 | DB121: -13888 | DC121: 9305 | DD121: 4850 | DG121: -20 | DH121: 93 | DI121: 336 | DJ121: 378 | DK121: 0 | DL121: 0 | DM121: -42 | DN121: 0 | DO121: 0 | DP121: 6 | DQ121: -36 | DR121: -923 | DS121: 321 | DU121: -150 | DV121: 0 | DW121: -73 | DX121: 9305 | DY121: 8300 | DZ121: 442 | EA121: 563 | EB121: 20.5 | ED121: 265 | EE121: 8901 | EF121: 8651 | EG121: 9194 | EK121: -318 | EL121: 24 | EM121: 38 | EN121: -534 | EO121: 6 | EP121: 57 | EQ121: -585 | ER121: 40 | ES121: 151 | EU121: 500 | EV121: 1000 | EW121: -1000 | EX121: 258 | EY121: 0 | EZ121: 2974 | FA121: 816 | FB121: 2158 | FC121: 428 | FD121: 2766 | FE121: 1508 | FF121: 1258 | FG121: 410 | FH121: 2508 | FI121: 1250 | FJ121: 1258 | FK121: 348 | FL121: 2595.610119 | FM121: 2518.322629 | FN121: 2501 | FO121: 404.8780488 | FP121: 154.1218305 | FS121: -376 | FV121: 158 | FW121: -158
A122: 398 | B122: Lahti | C122: 103364 | E122: 0.555114666 | F122: 103.3439579 | G122: -4589.915251 | K122: 44.57543103 | L122: 663.7030301 | M122: 31.56960479 | N122: 7673.571069 | O122: 275435 | P122: 104213 | Q122: 629552 | R122: -525339 | S122: 373414 | T122: 151233 | W122: 44 | X122: 7465 | Y122: 6817 | Z122: 36838 | AC122: -30021 | AD122: 617 | AF122: 577 | AG122: -28827 | AH122: 101421 | AI122: 4926 | AK122: 1199 | AL122: -21056 | AM122: -46094 | AN122: 373414 | AO122: 325137 | AP122: 21160 | AQ122: 27117 | AR122: 19.5 | AT122: 256 | AU122: 103754 | AW122: 1.07967327 | AX122: 103.9098715 | AY122: -4709.649748 | BC122: 44.11794846 | BD122: 744.1544422 | BE122: 34.82838718 | BF122: 7798.706556 | BG122: 269954 | BH122: 131763 | BI122: 624478 | BJ122: -492715 | BK122: 385768 | BL122: 149253 | BO122: -2229 | BP122: 12905 | BQ122: 52982 | BR122: 34962 | BS122: 2990 | BU122: 21010 | BV122: 489 | BX122: 940 | BY122: 22440 | BZ122: 125677 | CA122: 32384 | CC122: -17420 | CD122: -48144 | CE122: -21398 | CF122: 385768 | CG122: 334941 | CH122: 22542 | CI122: 28285 | CJ122: 20.25 | CL122: 70 | CM122: 103918 | CO122: 0.6008854856 | CP122: 115 | CQ122: -5439.356031 | CU122: 41 | CV122: 882.5708732 | CW122: 36.06481566 | CX122: 8932.206163 | CY122: 269781 | CZ122: 121803 | DA122: 653297 | DB122: -531494 | DC122: 392633 | DD122: 157685 | DG122: -4239 | DH122: 20705 | DI122: 24686 | DJ122: 37509 | DK122: 8185 | DL122: 0 | DM122: -4638 | DN122: 451 | DO122: 0 | DP122: 1184 | DQ122: -3003 | DR122: 120814 | DS122: 33019 | DU122: 7743 | DV122: -132619 | DW122: -41113 | DX122: 392633 | DY122: 336774 | DZ122: 23485 | EA122: 32374 | EB122: 20.25 | ED122: 212 | EE122: 254158 | EF122: 255442 | EG122: 273389 | EK122: -53404 | EL122: 1049 | EM122: 1335 | EN122: -80713 | EO122: 2890 | EP122: 24041 | EQ122: -86190 | ER122: 4406 | ES122: 7652 | ET122: 90006 | EU122: 38373 | EV122: 153068 | EW122: -56618 | EX122: 50017 | EY122: -654 | EZ122: 559430 | FA122: 426009 | FB122: 133421 | FC122: 372110 | FD122: 607736 | FE122: 529061 | FF122: 78675 | FG122: 367563 | FH122: 689685 | FI122: 619554 | FJ122: 70131 | FK122: 403956 | FL122: 7955.835687 | FM122: 8531.054224 | FN122: 9073 | FO122: 16630.81481 | FP122: 160.0378646 | FS122: -73899 | FV122: 19835 | FW122: -19835
A123: 399 | B123: Laihia | C123: 8007 | E123: -0.4331428571 | F123: 42.11502396 | G123: -2158.236543 | K123: 49.90075806 | L123: 73.56063444 | M123: 3.922869186 | N123: 6844.386162 | O123: 17281 | P123: 7079 | Q123: 48827 | R123: -41748 | S123: 26922 | T123: 13989 | W123: -138 | X123: 61 | Y123: -914 | Z123: 1886 | AB123: 119 | AC123: -2919 | AD123: 102 | AG123: -2817 | AH123: -237 | AI123: -1174 | AK123: -361 | AL123: -1593 | AM123: -5133 | AN123: 26922 | AO123: 24598 | AP123: 1106 | AQ123: 1218 | AR123: 20 | AT123: 296 | AU123: 8068 | AW123: 0.6214285714 | AX123: 46.69938357 | AY123: -2437.77888 | BC123: 45.58505364 | BD123: 199.0580069 | BE123: 10.69728822 | BF123: 6792.017848 | BG123: 17820 | BH123: 6960 | BI123: 48884 | BJ123: -41924 | BK123: 29015 | BL123: 14152 | BO123: -189 | BP123: 45 | BQ123: 1099 | BR123: 1738 | BU123: -639 | BV123: 102 | BY123: -537 | BZ123: 1749 | CA123: 1049 | CC123: 207 | CD123: -1894 | CE123: -2566 | CF123: 29015 | CG123: 26577 | CH123: 1112 | CI123: 1326 | CJ123: 20.75 | CL123: 263 | CM123: 8090 | CO123: 0.5242085661 | CP123: 49 | CQ123: -2598.02225 | CU123: 43 | CV123: 144.3757726 | CW123: 8.445994136 | CX123: 6239.307787 | CY123: 19581 | CZ123: 7019 | DA123: 49366 | DB123: -42347 | DC123: 29825 | DD123: 13595 | DG123: -142 | DH123: 49 | DI123: 971 | DJ123: 1976 | DK123: 0 | DL123: 0 | DM123: -1005 | DN123: 102 | DO123: 0 | DP123: 0 | DQ123: -903 | DR123: 764 | DS123: 876 | DU123: -192 | DV123: 0 | DW123: -1380 | DX123: 29825 | DY123: 27383 | DZ123: 1090 | EA123: 1352 | EB123: 21.5 | ED123: 267 | EE123: 25977 | EF123: 25289 | EG123: 23558 | EK123: -4222 | EL123: 97 | EM123: 166 | EN123: -3785 | EO123: 88 | EP123: 82 | EQ123: -2716 | ER123: 126 | ES123: 334 | ET123: 4000 | EU123: 3523 | EV123: 4000 | EW123: 1600 | EX123: 1993 | EY123: 2670 | EZ123: 14929 | FA123: 7536 | FB123: 7393 | FC123: 1175 | FD123: 18636 | FE123: 9343 | FF123: 9293 | FG123: 1122 | FH123: 19312 | FI123: 7500 | FJ123: 11812 | FK123: 944 | FL123: 2637.941801 | FM123: 3365.765989 | FN123: 3443 | FO123: 1273.627907 | FP123: 157.4323742 | FS123: -2706 | FV123: 926 | FW123: -926
A124: 400 | B124: Laitila | C124: 8487 | E124: 4.691056911 | F124: 37.35756578 | G124: -1752.68057 | K124: 63.57918421 | L124: 11.78272652 | M124: 0.596103281 | N124: 7214.681277 | O124: 25771 | P124: 10067 | Q124: 54225 | R124: -44158 | S124: 27308 | T124: 18528 | W124: -31 | X124: 51 | Y124: 1698 | Z124: 1925 | AB124: 159 | AC124: -386 | AD124: 149 | AG124: -237 | AH124: 4663 | AI124: 1489 | AK124: -394 | AL124: -336 | AM124: -3022 | AN124: 27308 | AO124: 24179 | AP124: 1726 | AQ124: 1403 | AR124: 20.25 | AT124: 197 | AU124: 8542 | AW124: 4.563002681 | AX124: 37.11230876 | AY124: -1894.404121 | BC124: 63.03784169 | BD124: 1.638960431 | BE124: 0.07971670151 | BF124: 7504.331538 | BG124: 26448 | BH124: 10232 | BI124: 55899 | BJ124: -45667 | BK124: 27957 | BL124: 19331 | BO124: -43 | BP124: 81 | BQ124: 1659 | BR124: 2052 | BS124: 290 | BU124: -103 | BV124: 149 | BY124: 46 | BZ124: 4710 | CA124: 1656 | CC124: 758 | CD124: -330 | CE124: -1303 | CF124: 27957 | CG124: 24188 | CH124: 2035 | CI124: 1734 | CJ124: 20.25 | CL124: 245 | CM124: 8520 | CO124: 7.330508475 | CP124: 38 | CQ124: -2032.042254 | CU124: 62 | CV124: 14.08450704 | CW124: 0.7654933762 | CX124: 6715.7277 | CY124: 26548 | CZ124: 10096 | DA124: 55974 | DB124: -45878 | DC124: 29255 | DD124: 19164 | DG124: -24 | DH124: 91 | DI124: 2571 | DJ124: 2250 | DK124: 0 | DL124: 0 | DM124: 321 | DN124: 149 | DO124: 0 | DP124: 0 | DQ124: 470 | DR124: 5180 | DS124: 2487 | DU124: 602 | DV124: 0 | DW124: -1067 | DX124: 29255 | DY124: 25205 | DZ124: 2160 | EA124: 1890 | EB124: 20.75 | ED124: 175 | EE124: 22234 | EF124: 23233 | EG124: 23087 | EK124: -6605 | EL124: 526 | EM124: 1568 | EN124: -7825 | EO124: 189 | EP124: 4677 | EQ124: -4055 | ER124: 245 | ES124: 256 | ET124: 1300 | EU124: 1550 | EW124: 800 | EX124: 330 | EY124: 850 | EZ124: 12435 | FA124: 1405 | FB124: 11030 | FC124: 774 | FD124: 12905 | FE124: 1075 | FF124: 11830 | FG124: 774 | FH124: 13425 | FI124: 845 | FJ124: 12580 | FK124: 774 | FL124: 3578.296218 | FM124: 3431.046593 | FN124: 3698 | FO124: 1214.698795 | FP124: 142.5702811 | FS124: -3648 | FV124: 271 | FW124: -271
A125: 407 | B125: Lapinjärvi | C125: 2820 | E125: 3.355555556 | F125: 31.22703236 | G125: -1897.163121 | K125: 58.89136034 | L125: 122.6950355 | M125: 5.455527237 | N125: 8208.865248 | O125: 8204 | P125: 6847 | Q125: 21888 | R125: -15041 | S125: 8591 | T125: 6876 | W125: -148 | X125: 1077 | Y125: 1355 | Z125: 616 | AB125: 159 | AC125: 580 | AG125: 580 | AH125: 2765 | AI125: 1021 | AK125: -277 | AL125: -296 | AM125: 418 | AN125: 8591 | AO125: 7789 | AP125: 326 | AQ125: 476 | AR125: 20.5 | AT125: 64 | AU125: 2779 | AW125: 0.975308642 | AX125: 40.6725131 | AY125: -2380.712487 | BC125: 55.25241066 | BD125: 257.6466355 | BE125: 11.98752351 | BF125: 7844.90824 | BG125: 6731 | BH125: 3693 | BI125: 19576 | BJ125: -15883 | BK125: 8741 | BL125: 6840 | BO125: -113 | BP125: 771 | BQ125: 356 | BR125: 677 | BU125: -321 | BY125: -319 | BZ125: 2445 | CA125: 318 | CC125: 766 | CD125: -369 | CE125: -1282 | CF125: 8741 | CG125: 7818 | CH125: 355 | CI125: 568 | CJ125: 20.5 | CL125: 266 | CM125: 2774 | CO125: 2.946859903 | CP125: 37 | CQ125: -2090.843547 | CU125: 59 | CV125: 204.7584715 | CW125: 11.94790226 | CX125: 6255.227109 | CY125: 5652 | CZ125: 3309 | DA125: 18232 | DB125: -14923 | DC125: 8824 | DD125: 6525 | DG125: -101 | DH125: 1555 | DI125: 1117 | DJ125: 733 | DK125: 18 | DL125: 0 | DM125: 402 | DN125: 0 | DO125: 0 | DP125: 0 | DQ125: 402 | DR125: 2796 | DS125: 968 | DU125: -67 | DV125: 0 | DW125: 829 | DX125: 8824 | DY125: 7854 | DZ125: 417 | EA125: 553 | EB125: 20.5 | ED125: 119 | EE125: 11100 | EF125: 10508 | EG125: 10299 | EK125: -803 | EM125: 200 | EN125: -1733 | EP125: 133 | EQ125: -486 | ER125: 33 | ES125: 314 | ET125: 400 | EU125: -200 | EW125: 1500 | EX125: 311 | EY125: -700 | EZ125: 4996 | FA125: 4627 | FB125: 369 | FC125: 251 | FD125: 6127 | FE125: 4316 | FF125: 1811 | FG125: 251 | FH125: 5117 | FI125: 4017 | FJ125: 1100 | FK125: 251 | FL125: 4542.553191 | FM125: 4903.922274 | FN125: 4514 | FO125: 383.1219512 | FP125: 138.1117344 | FS125: -121 | FV125: 213 | FW125: -213
A126: 402 | B126: Lapinlahti | C126: 10176 | E126: 0.6615226337 | F126: 48.70812251 | G126: -2678.65566 | K126: 53.15855181 | L126: 160.3773585 | M126: 7.963316979 | N126: 7350.923742 | O126: 33322 | P126: 8659 | Q126: 66605 | R126: -57946 | S126: 27887 | T126: 30256 | W126: 147 | X126: 734 | Y126: 1078 | Z126: 3440 | AB126: 50 | AC126: -2412 | AD126: 59 | AG126: -2353 | AH126: 2483 | AI126: 1004 | AK126: -901 | AL126: -1736 | AM126: -3848 | AN126: 27887 | AO126: 24448 | AP126: 1501 | AQ126: 1938 | AR126: 19.5 | AT126: 246 | AU126: 10093 | AW126: 1.23202171 | AX126: 51.68825809 | AY126: -3035.470128 | BC126: 51.34074823 | BD126: 117.5071832 | BE126: 5.736073568 | BF126: 7477.261468 | BG126: 33125 | BH126: 8464 | BI126: 66767 | BJ126: -58303 | BK126: 29143 | BL126: 30244 | BO126: 585 | BP126: 801 | BQ126: 2470 | BR126: 2710 | BU126: -240 | BV126: 59 | BY126: -181 | BZ126: 2301 | CA126: 2344 | CC126: 400 | CD126: -1956 | CE126: -3584 | CF126: 29143 | CG126: 25213 | CH126: 1800 | CI126: 2130 | CJ126: 19.5 | CL126: 219 | CM126: 9982 | CO126: 0.9353065539 | CP126: 53 | CQ126: -3192.546584 | CU126: 50 | CV126: 151.4726508 | CW126: 7.655855506 | CX126: 7221.598878 | CY126: 32895 | CZ126: 8144 | DA126: 67208 | DB126: -59064 | DC126: 30058 | DD126: 29995 | DG126: 273 | DH126: 1363 | DI126: 1985 | DJ126: 2989 | DK126: 0 | DL126: 0 | DM126: -1004 | DN126: 59 | DO126: 0 | DP126: 0 | DQ126: -945 | DR126: 1356 | DS126: 1888 | DU126: 250 | DV126: -3000 | DW126: -1319 | DX126: 30058 | DY126: 25822 | DZ126: 2008 | EA126: 2228 | EB126: 20.25 | ED126: 237 | EE126: 24432 | EF126: 24645 | EG126: 25148 | EK126: -6082 | EL126: 1120 | EM126: 110 | EN126: -6485 | EO126: 124 | EP126: 433 | EQ126: -3684 | ER126: 336 | ES126: 141 | ET126: 5600 | EU126: -500 | EV126: 6500 | EW126: -1500 | EX126: 2138 | EY126: 0 | EZ126: 25192 | FA126: 21736 | FB126: 3456 | FC126: 11491 | FD126: 28238 | FE126: 26100 | FF126: 2138 | FG126: 11342 | FH126: 29100 | FI126: 26709 | FJ126: 2391 | FK126: 11299 | FL126: 4820.558176 | FM126: 5542.058853 | FN126: 5874 | FO126: 1275.160494 | FP126: 127.7459922 | FS126: -3283 | FV126: 1488 | FW126: -1488
A127: 403 | B127: Lappajärvi | C127: 3317 | E127: 1.005390836 | F127: 58.35328124 | G127: -3447.995176 | K127: 54.8680587 | L127: 227.3138378 | M127: 9.656830064 | N127: 8591.799819 | O127: 4832 | P127: 2356 | Q127: 21038 | R127: -18682 | S127: 9894 | T127: 9891 | W127: -109 | X127: 16 | Y127: 1010 | Z127: 993 | AC127: 17 | AF127: 28 | AG127: 45 | AH127: -669 | AI127: 927 | AK127: -261 | AL127: -1004 | AM127: -3469 | AN127: 9894 | AO127: 8495 | AP127: 725 | AQ127: 674 | AR127: 21 | AT127: 141 | AU127: 3259 | AW127: 2.25862069 | AX127: 56.5662783 | AY127: -3418.840135 | BC127: 55.39132542 | BD127: 302.2399509 | BE127: 13.40910786 | BF127: 8227.063516 | BG127: 4647 | BH127: 2444 | BI127: 21192 | BJ127: -18748 | BK127: 10264 | BL127: 10037 | BO127: -116 | BP127: 19 | BQ127: 1456 | BR127: 1194 | BU127: 262 | BX127: 27 | BY127: 289 | BZ127: -379 | CA127: 1510 | CC127: -10 | CD127: -580 | CE127: 55 | CF127: 10264 | CG127: 8602 | CH127: 912 | CI127: 750 | CJ127: 21 | CL127: 92 | CM127: 3215 | CO127: 3.832568807 | CP127: 61 | CQ127: -3866.874028 | CU127: 55 | CV127: 127.2161742 | CW127: 6.626936565 | CX127: 7006.842924 | CY127: 4629 | CZ127: 1862 | DA127: 20591 | DB127: -18729 | DC127: 10293 | DD127: 10091 | DG127: -105 | DH127: 17 | DI127: 1566 | DJ127: 1122 | DK127: 0 | DL127: 0 | DM127: 444 | DN127: 0 | DO127: 0 | DP127: 26 | DQ127: 470 | DR127: 91 | DS127: 1520 | DU127: 121 | DV127: -1097 | DW127: -1308 | DX127: 10293 | DY127: 8254 | DZ127: 1116 | EA127: 923 | EB127: 21 | ED127: 77 | EE127: 14709 | EF127: 14751 | EG127: 14610 | EK127: -6347 | EL127: 1641 | EM127: 310 | EN127: -4923 | EO127: 841 | EP127: 2627 | EQ127: -3728 | ER127: 704 | ES127: 196 | ET127: 3037 | EU127: 1200 | EV127: 400 | EW127: 1000 | EX127: 331 | EY127: -900 | EZ127: 10027 | FA127: 5147 | FB127: 4880 | FC127: 1810 | FD127: 10847 | FE127: 5217 | FF127: 5630 | FG127: 1810 | FH127: 10712 | FI127: 5999 | FJ127: 4713 | FK127: 1810 | FL127: 4338.860416 | FM127: 5301.319423 | FN127: 5362 | FO127: 393.047619 | FP127: 122.2543139 | FS127: -2784 | FV127: 651 | FW127: -651
A128: 405 | B128: Lappeenranta | C128: 72658 | E128: 0.9243611147 | F128: 71.4053613 | G128: -3459.67409 | K128: 47.32923686 | L128: 268.4769743 | M128: 14.53912157 | N128: 6740.028627 | O128: 105648 | P128: 81401 | Q128: 433760 | R128: -352359 | S128: 265499 | T128: 103064 | W128: 4501 | X128: 4067 | Y128: 24772 | Z128: 21869 | AC128: 2903 | AD128: -140 | AE128: -452 | AG128: 2311 | AH128: 49739 | AI128: 19240 | AK128: -442 | AL128: -27128 | AM128: -14302 | AN128: 265499 | AO128: 230427 | AP128: 17161 | AQ128: 17911 | AR128: 19.5 | AT128: 115 | AU128: 72794 | AW128: 0.9963872593 | AX128: 70.7894358 | AY128: -3466.824189 | BC128: 46.66324708 | BD128: 419.0867379 | BE128: 23.29641005 | BF128: 6566.104349 | BG128: 104655 | BH128: 67873 | BI128: 441813 | BJ128: -373940 | BK128: 289866 | BL128: 102007 | BO128: 4427 | BP128: 3659 | BQ128: 26019 | BR128: 19434 | BT128: 3932 | BU128: 2653 | BV128: -389 | BW128: 112 | BY128: 2376 | BZ128: 52116 | CA128: 17805 | CC128: 588 | CD128: -26128 | CE128: -1074 | CF128: 289866 | CG128: 246967 | CH128: 19664 | CI128: 23235 | CJ128: 21 | CL128: 145 | CM128: 72875 | CO128: 0.5064379123 | CP128: 66 | CQ128: -3442.813036 | CU128: 49 | CV128: 405.4339623 | CW128: 22.86032556 | CX128: 6473.372213 | CY128: 103086 | CZ128: 65400 | DA128: 447020 | DB128: -381620 | DC128: 296962 | DD128: 99980 | DG128: 5074 | DH128: 12938 | DI128: 26728 | DJ128: 22092 | DK128: 0 | DL128: 0 | DM128: 4636 | DN128: -119 | DO128: 158 | DP128: 0 | DQ128: 4675 | DR128: 56791 | DS128: 24835 | DU128: 14645 | DV128: -43500 | DW128: 686 | DX128: 296962 | DY128: 249786 | DZ128: 23032 | EA128: 24144 | EB128: 21 | ED128: 135 | EE128: 296659 | EF128: 309717 | EG128: 316780 | EK128: -54413 | EL128: 2468 | EM128: 18403 | EN128: -26606 | EO128: 2718 | EP128: 5009 | EQ128: -28154 | ER128: 1764 | ES128: 2241 | ET128: 40000 | EU128: -840 | EV128: 20000 | EW128: 15857 | EX128: 56129 | EY128: -507 | EZ128: 236566 | FA128: 182682 | FB128: 53884 | FC128: 119656 | FD128: 246295 | FE128: 162178 | FF128: 84117 | FG128: 119556 | FH128: 233160 | FI128: 169275 | FJ128: 63885 | FK128: 119540 | FL128: 7568.127391 | FM128: 7450.5179 | FN128: 7357 | FO128: 11894.57143 | FP128: 163.2188189 | FS128: -24237 | FV128: 21416 | FW128: -21416
A129: 408 | B129: Lapua | C129: 14692 | E129: 0.5764914353 | F129: 59.89239504 | G129: -3297.100463 | K129: 42.03407342 | L129: 193.5747345 | M129: 9.613535965 | N129: 7349.509937 | O129: 41996 | P129: 13432 | Q129: 88657 | R129: -75225 | S129: 45337 | T129: 32492 | W129: -642 | X129: 265 | Y129: 2227 | Z129: 5614 | AC129: -3387 | AG129: -3387 | AH129: 9760 | AI129: 1719 | AK129: 576 | AL129: -4378 | AM129: -11667 | AN129: 45337 | AO129: 40677 | AP129: 2381 | AQ129: 2279 | AR129: 20 | AT129: 223 | AU129: 14733 | AW129: 1.254518353 | AX129: 66.49243143 | AY129: -3602.04982 | BC129: 39.867116 | BD129: 392.2486934 | BE129: 20.06349101 | BF129: 7135.885427 | BG129: 40642 | BH129: 13233 | BI129: 87775 | BJ129: -74542 | BK129: 48103 | BL129: 32743 | BO129: -527 | BP129: 371 | BQ129: 6148 | BR129: 4377 | BU129: 1771 | BY129: 1771 | BZ129: 11531 | CA129: 5947 | CC129: -334 | CD129: -4782 | CE129: -4809 | CF129: 48103 | CG129: 43320 | CH129: 2351 | CI129: 2432 | CJ129: 21 | CL129: 108 | CM129: 14609 | CO129: 0.892921074 | CP129: 66 | CQ129: -3769.594086 | CU129: 40 | CV129: 335.9572866 | CW129: 19.60021007 | CX129: 6256.280375 | CY129: 41186 | CZ129: 13427 | DA129: 90304 | DB129: -76877 | DC129: 48433 | DD129: 33586 | DG129: -458 | DH129: 334 | DI129: 4974 | DJ129: 4587 | DK129: 0 | DL129: 0 | DM129: 387 | DN129: 0 | DO129: 0 | DP129: 0 | DQ129: 387 | DR129: 11918 | DS129: 4802 | DU129: 456 | DV129: 0 | DW129: -1850 | DX129: 48433 | DY129: 43150 | DZ129: 2520 | EA129: 2763 | EB129: 21 | ED129: 147 | EE129: 35442 | EF129: 35174 | EG129: 36558 | EK129: -14594 | EL129: 202 | EM129: 1006 | EN129: -12305 | EO129: 341 | EP129: 1208 | EQ129: -7687 | ER129: 530 | ES129: 505 | ET129: 13000 | EV129: 10000 | EW129: 2000 | EX129: 5632 | EY129: 7000 | EZ129: 37553 | FA129: 28771 | FB129: 8782 | FC129: 2168 | FD129: 44771 | FE129: 33138 | FF129: 11633 | FG129: 2105 | FH129: 46139 | FI129: 27906 | FJ129: 18233 | FK129: 2020 | FL129: 5530.424721 | FM129: 6177.424829 | FN129: 6304 | FO129: 2054.761905 | FP129: 140.6504145 | FS129: -6601 | FV129: 2937 | FW129: -2937
A130: 410 | B130: Laukaa | C130: 18588 | E130: 14.37623762 | F130: 60.57365321 | G130: -3212.018507 | K130: 31.16738351 | L130: 47.23477512 | M130: 2.659369658 | N130: 6482.999785 | O130: 40228 | P130: 14662 | Q130: 106436 | R130: -91774 | S130: 60470 | T130: 32494 | W130: -86 | X130: 253 | Y130: 1357 | Z130: 5538 | AC130: -4181 | AG130: -4181 | AH130: -2733 | AI130: 805 | AK130: -1202 | AL130: -6 | AM130: -11921 | AN130: 60470 | AO130: 54910 | AP130: 1857 | AQ130: 3703 | AR130: 20.5 | AT130: 254 | AU130: 18709 | AW130: 49.432 | AX130: 79.80440188 | AY130: -4238.334491 | BC130: 26.31610069 | BD130: 205.1419103 | BE130: 10.64725509 | BF130: 7032.497728 | BG130: 39120 | BH130: 15579 | BI130: 104613 | BJ130: -89034 | BK130: 61026 | BL130: 32394 | BO130: 30 | BP130: 1644 | BQ130: 6060 | BR130: 4544 | BU130: 1516 | BY130: 1515 | BZ130: -1218 | CA130: 5345 | CC130: 758 | CD130: -6 | CE130: -9828 | CF130: 61026 | CG130: 54942 | CH130: 2040 | CI130: 4044 | CJ130: 20.5 | CL130: 171 | CM130: 18865 | CO130: 59.15053763 | CP130: 81 | CQ130: -4623.906706 | CU130: 30 | CV130: 47.49536178 | CW130: 2.598153709 | CX130: 6672.356215 | CY130: 39455 | CZ130: 15166 | DA130: 108734 | DB130: -93568 | DC130: 65306 | DD130: 33063 | DG130: 158 | DH130: 815 | DI130: 5417 | DJ130: 7411 | DK130: 10349 | DL130: 0 | DM130: 8355 | DN130: 0 | DO130: 0 | DP130: 0 | DQ130: 8355 | DR130: 7118 | DS130: 15279 | DU130: 444 | DV130: -11459 | DW130: 6789 | DX130: 65306 | DY130: 58328 | DZ130: 2224 | EA130: 4754 | EB130: 21.5 | ED130: 183 | EE130: 52080 | EF130: 51888 | EG130: 54483 | EK130: -13925 | EL130: 590 | EM130: 609 | EN130: -16767 | EO130: 804 | EP130: 790 | EQ130: -18583 | ER130: 1208 | ES130: 8885 | EU130: 11300 | EW130: 21300 | EX130: 9 | EY130: -6500 | EZ130: 47725 | FA130: 19 | FB130: 47706 | FC130: 289 | FD130: 69019 | FE130: 13 | FF130: 69006 | FG130: 10011 | FH130: 73969 | FI130: 11458 | FJ130: 62511 | FK130: 24676 | FL130: 4513.557134 | FM130: 5039.873858 | FN130: 5304 | FO130: 2712.930233 | FP130: 143.8075925 | FS130: -16820 | FV130: 63 | FW130: -63
A131: 416 | B131: Lemi | C131: 3130 | E131: 2.411622276 | F131: 30.01618123 | G131: -1430.670927 | K131: 59.9939976 | L131: 77.95527157 | M131: 4.704701532 | N131: 6047.923323 | O131: 5123 | P131: 2603 | Q131: 16337 | R131: -13734 | S131: 9134 | T131: 5567 | W131: -74 | X131: 22 | Y131: 915 | Z131: 782 | AC131: 133 | AD131: 19 | AG131: 152 | AH131: -106 | AI131: 701 | AK131: -6 | AL131: -332 | AM131: -1127 | AN131: 9134 | AO131: 8240 | AP131: 338 | AQ131: 556 | AR131: 20 | AT131: 148 | AU131: 3116 | AW131: 2.47151277 | AX131: 30.81577645 | AY131: -1396.341463 | BC131: 54.41690499 | BD131: 125.1604621 | BE131: 7.476758233 | BF131: 6110.077022 | BG131: 4910 | BH131: 2216 | BI131: 16932 | BJ131: -14716 | BK131: 10257 | BL131: 5706 | BO131: -83 | BP131: 4 | BQ131: 1168 | BR131: 2313 | BU131: -1145 | BV131: 324 | BY131: -821 | BZ131: -187 | CA131: 1085 | CC131: -388 | CD131: -420 | CE131: 106 | CF131: 10257 | CG131: 9124 | CH131: 417 | CI131: 716 | CJ131: 21 | CL131: 133 | CM131: 3073 | CO131: 1.224108659 | CP131: 32 | CQ131: -1415.229418 | CU131: 54 | CV131: 260.982753 | CW131: 15.65652244 | CX131: 6084.28246 | CY131: 5046 | CZ131: 1918 | DA131: 17475 | DB131: -15557 | DC131: 10385 | DD131: 5883 | DG131: -73 | DH131: 4 | DI131: 642 | DJ131: 630 | DK131: 0 | DL131: 0 | DM131: 12 | DN131: 0 | DO131: 0 | DP131: 0 | DQ131: 12 | DR131: -127 | DS131: 642 | DU131: 282 | DV131: -700 | DW131: -21 | DX131: 10385 | DY131: 9088 | DZ131: 513 | EA131: 784 | EB131: 21 | ED131: 232 | EE131: 9909 | EF131: 10728 | EG131: 11201 | EK131: -2177 | EL131: 6 | EM131: 343 | EN131: -1596 | EO131: 342 | EP131: 275 | EQ131: -944 | ER131: 201 | ES131: 80 | ET131: 1220 | EV131: 810 | EX131: 510 | EY131: 0 | EZ131: 3668 | FA131: 3248 | FB131: 420 | FC131: 458 | FD131: 4058 | FE131: 3548 | FF131: 510 | FG131: 429 | FH131: 4247 | FI131: 3667 | FJ131: 580 | FK131: 384 | FL131: 2664.536741 | FM131: 2655.006418 | FN131: 3428 | FO131: =(DY131/EB131) -> 432.7619048 | FP131: =(FO131/CM131)*1000 -> 140.8271737 | FS131: -648 | FV131: 110 | FW131: =FV131*-1 -> -110
A132: 418 | B132: Lempäälä | C132: 21829 | E132: 1.240155505 | F132: 54.94926316 | G132: -2751.889688 | K132: 48.22672842 | L132: 288.1029823 | M132: 14.38201719 | N132: 7311.741262 | O132: 60709 | P132: 23771 | Q132: 124750 | R132: -100979 | S132: 85735 | T132: 24830 | W132: -1086 | X132: 284 | Y132: 8784 | Z132: 7870 | AA132: 4169 | AC132: 5083 | AD132: 135 | AG132: 5218 | AH132: 22558 | AI132: 7078 | AK132: 575 | AL132: -6869 | AM132: -11311 | AN132: 85735 | AO132: 78287 | AP132: 3040 | AQ132: 4408 | AR132: 20.5 | AT132: 86 | AU132: 22233 | AW132: 0.6126468942 | AX132: 63.91093901 | AY132: -3490.756983 | BC132: 42.7651648 | BD132: 111.1410966 | BE132: 5.607110885 | BF132: 7234.831107 | BG132: 62429 | BH132: 24054 | BI132: 129538 | BJ132: -105484 | BK132: 85399 | BL132: 25342 | BO132: -1096 | BP132: 197 | BQ132: 4358 | BR132: 9081 | BU132: -4723 | BV132: 130 | BY132: -4593 | BZ132: 17965 | CA132: 3573 | CC132: 1648 | CD132: -7819 | CE132: -17408 | CF132: 85399 | CG132: 77088 | CH132: 3339 | CI132: 4972 | CJ132: 20.5 | CL132: 244 | CM132: 22536 | CO132: 0.6246702543 | CP132: 71 | CQ132: -4026.00284 | CU132: 38 | CV132: 138.800142 | CW132: 6.845541812 | CX132: 7400.736599 | CY132: 63597 | CZ132: 25421 | DA132: 133313 | DB132: -107892 | DC132: 88548 | DD132: 24937 | DG132: -558 | DH132: 365 | DI132: 5350 | DJ132: 10285 | DK132: 0 | DL132: 0 | DM132: -4935 | DN132: 125 | DO132: 0 | DP132: 0 | DQ132: -4810 | DR132: 13156 | DS132: 3601 | DU132: 1104 | DV132: -19500 | DW132: -13110 | DX132: =DC132 -> 88548 | DY132: 79515 | DZ132: 3812 | EA132: 5221 | EB132: 20.5 | ED132: 213 | EE132: 45585 | EF132: 47839 | EG132: 48591 | EK132: -26926 | EL132: 670 | EM132: 7867 | EN132: -22876 | EO132: 749 | EP132: 1146 | EQ132: -19590 | ER132: 759 | ES132: 2120 | ET132: 19500 | EV132: 18000 | EW132: 2000 | EX132: 8907 | EY132: 1600 | EZ132: 53771 | FA132: 46152 | FB132: 7619 | FC132: 405 | FD132: 65952 | FE132: 55658 | FF132: 10294 | FG132: 405 | FH132: 78146 | FI132: 65443 | FJ132: 12703 | FK132: 405 | FL132: 4323.835265 | FM132: 4753.879369 | FN132: 5164 | FO132: 3878.780488 | FP132: 172.1148601 | FS132: -16666 | FV132: 5084 | FW132: -5084
A133: 420 | B133: Leppävirta | C133: 10170 | E133: 5.589721254 | F133: 27.03697607 | G133: -848.0825959 | K133: 72.92652298 | L133: 740.806293 | M133: 39.38119379 | N133: 6866.076696 | O133: 22129 | P133: 10150 | Q133: 61250 | R133: -51100 | S133: 32282 | T133: 24417 | W133: -106 | X133: 786 | Y133: 6279 | Z133: 3581 | AC133: 2698 | AE133: -2500 | AF133: -18 | AG133: 180 | AH133: 5067 | AI133: 6087 | AK133: 152 | AL133: -1010 | AM133: 45 | AN133: 32282 | AO133: 29060 | AP133: 1641 | AQ133: 1581 | AR133: 20 | AT133: 29 | AU133: 10015 | AW133: 3.025522042 | AX133: 22.62080923 | AY133: -766.7498752 | BC133: 76.6671653 | BD133: 483.8741887 | BE133: 25.43082254 | BF133: 6944.882676 | BG133: 21983 | BH133: 9685 | BI133: 62416 | BJ133: -52731 | BK133: 32473 | BL133: 24755 | BO133: -168 | BP133: 686 | BQ133: 5015 | BR133: 3708 | BU133: 1307 | BV133: -3093 | BW133: 1900 | BX133: -16 | BY133: 98 | BZ133: 5166 | CA133: 4875 | CC133: -700 | CD133: -1523 | CE133: 824 | CF133: 32473 | CG133: 28235 | CH133: 2018 | CI133: 2220 | CJ133: 20 | CL133: 71 | CM133: 9953 | CO133: 3.757392473 | CP133: 21 | CQ133: -475.4345423 | CU133: 78 | CV133: 763.4883955 | CW133: 43.76613438 | CX133: 6367.326434 | CY133: 21550 | CZ133: 10112 | DA133: 63405 | DB133: -53293 | DC133: 33098 | DD133: 25103 | DG133: -138 | DH133: 1134 | DI133: 5416 | DJ133: 4235 | DK133: 0 | DL133: 0 | DM133: 1181 | DN133: 84 | DO133: -1100 | DP133: 0 | DQ133: 165 | DR133: 5330 | DS133: 5279 | DU133: 286 | DV133: 0 | DW133: 3104 | DX133: 33098 | DY133: 28481 | DZ133: 2342 | EA133: 2275 | EB133: 20 | ED133: 58 | EE133: 32363 | EF133: 33560 | EG133: 34973 | EK133: -7423 | EL133: 930 | EM133: 451 | EN133: -5355 | EO133: 1106 | EP133: 198 | EQ133: -2513 | ER133: 180 | ES133: 158 | ET133: 5000 | EX133: 1313 | EY133: 0 | EZ133: 10810 | FA133: 9287 | FB133: 1523 | FC133: 4573 | FD133: 9287 | FE133: 7974 | FF133: 1313 | FG133: 4624 | FH133: 7975 | FI133: 6662 | FJ133: 1313 | FK133: 4774 | FL133: 2910.914454 | FM133: 3545.082376 | FN133: 3646 | FO133: 1424.05 | FP133: 143.0774641 | FS133: -2634 | FV133: 611 | FW133: -611
A134: 421 | B134: Lestijärvi | C134: 818 | E134: 16.05882353 | F134: 39.99721371 | G134: -1843.520782 | K134: 71.59786688 | L134: 447.4327628 | M134: 18.0527027 | N134: 9046.454768 | O134: 2215 | P134: 1915 | Q134: 6934 | R134: -5019 | S134: 2197 | T134: 3066 | W134: 12 | X134: 0 | Y134: 256 | Z134: 330 | AC134: -74 | AG134: -74 | AH134: 1571 | AI134: 235 | AK134: -78 | AL134: 0 | AM134: 55 | AN134: 2197 | AO134: 1741 | AP134: 256 | AQ134: 200 | AR134: 20 | AT134: 133 | AU134: 817 | AW134: 14.61111111 | AX134: 35.91809775 | AY134: -1602.203182 | BC134: 73.30458644 | BD134: 283.9657283 | BE134: 11.14797262 | BF134: 9297.429621 | BG134: 2371 | BH134: 2058 | BI134: 7050 | BJ134: -4992 | BK134: 2283 | BL134: 3229 | BO134: -30 | BP134: 2 | BQ134: 492 | BR134: 267 | BS134: 5 | BU134: 230 | BY134: 230 | BZ134: 1801 | CA134: 497 | CC134: -182 | CD134: -2 | CE134: 89 | CF134: 2283 | CG134: 1781 | CH134: 288 | CI134: 214 | CJ134: 20 | CL134: 37 | CM134: 798 | CO134: 17.73076923 | CP134: 36 | CQ134: -1144.110276 | CU134: 74 | CV134: 911.0275689 | CW134: 37.14895702 | CX134: 8951.12782 | CY134: 2288 | CZ134: 1704 | DA134: 6850 | DB134: -5146 | DC134: 2448 | DD134: 3150 | DG134: -17 | DH134: 0 | DI134: 435 | DJ134: 285 | DK134: 0 | DL134: 0 | DM134: 150 | DN134: 0 | DO134: 0 | DP134: 0 | DQ134: 150 | DR134: 1952 | DS134: 435 | DU134: 183 | DV134: -165 | DW134: 394 | DX134: 2448 | DY134: 1876 | DZ134: 340 | EA134: 232 | EB134: 20 | ED134: 57 | EE134: 4052 | EF134: 4019 | EG134: 3860 | EK134: -217 | EL134: 37 | EN134: -509 | EO134: 101 | EQ134: -89 | ER134: 48 | ES134: 0 | ET134: 798 | EU134: -547 | EW134: -97 | EX134: 0 | EY134: -264 | EZ134: 1968 | FA134: 1603 | FB134: 365 | FC134: 771 | FD134: 1869 | FE134: 1601 | FF134: 268 | FG134: 662 | FH134: 1770 | FI134: 1766 | FJ134: 4 | FK134: 661 | FL134: 2969.437653 | FM134: 2406.364749 | FN134: 3761 | FO134: 93.8 | FP134: 117.5438596 | FS134: -43 | FV134: 502 | FW134: -502
A135: 422 | B135: Lieksa | C135: 12303 | E135: 0.8214621901 | F135: 30.00458335 | G135: -1467.203121 | K135: 61.42318542 | L135: 528.4077054 | M135: 24.48195991 | N135: 7877.997236 | O135: 40746 | P135: 16472 | Q135: 89841 | R135: -73369 | S135: 37934 | T135: 37369 | W135: -238 | X135: 547 | Y135: 2243 | Z135: 3536 | AC135: -1293 | AD135: 70 | AG135: -1223 | AH135: 8807 | AI135: 2982 | AK135: 545 | AL135: -2812 | AM135: -6 | AN135: 37934 | AO135: 31616 | AP135: 3264 | AQ135: 3054 | AR135: 20 | AT135: 211 | AU135: 12117 | AW135: 2.992978937 | AX135: 31.29977917 | AY135: -1118.016011 | BC135: 61.60556051 | BD135: 665.8413799 | BE135: 30.83355147 | BF135: 7882.066518 | BG135: 39334 | BH135: 15923 | BI135: 87444 | BJ135: -71521 | BK135: 40739 | BL135: 39059 | BO135: -186 | BP135: 579 | BQ135: 8670 | BR135: 4947 | BU135: 3723 | BV135: 100 | BW135: -3000 | BY135: 823 | BZ135: 9630 | CA135: 8332 | CC135: -4455 | CD135: -2709 | CE135: 3607 | CF135: 40739 | CG135: 33688 | CH135: 3787 | CI135: 3264 | CJ135: 21 | CL135: 23 | CM135: 11772 | CO135: 2.315886134 | CP135: 28 | CQ135: -747.1117907 | CU135: 66 | CV135: 742.2697927 | CW135: 38.54596215 | CX135: 7028.712198 | CY135: 39544 | CZ135: 14160 | DA135: 86760 | DB135: -72600 | DC135: 40926 | DD135: 38474 | DG135: -76 | DH135: 1101 | DI135: 7306 | DJ135: 4696 | DK135: 0 | DL135: 0 | DM135: 2610 | DN135: -606 | DO135: -1300 | DP135: 0 | DQ135: 704 | DR135: 10334 | DS135: 7207 | DU135: -616 | DV135: 0 | DW135: 4821 | DX135: 40926 | DY135: 33222 | DZ135: 4422 | EA135: 3282 | EB135: 21 | ED135: 39 | EE135: 32406 | EF135: 33490 | EG135: 33422 | EK135: -3325 | EL135: 277 | EM135: 60 | EN135: -5171 | EO135: 393 | EP135: 53 | EQ135: -4028 | ER135: 1505 | ES135: 137 | EV135: 5000 | EX135: 3007 | EY135: 0 | EZ135: 15907 | FA135: 13198 | FB135: 2709 | FC135: 1252 | FD135: 18198 | FE135: 15193 | FF135: 3005 | FG135: 459 | FH135: 15191 | FI135: 12631 | FJ135: 2560 | FK135: 458 | FL135: 3998.049256 | FM135: 4252.9504 | FN135: 4252 | FO135: 1582 | FP135: 134.3866803 | FS135: -2868 | FV135: 1317 | FW135: -1317
A136: 423 | B136: Lieto | C136: 17172 | E136: 1.142893337 | F136: 54.51053717 | G136: -2871.418588 | K136: 36.60807381 | L136: 299.3244817 | M136: 15.48537799 | N136: 7055.264384 | O136: 46709 | P136: 27358 | Q136: 104172 | R136: -76814 | S136: 62906 | T136: 18304 | W136: -509 | X136: 78 | Y136: 3965 | Z136: 4394 | AA136: 1776 | AC136: 1347 | AG136: 1347 | AH136: 6223 | AI136: 3961 | AK136: 987 | AL136: -3401 | AM136: -5821 | AN136: 62906 | AO136: 57460 | AP136: 2460 | AQ136: 2986 | AR136: 18.5 | AT136: 181 | AU136: 17241 | AW136: 0.3058249089 | AX136: 55.15607009 | AY136: -3019.314425 | BC136: 35.15253289 | BD136: 299.3445856 | BE136: 14.55993971 | BF136: 7504.205093 | BG136: 46737 | BH136: 29593 | BI136: 107663 | BJ136: -78070 | BK136: 63957 | BL136: 18483 | BO136: -474 | BP136: 37 | BQ136: 3933 | BR136: 4779 | BU136: -846 | BY136: -847 | BZ136: 5376 | CA136: 2011 | CC136: 504 | CD136: -14026 | CE136: -2726 | CF136: 63957 | CG136: 58057 | CH136: 2726 | CI136: 3174 | CJ136: 19 | CL136: 224 | CM136: 19263 | CO136: 1.359352592 | CP136: 54 | CQ136: -3107.719462 | CU136: 35 | CV136: 125.5256191 | CW136: 7.673854447 | CX136: 5970.51342 | CY136: 52579 | CZ136: 29951 | DA136: 117585 | DB136: -87634 | DC136: 72610 | DD136: 21557 | DG136: -609 | DH136: 80 | DI136: 5988 | DJ136: 5486 | DK136: 0 | DL136: 0 | DM136: 502 | DN136: 9 | DO136: 0 | DP136: 0 | DQ136: 511 | DR136: 5224 | DS136: 4064 | DU136: 196 | DV136: 0 | DW136: -186 | DX136: 72610 | DY136: 65983 | DZ136: 3127 | EA136: 3500 | EB136: 19.5 | ED136: 166 | EE136: 43077 | EF136: 46676 | EG136: 49507 | EK136: -13001 | EL136: 232 | EM136: 2987 | EN136: -7160 | EO136: 268 | EP136: 2155 | EQ136: -7265 | ER136: 111 | ES136: 2904 | ET136: 2719 | EU136: 4708 | EV136: 15000 | EW136: 2593 | EX136: 4234 | EY136: 0 | EZ136: 40994 | FA136: 13483 | FB136: 27511 | FC136: 580 | FD136: 44572 | FE136: 23616 | FF136: 20956 | FG136: 569 | FH136: 47416 | FI136: 26444 | FJ136: 20972 | FK136: 745 | FL136: 3408.106219 | FM136: 3665.680645 | FN136: 3491 | FO136: 3383.74359 | FP136: 175.6602601 | FS136: -4444 | FV136: 2603 | FW136: -2603
A137: 425 | B137: Liminka | C137: 9577 | E137: 2.885961301 | F137: 50.82100175 | G137: -2366.398663 | K137: 57.2855105 | L137: 375.6917615 | M137: 19.58058745 | N137: 7003.236922 | O137: 28049 | P137: 7885 | Q137: 53833 | R137: -45948 | S137: 28316 | T137: 24213 | W137: -205 | X137: 423 | Y137: 6799 | Z137: 3037 | AC137: 3762 | AD137: 702 | AE137: -3500 | AG137: 965 | AH137: 7433 | AI137: 6252 | AK137: 332 | AL137: -2218 | AM137: -2294 | AN137: 28316 | AO137: 26962 | AP137: 480 | AQ137: 874 | AR137: 20.5 | AT137: 19 | AU137: 9740 | AW137: 1.274973601 | AX137: 52.88928469 | AY137: -2447.227926 | BC137: 57.64989209 | BD137: 380.9034908 | BE137: 20.47740023 | BF137: 6789.425051 | BG137: 27350 | BH137: 7840 | BI137: 53519 | BJ137: -45679 | BK137: 27848 | BL137: 23825 | BO137: -244 | BP137: 36 | BQ137: 5786 | BR137: 4144 | BU137: 1642 | BV137: -8320 | BW137: 7800 | BY137: 1122 | BZ137: 8555 | CA137: 5217 | CC137: 527 | CD137: -4484 | CE137: -1066 | CF137: 27848 | CG137: 26297 | CH137: 553 | CI137: 998 | CJ137: 20.5 | CL137: 40 | CM137: 9937 | CO137: 2.146324305 | CP137: 43 | CQ137: -1977.256717 | CU137: 63 | CV137: 352.9234175 | CW137: 23.13784502 | CX137: 5567.374459 | CY137: 27441 | CZ137: 8103 | DA137: 55705 | DB137: -47602 | DC137: 29551 | DD137: 24101 | DG137: -185 | DH137: 81 | DI137: 5914 | DJ137: 4043 | DK137: 0 | DL137: 0 | DM137: 1871 | DN137: 640 | DO137: -2200 | DP137: 0 | DQ137: 311 | DR137: 8770 | DS137: 5311 | DU137: 590 | DV137: -4000 | DW137: 4369 | DX137: 29551 | DY137: 27755 | DZ137: 628 | EA137: 1168 | EB137: 20.5 | ED137: 45 | EE137: 18370 | EF137: 17897 | EG137: 19444 | EK137: -9885 | EL137: 403 | EM137: 936 | EN137: -7873 | EO137: 790 | EP137: 800 | EQ137: -2091 | ER137: 229 | ES137: 920 | EU137: 5000 | EV137: 5000 | EW137: 1000 | EX137: 2655 | EY137: -6000 | EZ137: 22719 | FA137: 9501 | FB137: 13218 | FC137: 716 | FD137: 24235 | FE137: 11596 | FF137: 12639 | FG137: 702 | FH137: 19581 | FI137: 12620 | FJ137: 6961 | FK137: 687 | FL137: 3542.236609 | FM137: 3642.299795 | FN137: 2567 | FO137: 1353.902439 | FP137: 136.2486101 | FS137: -1696 | FV137: 1949 | FW137: -1949
A138: 426 | B138: Liperi | C138: 12396 | E138: 0.8042955008 | F138: 44.6477299 | G138: -2907.954179 | K138: 23.76269907 | L138: 293.9657954 | M138: 12.78375287 | N138: 8393.272023 | O138: 44753 | P138: 35373 | Q138: 95376 | R138: -60003 | S138: 36922 | T138: 27018 | W138: -534 | X138: 333 | Y138: 3736 | Z138: 2272 | AC138: 1464 | AD138: 119 | AG138: 1584 | AH138: -3172 | AI138: 3257 | AK138: 364 | AL138: -4794 | AM138: 565 | AN138: 36922 | AO138: 33961 | AP138: 963 | AQ138: 1998 | AR138: 20.5 | AT138: 145 | AU138: 12335 | AW138: 0.9955921809 | AX138: 51.43886242 | AY138: -3007.053101 | BC138: 28.19529875 | BD138: 86.5828942 | BE138: 4.505756161 | BF138: 7013.862991 | BG138: 33668 | BH138: 14932 | BI138: 75149 | BJ138: -60217 | BK138: 39600 | BL138: 25427 | BO138: -455 | BP138: 320 | BQ138: 4675 | BR138: 2341 | BU138: 2334 | BV138: 119 | BY138: 2454 | BZ138: -719 | CA138: 4487 | CC138: 1680 | CD138: -4699 | CE138: -1204 | CF138: 39600 | CG138: 36200 | CH138: 1176 | CI138: 2224 | CJ138: 21.5 | CL138: 132 | CM138: 12338 | CO138: 0.8250957854 | CP138: 57 | CQ138: -3303.614848 | CU138: 27 | CV138: 251.3373318 | CW138: 12.83439165 | CX138: 7147.835954 | CY138: 33869 | CZ138: 14785 | DA138: 76919 | DB138: -62134 | DC138: 40301 | DD138: 25747 | DG138: -462 | DH138: 653 | DI138: 3792 | DJ138: 2439 | DK138: 0 | DL138: 0 | DM138: 1353 | DN138: 119 | DO138: 0 | DP138: 0 | DQ138: 1472 | DR138: 753 | DS138: 3418 | DU138: 562 | DV138: -5000 | DW138: -3697 | DX138: 40301 | DY138: 36634 | DZ138: 1379 | EA138: 2288 | EB138: 21.5 | ED138: 171 | EE138: 39050 | EF138: 33445 | EG138: 34570 | EH138: 1250 | EK138: -3251 | EL138: 59 | EM138: 500 | EN138: -6145 | EO138: 221 | EP138: 233 | EQ138: -8834 | ER138: 1300 | ES138: 419 | ET138: 5000 | EU138: -1781 | EV138: 5000 | EW138: -1303 | EX138: 4705 | EY138: 3673 | EZ138: 29643 | FA138: 21097 | FB138: 8546 | FC138: 1530 | FD138: 28642 | FE138: 21392 | FF138: 7250 | FG138: 1383 | FH138: 32609 | FI138: 21577 | FJ138: 11032 | FK138: 1383 | FL138: 3928.363988 | FM138: 3806.64775 | FN138: 4139 | FO138: 1703.906977 | FP138: 138.1023648 | FS138: -6728 | FV138: 3322 | FW138: -3322
A139: 444 | B139: Lohja | C139: 47703 | E139: 1.419856006 | F139: 40.65137368 | G139: -2222.92099 | K139: 53.62609758 | L139: 59.30444626 | M139: 3.326862729 | N139: 6506.467099 | O139: 130226 | P139: 50961 | Q139: 283698 | R139: -232737 | S139: 179744 | T139: 63504 | W139: -1279 | X139: 595 | Y139: 9827 | Z139: 11602 | AC139: -1775 | AD139: 82 | AG139: -1694 | AH139: 11439 | AI139: 8819 | AK139: 1235 | AL139: -6503 | AM139: -7769 | AN139: 179744 | AO139: 162857 | AP139: 5509 | AQ139: 11378 | AR139: 19.5 | AT139: 194 | AU139: 47624 | AW139: 1.538321932 | AX139: 44.75777589 | AY139: -2466.319503 | BC139: 50.94538044 | BD139: 99.59264237 | BE139: 5.460046173 | BF139: 6657.6936 | BG139: 129559 | BH139: 51667 | BI139: 285854 | BJ139: -234187 | BK139: 181616 | BL139: 62889 | BO139: -1180 | BP139: 561 | BQ139: 9699 | BR139: 12019 | BS139: 1484 | BU139: -836 | BV139: 82 | BY139: -754 | BZ139: 10685 | CA139: 9095 | CC139: 370 | CD139: -5843 | CE139: -11401 | CF139: 181616 | CG139: 163129 | CH139: 6309 | CI139: 12178 | CJ139: 20 | CL139: 237 | CM139: 47353 | CO139: 1.332562386 | CP139: 49 | CQ139: -2789.897155 | CU139: 48 | CV139: 145.312863 | CW139: 7.70886919 | CX139: 6880.282136 | CY139: 129786 | CZ139: 51530 | DA139: 291963 | DB139: -240433 | DC139: 187476 | DD139: 62222 | DG139: -1070 | DH139: 2384 | DI139: 9746 | DJ139: 13632 | DK139: 0 | DL139: 0 | DM139: -3886 | DN139: 82 | DO139: 0 | DP139: 0 | DQ139: -3804 | DR139: 6881 | DS139: 7468 | DU139: 1075 | DV139: -16000 | DW139: -14286 | DX139: 187476 | DY139: 168554 | DZ139: 6700 | EA139: 12222 | EB139: 20.5 | ED139: 235 | EE139: 118897 | EF139: 120948 | EG139: 124592 | EK139: -18548 | EL139: 258 | EM139: 1702 | EN139: -23681 | EO139: 1038 | EP139: 2147 | EQ139: -25586 | ER139: 689 | ES139: 3143 | ET139: 15000 | EU139: -5579 | EV139: 12000 | EW139: 7131 | EX139: 7014 | EY139: 4264 | EZ139: 81251 | FA139: 58025 | FB139: 23226 | FC139: 3410 | FD139: 94540 | FE139: 63544 | FF139: 30996 | FG139: 3367 | FH139: 107790 | FI139: 72086 | FJ139: 35704 | FK139: 3266 | FL139: 2740.791984 | FM139: 3056.589115 | FN139: 3456 | FO139: 8222.146341 | FP139: 173.6351729 | FS139: -21738 | FV139: 5677 | FW139: -5677
A140: 430 | B140: Loimaa | C140: 16700 | E140: 1.143755459 | F140: 44.79696435 | G140: -2376.646707 | K140: 46.31156072 | L140: 249.9401198 | M140: 12.88696594 | N140: 7079.101796 | O140: 49319 | P140: 18660 | Q140: 107469 | R140: -88809 | S140: 53365 | T140: 41833 | W140: -485 | X140: 154 | Y140: 6058 | Z140: 3643 | AC140: 2415 | AD140: 87 | AG140: 2502 | AH140: 1509 | AI140: 5461 | AK140: -2934 | AL140: -5235 | AM140: 4306 | AN140: 53365 | AO140: 47217 | AP140: 2389 | AQ140: 3759 | AR140: 20.5 | AT140: 106 | AU140: 16607 | AW140: 0.6777471581 | AX140: 41.64278553 | AY140: -2385.018366 | BC140: 48.26000672 | BD140: 245.3784549 | BE140: 12.53550268 | BF140: 7144.758234 | BG140: 48423 | BH140: 17746 | BI140: 108958 | BJ140: -91212 | BK140: 52844 | BL140: 42129 | BO140: -418 | BP140: 171 | BQ140: 3514 | BR140: 3515 | BU140: -1 | BV140: 81 | BY140: 80 | BZ140: 1594 | CA140: 3233 | CC140: 4926 | CD140: -5385 | CE140: 250 | CF140: 52844 | CG140: 46004 | CH140: 2794 | CI140: 4046 | CJ140: 20.5 | CL140: 233 | CM140: 16467 | CO140: 0.8770331815 | CP140: 41 | CQ140: -2282.747313 | CU140: 49 | CV140: 334.2442461 | CW140: 17.99756325 | CX140: 6778.648206 | CY140: 46430 | CZ140: 16587 | DA140: 107083 | DB140: -90496 | DC140: 54006 | DD140: 41730 | DG140: -309 | DH140: 250 | DI140: 5079 | DJ140: 4050 | DK140: 0 | DL140: 0 | DM140: 1029 | DN140: 76 | DO140: 177 | DP140: 0 | DQ140: 1282 | DR140: 2876 | DS140: 4880 | DU140: 255 | DV140: -5000 | DW140: 2254 | DX140: 54006 | DY140: 46825 | DZ140: 3101 | EA140: 4080 | EB140: 20.5 | ED140: 169 | EE140: 44999 | EF140: 47108 | EG140: 47171 | EK140: -5004 | EL140: 3325 | EM140: 524 | EN140: -3536 | EO140: 156 | EP140: 397 | EQ140: -3591 | ER140: 368 | ES140: 597 | ET140: 8500 | EU140: -4000 | EV140: 5000 | EW140: -2500 | EX140: 5835 | EY140: 650 | EZ140: 38632 | FA140: 23248 | FB140: 15384 | FC140: 644 | FD140: 35748 | FE140: 22864 | FF140: 12884 | FG140: 838 | FH140: 35563 | FI140: 23209 | FJ140: 12354 | FK140: 830 | FL140: 3988.862275 | FM140: 3601.673993 | FN140: 3504 | FO140: 2284.146341 | FP140: 138.7105327 | FS140: -2590 | FV140: 8094 | FW140: -8094
A141: 433 | B141: Loppi | C141: 8341 | E141: 0.7544378698 | F141: 42.83286961 | G141: -2154.298046 | K141: 56.27373978 | L141: 113.7753267 | M141: 6.732720417 | N141: 6168.085361 | O141: 17708 | P141: 5296 | Q141: 43584 | R141: -38288 | S141: 26029 | T141: 15799 | W141: -335 | X141: 13 | Y141: 3218 | Z141: 1470 | AC141: 1748 | AG141: 1748 | AH141: 10200 | AI141: 3104 | AK141: -68 | AL141: -4380 | AM141: 101 | AN141: 26029 | AO141: 23355 | AP141: 1073 | AQ141: 1601 | AR141: 20 | AT141: 96 | AU141: 8291 | AW141: 0.9079384871 | AX141: 39.91914077 | AY141: -2006.633699 | BC141: 59.00491553 | BD141: 164.8775781 | BE141: 9.543350611 | BF141: 6305.994452 | BG141: 18723 | BH141: 5718 | BI141: 44677 | BJ141: -38959 | BK141: 27309 | BL141: 15987 | BO141: -347 | BP141: 19 | BQ141: 4009 | BR141: 1663 | BU141: 2346 | BY141: 2346 | BZ141: 12546 | CA141: 3849 | CC141: -297 | CD141: -4452 | CE141: 1247 | CF141: 27309 | CG141: 24100 | CH141: 1207 | CI141: 2002 | CJ141: 20 | CL141: 80 | CM141: 8175 | CO141: 0.646785627 | CP141: 43 | CQ141: -2298.470948 | CU141: 54 | CV141: 147.5229358 | CW141: 8.250984067 | CX141: 6525.993884 | CY141: 18843 | CZ141: 5828 | DA141: 46061 | DB141: -40233 | DC141: 27605 | DD141: 15242 | DG141: -326 | DH141: 24 | DI141: 2309 | DJ141: 1770 | DK141: 0 | DL141: 0 | DM141: 539 | DN141: 0 | DO141: 0 | DP141: 0 | DQ141: 539 | DR141: 11240 | DS141: 2252 | DU141: 406 | DV141: -5000 | DW141: -2079 | DX141: 27605 | DY141: 24125 | DZ141: 1478 | EA141: 2002 | EB141: 20.5 | ED141: 188 | EE141: 21309 | EF141: 20890 | EG141: 22370 | EK141: -3170 | EM141: 167 | EN141: -2832 | EP141: 230 | EQ141: -4463 | ER141: 0 | ES141: 132 | ET141: 2000 | EU141: 1800 | EV141: 2500 | EW141: 1200 | EX141: 3754 | EY141: 0 | EZ141: 15650 | FA141: 7632 | FB141: 8018 | FC141: 1497 | FD141: 14898 | FE141: 6598 | FF141: 8300 | FG141: 1439 | FH141: 16144 | FI141: 8357 | FJ141: 7787 | FK141: 1489 | FL141: 3228.269992 | FM141: 3360.390785 | FN141: 3142 | FO141: 1176.829268 | FP141: 143.9546506 | FS141: -4264 | FV141: 3878 | FW141: -3878
